Workbook

Sheet MENU
J1: PM
E2: =CHOOSE(MATCH(Objeto,{"PM","PO"}),"PLANILHA MÚLTIPLA ","PLANILHA ORÇAMENTÁRIA ")& Versao -> PLANILHA MÚLTIPLA v3.0.6 | J2: v3.0.6
O3: 1
O4: 2
J5: Proposto
E6: DADOS DO CONTRATO | G6: NOVIDADES DA VERSÃO | J6: Licitado
J7: PLE
B8: =IF($O$3<>2,"DOCUMENTAÇÃO DA PROPOSTA","PROPOSTA: Para visualizar/preencher esta seção, altere o TIPO DE ORÇAMENTO para 'Proposto'") -> DOCUMENTAÇÃO DA PROPOSTA | J8: BM | L8: LEGENDA:
L9: Cores das células:
C10: =IF(TIPOORCAMENTO<>"Proposto",""," BDI ") -> BDI | E10: =IF(TIPOORCAMENTO<>"Proposto",""," ORÇAMENTO ") -> ORÇAMENTO | G10: =IF(TIPOORCAMENTO<>"Proposto","","MEMÓRIA DE CÁLCULO / PLQ") -> MEMÓRIA DE CÁLCULO / PLQ | N10: Fundo amarelo: células para preencher
C12: =IF(TIPOORCAMENTO<>"Proposto",""," QCI ") -> QCI | E12: =IF(TIPOORCAMENTO<>"Proposto","","CRONOGRAMA FÍSICO-FINANCEIRO") -> CRONOGRAMA FÍSICO-FINANCEIRO | N12: Fundo azul: células para seleção de opções
C14: =IF(TIPOORCAMENTO<>"Proposto","","Obs: Composições e Cotações devem ser preenchidas diretamente no arquivo Referência "&IF(ISBLANK(Import.DataBase),"mm-aaaa",TEXT(Import.DataBase,"mm-aaaa"))&".xlsm.") -> Obs: Composições e Cotações devem ser preenchidas diretamente no arquivo Referência 06-2024.xlsm.
L15: Cores dos botões:
B16: =IF($O$3<>2,"PÓS-LICITADO: Para visualizar/preencher esta seção, altere o TIPO DE ORÇAMENTO para 'Licitado'","RESULTADO DO PROCESSO LICITATÓRIO") -> PÓS-LICITADO: Para visualizar/preencher esta seção, altere o TIPO DE ORÇAMENTO para 'Licitado' | N16: Fundo azul: navegação entre abas
C18: =IF(TIPOORCAMENTO<>"Licitado",""," ORÇAMENTO ") ->  | E18: =IF(TIPOORCAMENTO<>"Licitado",""," QCI ") ->  | G18: =IF(TIPOORCAMENTO<>"Licitado","","CRONOGRAMA FÍSICO-FINANCEIRO") ->  | N18: Fundo laranja: execução de macro
B20: =IF($O$3<>2,"ACOMPANHAMENTO: Para visualizar/preencher esta seção, altere o TIPO DE ORÇAMENTO para 'Licitado'","ACOMPANHAMENTO DO EMPREENDIMENTO") -> ACOMPANHAMENTO: Para visualizar/preencher esta seção, altere o TIPO DE ORÇAMENTO para 'Licitado'
C22: =IF(OR(TIPOORCAMENTO<>"Licitado",ACOMPANHAMENTO<>"PLE"),"","PLAN. DE LEVANT. DE EVENTOS - PLE") ->  | E22: =IF(TIPOORCAMENTO<>"Licitado",""," RRE ") ->  | G22: =IF(OR(TIPOORCAMENTO<>"Licitado",ACOMPANHAMENTO<>"BM"),""," BOLETIM DE MEDIÇÃO - BM ") -> 
E24: =IF(TIPOORCAMENTO<>"Licitado","","OF. DE SOLICITAÇÃO DE DESBLOQUEIO") -> 

Sheet DADOS
E1: A. DOCUMENTAÇÃO DA PROPOSTA | L1: Sub-Itens de Investimento
J2: Itens de Investimento | K2: Unidades habitacionais | L2: =COUNTA(K:K)-1 -> 3 | M2: Equipamentos comunitários | N2: =COUNTA(M:M)-1 -> 6 | O2: Pavimentação | P2: =COUNTA(O:O)-1 -> 6 | Q2: Drenagem | R2: =COUNTA(Q:Q)-1 -> 6 | S2: Abastecimento de água | T2: =COUNTA(S:S)-1 -> 11 | U2: Esgotamento sanitário | V2: =COUNTA(U:U)-1 -> 8 | W2: Energia elétrica e iluminação pública | X2: =COUNTA(W:W)-1 -> 4 | Y2: Coleta e tratamento de resíduos sólidos | Z2: =COUNTA(Y:Y)-1 -> 6 | AA2: Contenção e estabilização de encostas | AB2: =COUNTA(AA:AA)-1 -> 2 | AC2: Regularização fundiária | AD2: =COUNTA(AC:AC)-1 -> 2 | AE2: Aquisição de terreno | AF2: =COUNTA(AE:AE)-1 -> 2 | AG2: Aquisição de equipamentos e insumos | AH2: =COUNTA(AG:AG)-1 -> 1 | AI2: Elaboração de estudos e projetos | AJ2: =COUNTA(AI:AI)-1 -> 1 | AK2: Instrumentos e ações em planejamento e gestão pública | AL2: =COUNTA(AK:AK)-1 -> 1 | AM2: Ações complementares às obras | AN2: =COUNTA(AM:AM)-1 -> 3 | AO2: Gerenciamento | AP2: =COUNTA(AO:AO)-1 -> 1 | AQ2: Trabalho social | AR2: =COUNTA(AQ:AQ)-1 -> 4
E3: Dados do Contrato (Inicial) | J3: Unidades habitacionais | K3: Aquisição | L3: un | M3: Convivência comunitária, assistência social e/ou comunitária | N3: m² | O3: Capeamento de vias | P3: m² | Q3: Obras de microdrenagem | R3: m | S3: Captação subterrânea | T3: m³/s | U3: Ligações domiciliares e/ou intradomiciliares | V3: un | W3: Iluminação pública - luminárias | X3: un | Y3: Acondicionamento | Z3: un | AA3: Estabilização de taludes | AB3: m² | AC3: Desapropriacões/Indenizações | AD3: m² | AE3: Aquisição de terreno | AF3: m² | AG3: Aquisição de equipamentos e insumos | AH3: un | AI3: Elaboração de estudos e projetos | AJ3: un | AK3: Instrumentos e ações em planejamento e gestão pública | AL3: un | AM3: Avaliação pós intervenção | AN3: un | AO3: Gerenciamento | AP3: %CT | AQ3: Projeto de Trabalho Social Preliminar | AR3: nº fam
E4: Fonte de recursos: | F4: (SELECIONAR) | J4: Equipamentos comunitários | K4: Construção | L4: un | M4: Educação e cultura | N4: m² | O4: Recapeamento de vias | P4: m² | Q4: Desassoreamento de cursos de água | R4: m | S4: Captação superficial | T4: m³/s | U4: Rede coletora e/ou condominial | V4: m | W4: Ligações domiciliares | X4: un | Y4: Aterro sanitário e/ou disposição final | Z4: m³ | AA4: Obras complementares a ações de redução de risco e/ou contenções | AB4: m² | AC4: Projeto de Regularização Fundiária | AD4: m² | AE4: Benfeitorias | AF4: m² | AM4: Demolições | AN4: un | AQ4: Projeto de Trabalho Social | AR4: nº fam
E5: Proponente/Tomador: | F5: PREFEITURA MUNICIPAL DE ITAPEJARA D'OESTE | J5: Pavimentação | K5: Reforma e/ou melhoria | L5: un | M5: Esportes | N5: m² | O5: Obras de artes especiais | P5: m | Q5: Canalização de cursos de água | R5: m | S5: Estação de bombeamento de água bruta | T5: m³/s | U5: Coletor tronco e/ou interceptores | V5: m | W5: Linhas de distribuição - baixa tensão | X5: m | Y5: Erradicação de lixões | Z5: m³ | AM5: Plano de Reassentamento e medidas compensatórias | AN5: un | AQ5: Plano de Desenvolvimento Socioterritorial | AR5: nº fam
E6: Município/UF: | F6: ITAPEJARA D'OESTE | J6: Drenagem | M6: Lazer e turismo | N6: m² | O6: Pavimentação de calçadas | P6: m² | Q6: Recomposição de vegetação ciliar, renaturalização de cursos de água ou restauração de margens | R6: m² | S6: Adução | T6: m | U6: Emissário | V6: m | W6: Linhas de transmissão - alta tensão | X6: m | Y6: Sistema de coleta seletiva tradicional, transporte e/ou equipamentos | Z6: un | AQ6: Plano de Gestão Condominial | AR6: nº fam
E7: Nº da Operação (0000000-00): | J7: Abastecimento de água | M7: Saúde | N7: m² | O7: Pavimentação de vias | P7: m² | Q7: Reservatório de amortecimento de cheias | R7: m³ | S7: Estação de Tratamento de Água (ETA) | T7: m³/s | U7: Estação Elevatória | V7: m³/s | Y7: Tratamento local | Z7: un
E8: Nº do TransfereGOV (000000): | J8: Esgotamento sanitário | M8: Segurança pública | N8: m² | O8: Sinalização | P8: m² | Q8: Estação de Bombeamento | R8: m³/s | S8: Estação de bombeamento de água tratada | T8: m³/s | U8: Estação de Tratamento de Esgoto (ETE) | V8: m³/s | Y8: Usinas de reciclagem | Z8: m²
E9: =IF(F4="FGTS","Valor de Financiamento Contratado (R$):","Valor do Repasse Contratado (R$):") -> Valor do Repasse Contratado (R$): | F9: 1447093.02 | J9: Energia elétrica e iluminação pública | S9: Linha de recalque | T9: m | U9: Sistema simplificado de tratamento | V9: m³/s
E10: Valor de Contrapartida Contratada (R$): | F10: 530550.74 | J10: Coleta e tratamento de resíduos sólidos | S10: Reservação | T10: m³ | U10: Unidades sanitárias | V10: un
E11: % mínimo de Contrapartida: | J11: Contenção e estabilização de encostas | S11: Rede de distribuição | T11: m
E12: R$ mínimo de Contrapartida (se houver): | J12: Regularização fundiária | S12: Ligações domiciliares e/ou intradomiciliares | T12: un
E13: % máximo de Contrapartida: | J13: Aquisição de terreno | S13: Sistema simplificado de abastecimento | T13: m
J14: Aquisição de equipamentos e insumos
E15: Dados do Empreendimento e Orçamento | J15: Elaboração de estudos e projetos
E16: Nome/apelido: | F16: REFORMA E AMPLIAÇÃO DA ESCOLA JOSAFAT KMITA | J16: Instrumentos e ações em planejamento e gestão pública
E17: Descrição do Objeto do Lote / CTEF: | F17: REFORMA E AMPLIAÇÃO DA ESCOLA JOSAFAT KMITA | J17: Ações complementares às obras
E18: Regime previdenciário previsto para a obra: | F18: (SELECIONAR) | J18: Gerenciamento
E19: Data base do Orçamento: | F19: 2024-06-01 | J19: Trabalho social
E21: Responsável pelo Orçamento
E22: Nome: | F22: LEANDRO HENRIQUE MAAS SANTOS
E23: CREA/CAU: | F23: 170817/D
E24: ART/RRT: | F24: 1720242442718
E25: Data do preenchimento: | F25: =TODAY() -> 2024-10-29
E27: Responsável pelo Tomador (Prefeito, no caso de Municípios)
E28: Nome: | F28: VILMAR SCHMOLLER
E29: Cargo: | F29: PREFEITO MUNICIPAL
E31: Arredondamento das frentes: | F31: Tradicional
E33: B. RESULTADO DO PROCESSO LICITATÓRIO
E35: Licitação
E36: Data de emissão dos documentos de licitação:
E37: Nº do CTEF (contrato com empresa):
E38: Nome da empresa:
E39: CNPJ da empresa:
E40: Regime de execução do CTEF: | F40: (SELECIONAR)
E41: Data base do CTEF:
E44: C. ACOMPANHAMENTO DO EMPREENDIMENTO
E46: Dados da obra
E47: Data do Início da Obra:
E48: Data de fechamento do RRE: | F48: =TODAY() -> 2024-10-29
E50: Responsável pela Fiscalização
E51: Nome: | F51: LEANDRO HENRIQUE MAAS SANTOS
E52: Profissão: | F52: ENGENHEIRO CIVIL
E53: CREA/CAU (para obras/projetos): | F53: 170817/D
E54: ART/RRT (para obras/projetos): | F54: 1720242442718
E57: D. ACOMPANHAMENTO CAIXA
E59: Responsável Gerencial
E60: Nome:
E61: Função:

Sheet NOVO
B3: Novidades da Versão
A6: V3.0.0
B7: GERAL
C8: =IF(D8<>"","▪","") -> ▪ | D8: Lançamento: Adequação à Portaria 424/2016. Acompanhamento por Eventos.
C9: =IF(D9<>"","▪","") -> 
A10: V3.0.1
B11: GERAL
C12: =IF(D12<>"","▪","") -> ▪ | D12: Ajustes de formatações.
B13: PO
C14: =IF(D14<>"","▪","") -> ▪ | D14: Correção da aplicação do BDI não desonerado.
C15: =IF(D15<>"","▪","") -> ▪ | D15: Inclusão de coluna exclusiva "Preço Unitário Edital", para o Modo 'Orçamento Licitado'.
A17: V3.0.2
B18: GERAL
C19: =IF(D19<>"","▪","") -> ▪ | D19: Ajustes de formatações.
C20: =IF(D20<>"","▪","") -> ▪ | D20: Correção do Problema de Guias ocultas no BROFFICE.
B21: ORÇAMENTO
C22: =IF(D22<>"","▪","") -> ▪ | D22: Ampliada obtenção de dados da Planilha Referência de 20.000 para 65.536 linhas.
B23: CRONOGRAMA
C24: =IF(D24<>"","▪","") -> ▪ | D24: Correção na formulação do total acumulado por Repasse, CP e Outros
B25: QCI
C26: =IF(D26<>"","▪","") -> ▪ | D26: Correção na formulação do arredondamento no rateio dos valores do QCI.
B27: RRE
C28: =IF(D28<>"","▪","") -> ▪ | D28: Correção na formulação do total por Repasse, CP e Outros.
A30: V3.0.3
B31: GERAL
C32: =IF(D32<>"","▪","") -> ▪ | D32: Correção do Problema de Guias ocultas no BROFFICE.
B33: CÁLCULO
C34: =IF(D34<>"","▪","") -> ▪ | D34: Corrigida lentidão e travamento ao incluir e excluir frentes.
A37: V3.0.4
B38: BDI
C39: =IF(D39<>"","▪","") -> ▪ | D39: Correção da CPRB que exibia 4,5% mesmo quando não desonerado.
B40: CRONOGRAMA
C41: =IF(D41<>"","▪","") -> ▪ | D41: Correção da distribuição de Repasse, CP e Outros para as metas manuais.
B42: QCI
C43: =IF(D43<>"","▪","") -> ▪ | D43: Adicionado botão para adotar a CP do QCI como CP do contrato (zera saldo a reprogramar de CP).
A45: V3.0.5
B46: GERAL
C47: =IF(D47<>"","▪","") -> ▪ | D47: Corrigido modo de Cálculo da Planilha para Automático.
A49: V3.0.6
B50: GERAL
C51: =IF(D51<>"","▪","") -> ▪ | D51: Adicionado modo de arredondamento para compatibilidade com o TransfereGOV, altera na aba DADOS
C52: =IF(D52<>"","▪","") -> ▪ | D52: A planilha passará a ser disponibilizada com o formato .xlsm. Deve ser usado arquivo referência 1.9 ou superior, também no formato .xlsm

Sheet BDI
E1: MIN | F1: MED | G1: MAX | O1: ="Quadro de Composição do BDI" -> Quadro de Composição do BDI | R1: Grau de Sigilo
A2: Construção e Reforma de Edifícios | B2: AC | C2: =CONCATENATE(A2,"-",B2) -> Construção e Reforma de Edifícios-AC | E2: 0.03 | F2: 0.04 | G2: 0.055 | R2: #PUBLICO
A3: =A2 -> Construção e Reforma de Edifícios | B3: SG | C3: Construção e Reforma de Edifícios-SG | E3: 0.008 | F3: 0.008 | G3: 0.01
A4: =A3 -> Construção e Reforma de Edifícios | B4: R | C4: Construção e Reforma de Edifícios-R | E4: 0.0097 | F4: 0.0127 | G4: 0.0127 | J4: Nº OPERAÇÃO | L4: Nº TRANSFEREGOV | N4: PROPONENTE / TOMADOR
A5: =A4 -> Construção e Reforma de Edifícios | B5: DF | C5: Construção e Reforma de Edifícios-DF | E5: 0.0059 | F5: 0.0123 | G5: 0.0139 | J5: =Import.CR -> 0 | L5: =Import.TransfereGOV -> 0 | N5: =Import.Proponente -> PREFEITURA MUNICIPAL DE ITAPEJARA D'OESTE
A6: =A5 -> Construção e Reforma de Edifícios | B6: L | C6: Construção e Reforma de Edifícios-L | E6: 0.0616 | F6: 0.074 | G6: 0.0896 | I6: FILTRO
A7: =A6 -> Construção e Reforma de Edifícios | B7: BDI PAD | C7: Construção e Reforma de Edifícios-BDI PAD | E7: 0.2034 | F7: 0.2212 | G7: 0.25 | J7: APELIDO DO EMPREENDIMENTO / DESCRIÇÃO DO LOTE
A8: Construção de Praças Urbanas, Rodovias, Ferrovias e recapeamento e pavimentação de vias urbanas | B8: AC | C8: Construção de Praças Urbanas, Rodovias, Ferrovias e recapeamento e pavimentação de vias urbanas-AC | E8: 0.038 | F8: 0.0401 | G8: 0.0467 | J8: =Import.Apelido&" / "&Import.DescLote -> REFORMA E AMPLIAÇÃO DA ESCOLA JOSAFAT KMITA / REFORMA E AMPLIAÇÃO DA ESCOLA JOSAFAT KMITA
A9: Construção de Praças Urbanas, Rodovias, Ferrovias e recapeamento e pavimentação de vias urbanas | B9: SG | C9: Construção de Praças Urbanas, Rodovias, Ferrovias e recapeamento e pavimentação de vias urbanas-SG | E9: 0.0032 | F9: 0.004 | G9: 0.0074
A10: Construção de Praças Urbanas, Rodovias, Ferrovias e recapeamento e pavimentação de vias urbanas | B10: R | C10: Construção de Praças Urbanas, Rodovias, Ferrovias e recapeamento e pavimentação de vias urbanas-R | E10: 0.005 | F10: 0.0056 | G10: 0.0097 | J10: Conforme legislação tributária municipal, definir estimativa de percentual da base de cálculo para o ISS: | R10: 0.3
A11: Construção de Praças Urbanas, Rodovias, Ferrovias e recapeamento e pavimentação de vias urbanas | B11: DF | C11: Construção de Praças Urbanas, Rodovias, Ferrovias e recapeamento e pavimentação de vias urbanas-DF | E11: 0.0102 | F11: 0.0111 | G11: 0.0121 | I11: ↓ | J11: Sobre a base de cálculo, definir a respectiva alíquota do ISS (entre 2% e 5%): | R11: 0.03
A12: Construção de Praças Urbanas, Rodovias, Ferrovias e recapeamento e pavimentação de vias urbanas | B12: L | C12: Construção de Praças Urbanas, Rodovias, Ferrovias e recapeamento e pavimentação de vias urbanas-L | E12: 0.0664 | F12: 0.073 | G12: 0.0869 | I12: F
A13: Construção de Praças Urbanas, Rodovias, Ferrovias e recapeamento e pavimentação de vias urbanas | B13: BDI PAD | C13: Construção de Praças Urbanas, Rodovias, Ferrovias e recapeamento e pavimentação de vias urbanas-BDI PAD | E13: 0.196 | F13: 0.2097 | G13: 0.2423 | I13: F
A14: Construção de Redes de Abastecimento de Água, Coleta de Esgoto | B14: AC | C14: Construção de Redes de Abastecimento de Água, Coleta de Esgoto-AC | E14: 0.0343 | F14: 0.0493 | G14: 0.0671 | I14: F | J14: BDI 1
A15: =A14 -> Construção de Redes de Abastecimento de Água, Coleta de Esgoto | B15: SG | C15: Construção de Redes de Abastecimento de Água, Coleta de Esgoto-SG | E15: 0.0028 | F15: 0.0049 | G15: 0.0075 | I15: F
A16: =A15 -> Construção de Redes de Abastecimento de Água, Coleta de Esgoto | B16: R | C16: Construção de Redes de Abastecimento de Água, Coleta de Esgoto-R | E16: 0.01 | F16: 0.0139 | G16: 0.0174 | I16: F | J16: TIPO DE OBRA
A17: =A16 -> Construção de Redes de Abastecimento de Água, Coleta de Esgoto | B17: DF | C17: Construção de Redes de Abastecimento de Água, Coleta de Esgoto-DF | E17: 0.0094 | F17: 0.0099 | G17: 0.0117 | I17: F | J17: Construção e Reforma de Edifícios
A18: =A17 -> Construção de Redes de Abastecimento de Água, Coleta de Esgoto | B18: L | C18: Construção de Redes de Abastecimento de Água, Coleta de Esgoto-L | E18: 0.0674 | F18: 0.0804 | G18: 0.094 | I18: F
A19: =A18 -> Construção de Redes de Abastecimento de Água, Coleta de Esgoto | B19: BDI PAD | C19: Construção de Redes de Abastecimento de Água, Coleta de Esgoto-BDI PAD | E19: 0.2076 | F19: 0.2418 | G19: 0.2644 | I19: F | J19: Itens | R19: Siglas | S19: % Adotado | U19: Situação | X19: 1º Quartil | Y19: Médio | Z19: 3º Quartil
A20: Construção e Manutenção de Estações e Redes de Distribuição de Energia Elétrica | B20: AC | C20: Construção e Manutenção de Estações e Redes de Distribuição de Energia Elétrica-AC | E20: 0.0529 | F20: 0.0592 | G20: 0.0793 | I20: F
A21: =A20 -> Construção e Manutenção de Estações e Redes de Distribuição de Energia Elétrica | B21: SG | C21: Construção e Manutenção de Estações e Redes de Distribuição de Energia Elétrica-SG | E21: 0.0025 | F21: 0.0051 | G21: 0.0056 | I21: F | J21: =IF($J$17=$A$146,"Encargos Sociais incidentes sobre a mão de obra","Administração Central") -> Administração Central | R21: =IF($J17=$A$146,"K1","AC") -> AC | S21: 0.04 | U21: - | X21: =VLOOKUP(CONCATENATE(J17,"-",R21),$C$2:$G$136,3,FALSE) -> 0.03 | Y21: =VLOOKUP(CONCATENATE(J17,"-",R21),$C$2:$G$136,4,FALSE) -> 0.04 | Z21: =VLOOKUP(CONCATENATE(J17,"-",R21),$C$2:$G$136,5,FALSE) -> 0.055
A22: =A21 -> Construção e Manutenção de Estações e Redes de Distribuição de Energia Elétrica | B22: R | C22: Construção e Manutenção de Estações e Redes de Distribuição de Energia Elétrica-R | E22: 0.01 | F22: 0.0148 | G22: 0.0197 | I22: F | J22: =IF($J$17=$A$146,"Administração Central da empresa ou consultoria - overhead","Seguro e Garantia") -> Seguro e Garantia | R22: =IF($J17=$A$146,"K2","SG") -> SG | S22: 0.008 | U22: - | X22: =VLOOKUP(CONCATENATE(J17,"-",R22),$C$2:$G$136,3,FALSE) -> 0.008 | Y22: =VLOOKUP(CONCATENATE(J17,"-",R22),$C$2:$G$136,4,FALSE) -> 0.008 | Z22: =VLOOKUP(CONCATENATE(J17,"-",R22),$C$2:$G$136,5,FALSE) -> 0.01
A23: =A22 -> Construção e Manutenção de Estações e Redes de Distribuição de Energia Elétrica | B23: DF | C23: Construção e Manutenção de Estações e Redes de Distribuição de Energia Elétrica-DF | E23: 0.0101 | F23: 0.0107 | G23: 0.0111 | I23: F | J23: =IF($J$17=$A$146,"","Risco") -> Risco | R23: =IF($J17=$A$146,"","R") -> R | S23: 0.0127 | U23: - | X23: =VLOOKUP(CONCATENATE(J17,"-",R23),$C$2:$G$136,3,FALSE) -> 0.0097 | Y23: =VLOOKUP(CONCATENATE(J17,"-",R23),$C$2:$G$136,4,FALSE) -> 0.0127 | Z23: =VLOOKUP(CONCATENATE(J17,"-",R23),$C$2:$G$136,5,FALSE) -> 0.0127
A24: =A23 -> Construção e Manutenção de Estações e Redes de Distribuição de Energia Elétrica | B24: L | C24: Construção e Manutenção de Estações e Redes de Distribuição de Energia Elétrica-L | E24: 0.08 | F24: 0.0831 | G24: 0.0951 | I24: F | J24: =IF($J$17=$A$146,"","Despesas Financeiras") -> Despesas Financeiras | R24: =IF($J17=$A$146,"","DF") -> DF | S24: 0.0123 | U24: - | X24: =VLOOKUP(CONCATENATE(J17,"-",R24),$C$2:$G$136,3,FALSE) -> 0.0059 | Y24: =VLOOKUP(CONCATENATE(J17,"-",R24),$C$2:$G$136,4,FALSE) -> 0.0123 | Z24: =VLOOKUP(CONCATENATE(J17,"-",R24),$C$2:$G$136,5,FALSE) -> 0.0139
A25: =A24 -> Construção e Manutenção de Estações e Redes de Distribuição de Energia Elétrica | B25: BDI PAD | C25: Construção e Manutenção de Estações e Redes de Distribuição de Energia Elétrica-BDI PAD | E25: 0.24 | F25: 0.2584 | G25: 0.2786 | I25: F | J25: =IF($J$17=$A$146,"Margem bruta da empresa de consultoria","Lucro") -> Lucro | R25: =IF($J17=$A$146,"K3","L") -> L | S25: 0.074 | U25: - | X25: =VLOOKUP(CONCATENATE(J17,"-",R25),$C$2:$G$136,3,FALSE) -> 0.0616 | Y25: =VLOOKUP(CONCATENATE(J17,"-",R25),$C$2:$G$136,4,FALSE) -> 0.074 | Z25: =VLOOKUP(CONCATENATE(J17,"-",R25),$C$2:$G$136,5,FALSE) -> 0.0896
A26: Obras Portuárias, Marítimas e Fluviais | B26: AC | C26: Obras Portuárias, Marítimas e Fluviais-AC | E26: 0.04 | F26: 0.0552 | G26: 0.0785 | I26: F | J26: Tributos (impostos COFINS 3%, e PIS 0,65%) | R26: CP | S26: 0.0365 | U26: - | X26: 0.0365 | Y26: 0.0365 | Z26: 0.0365
A27: =A26 -> Obras Portuárias, Marítimas e Fluviais | B27: SG | C27: Obras Portuárias, Marítimas e Fluviais-SG | E27: 0.0081 | F27: 0.0122 | G27: 0.0199 | I27: F | J27: Tributos (ISS, variável de acordo com o município) | R27: ISS | S27: =IF(AND($J17<>$A$145,COUNTA(OFFSET(S20,1,0,6))>0),$R$11*$R$10,0) -> 0.009 | U27: - | X27: 0 | Y27: 0.025 | Z27: 0.05
A28: =A27 -> Obras Portuárias, Marítimas e Fluviais | B28: R | C28: Obras Portuárias, Marítimas e Fluviais-R | E28: 0.0146 | F28: 0.0232 | G28: 0.0316 | I28: F | J28: Tributos (Contribuição Previdenciária sobre a Receita Bruta - 0% ou 4,5% - Desoneração) | R28: CPRB | S28: =IF(BDI.Opcao<>"Desonerado",0,IF(AND($J17<>$A$145,COUNTA(OFFSET(S20,1,0,6))>0),4.5%,0%)) -> 0 | U28: - | X28: 0 | Y28: 0.045 | Z28: 0.045
A29: =A28 -> Obras Portuárias, Marítimas e Fluviais | B29: DF | C29: Obras Portuárias, Marítimas e Fluviais-DF | E29: 0.0094 | F29: 0.0102 | G29: 0.0133 | I29: F | J29: BDI SEM desoneração (Fórmula Acórdão TCU) | R29: BDI PAD | S29: =IF($J17=$A$145,0,ROUND((((1+S21+S22+S23)*(1+S24)*(1+S25)/(1-(S26+S27)))-1),4)) -> 0.2082 | U29: =IF(OR($J$17=$A$146,$J$17=$A$145,AND(S29>=X29,S29<=Z29)),"OK","FORA DO INTERVALO") -> OK | X29: =IF($J17=$A$145,0,VLOOKUP(CONCATENATE($J17,"-",$R29),$C$2:$G$136,3,FALSE)) -> 0.2034 | Y29: =IF($J17=$A$145,0,VLOOKUP(CONCATENATE($J17,"-",$R29),$C$2:$G$136,4,FALSE)) -> 0.2212 | Z29: =IF($J17=$A$145,0,VLOOKUP(CONCATENATE($J17,"-",$R29),$C$2:$G$136,5,FALSE)) -> 0.25
A30: =A29 -> Obras Portuárias, Marítimas e Fluviais | B30: L | C30: Obras Portuárias, Marítimas e Fluviais-L | E30: 0.0714 | F30: 0.084 | G30: 0.1043 | I30: F | J30: BDI COM desoneração | R30: BDI DES | S30: =IF($J17=$A$145,0,ROUND((((1+S21+S22+S23)*(1+S24)*(1+S25)/(1-(S26+S27+S28)))-1),4)) -> 0.2082
A31: =A30 -> Obras Portuárias, Marítimas e Fluviais | B31: BDI PAD | C31: Obras Portuárias, Marítimas e Fluviais-BDI PAD | E31: 0.228 | F31: 0.2748 | G31: 0.3095 | I31: F
A32: Fornecimento de Materiais e Equipamentos (aquisição indireta - em conjunto com licitação de obras) | B32: AC | C32: Fornecimento de Materiais e Equipamentos (aquisição indireta - em conjunto com licitação de obras)-AC | E32: 0.015 | F32: 0.0345 | G32: 0.0449 | I32: F | J32: =IF(U29<>"ok","X","") ->  | K32: =IF(U29<>"ok","Anexo: Relatório Técnico Circunstanciado justificando a adoção do percentual de cada parcela do BDI.","") -> 
A33: =A32 -> Fornecimento de Materiais e Equipamentos (aquisição indireta - em conjunto com licitação de obras) | B33: SG | C33: Fornecimento de Materiais e Equipamentos (aquisição indireta - em conjunto com licitação de obras)-SG | E33: 0.003 | F33: 0.0048 | G33: 0.0082 | I33: F
A34: =A33 -> Fornecimento de Materiais e Equipamentos (aquisição indireta - em conjunto com licitação de obras) | B34: R | C34: Fornecimento de Materiais e Equipamentos (aquisição indireta - em conjunto com licitação de obras)-R | E34: 0.0056 | F34: 0.0085 | G34: 0.0089 | I34: F | J34: Os valores de BDI foram calculados com o emprego da fórmula:
A35: =A34 -> Fornecimento de Materiais e Equipamentos (aquisição indireta - em conjunto com licitação de obras) | B35: DF | C35: Fornecimento de Materiais e Equipamentos (aquisição indireta - em conjunto com licitação de obras)-DF | E35: 0.0085 | F35: 0.0085 | G35: 0.0111 | I35: F | M35: BDI = | N35: =IF($J17=$A$146,"(1+K1+K2)*(1+K3)","(1+AC + S + R + G)*(1 + DF)*(1+L)") -> (1+AC + S + R + G)*(1 + DF)*(1+L) | Q35: - 1
A36: =A35 -> Fornecimento de Materiais e Equipamentos (aquisição indireta - em conjunto com licitação de obras) | B36: L | C36: Fornecimento de Materiais e Equipamentos (aquisição indireta - em conjunto com licitação de obras)-L | E36: 0.035 | F36: 0.0511 | G36: 0.0622 | I36: F | N36: (1-CP-ISS-CRPB)
A37: =A36 -> Fornecimento de Materiais e Equipamentos (aquisição indireta - em conjunto com licitação de obras) | B37: BDI PAD | C37: Fornecimento de Materiais e Equipamentos (aquisição indireta - em conjunto com licitação de obras)-BDI PAD | E37: 0.111 | F37: 0.1402 | G37: 0.168 | I37: F
A38: Fornecimento de Materiais e Equipamentos (aquisição direta) | B38: AC | C38: Fornecimento de Materiais e Equipamentos (aquisição direta)-AC | E38: - | F38: - | G38: - | I38: F | J38: =CONCATENATE("Declaro para os devidos fins que, conforme legislação tributária municipal, a base de cálculo deste tipo de obra corresponde à ",$R$10*100,"%, com a respectiva alíquota de ",$R$11*100,"%.") -> Declaro para os devidos fins que, conforme legislação tributária municipal, a base de cálculo deste tipo de obra corresponde à 30%, com a respectiva alíquota de 3%.
A39: Fornecimento de Materiais e Equipamentos (aquisição direta) | B39: SG | C39: Fornecimento de Materiais e Equipamentos (aquisição direta)-SG | E39: - | F39: - | G39: - | I39: F
A40: Fornecimento de Materiais e Equipamentos (aquisição direta) | B40: R | C40: Fornecimento de Materiais e Equipamentos (aquisição direta)-R | E40: - | F40: - | G40: - | I40: F | J40: =CONCATENATE("Declaro para os devidos fins que o regime de Contribuição Previdenciária sobre a Receita Bruta adotado para elaboração do orçamento foi ",IF(DESONERACAO="Sim","COM","SEM")," Desoneração, e que esta é a alternativa mais adequada para a Administração Pública.") -> Declaro para os devidos fins que o regime de Contribuição Previdenciária sobre a Receita Bruta adotado para elaboração do orçamento foi SEM Desoneração, e que esta é a alternativa mais adequada para a Administração Pública.
A41: Fornecimento de Materiais e Equipamentos (aquisição direta) | B41: DF | C41: Fornecimento de Materiais e Equipamentos (aquisição direta)-DF | E41: - | F41: - | G41: - | I41: F
A42: Fornecimento de Materiais e Equipamentos (aquisição direta) | B42: L | C42: Fornecimento de Materiais e Equipamentos (aquisição direta)-L | E42: - | F42: - | G42: - | I42: F | J42: Observações:
A43: Fornecimento de Materiais e Equipamentos (aquisição direta) | B43: BDI PAD | C43: Fornecimento de Materiais e Equipamentos (aquisição direta)-BDI PAD | E43: - | F43: - | G43: - | I43: F
A44: Estudos e Projetos, Planos e Gerenciamento e outros correlatos | B44: K1 | C44: Estudos e Projetos, Planos e Gerenciamento e outros correlatos-K1 | E44: - | F44: - | G44: - | I44: F
A45: =A44 -> Estudos e Projetos, Planos e Gerenciamento e outros correlatos | B45: K2 | C45: Estudos e Projetos, Planos e Gerenciamento e outros correlatos-K2 | E45: - | F45: 0.2 | G45: - | I45: F | J45: =Import.Município -> ITAPEJARA D'OESTE | P45: =DADOS!$F$25 -> 2024-10-29
A46: =A45 -> Estudos e Projetos, Planos e Gerenciamento e outros correlatos | C46: Estudos e Projetos, Planos e Gerenciamento e outros correlatos- | E46: - | F46: - | G46: - | I46: F | J46: Local | P46: Data
A47: =A46 -> Estudos e Projetos, Planos e Gerenciamento e outros correlatos | C47: Estudos e Projetos, Planos e Gerenciamento e outros correlatos- | E47: - | F47: - | G47: - | I47: F
A48: =A47 -> Estudos e Projetos, Planos e Gerenciamento e outros correlatos | B48: K3 | C48: Estudos e Projetos, Planos e Gerenciamento e outros correlatos-K3 | E48: - | F48: 0.12 | G48: - | I48: F
A49: =A48 -> Estudos e Projetos, Planos e Gerenciamento e outros correlatos | B49: BDI PAD | C49: Estudos e Projetos, Planos e Gerenciamento e outros correlatos-BDI PAD | E49: - | F49: - | G49: - | I49: F | J49: Responsável Técnico
I50: F | J50: Nome: | K50: =Import.RespOrçamento -> LEANDRO HENRIQUE MAAS SANTOS
I51: F | J51: CREA/CAU: | K51: 170817/D
I52: F | J52: ART/RRT: | K52: 1720242442718
I53: F
I54: =IF($S$69=0,"","F") ->  | J54: BDI 2
I55: =IF($S$69=0,"","F") -> 
J56: TIPO DE OBRA
J57: (SELECIONAR)
J59: Itens | R59: Siglas | S59: % Adotado | U59: Situação | X59: 1º Quartil | Y59: Médio | Z59: 3º Quartil
J61: =IF($J$17=$A$146,"Encargos Sociais incidentes sobre a mão de obra","Administração Central") -> Administração Central | R61: =IF($J57=$A$146,"K1","AC") -> AC | U61: - | X61: =VLOOKUP(CONCATENATE(J57,"-",R61),$C$2:$G$136,3,FALSE) ->  | Y61: =VLOOKUP(CONCATENATE(J57,"-",R61),$C$2:$G$136,4,FALSE) ->  | Z61: =VLOOKUP(CONCATENATE(J57,"-",R61),$C$2:$G$136,5,FALSE) -> 
J62: =IF($J$17=$A$146,"Administração Central da empresa ou consultoria - overhead","Seguro e Garantia") -> Seguro e Garantia | R62: =IF($J57=$A$146,"K2","SG") -> SG | U62: - | X62: =VLOOKUP(CONCATENATE(J57,"-",R62),$C$2:$G$136,3,FALSE) ->  | Y62: =VLOOKUP(CONCATENATE(J57,"-",R62),$C$2:$G$136,4,FALSE) ->  | Z62: =VLOOKUP(CONCATENATE(J57,"-",R62),$C$2:$G$136,5,FALSE) -> 
J63: =IF($J$17=$A$146,"","Risco") -> Risco | R63: =IF($J57=$A$146,"","R") -> R | U63: - | X63: =VLOOKUP(CONCATENATE(J57,"-",R63),$C$2:$G$136,3,FALSE) ->  | Y63: =VLOOKUP(CONCATENATE(J57,"-",R63),$C$2:$G$136,4,FALSE) ->  | Z63: =VLOOKUP(CONCATENATE(J57,"-",R63),$C$2:$G$136,5,FALSE) -> 
J64: =IF($J$17=$A$146,"","Despesas Financeiras") -> Despesas Financeiras | R64: =IF($J57=$A$146,"","DF") -> DF | U64: - | X64: =VLOOKUP(CONCATENATE(J57,"-",R64),$C$2:$G$136,3,FALSE) ->  | Y64: =VLOOKUP(CONCATENATE(J57,"-",R64),$C$2:$G$136,4,FALSE) ->  | Z64: =VLOOKUP(CONCATENATE(J57,"-",R64),$C$2:$G$136,5,FALSE) -> 
J65: =IF($J$17=$A$146,"Margem bruta da empresa de consultoria","Lucro") -> Lucro | R65: =IF($J57=$A$146,"K3","L") -> L | U65: - | X65: =VLOOKUP(CONCATENATE(J57,"-",R65),$C$2:$G$136,3,FALSE) ->  | Y65: =VLOOKUP(CONCATENATE(J57,"-",R65),$C$2:$G$136,4,FALSE) ->  | Z65: =VLOOKUP(CONCATENATE(J57,"-",R65),$C$2:$G$136,5,FALSE) -> 
J66: Tributos (impostos COFINS 3%, e PIS 0,65%) | R66: CP | U66: - | X66: 0.0365 | Y66: 0.0365 | Z66: 0.0365
J67: Tributos (ISS, variável de acordo com o município) | R67: ISS | S67: =IF(AND($J57<>$A$145,COUNTA(OFFSET(S60,1,0,6))>0),$R$11*$R$10,0) -> 0 | U67: - | X67: 0 | Y67: 0.025 | Z67: 0.05
J68: Tributos (Contribuição Previdenciária sobre a Receita Bruta - 0% ou 4,5% - Desoneração) | R68: CPRB | S68: =IF(BDI.Opcao<>"Desonerado",0,IF(AND($J57<>$A$145,COUNTA(OFFSET(S60,1,0,6))>0),4.5%,0%)) -> 0 | U68: - | X68: 0 | Y68: 0.045 | Z68: 0.045
J69: BDI SEM desoneração (Fórmula Acórdão TCU) | R69: BDI PAD | S69: =IF($J57=$A$145,0,ROUND((((1+S61+S62+S63)*(1+S64)*(1+S65)/(1-(S66+S67)))-1),4)) -> 0 | U69: =IF(OR($J$17=$A$146,$J$17=$A$145,AND(S69>=X69,S69<=Z69)),"OK","FORA DO INTERVALO") ->  | X69: =IF($J57=$A$145,0,VLOOKUP(CONCATENATE($J57,"-",$R69),$C$2:$G$136,3,FALSE)) ->  | Y69: =IF($J57=$A$145,0,VLOOKUP(CONCATENATE($J57,"-",$R69),$C$2:$G$136,4,FALSE)) ->  | Z69: =IF($J57=$A$145,0,VLOOKUP(CONCATENATE($J57,"-",$R69),$C$2:$G$136,5,FALSE)) -> 
J70: BDI COM desoneração | R70: BDI DES | S70: =IF($J57=$A$145,0,ROUND((((1+S61+S62+S63)*(1+S64)*(1+S65)/(1-(S66+S67+S68)))-1),4)) -> 0
J72: =IF(U69<>"ok","X","") ->  | K72: =IF(U69<>"ok","Anexo: Relatório Técnico Circunstanciado justificando a adoção do percentual de cada parcela do BDI.","") -> 
J74: Os valores de BDI foram calculados com o emprego da fórmula:
M75: BDI = | N75: =IF($J57=$A$146,"(1+K1+K2)*(1+K3)","(1+AC + S + R + G)*(1 + DF)*(1+L)") -> (1+AC + S + R + G)*(1 + DF)*(1+L) | Q75: - 1
N76: (1-CP-ISS-CRPB)
J78: =CONCATENATE("Declaro para os devidos fins que, conforme legislação tributária municipal, a base de cálculo deste tipo de obra corresponde à ",$R$10*100,"%, com a respectiva alíquota de ",$R$11*100,"%.") -> Declaro para os devidos fins que, conforme legislação tributária municipal, a base de cálculo deste tipo de obra corresponde à 30%, com a respectiva alíquota de 3%.
J80: =CONCATENATE("Declaro para os devidos fins que o regime de Contribuição Previdenciária sobre a Receita Bruta adotado para elaboração do orçamento foi ",IF(DESONERACAO="Sim","COM","SEM")," Desoneração, e que esta é a alternativa mais adequada para a Administração Pública.") -> Declaro para os devidos fins que o regime de Contribuição Previdenciária sobre a Receita Bruta adotado para elaboração do orçamento foi SEM Desoneração, e que esta é a alternativa mais adequada para a Administração Pública.
J82: Observações:
J85: =Import.Município -> ITAPEJARA D'OESTE | P85: =DADOS!$F$25 -> 2024-10-29
J86: Local | P86: Data
J89: Responsável Técnico
J90: Nome: | K90: =Import.RespOrçamento -> LEANDRO HENRIQUE MAAS SANTOS
J91: CREA/CAU: | K91: 170817/D
J92: ART/RRT: | K92: 1720242442718
I94: =IF($S$109=0,"","F") ->  | J94: BDI 3
I95: =IF($S$109=0,"","F") -> 
J96: TIPO DE OBRA
J97: (SELECIONAR)
J99: Itens | R99: Siglas | S99: % Adotado | U99: Situação | X99: 1º Quartil | Y99: Médio | Z99: 3º Quartil
J101: =IF($J$17=$A$146,"Encargos Sociais incidentes sobre a mão de obra","Administração Central") -> Administração Central | R101: =IF($J97=$A$146,"K1","AC") -> AC | U101: - | X101: =VLOOKUP(CONCATENATE(J97,"-",R101),$C$2:$G$136,3,FALSE) ->  | Y101: =VLOOKUP(CONCATENATE(J97,"-",R101),$C$2:$G$136,4,FALSE) ->  | Z101: =VLOOKUP(CONCATENATE(J97,"-",R101),$C$2:$G$136,5,FALSE) -> 
J102: =IF($J$17=$A$146,"Administração Central da empresa ou consultoria - overhead","Seguro e Garantia") -> Seguro e Garantia | R102: =IF($J97=$A$146,"K2","SG") -> SG | U102: - | X102: =VLOOKUP(CONCATENATE(J97,"-",R102),$C$2:$G$136,3,FALSE) ->  | Y102: =VLOOKUP(CONCATENATE(J97,"-",R102),$C$2:$G$136,4,FALSE) ->  | Z102: =VLOOKUP(CONCATENATE(J97,"-",R102),$C$2:$G$136,5,FALSE) -> 
J103: =IF($J$17=$A$146,"","Risco") -> Risco | R103: =IF($J97=$A$146,"","R") -> R | U103: - | X103: =VLOOKUP(CONCATENATE(J97,"-",R103),$C$2:$G$136,3,FALSE) ->  | Y103: =VLOOKUP(CONCATENATE(J97,"-",R103),$C$2:$G$136,4,FALSE) ->  | Z103: =VLOOKUP(CONCATENATE(J97,"-",R103),$C$2:$G$136,5,FALSE) -> 
J104: =IF($J$17=$A$146,"","Despesas Financeiras") -> Despesas Financeiras | R104: =IF($J97=$A$146,"","DF") -> DF | U104: - | X104: =VLOOKUP(CONCATENATE(J97,"-",R104),$C$2:$G$136,3,FALSE) ->  | Y104: =VLOOKUP(CONCATENATE(J97,"-",R104),$C$2:$G$136,4,FALSE) ->  | Z104: =VLOOKUP(CONCATENATE(J97,"-",R104),$C$2:$G$136,5,FALSE) -> 
J105: =IF($J$17=$A$146,"Margem bruta da empresa de consultoria","Lucro") -> Lucro | R105: =IF($J97=$A$146,"K3","L") -> L | U105: - | X105: =VLOOKUP(CONCATENATE(J97,"-",R105),$C$2:$G$136,3,FALSE) ->  | Y105: =VLOOKUP(CONCATENATE(J97,"-",R105),$C$2:$G$136,4,FALSE) ->  | Z105: =VLOOKUP(CONCATENATE(J97,"-",R105),$C$2:$G$136,5,FALSE) -> 
J106: Tributos (impostos COFINS 3%, e PIS 0,65%) | R106: CP | U106: - | X106: 0.0365 | Y106: 0.0365 | Z106: 0.0365
J107: Tributos (ISS, variável de acordo com o município) | R107: ISS | S107: =IF(AND($J97<>$A$145,COUNTA(OFFSET(S100,1,0,6))>0),$R$11*$R$10,0) -> 0 | U107: - | X107: 0 | Y107: 0.025 | Z107: 0.05
J108: Tributos (Contribuição Previdenciária sobre a Receita Bruta - 0% ou 4,5% - Desoneração) | R108: CPRB | S108: =IF(BDI.Opcao<>"Desonerado",0,IF(AND($J97<>$A$145,COUNTA(OFFSET(S100,1,0,6))>0),4.5%,0%)) -> 0 | U108: - | X108: 0 | Y108: 0.045 | Z108: 0.045
J109: BDI SEM desoneração (Fórmula Acórdão TCU) | R109: BDI PAD | S109: =IF($J97=$A$145,0,ROUND((((1+S101+S102+S103)*(1+S104)*(1+S105)/(1-(S106+S107)))-1),4)) -> 0 | U109: =IF(OR($J$17=$A$146,$J$17=$A$145,AND(S109>=X109,S109<=Z109)),"OK","FORA DO INTERVALO") ->  | X109: =IF($J97=$A$145,0,VLOOKUP(CONCATENATE($J97,"-",$R109),$C$2:$G$136,3,FALSE)) ->  | Y109: =IF($J97=$A$145,0,VLOOKUP(CONCATENATE($J97,"-",$R109),$C$2:$G$136,4,FALSE)) ->  | Z109: =IF($J97=$A$145,0,VLOOKUP(CONCATENATE($J97,"-",$R109),$C$2:$G$136,5,FALSE)) -> 
J110: BDI COM desoneração | R110: BDI DES | S110: =IF($J97=$A$145,0,ROUND((((1+S101+S102+S103)*(1+S104)*(1+S105)/(1-(S106+S107+S108)))-1),4)) -> 0
J112: =IF(U109<>"ok","X","") ->  | K112: =IF(U109<>"ok","Anexo: Relatório Técnico Circunstanciado justificando a adoção do percentual de cada parcela do BDI.","") -> 
J114: Os valores de BDI foram calculados com o emprego da fórmula:
M115: BDI = | N115: =IF($J97=$A$146,"(1+K1+K2)*(1+K3)","(1+AC + S + R + G)*(1 + DF)*(1+L)") -> (1+AC + S + R + G)*(1 + DF)*(1+L) | Q115: - 1
N116: (1-CP-ISS-CRPB)
J118: =CONCATENATE("Declaro para os devidos fins que, conforme legislação tributária municipal, a base de cálculo deste tipo de obra corresponde à ",$R$10*100,"%, com a respectiva alíquota de ",$R$11*100,"%.") -> Declaro para os devidos fins que, conforme legislação tributária municipal, a base de cálculo deste tipo de obra corresponde à 30%, com a respectiva alíquota de 3%.
J120: =CONCATENATE("Declaro para os devidos fins que o regime de Contribuição Previdenciária sobre a Receita Bruta adotado para elaboração do orçamento foi ",IF(DESONERACAO="Sim","COM","SEM")," Desoneração, e que esta é a alternativa mais adequada para a Administração Pública.") -> Declaro para os devidos fins que o regime de Contribuição Previdenciária sobre a Receita Bruta adotado para elaboração do orçamento foi SEM Desoneração, e que esta é a alternativa mais adequada para a Administração Pública.
J122: Observações:
J125: =Import.Município -> ITAPEJARA D'OESTE | P125: =DADOS!$F$25 -> 2024-10-29
J126: Local | P126: Data
J129: Responsável Técnico
J130: Nome: | K130: =Import.RespOrçamento -> LEANDRO HENRIQUE MAAS SANTOS
J131: CREA/CAU: | K131: 170817/D
J132: ART/RRT: | K132: 1720242442718
A138: (SELECIONAR)
A139: Construção e Reforma de Edifícios
A140: Construção de Praças Urbanas, Rodovias, Ferrovias e recapeamento e pavimentação de vias urbanas
A141: Construção de Redes de Abastecimento de Água, Coleta de Esgoto
A142: Construção e Manutenção de Estações e Redes de Distribuição de Energia Elétrica
A143: Obras Portuárias, Marítimas e Fluviais
A144: Fornecimento de Materiais e Equipamentos (aquisição indireta - em conjunto com licitação de obras)
A145: Fornecimento de Materiais e Equipamentos (aquisição direta)
A146: Estudos e Projetos, Planos e Gerenciamento e outros correlatos

Sheet ORÇAMENTO
R1: PO - PLANILHA ORÇAMENTÁRIA | X1: Grau de Sigilo
D2: LOTE | E2: Meta | F2: Nível 2 | G2: Nível 3 | H2: Nível 4 | I2: Serviço | R2: =IF(TIPOORCAMENTO="licitado","Orçamento Licitado","Orçamento Base para Licitação")&" - "&import.recurso -> Orçamento Base para Licitação - (SELECIONAR) | X2: #PUBLICO
A4: Nmax | F4: BDI 1 | G4: BDI 2 | H4: BDI 3 | I4: 0 | O4: Nº OPERAÇÃO | Q4: Nº TransfereGOV | R4: PROPONENTE / TOMADOR | S4: APELIDO DO EMPREENDIMENTO
A5: =MAX($C$15:$C$404) -> 4 | F5: =IF(BDI.Opcao="DESONERADO",BDI!$S$30,BDI!$S$29) -> 0.2082 | G5: =IF(BDI.Opcao="DESONERADO",BDI!$S$70,BDI!$S$69) -> 0 | H5: =IF(BDI.Opcao="DESONERADO",BDI!$S$110,BDI!$S$109) -> 0 | O5: =Import.CR -> 0 | Q5: =Import.TransfereGOV -> 0 | R5: =Import.Proponente -> PREFEITURA MUNICIPAL DE ITAPEJARA D'OESTE | S5: =Import.Apelido -> REFORMA E AMPLIAÇÃO DA ESCOLA JOSAFAT KMITA | AE5: Arredondamento
O7: LOCALIDADE SINAPI | Q7: DATA BASE | R7: =IF(TIPOORCAMENTO="Licitado","NOME DA EMPRESA","DESCRIÇÃO DO LOTE") -> DESCRIÇÃO DO LOTE | S7: =IF(TIPOORCAMENTO="Licitado","REGIME DE EXECUÇÃO","MUNICÍPIO / UF") -> MUNICÍPIO / UF | V7: =IF(TIPOORCAMENTO="Licitado","","BDI 1") -> BDI 1 | W7: =IF(TIPOORCAMENTO="Licitado","","BDI 2") -> BDI 2 | X7: =IF(TIPOORCAMENTO="Licitado","Nº CTEF","BDI 3") -> BDI 3 | AE7: Quantidade | AF7: TRUE | AJ7: QUANTIDADES: ACOMP. POR BM | AL7: PREÇO UNITÁRIO LICITADO
F8: =IF(LEN(INFO("release"))>5,"'Referência "&Excel_BuiltIn_Database&".xlsm'#Banco.$a5:$a$65536","'[Referência "&Excel_BuiltIn_Database&".xlsm]Banco'!$a5:$a$65536") -> '[Referência 06-2024.xlsm]Banco'!$a5:$a$65536 | L8: FILTRO | O8: =IF(ISERROR(INDIRECT($F$9)),"(N/D: 'Referência "&Excel_BuiltIn_Database&".xlsm)",INDIRECT($F$9)) -> CURITIBA | Q8: =TEXT(Import.DataBase,"mm-aa")&IF(DESONERACAO="Sim"," (DES.)"," (N DES.)") -> 06-24 (N DES.) | R8: =IF(TIPOORCAMENTO="Licitado",Import.empresa,Import.DescLote) -> REFORMA E AMPLIAÇÃO DA ESCOLA JOSAFAT KMITA | S8: =IF(TIPOORCAMENTO="Licitado",Import.RegimeExecução,Import.Município) -> ITAPEJARA D'OESTE | V8: =IF(TIPOORCAMENTO="Licitado","",TEXT(F5,"0,00%")) -> 20,82% | W8: =IF(TIPOORCAMENTO="Licitado","",TEXT(G5,"0,00%")) -> 0,00% | X8: =IF(TIPOORCAMENTO="Licitado",Import.CTEF,TEXT(H5,"0,00%")) -> 0,00% | Y8: RECURSO | Z8: SGL RECURSO | AE8: Custo Unitáro | AF8: TRUE
F9: =IF(LEN(INFO("release"))>5,"'Referência "&Excel_BuiltIn_Database&".xlsm'#Banco.$d$3","'[Referência "&Excel_BuiltIn_Database&".xlsm]Banco'!$d$3") -> '[Referência 06-2024.xlsm]Banco'!$d$3 | AE9: BDI | AF9: TRUE
AC10: ERRO GERAL | AE10: Preço Unitário | AF10: TRUE
AC11: =IF(COUNTIF($AC$15:OFFSET($AC$404,-1,0),"DESCRIÇÃO")+COUNTIF($AC$15:OFFSET($AC$404,-1,0),"UNIDADE")+COUNTIF($AC$15:OFFSET($AC$404,-1,0),"SEM VALOR")>0,"NÃO OK","OK") -> OK | AE11: Preço Total | AF11: TRUE
AA12: Valores não Arredondados | AJ12: ↓ | AL12: ↓
A13: Nível E | B13: Save Nivel | C13: Nível C | D13: Altura | E13: n1 | F13: n2 | G13: n3 | H13: n4 | I13: n5 | J13: Czero | K13: Cnível | L13: ↓ | M13: Nível | N13: Nível Corrigido | O13: Item | P13: Fonte | Q13: Código | R13: Descrição | S13: Unidade | T13: Quantidade | U13: =IF(TIPOORCAMENTO="Licitado","","Custo Unitário (sem BDI) (R$)") -> Custo Unitário (sem BDI) (R$) | V13: =IF(TIPOORCAMENTO="Licitado","","BDI (%)") -> BDI (%) | W13: Preço Unitário (com BDI) (R$) | X13: Preço Total (R$) | Y13: ↓ | Z13: ↓ | AA13: Contrapartida (R$) | AB13: Outros (R$) | AC13: Erro de Dados | AD13: Lista Crono | AE13: Concatenação Fonte-Código | AF13: BancoDesloc | AG13: Custo Unitário Referência (R$) | AH13: =IF(TIPOORCAMENTO="LICITADO","Valor BDI Edital","Valor BDI") -> Valor BDI | AJ13: Quantidade | AL13: Preço Unitário (com BDI) (R$) | AM13: Preço Total Licit. (R$) | AN13: Preço Unitário Edital (R$)
A14: =CHOOSE(1+LOG(1+2*(ORÇAMENTO.Nivel="Meta")+4*(ORÇAMENTO.Nivel="Nível 2")+8*(ORÇAMENTO.Nivel="Nível 3")+16*(ORÇAMENTO.Nivel="Nível 4")+32*(ORÇAMENTO.Nivel="Serviço"),2),0,1,2,3,4,"S") -> S | B14: =IF(OR(C14="s",C14=0),OFFSET(B14,-1,0),C14) -> Save Nivel | C14: =IF(OFFSET(C14,-1,0)="L",1,IF(OFFSET(C14,-1,0)=1,2,IF(OR(A14="s",A14=0),"S",IF(AND(OFFSET(C14,-1,0)=2,A14=4),3,IF(AND(OR(OFFSET(C14,-1,0)="s",OFFSET(C14,-1,0)=0),A14<>"s",A14>OFFSET(B14,-1,0)),OFFSET(B14,-1,0),A14))))) -> S | D14: =IF(OR(C14="S",C14=0),0,IF(ISERROR(K14),J14,SMALL(J14:K14,1))) -> 0 | E14: =IF($C14=1,OFFSET(E14,-1,0)+MAX(1,COUNTIF(QCI!$A$13:$A$24,OFFSET(ORÇAMENTO!E14,-1,0))),OFFSET(E14,-1,0)) -> n1 | F14: =IF($C14=1,0,IF($C14=2,OFFSET(F14,-1,0)+1,OFFSET(F14,-1,0))) -> n2 | G14: =IF(AND($C14<=2,$C14<>0),0,IF($C14=3,OFFSET(G14,-1,0)+1,OFFSET(G14,-1,0))) -> n3 | H14: =IF(AND($C14<=3,$C14<>0),0,IF($C14=4,OFFSET(H14,-1,0)+1,OFFSET(H14,-1,0))) -> n4 | I14: =IF(AND($C14<=4,$C14<>0),0,IF(AND($C14="S",$X14>0),OFFSET(I14,-1,0)+1,OFFSET(I14,-1,0))) -> n5 | J14: =IF(OR($C14="S",$C14=0),0,MATCH(0,OFFSET($D14,1,$C14,ROW($C$404)-ROW($C14)),0)) -> 0 | K14: =IF(OR($C14="S",$C14=0),0,MATCH(OFFSET($D14,0,$C14)+IF($C14<>1,1,COUNTIF(QCI!$A$13:$A$24,ORÇAMENTO!E14)),OFFSET($D14,1,$C14,ROW($C$404)-ROW($C14)),0)) -> 0 | L14: =IF(OR($X14>0,$C14=1,$C14=2,$C14=3,$C14=4),"F","") ->  | M14: Serviço | N14: =CHOOSE(1+LOG(1+2*(C14=1)+4*(C14=2)+8*(C14=3)+16*(C14=4)+32*(C14="S"),2),"","Meta","Nível 2","Nível 3","Nível 4","Serviço") -> Serviço | O14: =IF(OR($C14=0,$L14=""),"-",CONCATENATE(E14&".",IF(AND($A$5>=2,$C14>=2),F14&".",""),IF(AND($A$5>=3,$C14>=3),G14&".",""),IF(AND($A$5>=4,$C14>=4),H14&".",""),IF($C14="S",I14&".",""))) -> - | P14: SINAPI | R14: =IF($C14="S",REFERENCIA.Descricao,"(digite a descrição aqui)") -> (Sem Código) | S14: =REFERENCIA.Unidade -> - | T14: =OFFSET(CÁLCULO!H$15,ROW($T14)-ROW(T$15),0) -> 0 | V14: BDI 1 | W14: =IF($C14="S",ROUND(IF(TIPOORCAMENTO="Proposto",ORÇAMENTO.CustoUnitario*(1+$AH14),ORÇAMENTO.PrecoUnitarioLicitado),15-13*$AF$10),0) -> 0 | X14: =IF($C14="S",IF(Import.TipoArredondamento<>"TransfereGOV",VTOTAL1,SUM(OFFSET(CÁLCULO!$AA$15,ROW($X14)-ROW($X$15),1):OFFSET(CÁLCULO!$AL$15,ROW($X14)-ROW($X$15),-1))),IF($C14=0,0,ROUND(SomaAgrup,15-13*$AF$11))) -> 0 | Y14: RA | Z14: =IF(AND($C14="S",$X14>0),IF(ISBLANK($Y14),"RA",LEFT($Y14,2)),"") ->  | AA14: =IF($C14="S",IF($Z14="CP",$X14,IF($Z14="RA",(($X14)*QCI!$AA$3),0)),SomaAgrup) -> 0 | AB14: =IF($C14="S",IF($Z14="OU",ROUND($X14,2),0),SomaAgrup) -> 0 | AC14: =IF($N14="","",IF(ORÇAMENTO.Descricao="","DESCRIÇÃO",IF(AND($C14="S",ORÇAMENTO.Unidade=""),"UNIDADE",IF($X14<0,"VALOR NEGATIVO",IF(OR(AND(TIPOORCAMENTO="Proposto",$AG14<>"",$AG14>0,ORÇAMENTO.CustoUnitario>$AG14),AND(TIPOORCAMENTO="LICITADO",ORÇAMENTO.PrecoUnitarioLicitado>$AN14)),"ACIMA REF.",""))))) ->  | AD14: =IF(C14<=CRONO.NivelExibicao,MAX($AD$15:OFFSET(AD14,-1,0))+IF($C14<>1,1,MAX(1,COUNTIF(QCI!$A$13:$A$24,OFFSET($E14,-1,0)))),"") ->  | AE14: =IF(AND($C14="S",ORÇAMENTO.CodBarra<>""),IF(ORÇAMENTO.Fonte="",ORÇAMENTO.CodBarra,CONCATENATE(ORÇAMENTO.Fonte," ",ORÇAMENTO.CodBarra))) -> FALSE | AF14: =IF(ISERROR(INDIRECT(ORÇAMENTO.BancoRef)),"(abra o arquivo 'Referência "&Excel_BuiltIn_Database&".xlsm)",IF(OR($C14<>"S",ORÇAMENTO.CodBarra=""),"(Sem Código)",IF(ISERROR(MATCH($AE14,INDIRECT(ORÇAMENTO.BancoRef),0)),"(Código não identificado nas referências)",MATCH($AE14,INDIRECT(ORÇAMENTO.BancoRef),0)))) -> (Sem Código) | AG14: =ROUND(IF(DESONERACAO="sim",REFERENCIA.Desonerado,REFERENCIA.NaoDesonerado),2) -> 0 | AH14: =ROUND(IF(ISNUMBER(ORÇAMENTO.OpcaoBDI),ORÇAMENTO.OpcaoBDI,IF(LEFT(ORÇAMENTO.OpcaoBDI,3)="BDI",HLOOKUP(ORÇAMENTO.OpcaoBDI,$F$4:$H$5,2,FALSE),0)),15-11*$AF$9) -> 0.2082 | AM14: =$X14 -> 0 | AN14: =ROUND(ORÇAMENTO.CustoUnitario*(1+$AH14),2) -> 0
A15: 0 | C15: L | D15: =COUNTA(OFFSET(D15,1,0):D$404) -> 388 | E15: 0 | L15: F | M15: =IF(TIPOORCAMENTO="LICITADO","CTEF","LOTE") -> LOTE | N15: =IF(TIPOORCAMENTO="LICITADO","CTEF","LOTE") -> LOTE | O15: =Import.DescLote -> REFORMA E AMPLIAÇÃO DA ESCOLA JOSAFAT KMITA | X15: =SUMIF(OFFSET($C15,1,0,ROW(X404)-ROW(X15)-1),"S",OFFSET(X15,1,0,ROW(X404)-ROW(X15)-1)) -> 1977643.76 | Z15: =IF(AND($C15="S",$X15>0),LEFT($Y15,2),"") ->  | AA15: =SUMIF(OFFSET($C15,1,0,ROW(AA404)-ROW(AA15)-1),"S",OFFSET(AA15,1,0,ROW(AA404)-ROW(AA15)-1)) -> 530550.74 | AB15: =SUMIF(OFFSET($C15,1,0,ROW(AB404)-ROW(AB15)-1),"S",OFFSET(AB15,1,0,ROW(AB404)-ROW(AB15)-1)) -> 0 | AM15: 1977643.76
A16: =CHOOSE(1+LOG(1+2*(ORÇAMENTO.Nivel="Meta")+4*(ORÇAMENTO.Nivel="Nível 2")+8*(ORÇAMENTO.Nivel="Nível 3")+16*(ORÇAMENTO.Nivel="Nível 4")+32*(ORÇAMENTO.Nivel="Serviço"),2),0,1,2,3,4,"S") -> 1 | B16: =IF(OR(C16="s",C16=0),OFFSET(B16,-1,0),C16) -> 1 | C16: =IF(OFFSET(C16,-1,0)="L",1,IF(OFFSET(C16,-1,0)=1,2,IF(OR(A16="s",A16=0),"S",IF(AND(OFFSET(C16,-1,0)=2,A16=4),3,IF(AND(OR(OFFSET(C16,-1,0)="s",OFFSET(C16,-1,0)=0),A16<>"s",A16>OFFSET(B16,-1,0)),OFFSET(B16,-1,0),A16))))) -> 1 | D16: =IF(OR(C16="S",C16=0),0,IF(ISERROR(K16),J16,SMALL(J16:K16,1))) -> 231 | E16: =IF($C16=1,OFFSET(E16,-1,0)+MAX(1,COUNTIF(QCI!$A$13:$A$24,OFFSET(ORÇAMENTO!E16,-1,0))),OFFSET(E16,-1,0)) -> 1 | F16: =IF($C16=1,0,IF($C16=2,OFFSET(F16,-1,0)+1,OFFSET(F16,-1,0))) -> 0 | G16: =IF(AND($C16<=2,$C16<>0),0,IF($C16=3,OFFSET(G16,-1,0)+1,OFFSET(G16,-1,0))) -> 0 | H16: =IF(AND($C16<=3,$C16<>0),0,IF($C16=4,OFFSET(H16,-1,0)+1,OFFSET(H16,-1,0))) -> 0 | I16: =IF(AND($C16<=4,$C16<>0),0,IF(AND($C16="S",$X16>0),OFFSET(I16,-1,0)+1,OFFSET(I16,-1,0))) -> 0 | J16: =IF(OR($C16="S",$C16=0),0,MATCH(0,OFFSET($D16,1,$C16,ROW($C$404)-ROW($C16)),0)) -> 388 | K16: =IF(OR($C16="S",$C16=0),0,MATCH(OFFSET($D16,0,$C16)+IF($C16<>1,1,COUNTIF(QCI!$A$13:$A$24,ORÇAMENTO!E16)),OFFSET($D16,1,$C16,ROW($C$404)-ROW($C16)),0)) -> 231 | L16: =IF(OR($X16>0,$C16=1,$C16=2,$C16=3,$C16=4),"F","") -> F | M16: Meta | N16: =CHOOSE(1+LOG(1+2*(C16=1)+4*(C16=2)+8*(C16=3)+16*(C16=4)+32*(C16="S"),2),"","Meta","Nível 2","Nível 3","Nível 4","Serviço") -> Meta | O16: =IF(OR($C16=0,$L16=""),"-",CONCATENATE(E16&".",IF(AND($A$5>=2,$C16>=2),F16&".",""),IF(AND($A$5>=3,$C16>=3),G16&".",""),IF(AND($A$5>=4,$C16>=4),H16&".",""),IF($C16="S",I16&".",""))) -> 1. | P16: SINAPI | R16: ESCOLA JOSAFAT KMITA | S16: =REFERENCIA.Unidade -> - | T16: =OFFSET(CÁLCULO!H$15,ROW($T16)-ROW(T$15),0) -> 0 | V16: BDI 1 | W16: =IF($C16="S",ROUND(IF(TIPOORCAMENTO="Proposto",ORÇAMENTO.CustoUnitario*(1+$AH16),ORÇAMENTO.PrecoUnitarioLicitado),15-13*$AF$10),0) -> 0 | X16: =IF($C16="S",IF(Import.TipoArredondamento<>"TransfereGOV",VTOTAL1,SUM(OFFSET(CÁLCULO!$AA$15,ROW($X16)-ROW($X$15),1):OFFSET(CÁLCULO!$AL$15,ROW($X16)-ROW($X$15),-1))),IF($C16=0,0,ROUND(SomaAgrup,15-13*$AF$11))) -> 1325918.39 | Y16: RA | Z16: =IF(AND($C16="S",$X16>0),IF(ISBLANK($Y16),"RA",LEFT($Y16,2)),"") ->  | AA16: =IF($C16="S",IF($Z16="CP",$X16,IF($Z16="RA",(($X16)*QCI!$AA$3),0)),SomaAgrup) -> 355709.6567 | AB16: =IF($C16="S",IF($Z16="OU",ROUND($X16,2),0),SomaAgrup) -> 0 | AC16: =IF($N16="","",IF(ORÇAMENTO.Descricao="","DESCRIÇÃO",IF(AND($C16="S",ORÇAMENTO.Unidade=""),"UNIDADE",IF($X16<0,"VALOR NEGATIVO",IF(OR(AND(TIPOORCAMENTO="Proposto",$AG16<>"",$AG16>0,ORÇAMENTO.CustoUnitario>$AG16),AND(TIPOORCAMENTO="LICITADO",ORÇAMENTO.PrecoUnitarioLicitado>$AN16)),"ACIMA REF.",""))))) ->  | AD16: =IF(C16<=CRONO.NivelExibicao,MAX($AD$15:OFFSET(AD16,-1,0))+IF($C16<>1,1,MAX(1,COUNTIF(QCI!$A$13:$A$24,OFFSET($E16,-1,0)))),"") -> 1 | AE16: =IF(AND($C16="S",ORÇAMENTO.CodBarra<>""),IF(ORÇAMENTO.Fonte="",ORÇAMENTO.CodBarra,CONCATENATE(ORÇAMENTO.Fonte," ",ORÇAMENTO.CodBarra))) -> FALSE | AF16: =IF(ISERROR(INDIRECT(ORÇAMENTO.BancoRef)),"(abra o arquivo 'Referência "&Excel_BuiltIn_Database&".xlsm)",IF(OR($C16<>"S",ORÇAMENTO.CodBarra=""),"(Sem Código)",IF(ISERROR(MATCH($AE16,INDIRECT(ORÇAMENTO.BancoRef),0)),"(Código não identificado nas referências)",MATCH($AE16,INDIRECT(ORÇAMENTO.BancoRef),0)))) -> (Sem Código) | AG16: =ROUND(IF(DESONERACAO="sim",REFERENCIA.Desonerado,REFERENCIA.NaoDesonerado),2) -> 0 | AH16: =ROUND(IF(ISNUMBER(ORÇAMENTO.OpcaoBDI),ORÇAMENTO.OpcaoBDI,IF(LEFT(ORÇAMENTO.OpcaoBDI,3)="BDI",HLOOKUP(ORÇAMENTO.OpcaoBDI,$F$4:$H$5,2,FALSE),0)),15-11*$AF$9) -> 0.2082 | AM16: 1325918.39 | AN16: =ROUND(ORÇAMENTO.CustoUnitario*(1+$AH16),2) -> 0
A17: 2 | B17: 2 | C17: 2 | D17: 18 | E17: =IF($C17=1,OFFSET(E17,-1,0)+MAX(1,COUNTIF(QCI!$A$13:$A$24,OFFSET(ORÇAMENTO!E17,-1,0))),OFFSET(E17,-1,0)) -> 1 | F17: 1 | G17: 0 | H17: 0 | I17: 0 | J17: 230 | K17: =IF(OR($C17="S",$C17=0),0,MATCH(OFFSET($D17,0,$C17)+IF($C17<>1,1,COUNTIF(QCI!$A$13:$A$24,ORÇAMENTO!E17)),OFFSET($D17,1,$C17,ROW($C$404)-ROW($C17)),0)) -> 18 | L17: F | M17: Nível 2 | N17: Nível 2 | O17: 1.1. | P17: SINAPI | R17: SERVIÇOS PRELIMINARES | S17: =REFERENCIA.Unidade -> - | T17: =OFFSET(CÁLCULO!H$15,ROW($T17)-ROW(T$15),0) -> 0 | V17: BDI 1 | W17: =IF($C17="S",ROUND(IF(TIPOORCAMENTO="Proposto",ORÇAMENTO.CustoUnitario*(1+$AH17),ORÇAMENTO.PrecoUnitarioLicitado),15-13*$AF$10),0) -> 0 | X17: =IF($C17="S",IF(Import.TipoArredondamento<>"TransfereGOV",VTOTAL1,SUM(OFFSET(CÁLCULO!$AA$15,ROW($X17)-ROW($X$15),1):OFFSET(CÁLCULO!$AL$15,ROW($X17)-ROW($X$15),-1))),IF($C17=0,0,ROUND(SomaAgrup,15-13*$AF$11))) -> 67138.79 | Y17: RA | AA17: =IF($C17="S",IF($Z17="CP",$X17,IF($Z17="RA",(($X17)*QCI!$AA$3),0)),SomaAgrup) -> 18011.60322 | AB17: 0 | AC17: =IF($N17="","",IF(ORÇAMENTO.Descricao="","DESCRIÇÃO",IF(AND($C17="S",ORÇAMENTO.Unidade=""),"UNIDADE",IF($X17<0,"VALOR NEGATIVO",IF(OR(AND(TIPOORCAMENTO="Proposto",$AG17<>"",$AG17>0,ORÇAMENTO.CustoUnitario>$AG17),AND(TIPOORCAMENTO="LICITADO",ORÇAMENTO.PrecoUnitarioLicitado>$AN17)),"ACIMA REF.",""))))) ->  | AD17: =IF(C17<=CRONO.NivelExibicao,MAX($AD$15:OFFSET(AD17,-1,0))+IF($C17<>1,1,MAX(1,COUNTIF(QCI!$A$13:$A$24,OFFSET($E17,-1,0)))),"") -> 2 | AE17: =IF(AND($C17="S",ORÇAMENTO.CodBarra<>""),IF(ORÇAMENTO.Fonte="",ORÇAMENTO.CodBarra,CONCATENATE(ORÇAMENTO.Fonte," ",ORÇAMENTO.CodBarra))) -> FALSE | AF17: =IF(ISERROR(INDIRECT(ORÇAMENTO.BancoRef)),"(abra o arquivo 'Referência "&Excel_BuiltIn_Database&".xlsm)",IF(OR($C17<>"S",ORÇAMENTO.CodBarra=""),"(Sem Código)",IF(ISERROR(MATCH($AE17,INDIRECT(ORÇAMENTO.BancoRef),0)),"(Código não identificado nas referências)",MATCH($AE17,INDIRECT(ORÇAMENTO.BancoRef),0)))) -> (Sem Código) | AG17: =ROUND(IF(DESONERACAO="sim",REFERENCIA.Desonerado,REFERENCIA.NaoDesonerado),2) -> 0 | AH17: 0.2082 | AM17: 67138.79 | AN17: 0
A18: S | B18: 2 | C18: S | D18: 0 | E18: =IF($C18=1,OFFSET(E18,-1,0)+MAX(1,COUNTIF(QCI!$A$13:$A$24,OFFSET(ORÇAMENTO!E18,-1,0))),OFFSET(E18,-1,0)) -> 1 | F18: 1 | G18: 0 | H18: 0 | I18: 1 | J18: 0 | K18: =IF(OR($C18="S",$C18=0),0,MATCH(OFFSET($D18,0,$C18)+IF($C18<>1,1,COUNTIF(QCI!$A$13:$A$24,ORÇAMENTO!E18)),OFFSET($D18,1,$C18,ROW($C$404)-ROW($C18)),0)) -> 0 | L18: F | M18: Serviço | N18: Serviço | O18: 1.1.0.0.1. | P18: SINAPI | Q18: 99059 | R18: =IF($C18="S",REFERENCIA.Descricao,"(digite a descrição aqui)") -> LOCAÇÃO CONVENCIONAL DE OBRA, UTILIZANDO GABARITO DE TÁBUAS CORRIDAS PONTALETADAS A CADA 2,00M - 2 UTILIZAÇÕES. AF_03/2024 | S18: =REFERENCIA.Unidade -> M | T18: =OFFSET(CÁLCULO!H$15,ROW($T18)-ROW(T$15),0) -> 143.06 | U18: =AG18 -> 72.53 | V18: BDI 1 | W18: =IF($C18="S",ROUND(IF(TIPOORCAMENTO="Proposto",ORÇAMENTO.CustoUnitario*(1+$AH18),ORÇAMENTO.PrecoUnitarioLicitado),15-13*$AF$10),0) -> 87.63 | X18: =IF($C18="S",IF(Import.TipoArredondamento<>"TransfereGOV",VTOTAL1,SUM(OFFSET(CÁLCULO!$AA$15,ROW($X18)-ROW($X$15),1):OFFSET(CÁLCULO!$AL$15,ROW($X18)-ROW($X$15),-1))),IF($C18=0,0,ROUND(SomaAgrup,15-13*$AF$11))) -> 12536.35 | Y18: RA | Z18: RA | AA18: =IF($C18="S",IF($Z18="CP",$X18,IF($Z18="RA",(($X18)*QCI!$AA$3),0)),SomaAgrup) -> 3363.178902 | AB18: 0 | AC18: =IF($N18="","",IF(ORÇAMENTO.Descricao="","DESCRIÇÃO",IF(AND($C18="S",ORÇAMENTO.Unidade=""),"UNIDADE",IF($X18<0,"VALOR NEGATIVO",IF(OR(AND(TIPOORCAMENTO="Proposto",$AG18<>"",$AG18>0,ORÇAMENTO.CustoUnitario>$AG18),AND(TIPOORCAMENTO="LICITADO",ORÇAMENTO.PrecoUnitarioLicitado>$AN18)),"ACIMA REF.",""))))) ->  | AD18: =IF(C18<=CRONO.NivelExibicao,MAX($AD$15:OFFSET(AD18,-1,0))+IF($C18<>1,1,MAX(1,COUNTIF(QCI!$A$13:$A$24,OFFSET($E18,-1,0)))),"") ->  | AE18: =IF(AND($C18="S",ORÇAMENTO.CodBarra<>""),IF(ORÇAMENTO.Fonte="",ORÇAMENTO.CodBarra,CONCATENATE(ORÇAMENTO.Fonte," ",ORÇAMENTO.CodBarra))) -> SINAPI 99059 | AF18: =IF(ISERROR(INDIRECT(ORÇAMENTO.BancoRef)),"(abra o arquivo 'Referência "&Excel_BuiltIn_Database&".xlsm)",IF(OR($C18<>"S",ORÇAMENTO.CodBarra=""),"(Sem Código)",IF(ISERROR(MATCH($AE18,INDIRECT(ORÇAMENTO.BancoRef),0)),"(Código não identificado nas referências)",MATCH($AE18,INDIRECT(ORÇAMENTO.BancoRef),0)))) -> 7117 | AG18: =ROUND(IF(DESONERACAO="sim",REFERENCIA.Desonerado,REFERENCIA.NaoDesonerado),2) -> 72.53 | AH18: 0.2082 | AJ18: 143.06 | AM18: 12536.35 | AN18: 87.63
A19: S | B19: 2 | C19: S | D19: 0 | E19: =IF($C19=1,OFFSET(E19,-1,0)+MAX(1,COUNTIF(QCI!$A$13:$A$24,OFFSET(ORÇAMENTO!E19,-1,0))),OFFSET(E19,-1,0)) -> 1 | F19: 1 | G19: 0 | H19: 0 | I19: 2 | J19: 0 | K19: =IF(OR($C19="S",$C19=0),0,MATCH(OFFSET($D19,0,$C19)+IF($C19<>1,1,COUNTIF(QCI!$A$13:$A$24,ORÇAMENTO!E19)),OFFSET($D19,1,$C19,ROW($C$404)-ROW($C19)),0)) -> 0 | L19: F | M19: Serviço | N19: Serviço | O19: 1.1.0.0.2. | P19: SINAPI | Q19: 103689 | R19: =IF($C19="S",REFERENCIA.Descricao,"(digite a descrição aqui)") -> FORNECIMENTO E INSTALAÇÃO DE PLACA DE OBRA COM CHAPA GALVANIZADA E ESTRUTURA DE MADEIRA. AF_03/2022_PS | S19: =REFERENCIA.Unidade -> M2 | T19: =OFFSET(CÁLCULO!H$15,ROW($T19)-ROW(T$15),0) -> 3.75 | U19: =AG19 -> 317.38 | V19: BDI 1 | W19: =IF($C19="S",ROUND(IF(TIPOORCAMENTO="Proposto",ORÇAMENTO.CustoUnitario*(1+$AH19),ORÇAMENTO.PrecoUnitarioLicitado),15-13*$AF$10),0) -> 383.46 | X19: =IF($C19="S",IF(Import.TipoArredondamento<>"TransfereGOV",VTOTAL1,SUM(OFFSET(CÁLCULO!$AA$15,ROW($X19)-ROW($X$15),1):OFFSET(CÁLCULO!$AL$15,ROW($X19)-ROW($X$15),-1))),IF($C19=0,0,ROUND(SomaAgrup,15-13*$AF$11))) -> 1437.98 | Y19: RA | Z19: RA | AA19: =IF($C19="S",IF($Z19="CP",$X19,IF($Z19="RA",(($X19)*QCI!$AA$3),0)),SomaAgrup) -> 385.7728922 | AB19: 0 | AC19: =IF($N19="","",IF(ORÇAMENTO.Descricao="","DESCRIÇÃO",IF(AND($C19="S",ORÇAMENTO.Unidade=""),"UNIDADE",IF($X19<0,"VALOR NEGATIVO",IF(OR(AND(TIPOORCAMENTO="Proposto",$AG19<>"",$AG19>0,ORÇAMENTO.CustoUnitario>$AG19),AND(TIPOORCAMENTO="LICITADO",ORÇAMENTO.PrecoUnitarioLicitado>$AN19)),"ACIMA REF.",""))))) ->  | AD19: =IF(C19<=CRONO.NivelExibicao,MAX($AD$15:OFFSET(AD19,-1,0))+IF($C19<>1,1,MAX(1,COUNTIF(QCI!$A$13:$A$24,OFFSET($E19,-1,0)))),"") ->  | AE19: =IF(AND($C19="S",ORÇAMENTO.CodBarra<>""),IF(ORÇAMENTO.Fonte="",ORÇAMENTO.CodBarra,CONCATENATE(ORÇAMENTO.Fonte," ",ORÇAMENTO.CodBarra))) -> SINAPI 103689 | AF19: =IF(ISERROR(INDIRECT(ORÇAMENTO.BancoRef)),"(abra o arquivo 'Referência "&Excel_BuiltIn_Database&".xlsm)",IF(OR($C19<>"S",ORÇAMENTO.CodBarra=""),"(Sem Código)",IF(ISERROR(MATCH($AE19,INDIRECT(ORÇAMENTO.BancoRef),0)),"(Código não identificado nas referências)",MATCH($AE19,INDIRECT(ORÇAMENTO.BancoRef),0)))) -> 6190 | AG19: =ROUND(IF(DESONERACAO="sim",REFERENCIA.Desonerado,REFERENCIA.NaoDesonerado),2) -> 317.38 | AH19: 0.2082 | AJ19: =2.5*1.5 -> 3.75 | AM19: 1437.98 | AN19: 383.46
A20: S | B20: 2 | C20: S | D20: 0 | E20: =IF($C20=1,OFFSET(E20,-1,0)+MAX(1,COUNTIF(QCI!$A$13:$A$24,OFFSET(ORÇAMENTO!E20,-1,0))),OFFSET(E20,-1,0)) -> 1 | F20: 1 | G20: 0 | H20: 0 | I20: 3 | J20: 0 | K20: =IF(OR($C20="S",$C20=0),0,MATCH(OFFSET($D20,0,$C20)+IF($C20<>1,1,COUNTIF(QCI!$A$13:$A$24,ORÇAMENTO!E20)),OFFSET($D20,1,$C20,ROW($C$404)-ROW($C20)),0)) -> 0 | L20: F | M20: Serviço | N20: Serviço | O20: 1.1.0.0.3. | P20: SINAPI | Q20: 97622 | R20: =IF($C20="S",REFERENCIA.Descricao,"(digite a descrição aqui)") -> DEMOLIÇÃO DE ALVENARIA DE BLOCO FURADO, DE FORMA MANUAL, SEM REAPROVEITAMENTO. AF_09/2023 | S20: =REFERENCIA.Unidade -> M3 | T20: =OFFSET(CÁLCULO!H$15,ROW($T20)-ROW(T$15),0) -> 8.47 | U20: 71.35 | V20: BDI 1 | W20: =IF($C20="S",ROUND(IF(TIPOORCAMENTO="Proposto",ORÇAMENTO.CustoUnitario*(1+$AH20),ORÇAMENTO.PrecoUnitarioLicitado),15-13*$AF$10),0) -> 86.21 | X20: =IF($C20="S",IF(Import.TipoArredondamento<>"TransfereGOV",VTOTAL1,SUM(OFFSET(CÁLCULO!$AA$15,ROW($X20)-ROW($X$15),1):OFFSET(CÁLCULO!$AL$15,ROW($X20)-ROW($X$15),-1))),IF($C20=0,0,ROUND(SomaAgrup,15-13*$AF$11))) -> 730.2 | Y20: RA | Z20: RA | AA20: =IF($C20="S",IF($Z20="CP",$X20,IF($Z20="RA",(($X20)*QCI!$AA$3),0)),SomaAgrup) -> 195.8937996 | AB20: 0 | AC20: =IF($N20="","",IF(ORÇAMENTO.Descricao="","DESCRIÇÃO",IF(AND($C20="S",ORÇAMENTO.Unidade=""),"UNIDADE",IF($X20<0,"VALOR NEGATIVO",IF(OR(AND(TIPOORCAMENTO="Proposto",$AG20<>"",$AG20>0,ORÇAMENTO.CustoUnitario>$AG20),AND(TIPOORCAMENTO="LICITADO",ORÇAMENTO.PrecoUnitarioLicitado>$AN20)),"ACIMA REF.",""))))) ->  | AD20: =IF(C20<=CRONO.NivelExibicao,MAX($AD$15:OFFSET(AD20,-1,0))+IF($C20<>1,1,MAX(1,COUNTIF(QCI!$A$13:$A$24,OFFSET($E20,-1,0)))),"") ->  | AE20: =IF(AND($C20="S",ORÇAMENTO.CodBarra<>""),IF(ORÇAMENTO.Fonte="",ORÇAMENTO.CodBarra,CONCATENATE(ORÇAMENTO.Fonte," ",ORÇAMENTO.CodBarra))) -> SINAPI 97622 | AF20: =IF(ISERROR(INDIRECT(ORÇAMENTO.BancoRef)),"(abra o arquivo 'Referência "&Excel_BuiltIn_Database&".xlsm)",IF(OR($C20<>"S",ORÇAMENTO.CodBarra=""),"(Sem Código)",IF(ISERROR(MATCH($AE20,INDIRECT(ORÇAMENTO.BancoRef),0)),"(Código não identificado nas referências)",MATCH($AE20,INDIRECT(ORÇAMENTO.BancoRef),0)))) -> 7058 | AG20: =ROUND(IF(DESONERACAO="sim",REFERENCIA.Desonerado,REFERENCIA.NaoDesonerado),2) -> 71.35 | AH20: 0.2082 | AJ20: 8.47 | AM20: 730.2 | AN20: 86.21
A21: S | B21: 2 | C21: S | D21: 0 | E21: =IF($C21=1,OFFSET(E21,-1,0)+MAX(1,COUNTIF(QCI!$A$13:$A$24,OFFSET(ORÇAMENTO!E21,-1,0))),OFFSET(E21,-1,0)) -> 1 | F21: 1 | G21: 0 | H21: 0 | I21: 4 | J21: 0 | K21: =IF(OR($C21="S",$C21=0),0,MATCH(OFFSET($D21,0,$C21)+IF($C21<>1,1,COUNTIF(QCI!$A$13:$A$24,ORÇAMENTO!E21)),OFFSET($D21,1,$C21,ROW($C$404)-ROW($C21)),0)) -> 0 | L21: F | M21: Serviço | N21: Serviço | O21: 1.1.0.0.4. | P21: SINAPI | Q21: 97645 | R21: =IF($C21="S",REFERENCIA.Descricao,"(digite a descrição aqui)") -> REMOÇÃO DE JANELAS, DE FORMA MANUAL, SEM REAPROVEITAMENTO. AF_09/2023 | S21: =REFERENCIA.Unidade -> M2 | T21: =OFFSET(CÁLCULO!H$15,ROW($T21)-ROW(T$15),0) -> 7.14 | U21: 31.08 | V21: BDI 1 | W21: =IF($C21="S",ROUND(IF(TIPOORCAMENTO="Proposto",ORÇAMENTO.CustoUnitario*(1+$AH21),ORÇAMENTO.PrecoUnitarioLicitado),15-13*$AF$10),0) -> 37.55 | X21: =IF($C21="S",IF(Import.TipoArredondamento<>"TransfereGOV",VTOTAL1,SUM(OFFSET(CÁLCULO!$AA$15,ROW($X21)-ROW($X$15),1):OFFSET(CÁLCULO!$AL$15,ROW($X21)-ROW($X$15),-1))),IF($C21=0,0,ROUND(SomaAgrup,15-13*$AF$11))) -> 268.11 | Y21: RA | Z21: RA | AA21: =IF($C21="S",IF($Z21="CP",$X21,IF($Z21="RA",(($X21)*QCI!$AA$3),0)),SomaAgrup) -> 71.92698795 | AB21: 0 | AC21: =IF($N21="","",IF(ORÇAMENTO.Descricao="","DESCRIÇÃO",IF(AND($C21="S",ORÇAMENTO.Unidade=""),"UNIDADE",IF($X21<0,"VALOR NEGATIVO",IF(OR(AND(TIPOORCAMENTO="Proposto",$AG21<>"",$AG21>0,ORÇAMENTO.CustoUnitario>$AG21),AND(TIPOORCAMENTO="LICITADO",ORÇAMENTO.PrecoUnitarioLicitado>$AN21)),"ACIMA REF.",""))))) ->  | AD21: =IF(C21<=CRONO.NivelExibicao,MAX($AD$15:OFFSET(AD21,-1,0))+IF($C21<>1,1,MAX(1,COUNTIF(QCI!$A$13:$A$24,OFFSET($E21,-1,0)))),"") ->  | AE21: =IF(AND($C21="S",ORÇAMENTO.CodBarra<>""),IF(ORÇAMENTO.Fonte="",ORÇAMENTO.CodBarra,CONCATENATE(ORÇAMENTO.Fonte," ",ORÇAMENTO.CodBarra))) -> SINAPI 97645 | AF21: =IF(ISERROR(INDIRECT(ORÇAMENTO.BancoRef)),"(abra o arquivo 'Referência "&Excel_BuiltIn_Database&".xlsm)",IF(OR($C21<>"S",ORÇAMENTO.CodBarra=""),"(Sem Código)",IF(ISERROR(MATCH($AE21,INDIRECT(ORÇAMENTO.BancoRef),0)),"(Código não identificado nas referências)",MATCH($AE21,INDIRECT(ORÇAMENTO.BancoRef),0)))) -> 7080 | AG21: =ROUND(IF(DESONERACAO="sim",REFERENCIA.Desonerado,REFERENCIA.NaoDesonerado),2) -> 31.08 | AH21: 0.2082 | AJ21: 7.14 | AM21: 268.11 | AN21: 37.55
A22: S | B22: 2 | C22: S | D22: 0 | E22: =IF($C22=1,OFFSET(E22,-1,0)+MAX(1,COUNTIF(QCI!$A$13:$A$24,OFFSET(ORÇAMENTO!E22,-1,0))),OFFSET(E22,-1,0)) -> 1 | F22: 1 | G22: 0 | H22: 0 | I22: 5 | J22: 0 | K22: =IF(OR($C22="S",$C22=0),0,MATCH(OFFSET($D22,0,$C22)+IF($C22<>1,1,COUNTIF(QCI!$A$13:$A$24,ORÇAMENTO!E22)),OFFSET($D22,1,$C22,ROW($C$404)-ROW($C22)),0)) -> 0 | L22: F | M22: Serviço | N22: Serviço | O22: 1.1.0.0.5. | P22: SINAPI | Q22: 97644 | R22: =IF($C22="S",REFERENCIA.Descricao,"(digite a descrição aqui)") -> REMOÇÃO DE PORTAS, DE FORMA MANUAL, SEM REAPROVEITAMENTO. AF_09/2023 | S22: =REFERENCIA.Unidade -> M2 | T22: =OFFSET(CÁLCULO!H$15,ROW($T22)-ROW(T$15),0) -> 11.34 | U22: 12.04 | V22: BDI 1 | W22: =IF($C22="S",ROUND(IF(TIPOORCAMENTO="Proposto",ORÇAMENTO.CustoUnitario*(1+$AH22),ORÇAMENTO.PrecoUnitarioLicitado),15-13*$AF$10),0) -> 14.55 | X22: =IF($C22="S",IF(Import.TipoArredondamento<>"TransfereGOV",VTOTAL1,SUM(OFFSET(CÁLCULO!$AA$15,ROW($X22)-ROW($X$15),1):OFFSET(CÁLCULO!$AL$15,ROW($X22)-ROW($X$15),-1))),IF($C22=0,0,ROUND(SomaAgrup,15-13*$AF$11))) -> 165 | Y22: RA | Z22: RA | AA22: =IF($C22="S",IF($Z22="CP",$X22,IF($Z22="RA",(($X22)*QCI!$AA$3),0)),SomaAgrup) -> 44.26523819 | AB22: 0 | AC22: =IF($N22="","",IF(ORÇAMENTO.Descricao="","DESCRIÇÃO",IF(AND($C22="S",ORÇAMENTO.Unidade=""),"UNIDADE",IF($X22<0,"VALOR NEGATIVO",IF(OR(AND(TIPOORCAMENTO="Proposto",$AG22<>"",$AG22>0,ORÇAMENTO.CustoUnitario>$AG22),AND(TIPOORCAMENTO="LICITADO",ORÇAMENTO.PrecoUnitarioLicitado>$AN22)),"ACIMA REF.",""))))) ->  | AD22: =IF(C22<=CRONO.NivelExibicao,MAX($AD$15:OFFSET(AD22,-1,0))+IF($C22<>1,1,MAX(1,COUNTIF(QCI!$A$13:$A$24,OFFSET($E22,-1,0)))),"") ->  | AE22: =IF(AND($C22="S",ORÇAMENTO.CodBarra<>""),IF(ORÇAMENTO.Fonte="",ORÇAMENTO.CodBarra,CONCATENATE(ORÇAMENTO.Fonte," ",ORÇAMENTO.CodBarra))) -> SINAPI 97644 | AF22: =IF(ISERROR(INDIRECT(ORÇAMENTO.BancoRef)),"(abra o arquivo 'Referência "&Excel_BuiltIn_Database&".xlsm)",IF(OR($C22<>"S",ORÇAMENTO.CodBarra=""),"(Sem Código)",IF(ISERROR(MATCH($AE22,INDIRECT(ORÇAMENTO.BancoRef),0)),"(Código não identificado nas referências)",MATCH($AE22,INDIRECT(ORÇAMENTO.BancoRef),0)))) -> 7079 | AG22: =ROUND(IF(DESONERACAO="sim",REFERENCIA.Desonerado,REFERENCIA.NaoDesonerado),2) -> 12.04 | AH22: 0.2082 | AJ22: 11.34 | AM22: 165 | AN22: 14.55
A23: S | B23: 2 | C23: S | D23: 0 | E23: =IF($C23=1,OFFSET(E23,-1,0)+MAX(1,COUNTIF(QCI!$A$13:$A$24,OFFSET(ORÇAMENTO!E23,-1,0))),OFFSET(E23,-1,0)) -> 1 | F23: 1 | G23: 0 | H23: 0 | I23: 6 | J23: 0 | K23: =IF(OR($C23="S",$C23=0),0,MATCH(OFFSET($D23,0,$C23)+IF($C23<>1,1,COUNTIF(QCI!$A$13:$A$24,ORÇAMENTO!E23)),OFFSET($D23,1,$C23,ROW($C$404)-ROW($C23)),0)) -> 0 | L23: F | M23: Serviço | N23: Serviço | O23: 1.1.0.0.6. | P23: SINAPI | Q23: 97663 | R23: =IF($C23="S",REFERENCIA.Descricao,"(digite a descrição aqui)") -> REMOÇÃO DE LOUÇAS, DE FORMA MANUAL, SEM REAPROVEITAMENTO. AF_09/2023 | S23: =REFERENCIA.Unidade -> UN | T23: =OFFSET(CÁLCULO!H$15,ROW($T23)-ROW(T$15),0) -> 14 | U23: 15.92 | V23: BDI 1 | W23: =IF($C23="S",ROUND(IF(TIPOORCAMENTO="Proposto",ORÇAMENTO.CustoUnitario*(1+$AH23),ORÇAMENTO.PrecoUnitarioLicitado),15-13*$AF$10),0) -> 19.23 | X23: =IF($C23="S",IF(Import.TipoArredondamento<>"TransfereGOV",VTOTAL1,SUM(OFFSET(CÁLCULO!$AA$15,ROW($X23)-ROW($X$15),1):OFFSET(CÁLCULO!$AL$15,ROW($X23)-ROW($X$15),-1))),IF($C23=0,0,ROUND(SomaAgrup,15-13*$AF$11))) -> 269.22 | Y23: RA | Z23: RA | AA23: =IF($C23="S",IF($Z23="CP",$X23,IF($Z23="RA",(($X23)*QCI!$AA$3),0)),SomaAgrup) -> 72.22477228 | AB23: 0 | AC23: =IF($N23="","",IF(ORÇAMENTO.Descricao="","DESCRIÇÃO",IF(AND($C23="S",ORÇAMENTO.Unidade=""),"UNIDADE",IF($X23<0,"VALOR NEGATIVO",IF(OR(AND(TIPOORCAMENTO="Proposto",$AG23<>"",$AG23>0,ORÇAMENTO.CustoUnitario>$AG23),AND(TIPOORCAMENTO="LICITADO",ORÇAMENTO.PrecoUnitarioLicitado>$AN23)),"ACIMA REF.",""))))) ->  | AD23: =IF(C23<=CRONO.NivelExibicao,MAX($AD$15:OFFSET(AD23,-1,0))+IF($C23<>1,1,MAX(1,COUNTIF(QCI!$A$13:$A$24,OFFSET($E23,-1,0)))),"") ->  | AE23: =IF(AND($C23="S",ORÇAMENTO.CodBarra<>""),IF(ORÇAMENTO.Fonte="",ORÇAMENTO.CodBarra,CONCATENATE(ORÇAMENTO.Fonte," ",ORÇAMENTO.CodBarra))) -> SINAPI 97663 | AF23: =IF(ISERROR(INDIRECT(ORÇAMENTO.BancoRef)),"(abra o arquivo 'Referência "&Excel_BuiltIn_Database&".xlsm)",IF(OR($C23<>"S",ORÇAMENTO.CodBarra=""),"(Sem Código)",IF(ISERROR(MATCH($AE23,INDIRECT(ORÇAMENTO.BancoRef),0)),"(Código não identificado nas referências)",MATCH($AE23,INDIRECT(ORÇAMENTO.BancoRef),0)))) -> 7097 | AG23: =ROUND(IF(DESONERACAO="sim",REFERENCIA.Desonerado,REFERENCIA.NaoDesonerado),2) -> 15.92 | AH23: 0.2082 | AJ23: 14 | AM23: 269.22 | AN23: 19.23
A24: S | B24: 2 | C24: S | D24: 0 | E24: =IF($C24=1,OFFSET(E24,-1,0)+MAX(1,COUNTIF(QCI!$A$13:$A$24,OFFSET(ORÇAMENTO!E24,-1,0))),OFFSET(E24,-1,0)) -> 1 | F24: 1 | G24: 0 | H24: 0 | I24: 7 | J24: 0 | K24: =IF(OR($C24="S",$C24=0),0,MATCH(OFFSET($D24,0,$C24)+IF($C24<>1,1,COUNTIF(QCI!$A$13:$A$24,ORÇAMENTO!E24)),OFFSET($D24,1,$C24,ROW($C$404)-ROW($C24)),0)) -> 0 | L24: F | M24: Serviço | N24: Serviço | O24: 1.1.0.0.7. | P24: SINAPI | Q24: 97662 | R24: =IF($C24="S",REFERENCIA.Descricao,"(digite a descrição aqui)") -> REMOÇÃO DE TUBULAÇÕES (TUBOS E CONEXÕES) DE ÁGUA FRIA, DE FORMA MANUAL, SEM REAPROVEITAMENTO. AF_09/2023 | S24: =REFERENCIA.Unidade -> M | T24: =OFFSET(CÁLCULO!H$15,ROW($T24)-ROW(T$15),0) -> 130 | U24: 0.64 | V24: BDI 1 | W24: =IF($C24="S",ROUND(IF(TIPOORCAMENTO="Proposto",ORÇAMENTO.CustoUnitario*(1+$AH24),ORÇAMENTO.PrecoUnitarioLicitado),15-13*$AF$10),0) -> 0.77 | X24: =IF($C24="S",IF(Import.TipoArredondamento<>"TransfereGOV",VTOTAL1,SUM(OFFSET(CÁLCULO!$AA$15,ROW($X24)-ROW($X$15),1):OFFSET(CÁLCULO!$AL$15,ROW($X24)-ROW($X$15),-1))),IF($C24=0,0,ROUND(SomaAgrup,15-13*$AF$11))) -> 100.1 | Y24: RA | Z24: RA | AA24: =IF($C24="S",IF($Z24="CP",$X24,IF($Z24="RA",(($X24)*QCI!$AA$3),0)),SomaAgrup) -> 26.8542445 | AB24: 0 | AC24: =IF($N24="","",IF(ORÇAMENTO.Descricao="","DESCRIÇÃO",IF(AND($C24="S",ORÇAMENTO.Unidade=""),"UNIDADE",IF($X24<0,"VALOR NEGATIVO",IF(OR(AND(TIPOORCAMENTO="Proposto",$AG24<>"",$AG24>0,ORÇAMENTO.CustoUnitario>$AG24),AND(TIPOORCAMENTO="LICITADO",ORÇAMENTO.PrecoUnitarioLicitado>$AN24)),"ACIMA REF.",""))))) ->  | AD24: =IF(C24<=CRONO.NivelExibicao,MAX($AD$15:OFFSET(AD24,-1,0))+IF($C24<>1,1,MAX(1,COUNTIF(QCI!$A$13:$A$24,OFFSET($E24,-1,0)))),"") ->  | AE24: =IF(AND($C24="S",ORÇAMENTO.CodBarra<>""),IF(ORÇAMENTO.Fonte="",ORÇAMENTO.CodBarra,CONCATENATE(ORÇAMENTO.Fonte," ",ORÇAMENTO.CodBarra))) -> SINAPI 97662 | AF24: =IF(ISERROR(INDIRECT(ORÇAMENTO.BancoRef)),"(abra o arquivo 'Referência "&Excel_BuiltIn_Database&".xlsm)",IF(OR($C24<>"S",ORÇAMENTO.CodBarra=""),"(Sem Código)",IF(ISERROR(MATCH($AE24,INDIRECT(ORÇAMENTO.BancoRef),0)),"(Código não identificado nas referências)",MATCH($AE24,INDIRECT(ORÇAMENTO.BancoRef),0)))) -> 7096 | AG24: =ROUND(IF(DESONERACAO="sim",REFERENCIA.Desonerado,REFERENCIA.NaoDesonerado),2) -> 0.64 | AH24: 0.2082 | AJ24: 130 | AM24: 100.1 | AN24: 0.77
A25: S | B25: 2 | C25: S | D25: 0 | E25: =IF($C25=1,OFFSET(E25,-1,0)+MAX(1,COUNTIF(QCI!$A$13:$A$24,OFFSET(ORÇAMENTO!E25,-1,0))),OFFSET(E25,-1,0)) -> 1 | F25: 1 | G25: 0 | H25: 0 | I25: 8 | J25: 0 | K25: =IF(OR($C25="S",$C25=0),0,MATCH(OFFSET($D25,0,$C25)+IF($C25<>1,1,COUNTIF(QCI!$A$13:$A$24,ORÇAMENTO!E25)),OFFSET($D25,1,$C25,ROW($C$404)-ROW($C25)),0)) -> 0 | L25: F | M25: Serviço | N25: Serviço | O25: 1.1.0.0.8. | P25: SINAPI | Q25: 97633 | R25: =IF($C25="S",REFERENCIA.Descricao,"(digite a descrição aqui)") -> DEMOLIÇÃO DE REVESTIMENTO CERÂMICO, DE FORMA MANUAL, SEM REAPROVEITAMENTO. AF_09/2023 | S25: =REFERENCIA.Unidade -> M2 | T25: =OFFSET(CÁLCULO!H$15,ROW($T25)-ROW(T$15),0) -> 1060.83 | U25: 28.76 | V25: BDI 1 | W25: =IF($C25="S",ROUND(IF(TIPOORCAMENTO="Proposto",ORÇAMENTO.CustoUnitario*(1+$AH25),ORÇAMENTO.PrecoUnitarioLicitado),15-13*$AF$10),0) -> 34.75 | X25: =IF($C25="S",IF(Import.TipoArredondamento<>"TransfereGOV",VTOTAL1,SUM(OFFSET(CÁLCULO!$AA$15,ROW($X25)-ROW($X$15),1):OFFSET(CÁLCULO!$AL$15,ROW($X25)-ROW($X$15),-1))),IF($C25=0,0,ROUND(SomaAgrup,15-13*$AF$11))) -> 36863.84 | Y25: RA | Z25: RA | AA25: =IF($C25="S",IF($Z25="CP",$X25,IF($Z25="RA",(($X25)*QCI!$AA$3),0)),SomaAgrup) -> 9889.616111 | AB25: 0 | AC25: =IF($N25="","",IF(ORÇAMENTO.Descricao="","DESCRIÇÃO",IF(AND($C25="S",ORÇAMENTO.Unidade=""),"UNIDADE",IF($X25<0,"VALOR NEGATIVO",IF(OR(AND(TIPOORCAMENTO="Proposto",$AG25<>"",$AG25>0,ORÇAMENTO.CustoUnitario>$AG25),AND(TIPOORCAMENTO="LICITADO",ORÇAMENTO.PrecoUnitarioLicitado>$AN25)),"ACIMA REF.",""))))) ->  | AD25: =IF(C25<=CRONO.NivelExibicao,MAX($AD$15:OFFSET(AD25,-1,0))+IF($C25<>1,1,MAX(1,COUNTIF(QCI!$A$13:$A$24,OFFSET($E25,-1,0)))),"") ->  | AE25: =IF(AND($C25="S",ORÇAMENTO.CodBarra<>""),IF(ORÇAMENTO.Fonte="",ORÇAMENTO.CodBarra,CONCATENATE(ORÇAMENTO.Fonte," ",ORÇAMENTO.CodBarra))) -> SINAPI 97633 | AF25: =IF(ISERROR(INDIRECT(ORÇAMENTO.BancoRef)),"(abra o arquivo 'Referência "&Excel_BuiltIn_Database&".xlsm)",IF(OR($C25<>"S",ORÇAMENTO.CodBarra=""),"(Sem Código)",IF(ISERROR(MATCH($AE25,INDIRECT(ORÇAMENTO.BancoRef),0)),"(Código não identificado nas referências)",MATCH($AE25,INDIRECT(ORÇAMENTO.BancoRef),0)))) -> 7068 | AG25: =ROUND(IF(DESONERACAO="sim",REFERENCIA.Desonerado,REFERENCIA.NaoDesonerado),2) -> 28.76 | AH25: 0.2082 | AJ25: 1060.83 | AM25: 36863.84 | AN25: 34.75
A26: S | B26: 2 | C26: S | D26: 0 | E26: =IF($C26=1,OFFSET(E26,-1,0)+MAX(1,COUNTIF(QCI!$A$13:$A$24,OFFSET(ORÇAMENTO!E26,-1,0))),OFFSET(E26,-1,0)) -> 1 | F26: 1 | G26: 0 | H26: 0 | I26: 9 | J26: 0 | K26: =IF(OR($C26="S",$C26=0),0,MATCH(OFFSET($D26,0,$C26)+IF($C26<>1,1,COUNTIF(QCI!$A$13:$A$24,ORÇAMENTO!E26)),OFFSET($D26,1,$C26,ROW($C$404)-ROW($C26)),0)) -> 0 | L26: F | M26: Serviço | N26: Serviço | O26: 1.1.0.0.9. | P26: SINAPI | Q26: 97632 | R26: =IF($C26="S",REFERENCIA.Descricao,"(digite a descrição aqui)") -> DEMOLIÇÃO DE RODAPÉ CERÂMICO, DE FORMA MANUAL, SEM REAPROVEITAMENTO. AF_09/2023 | S26: =REFERENCIA.Unidade -> M | T26: =OFFSET(CÁLCULO!H$15,ROW($T26)-ROW(T$15),0) -> 660.2 | U26: 3.29 | V26: BDI 1 | W26: =IF($C26="S",ROUND(IF(TIPOORCAMENTO="Proposto",ORÇAMENTO.CustoUnitario*(1+$AH26),ORÇAMENTO.PrecoUnitarioLicitado),15-13*$AF$10),0) -> 3.97 | X26: =IF($C26="S",IF(Import.TipoArredondamento<>"TransfereGOV",VTOTAL1,SUM(OFFSET(CÁLCULO!$AA$15,ROW($X26)-ROW($X$15),1):OFFSET(CÁLCULO!$AL$15,ROW($X26)-ROW($X$15),-1))),IF($C26=0,0,ROUND(SomaAgrup,15-13*$AF$11))) -> 2620.99 | Y26: RA | Z26: RA | AA26: =IF($C26="S",IF($Z26="CP",$X26,IF($Z26="RA",(($X26)*QCI!$AA$3),0)),SomaAgrup) -> 703.1439191 | AB26: 0 | AC26: =IF($N26="","",IF(ORÇAMENTO.Descricao="","DESCRIÇÃO",IF(AND($C26="S",ORÇAMENTO.Unidade=""),"UNIDADE",IF($X26<0,"VALOR NEGATIVO",IF(OR(AND(TIPOORCAMENTO="Proposto",$AG26<>"",$AG26>0,ORÇAMENTO.CustoUnitario>$AG26),AND(TIPOORCAMENTO="LICITADO",ORÇAMENTO.PrecoUnitarioLicitado>$AN26)),"ACIMA REF.",""))))) ->  | AD26: =IF(C26<=CRONO.NivelExibicao,MAX($AD$15:OFFSET(AD26,-1,0))+IF($C26<>1,1,MAX(1,COUNTIF(QCI!$A$13:$A$24,OFFSET($E26,-1,0)))),"") ->  | AE26: =IF(AND($C26="S",ORÇAMENTO.CodBarra<>""),IF(ORÇAMENTO.Fonte="",ORÇAMENTO.CodBarra,CONCATENATE(ORÇAMENTO.Fonte," ",ORÇAMENTO.CodBarra))) -> SINAPI 97632 | AF26: =IF(ISERROR(INDIRECT(ORÇAMENTO.BancoRef)),"(abra o arquivo 'Referência "&Excel_BuiltIn_Database&".xlsm)",IF(OR($C26<>"S",ORÇAMENTO.CodBarra=""),"(Sem Código)",IF(ISERROR(MATCH($AE26,INDIRECT(ORÇAMENTO.BancoRef),0)),"(Código não identificado nas referências)",MATCH($AE26,INDIRECT(ORÇAMENTO.BancoRef),0)))) -> 7067 | AG26: =ROUND(IF(DESONERACAO="sim",REFERENCIA.Desonerado,REFERENCIA.NaoDesonerado),2) -> 3.29 | AH26: 0.2082 | AJ26: 660.2 | AM26: 2620.99 | AN26: 3.97
A27: S | B27: 2 | C27: S | D27: 0 | E27: =IF($C27=1,OFFSET(E27,-1,0)+MAX(1,COUNTIF(QCI!$A$13:$A$24,OFFSET(ORÇAMENTO!E27,-1,0))),OFFSET(E27,-1,0)) -> 1 | F27: 1 | G27: 0 | H27: 0 | I27: 10 | J27: 0 | K27: =IF(OR($C27="S",$C27=0),0,MATCH(OFFSET($D27,0,$C27)+IF($C27<>1,1,COUNTIF(QCI!$A$13:$A$24,ORÇAMENTO!E27)),OFFSET($D27,1,$C27,ROW($C$404)-ROW($C27)),0)) -> 0 | L27: F | M27: Serviço | N27: Serviço | O27: 1.1.0.0.10. | P27: SINAPI | Q27: 97647 | R27: =IF($C27="S",REFERENCIA.Descricao,"(digite a descrição aqui)") -> REMOÇÃO DE TELHAS DE FIBROCIMENTO METÁLICA E CERÂMICA, DE FORMA MANUAL, SEM REAPROVEITAMENTO. AF_09/2023 | S27: =REFERENCIA.Unidade -> M2 | T27: =OFFSET(CÁLCULO!H$15,ROW($T27)-ROW(T$15),0) -> 87.39 | U27: 4.48 | V27: BDI 1 | W27: =IF($C27="S",ROUND(IF(TIPOORCAMENTO="Proposto",ORÇAMENTO.CustoUnitario*(1+$AH27),ORÇAMENTO.PrecoUnitarioLicitado),15-13*$AF$10),0) -> 5.41 | X27: =IF($C27="S",IF(Import.TipoArredondamento<>"TransfereGOV",VTOTAL1,SUM(OFFSET(CÁLCULO!$AA$15,ROW($X27)-ROW($X$15),1):OFFSET(CÁLCULO!$AL$15,ROW($X27)-ROW($X$15),-1))),IF($C27=0,0,ROUND(SomaAgrup,15-13*$AF$11))) -> 472.78 | Y27: RA | Z27: RA | AA27: =IF($C27="S",IF($Z27="CP",$X27,IF($Z27="RA",(($X27)*QCI!$AA$3),0)),SomaAgrup) -> 126.8346625 | AB27: 0 | AC27: =IF($N27="","",IF(ORÇAMENTO.Descricao="","DESCRIÇÃO",IF(AND($C27="S",ORÇAMENTO.Unidade=""),"UNIDADE",IF($X27<0,"VALOR NEGATIVO",IF(OR(AND(TIPOORCAMENTO="Proposto",$AG27<>"",$AG27>0,ORÇAMENTO.CustoUnitario>$AG27),AND(TIPOORCAMENTO="LICITADO",ORÇAMENTO.PrecoUnitarioLicitado>$AN27)),"ACIMA REF.",""))))) ->  | AD27: =IF(C27<=CRONO.NivelExibicao,MAX($AD$15:OFFSET(AD27,-1,0))+IF($C27<>1,1,MAX(1,COUNTIF(QCI!$A$13:$A$24,OFFSET($E27,-1,0)))),"") ->  | AE27: =IF(AND($C27="S",ORÇAMENTO.CodBarra<>""),IF(ORÇAMENTO.Fonte="",ORÇAMENTO.CodBarra,CONCATENATE(ORÇAMENTO.Fonte," ",ORÇAMENTO.CodBarra))) -> SINAPI 97647 | AF27: =IF(ISERROR(INDIRECT(ORÇAMENTO.BancoRef)),"(abra o arquivo 'Referência "&Excel_BuiltIn_Database&".xlsm)",IF(OR($C27<>"S",ORÇAMENTO.CodBarra=""),"(Sem Código)",IF(ISERROR(MATCH($AE27,INDIRECT(ORÇAMENTO.BancoRef),0)),"(Código não identificado nas referências)",MATCH($AE27,INDIRECT(ORÇAMENTO.BancoRef),0)))) -> 7081 | AG27: =ROUND(IF(DESONERACAO="sim",REFERENCIA.Desonerado,REFERENCIA.NaoDesonerado),2) -> 4.48 | AH27: 0.2082 | AJ27: 87.39 | AM27: 472.78 | AN27: 5.41
A28: S | B28: 2 | C28: S | D28: 0 | E28: =IF($C28=1,OFFSET(E28,-1,0)+MAX(1,COUNTIF(QCI!$A$13:$A$24,OFFSET(ORÇAMENTO!E28,-1,0))),OFFSET(E28,-1,0)) -> 1 | F28: 1 | G28: 0 | H28: 0 | I28: 11 | J28: 0 | K28: =IF(OR($C28="S",$C28=0),0,MATCH(OFFSET($D28,0,$C28)+IF($C28<>1,1,COUNTIF(QCI!$A$13:$A$24,ORÇAMENTO!E28)),OFFSET($D28,1,$C28,ROW($C$404)-ROW($C28)),0)) -> 0 | L28: F | M28: Serviço | N28: Serviço | O28: 1.1.0.0.11. | P28: SINAPI | Q28: 97650 | R28: =IF($C28="S",REFERENCIA.Descricao,"(digite a descrição aqui)") -> REMOÇÃO DE TRAMA DE MADEIRA PARA COBERTURA, DE FORMA MANUAL, SEM REAPROVEITAMENTO. AF_09/2023 | S28: =REFERENCIA.Unidade -> M2 | T28: =OFFSET(CÁLCULO!H$15,ROW($T28)-ROW(T$15),0) -> 87.39 | U28: 9.67 | V28: BDI 1 | W28: =IF($C28="S",ROUND(IF(TIPOORCAMENTO="Proposto",ORÇAMENTO.CustoUnitario*(1+$AH28),ORÇAMENTO.PrecoUnitarioLicitado),15-13*$AF$10),0) -> 11.68 | X28: =IF($C28="S",IF(Import.TipoArredondamento<>"TransfereGOV",VTOTAL1,SUM(OFFSET(CÁLCULO!$AA$15,ROW($X28)-ROW($X$15),1):OFFSET(CÁLCULO!$AL$15,ROW($X28)-ROW($X$15),-1))),IF($C28=0,0,ROUND(SomaAgrup,15-13*$AF$11))) -> 1020.72 | Y28: RA | Z28: RA | AA28: =IF($C28="S",IF($Z28="CP",$X28,IF($Z28="RA",(($X28)*QCI!$AA$3),0)),SomaAgrup) -> 273.8328117 | AB28: 0 | AC28: =IF($N28="","",IF(ORÇAMENTO.Descricao="","DESCRIÇÃO",IF(AND($C28="S",ORÇAMENTO.Unidade=""),"UNIDADE",IF($X28<0,"VALOR NEGATIVO",IF(OR(AND(TIPOORCAMENTO="Proposto",$AG28<>"",$AG28>0,ORÇAMENTO.CustoUnitario>$AG28),AND(TIPOORCAMENTO="LICITADO",ORÇAMENTO.PrecoUnitarioLicitado>$AN28)),"ACIMA REF.",""))))) ->  | AD28: =IF(C28<=CRONO.NivelExibicao,MAX($AD$15:OFFSET(AD28,-1,0))+IF($C28<>1,1,MAX(1,COUNTIF(QCI!$A$13:$A$24,OFFSET($E28,-1,0)))),"") ->  | AE28: =IF(AND($C28="S",ORÇAMENTO.CodBarra<>""),IF(ORÇAMENTO.Fonte="",ORÇAMENTO.CodBarra,CONCATENATE(ORÇAMENTO.Fonte," ",ORÇAMENTO.CodBarra))) -> SINAPI 97650 | AF28: =IF(ISERROR(INDIRECT(ORÇAMENTO.BancoRef)),"(abra o arquivo 'Referência "&Excel_BuiltIn_Database&".xlsm)",IF(OR($C28<>"S",ORÇAMENTO.CodBarra=""),"(Sem Código)",IF(ISERROR(MATCH($AE28,INDIRECT(ORÇAMENTO.BancoRef),0)),"(Código não identificado nas referências)",MATCH($AE28,INDIRECT(ORÇAMENTO.BancoRef),0)))) -> 7084 | AG28: =ROUND(IF(DESONERACAO="sim",REFERENCIA.Desonerado,REFERENCIA.NaoDesonerado),2) -> 9.67 | AH28: 0.2082 | AJ28: 87.39 | AM28: 1020.72 | AN28: 11.68
A29: S | B29: 2 | C29: S | D29: 0 | E29: =IF($C29=1,OFFSET(E29,-1,0)+MAX(1,COUNTIF(QCI!$A$13:$A$24,OFFSET(ORÇAMENTO!E29,-1,0))),OFFSET(E29,-1,0)) -> 1 | F29: 1 | G29: 0 | H29: 0 | I29: 12 | J29: 0 | K29: =IF(OR($C29="S",$C29=0),0,MATCH(OFFSET($D29,0,$C29)+IF($C29<>1,1,COUNTIF(QCI!$A$13:$A$24,ORÇAMENTO!E29)),OFFSET($D29,1,$C29,ROW($C$404)-ROW($C29)),0)) -> 0 | L29: F | M29: Serviço | N29: Serviço | O29: 1.1.0.0.12. | P29: SINAPI | Q29: 97635 | R29: =IF($C29="S",REFERENCIA.Descricao,"(digite a descrição aqui)") -> REMOÇÃO DE PISO DE BLOCO INTERTRAVADO OU DE PEDRA PORTUGUESA, DE FORMA MANUAL, COM REAPROVEITAMENTO. AF_09/2023 | S29: =REFERENCIA.Unidade -> M2 | T29: =OFFSET(CÁLCULO!H$15,ROW($T29)-ROW(T$15),0) -> 69.52 | U29: 20.37 | V29: BDI 1 | W29: =IF($C29="S",ROUND(IF(TIPOORCAMENTO="Proposto",ORÇAMENTO.CustoUnitario*(1+$AH29),ORÇAMENTO.PrecoUnitarioLicitado),15-13*$AF$10),0) -> 24.61 | X29: =IF($C29="S",IF(Import.TipoArredondamento<>"TransfereGOV",VTOTAL1,SUM(OFFSET(CÁLCULO!$AA$15,ROW($X29)-ROW($X$15),1):OFFSET(CÁLCULO!$AL$15,ROW($X29)-ROW($X$15),-1))),IF($C29=0,0,ROUND(SomaAgrup,15-13*$AF$11))) -> 1710.89 | Y29: RA | Z29: RA | AA29: =IF($C29="S",IF($Z29="CP",$X29,IF($Z29="RA",(($X29)*QCI!$AA$3),0)),SomaAgrup) -> 458.9875962 | AB29: 0 | AC29: =IF($N29="","",IF(ORÇAMENTO.Descricao="","DESCRIÇÃO",IF(AND($C29="S",ORÇAMENTO.Unidade=""),"UNIDADE",IF($X29<0,"VALOR NEGATIVO",IF(OR(AND(TIPOORCAMENTO="Proposto",$AG29<>"",$AG29>0,ORÇAMENTO.CustoUnitario>$AG29),AND(TIPOORCAMENTO="LICITADO",ORÇAMENTO.PrecoUnitarioLicitado>$AN29)),"ACIMA REF.",""))))) ->  | AD29: =IF(C29<=CRONO.NivelExibicao,MAX($AD$15:OFFSET(AD29,-1,0))+IF($C29<>1,1,MAX(1,COUNTIF(QCI!$A$13:$A$24,OFFSET($E29,-1,0)))),"") ->  | AE29: =IF(AND($C29="S",ORÇAMENTO.CodBarra<>""),IF(ORÇAMENTO.Fonte="",ORÇAMENTO.CodBarra,CONCATENATE(ORÇAMENTO.Fonte," ",ORÇAMENTO.CodBarra))) -> SINAPI 97635 | AF29: =IF(ISERROR(INDIRECT(ORÇAMENTO.BancoRef)),"(abra o arquivo 'Referência "&Excel_BuiltIn_Database&".xlsm)",IF(OR($C29<>"S",ORÇAMENTO.CodBarra=""),"(Sem Código)",IF(ISERROR(MATCH($AE29,INDIRECT(ORÇAMENTO.BancoRef),0)),"(Código não identificado nas referências)",MATCH($AE29,INDIRECT(ORÇAMENTO.BancoRef),0)))) -> 7070 | AG29: =ROUND(IF(DESONERACAO="sim",REFERENCIA.Desonerado,REFERENCIA.NaoDesonerado),2) -> 20.37 | AH29: 0.2082 | AJ29: 69.52 | AM29: 1710.89 | AN29: 24.61
A30: S | B30: 2 | C30: S | D30: 0 | E30: =IF($C30=1,OFFSET(E30,-1,0)+MAX(1,COUNTIF(QCI!$A$13:$A$24,OFFSET(ORÇAMENTO!E30,-1,0))),OFFSET(E30,-1,0)) -> 1 | F30: 1 | G30: 0 | H30: 0 | I30: 13 | J30: 0 | K30: =IF(OR($C30="S",$C30=0),0,MATCH(OFFSET($D30,0,$C30)+IF($C30<>1,1,COUNTIF(QCI!$A$13:$A$24,ORÇAMENTO!E30)),OFFSET($D30,1,$C30,ROW($C$404)-ROW($C30)),0)) -> 0 | L30: F | M30: Serviço | N30: Serviço | O30: 1.1.0.0.13. | P30: SINAPI | Q30: 104790 | R30: =IF($C30="S",REFERENCIA.Descricao,"(digite a descrição aqui)") -> DEMOLIÇÃO DE PISO DE CONCRETO SIMPLES, DE FORMA MECANIZADA COM MARTELETE, SEM REAPROVEITAMENTO. AF_09/2023 | S30: =REFERENCIA.Unidade -> M3 | T30: =OFFSET(CÁLCULO!H$15,ROW($T30)-ROW(T$15),0) -> 53.04 | U30: 125.2 | V30: BDI 1 | W30: =IF($C30="S",ROUND(IF(TIPOORCAMENTO="Proposto",ORÇAMENTO.CustoUnitario*(1+$AH30),ORÇAMENTO.PrecoUnitarioLicitado),15-13*$AF$10),0) -> 151.27 | X30: =IF($C30="S",IF(Import.TipoArredondamento<>"TransfereGOV",VTOTAL1,SUM(OFFSET(CÁLCULO!$AA$15,ROW($X30)-ROW($X$15),1):OFFSET(CÁLCULO!$AL$15,ROW($X30)-ROW($X$15),-1))),IF($C30=0,0,ROUND(SomaAgrup,15-13*$AF$11))) -> 8023.36 | Y30: RA | Z30: RA | AA30: =IF($C30="S",IF($Z30="CP",$X30,IF($Z30="RA",(($X30)*QCI!$AA$3),0)),SomaAgrup) -> 2152.460252 | AB30: 0 | AC30: =IF($N30="","",IF(ORÇAMENTO.Descricao="","DESCRIÇÃO",IF(AND($C30="S",ORÇAMENTO.Unidade=""),"UNIDADE",IF($X30<0,"VALOR NEGATIVO",IF(OR(AND(TIPOORCAMENTO="Proposto",$AG30<>"",$AG30>0,ORÇAMENTO.CustoUnitario>$AG30),AND(TIPOORCAMENTO="LICITADO",ORÇAMENTO.PrecoUnitarioLicitado>$AN30)),"ACIMA REF.",""))))) ->  | AD30: =IF(C30<=CRONO.NivelExibicao,MAX($AD$15:OFFSET(AD30,-1,0))+IF($C30<>1,1,MAX(1,COUNTIF(QCI!$A$13:$A$24,OFFSET($E30,-1,0)))),"") ->  | AE30: =IF(AND($C30="S",ORÇAMENTO.CodBarra<>""),IF(ORÇAMENTO.Fonte="",ORÇAMENTO.CodBarra,CONCATENATE(ORÇAMENTO.Fonte," ",ORÇAMENTO.CodBarra))) -> SINAPI 104790 | AF30: =IF(ISERROR(INDIRECT(ORÇAMENTO.BancoRef)),"(abra o arquivo 'Referência "&Excel_BuiltIn_Database&".xlsm)",IF(OR($C30<>"S",ORÇAMENTO.CodBarra=""),"(Sem Código)",IF(ISERROR(MATCH($AE30,INDIRECT(ORÇAMENTO.BancoRef),0)),"(Código não identificado nas referências)",MATCH($AE30,INDIRECT(ORÇAMENTO.BancoRef),0)))) -> 7102 | AG30: =ROUND(IF(DESONERACAO="sim",REFERENCIA.Desonerado,REFERENCIA.NaoDesonerado),2) -> 125.2 | AH30: 0.2082 | AJ30: 53.04 | AM30: 8023.36 | AN30: 151.27
A31: S | B31: 2 | C31: S | D31: 0 | E31: =IF($C31=1,OFFSET(E31,-1,0)+MAX(1,COUNTIF(QCI!$A$13:$A$24,OFFSET(ORÇAMENTO!E31,-1,0))),OFFSET(E31,-1,0)) -> 1 | F31: 1 | G31: 0 | H31: 0 | I31: 14 | J31: 0 | K31: =IF(OR($C31="S",$C31=0),0,MATCH(OFFSET($D31,0,$C31)+IF($C31<>1,1,COUNTIF(QCI!$A$13:$A$24,ORÇAMENTO!E31)),OFFSET($D31,1,$C31,ROW($C$404)-ROW($C31)),0)) -> 0 | L31: F | M31: Serviço | N31: Serviço | O31: 1.1.0.0.14. | P31: SINAPI | Q31: 104793 | R31: =IF($C31="S",REFERENCIA.Descricao,"(digite a descrição aqui)") -> REMOÇÃO DE CABOS ELÉTRICOS, COM SEÇÃO MAIOR QUE 2,5 MM² E MENOR QUE 10 MM², DE FORMA MANUAL, SEM REAPROVEITAMENTO. AF_09/2023 | S31: =REFERENCIA.Unidade -> M | T31: =OFFSET(CÁLCULO!H$15,ROW($T31)-ROW(T$15),0) -> 250 | U31: 0.68 | V31: BDI 1 | W31: =IF($C31="S",ROUND(IF(TIPOORCAMENTO="Proposto",ORÇAMENTO.CustoUnitario*(1+$AH31),ORÇAMENTO.PrecoUnitarioLicitado),15-13*$AF$10),0) -> 0.82 | X31: =IF($C31="S",IF(Import.TipoArredondamento<>"TransfereGOV",VTOTAL1,SUM(OFFSET(CÁLCULO!$AA$15,ROW($X31)-ROW($X$15),1):OFFSET(CÁLCULO!$AL$15,ROW($X31)-ROW($X$15),-1))),IF($C31=0,0,ROUND(SomaAgrup,15-13*$AF$11))) -> 205 | Y31: RA | Z31: RA | AA31: =IF($C31="S",IF($Z31="CP",$X31,IF($Z31="RA",(($X31)*QCI!$AA$3),0)),SomaAgrup) -> 54.99620503 | AB31: 0 | AC31: =IF($N31="","",IF(ORÇAMENTO.Descricao="","DESCRIÇÃO",IF(AND($C31="S",ORÇAMENTO.Unidade=""),"UNIDADE",IF($X31<0,"VALOR NEGATIVO",IF(OR(AND(TIPOORCAMENTO="Proposto",$AG31<>"",$AG31>0,ORÇAMENTO.CustoUnitario>$AG31),AND(TIPOORCAMENTO="LICITADO",ORÇAMENTO.PrecoUnitarioLicitado>$AN31)),"ACIMA REF.",""))))) ->  | AD31: =IF(C31<=CRONO.NivelExibicao,MAX($AD$15:OFFSET(AD31,-1,0))+IF($C31<>1,1,MAX(1,COUNTIF(QCI!$A$13:$A$24,OFFSET($E31,-1,0)))),"") ->  | AE31: =IF(AND($C31="S",ORÇAMENTO.CodBarra<>""),IF(ORÇAMENTO.Fonte="",ORÇAMENTO.CodBarra,CONCATENATE(ORÇAMENTO.Fonte," ",ORÇAMENTO.CodBarra))) -> SINAPI 104793 | AF31: =IF(ISERROR(INDIRECT(ORÇAMENTO.BancoRef)),"(abra o arquivo 'Referência "&Excel_BuiltIn_Database&".xlsm)",IF(OR($C31<>"S",ORÇAMENTO.CodBarra=""),"(Sem Código)",IF(ISERROR(MATCH($AE31,INDIRECT(ORÇAMENTO.BancoRef),0)),"(Código não identificado nas referências)",MATCH($AE31,INDIRECT(ORÇAMENTO.BancoRef),0)))) -> 7105 | AG31: =ROUND(IF(DESONERACAO="sim",REFERENCIA.Desonerado,REFERENCIA.NaoDesonerado),2) -> 0.68 | AH31: 0.2082 | AJ31: 250 | AM31: 205 | AN31: 0.82
A32: S | B32: 2 | C32: S | D32: 0 | E32: =IF($C32=1,OFFSET(E32,-1,0)+MAX(1,COUNTIF(QCI!$A$13:$A$24,OFFSET(ORÇAMENTO!E32,-1,0))),OFFSET(E32,-1,0)) -> 1 | F32: 1 | G32: 0 | H32: 0 | I32: 15 | J32: 0 | K32: =IF(OR($C32="S",$C32=0),0,MATCH(OFFSET($D32,0,$C32)+IF($C32<>1,1,COUNTIF(QCI!$A$13:$A$24,ORÇAMENTO!E32)),OFFSET($D32,1,$C32,ROW($C$404)-ROW($C32)),0)) -> 0 | L32: F | M32: Serviço | N32: Serviço | O32: 1.1.0.0.15. | P32: SINAPI | Q32: 97660 | R32: =IF($C32="S",REFERENCIA.Descricao,"(digite a descrição aqui)") -> REMOÇÃO DE INTERRUPTORES/TOMADAS ELÉTRICAS, DE FORMA MANUAL, SEM REAPROVEITAMENTO. AF_09/2023 | S32: =REFERENCIA.Unidade -> UN | T32: =OFFSET(CÁLCULO!H$15,ROW($T32)-ROW(T$15),0) -> 85 | U32: 0.83 | V32: BDI 1 | W32: =IF($C32="S",ROUND(IF(TIPOORCAMENTO="Proposto",ORÇAMENTO.CustoUnitario*(1+$AH32),ORÇAMENTO.PrecoUnitarioLicitado),15-13*$AF$10),0) -> 1 | X32: =IF($C32="S",IF(Import.TipoArredondamento<>"TransfereGOV",VTOTAL1,SUM(OFFSET(CÁLCULO!$AA$15,ROW($X32)-ROW($X$15),1):OFFSET(CÁLCULO!$AL$15,ROW($X32)-ROW($X$15),-1))),IF($C32=0,0,ROUND(SomaAgrup,15-13*$AF$11))) -> 85 | Y32: RA | Z32: RA | AA32: =IF($C32="S",IF($Z32="CP",$X32,IF($Z32="RA",(($X32)*QCI!$AA$3),0)),SomaAgrup) -> 22.80330452 | AB32: 0 | AC32: =IF($N32="","",IF(ORÇAMENTO.Descricao="","DESCRIÇÃO",IF(AND($C32="S",ORÇAMENTO.Unidade=""),"UNIDADE",IF($X32<0,"VALOR NEGATIVO",IF(OR(AND(TIPOORCAMENTO="Proposto",$AG32<>"",$AG32>0,ORÇAMENTO.CustoUnitario>$AG32),AND(TIPOORCAMENTO="LICITADO",ORÇAMENTO.PrecoUnitarioLicitado>$AN32)),"ACIMA REF.",""))))) ->  | AD32: =IF(C32<=CRONO.NivelExibicao,MAX($AD$15:OFFSET(AD32,-1,0))+IF($C32<>1,1,MAX(1,COUNTIF(QCI!$A$13:$A$24,OFFSET($E32,-1,0)))),"") ->  | AE32: =IF(AND($C32="S",ORÇAMENTO.CodBarra<>""),IF(ORÇAMENTO.Fonte="",ORÇAMENTO.CodBarra,CONCATENATE(ORÇAMENTO.Fonte," ",ORÇAMENTO.CodBarra))) -> SINAPI 97660 | AF32: =IF(ISERROR(INDIRECT(ORÇAMENTO.BancoRef)),"(abra o arquivo 'Referência "&Excel_BuiltIn_Database&".xlsm)",IF(OR($C32<>"S",ORÇAMENTO.CodBarra=""),"(Sem Código)",IF(ISERROR(MATCH($AE32,INDIRECT(ORÇAMENTO.BancoRef),0)),"(Código não identificado nas referências)",MATCH($AE32,INDIRECT(ORÇAMENTO.BancoRef),0)))) -> 7094 | AG32: =ROUND(IF(DESONERACAO="sim",REFERENCIA.Desonerado,REFERENCIA.NaoDesonerado),2) -> 0.83 | AH32: 0.2082 | AJ32: 85 | AM32: 85 | AN32: 1
A33: S | B33: 2 | C33: S | D33: 0 | E33: =IF($C33=1,OFFSET(E33,-1,0)+MAX(1,COUNTIF(QCI!$A$13:$A$24,OFFSET(ORÇAMENTO!E33,-1,0))),OFFSET(E33,-1,0)) -> 1 | F33: 1 | G33: 0 | H33: 0 | I33: 16 | J33: 0 | K33: =IF(OR($C33="S",$C33=0),0,MATCH(OFFSET($D33,0,$C33)+IF($C33<>1,1,COUNTIF(QCI!$A$13:$A$24,ORÇAMENTO!E33)),OFFSET($D33,1,$C33,ROW($C$404)-ROW($C33)),0)) -> 0 | L33: F | M33: Serviço | N33: Serviço | O33: 1.1.0.0.16. | P33: SINAPI | Q33: 97665 | R33: =IF($C33="S",REFERENCIA.Descricao,"(digite a descrição aqui)") -> REMOÇÃO DE LUMINÁRIAS, DE FORMA MANUAL, SEM REAPROVEITAMENTO. AF_09/2023 | S33: =REFERENCIA.Unidade -> UN | T33: =OFFSET(CÁLCULO!H$15,ROW($T33)-ROW(T$15),0) -> 54 | U33: 2.28 | V33: BDI 1 | W33: =IF($C33="S",ROUND(IF(TIPOORCAMENTO="Proposto",ORÇAMENTO.CustoUnitario*(1+$AH33),ORÇAMENTO.PrecoUnitarioLicitado),15-13*$AF$10),0) -> 2.75 | X33: =IF($C33="S",IF(Import.TipoArredondamento<>"TransfereGOV",VTOTAL1,SUM(OFFSET(CÁLCULO!$AA$15,ROW($X33)-ROW($X$15),1):OFFSET(CÁLCULO!$AL$15,ROW($X33)-ROW($X$15),-1))),IF($C33=0,0,ROUND(SomaAgrup,15-13*$AF$11))) -> 148.5 | Y33: RA | Z33: RA | AA33: =IF($C33="S",IF($Z33="CP",$X33,IF($Z33="RA",(($X33)*QCI!$AA$3),0)),SomaAgrup) -> 39.83871437 | AB33: 0 | AC33: =IF($N33="","",IF(ORÇAMENTO.Descricao="","DESCRIÇÃO",IF(AND($C33="S",ORÇAMENTO.Unidade=""),"UNIDADE",IF($X33<0,"VALOR NEGATIVO",IF(OR(AND(TIPOORCAMENTO="Proposto",$AG33<>"",$AG33>0,ORÇAMENTO.CustoUnitario>$AG33),AND(TIPOORCAMENTO="LICITADO",ORÇAMENTO.PrecoUnitarioLicitado>$AN33)),"ACIMA REF.",""))))) ->  | AD33: =IF(C33<=CRONO.NivelExibicao,MAX($AD$15:OFFSET(AD33,-1,0))+IF($C33<>1,1,MAX(1,COUNTIF(QCI!$A$13:$A$24,OFFSET($E33,-1,0)))),"") ->  | AE33: =IF(AND($C33="S",ORÇAMENTO.CodBarra<>""),IF(ORÇAMENTO.Fonte="",ORÇAMENTO.CodBarra,CONCATENATE(ORÇAMENTO.Fonte," ",ORÇAMENTO.CodBarra))) -> SINAPI 97665 | AF33: =IF(ISERROR(INDIRECT(ORÇAMENTO.BancoRef)),"(abra o arquivo 'Referência "&Excel_BuiltIn_Database&".xlsm)",IF(OR($C33<>"S",ORÇAMENTO.CodBarra=""),"(Sem Código)",IF(ISERROR(MATCH($AE33,INDIRECT(ORÇAMENTO.BancoRef),0)),"(Código não identificado nas referências)",MATCH($AE33,INDIRECT(ORÇAMENTO.BancoRef),0)))) -> 7099 | AG33: =ROUND(IF(DESONERACAO="sim",REFERENCIA.Desonerado,REFERENCIA.NaoDesonerado),2) -> 2.28 | AH33: 0.2082 | AJ33: 54 | AM33: 148.5 | AN33: 2.75
A34: =CHOOSE(1+LOG(1+2*(ORÇAMENTO.Nivel="Meta")+4*(ORÇAMENTO.Nivel="Nível 2")+8*(ORÇAMENTO.Nivel="Nível 3")+16*(ORÇAMENTO.Nivel="Nível 4")+32*(ORÇAMENTO.Nivel="Serviço"),2),0,1,2,3,4,"S") -> S | B34: =IF(OR(C34="s",C34=0),OFFSET(B34,-1,0),C34) -> 2 | C34: =IF(OFFSET(C34,-1,0)="L",1,IF(OFFSET(C34,-1,0)=1,2,IF(OR(A34="s",A34=0),"S",IF(AND(OFFSET(C34,-1,0)=2,A34=4),3,IF(AND(OR(OFFSET(C34,-1,0)="s",OFFSET(C34,-1,0)=0),A34<>"s",A34>OFFSET(B34,-1,0)),OFFSET(B34,-1,0),A34))))) -> S | D34: =IF(OR(C34="S",C34=0),0,IF(ISERROR(K34),J34,SMALL(J34:K34,1))) -> 0 | E34: =IF($C34=1,OFFSET(E34,-1,0)+MAX(1,COUNTIF(QCI!$A$13:$A$24,OFFSET(ORÇAMENTO!E34,-1,0))),OFFSET(E34,-1,0)) -> 1 | F34: =IF($C34=1,0,IF($C34=2,OFFSET(F34,-1,0)+1,OFFSET(F34,-1,0))) -> 1 | G34: =IF(AND($C34<=2,$C34<>0),0,IF($C34=3,OFFSET(G34,-1,0)+1,OFFSET(G34,-1,0))) -> 0 | H34: =IF(AND($C34<=3,$C34<>0),0,IF($C34=4,OFFSET(H34,-1,0)+1,OFFSET(H34,-1,0))) -> 0 | I34: =IF(AND($C34<=4,$C34<>0),0,IF(AND($C34="S",$X34>0),OFFSET(I34,-1,0)+1,OFFSET(I34,-1,0))) -> 17 | J34: 0 | K34: =IF(OR($C34="S",$C34=0),0,MATCH(OFFSET($D34,0,$C34)+IF($C34<>1,1,COUNTIF(QCI!$A$13:$A$24,ORÇAMENTO!E34)),OFFSET($D34,1,$C34,ROW($C$404)-ROW($C34)),0)) -> 0 | L34: =IF(OR($X34>0,$C34=1,$C34=2,$C34=3,$C34=4),"F","") -> F | M34: Serviço | N34: =CHOOSE(1+LOG(1+2*(C34=1)+4*(C34=2)+8*(C34=3)+16*(C34=4)+32*(C34="S"),2),"","Meta","Nível 2","Nível 3","Nível 4","Serviço") -> Serviço | O34: =IF(OR($C34=0,$L34=""),"-",CONCATENATE(E34&".",IF(AND($A$5>=2,$C34>=2),F34&".",""),IF(AND($A$5>=3,$C34>=3),G34&".",""),IF(AND($A$5>=4,$C34>=4),H34&".",""),IF($C34="S",I34&".",""))) -> 1.1.0.0.17. | P34: SINAPI | Q34: 97663 | R34: =IF($C34="S",REFERENCIA.Descricao,"(digite a descrição aqui)") -> REMOÇÃO DE LOUÇAS, DE FORMA MANUAL, SEM REAPROVEITAMENTO. AF_09/2023 | S34: =REFERENCIA.Unidade -> UN | T34: =OFFSET(CÁLCULO!H$15,ROW($T34)-ROW(T$15),0) -> 25 | U34: 15.92 | V34: BDI 1 | W34: =IF($C34="S",ROUND(IF(TIPOORCAMENTO="Proposto",ORÇAMENTO.CustoUnitario*(1+$AH34),ORÇAMENTO.PrecoUnitarioLicitado),15-13*$AF$10),0) -> 19.23 | X34: =IF($C34="S",IF(Import.TipoArredondamento<>"TransfereGOV",VTOTAL1,SUM(OFFSET(CÁLCULO!$AA$15,ROW($X34)-ROW($X$15),1):OFFSET(CÁLCULO!$AL$15,ROW($X34)-ROW($X$15),-1))),IF($C34=0,0,ROUND(SomaAgrup,15-13*$AF$11))) -> 480.75 | Y34: RA | Z34: =IF(AND($C34="S",$X34>0),IF(ISBLANK($Y34),"RA",LEFT($Y34,2)),"") -> RA | AA34: =IF($C34="S",IF($Z34="CP",$X34,IF($Z34="RA",(($X34)*QCI!$AA$3),0)),SomaAgrup) -> 128.9728076 | AB34: =IF($C34="S",IF($Z34="OU",ROUND($X34,2),0),SomaAgrup) -> 0 | AC34: =IF($N34="","",IF(ORÇAMENTO.Descricao="","DESCRIÇÃO",IF(AND($C34="S",ORÇAMENTO.Unidade=""),"UNIDADE",IF($X34<0,"VALOR NEGATIVO",IF(OR(AND(TIPOORCAMENTO="Proposto",$AG34<>"",$AG34>0,ORÇAMENTO.CustoUnitario>$AG34),AND(TIPOORCAMENTO="LICITADO",ORÇAMENTO.PrecoUnitarioLicitado>$AN34)),"ACIMA REF.",""))))) ->  | AD34: =IF(C34<=CRONO.NivelExibicao,MAX($AD$15:OFFSET(AD34,-1,0))+IF($C34<>1,1,MAX(1,COUNTIF(QCI!$A$13:$A$24,OFFSET($E34,-1,0)))),"") ->  | AE34: =IF(AND($C34="S",ORÇAMENTO.CodBarra<>""),IF(ORÇAMENTO.Fonte="",ORÇAMENTO.CodBarra,CONCATENATE(ORÇAMENTO.Fonte," ",ORÇAMENTO.CodBarra))) -> SINAPI 97663 | AF34: =IF(ISERROR(INDIRECT(ORÇAMENTO.BancoRef)),"(abra o arquivo 'Referência "&Excel_BuiltIn_Database&".xlsm)",IF(OR($C34<>"S",ORÇAMENTO.CodBarra=""),"(Sem Código)",IF(ISERROR(MATCH($AE34,INDIRECT(ORÇAMENTO.BancoRef),0)),"(Código não identificado nas referências)",MATCH($AE34,INDIRECT(ORÇAMENTO.BancoRef),0)))) -> 7097 | AG34: =ROUND(IF(DESONERACAO="sim",REFERENCIA.Desonerado,REFERENCIA.NaoDesonerado),2) -> 15.92 | AH34: =ROUND(IF(ISNUMBER(ORÇAMENTO.OpcaoBDI),ORÇAMENTO.OpcaoBDI,IF(LEFT(ORÇAMENTO.OpcaoBDI,3)="BDI",HLOOKUP(ORÇAMENTO.OpcaoBDI,$F$4:$H$5,2,FALSE),0)),15-11*$AF$9) -> 0.2082 | AJ34: 25 | AM34: 480.75 | AN34: =ROUND(ORÇAMENTO.CustoUnitario*(1+$AH34),2) -> 19.23
A35: 2 | B35: 2 | C35: 2 | D35: 4 | E35: =IF($C35=1,OFFSET(E35,-1,0)+MAX(1,COUNTIF(QCI!$A$13:$A$24,OFFSET(ORÇAMENTO!E35,-1,0))),OFFSET(E35,-1,0)) -> 1 | F35: 2 | G35: 0 | H35: 0 | I35: 0 | J35: 212 | K35: =IF(OR($C35="S",$C35=0),0,MATCH(OFFSET($D35,0,$C35)+IF($C35<>1,1,COUNTIF(QCI!$A$13:$A$24,ORÇAMENTO!E35)),OFFSET($D35,1,$C35,ROW($C$404)-ROW($C35)),0)) -> 4 | L35: F | M35: Nível 2 | N35: Nível 2 | O35: 1.2. | P35: SINAPI | R35: MOVIMENTO DE TERRA | S35: =REFERENCIA.Unidade -> - | T35: =OFFSET(CÁLCULO!H$15,ROW($T35)-ROW(T$15),0) -> 0 | U35: 0 | V35: BDI 1 | W35: =IF($C35="S",ROUND(IF(TIPOORCAMENTO="Proposto",ORÇAMENTO.CustoUnitario*(1+$AH35),ORÇAMENTO.PrecoUnitarioLicitado),15-13*$AF$10),0) -> 0 | X35: =IF($C35="S",IF(Import.TipoArredondamento<>"TransfereGOV",VTOTAL1,SUM(OFFSET(CÁLCULO!$AA$15,ROW($X35)-ROW($X$15),1):OFFSET(CÁLCULO!$AL$15,ROW($X35)-ROW($X$15),-1))),IF($C35=0,0,ROUND(SomaAgrup,15-13*$AF$11))) -> 2184.95 | Y35: RA | AA35: =IF($C35="S",IF($Z35="CP",$X35,IF($Z35="RA",(($X35)*QCI!$AA$3),0)),SomaAgrup) -> 586.1656497 | AB35: 0 | AC35: =IF($N35="","",IF(ORÇAMENTO.Descricao="","DESCRIÇÃO",IF(AND($C35="S",ORÇAMENTO.Unidade=""),"UNIDADE",IF($X35<0,"VALOR NEGATIVO",IF(OR(AND(TIPOORCAMENTO="Proposto",$AG35<>"",$AG35>0,ORÇAMENTO.CustoUnitario>$AG35),AND(TIPOORCAMENTO="LICITADO",ORÇAMENTO.PrecoUnitarioLicitado>$AN35)),"ACIMA REF.",""))))) ->  | AD35: =IF(C35<=CRONO.NivelExibicao,MAX($AD$15:OFFSET(AD35,-1,0))+IF($C35<>1,1,MAX(1,COUNTIF(QCI!$A$13:$A$24,OFFSET($E35,-1,0)))),"") -> 3 | AE35: =IF(AND($C35="S",ORÇAMENTO.CodBarra<>""),IF(ORÇAMENTO.Fonte="",ORÇAMENTO.CodBarra,CONCATENATE(ORÇAMENTO.Fonte," ",ORÇAMENTO.CodBarra))) -> FALSE | AF35: =IF(ISERROR(INDIRECT(ORÇAMENTO.BancoRef)),"(abra o arquivo 'Referência "&Excel_BuiltIn_Database&".xlsm)",IF(OR($C35<>"S",ORÇAMENTO.CodBarra=""),"(Sem Código)",IF(ISERROR(MATCH($AE35,INDIRECT(ORÇAMENTO.BancoRef),0)),"(Código não identificado nas referências)",MATCH($AE35,INDIRECT(ORÇAMENTO.BancoRef),0)))) -> (Sem Código) | AG35: =ROUND(IF(DESONERACAO="sim",REFERENCIA.Desonerado,REFERENCIA.NaoDesonerado),2) -> 0 | AH35: 0.2082 | AM35: 2184.95 | AN35: 0
A36: S | B36: 2 | C36: S | D36: 0 | E36: =IF($C36=1,OFFSET(E36,-1,0)+MAX(1,COUNTIF(QCI!$A$13:$A$24,OFFSET(ORÇAMENTO!E36,-1,0))),OFFSET(E36,-1,0)) -> 1 | F36: 2 | G36: 0 | H36: 0 | I36: 1 | J36: 0 | K36: =IF(OR($C36="S",$C36=0),0,MATCH(OFFSET($D36,0,$C36)+IF($C36<>1,1,COUNTIF(QCI!$A$13:$A$24,ORÇAMENTO!E36)),OFFSET($D36,1,$C36,ROW($C$404)-ROW($C36)),0)) -> 0 | L36: F | M36: Serviço | N36: Serviço | O36: 1.2.0.0.1. | P36: SINAPI | Q36: 96520 | R36: =IF($C36="S",REFERENCIA.Descricao,"(digite a descrição aqui)") -> ESCAVAÇÃO MECANIZADA PARA BLOCO DE COROAMENTO OU SAPATA COM RETROESCAVADEIRA (SEM ESCAVAÇÃO PARA COLOCAÇÃO DE FÔRMAS). AF_01/2024 | S36: =REFERENCIA.Unidade -> M3 | T36: =OFFSET(CÁLCULO!H$15,ROW($T36)-ROW(T$15),0) -> 11.31 | U36: 105.82 | V36: BDI 1 | W36: =IF($C36="S",ROUND(IF(TIPOORCAMENTO="Proposto",ORÇAMENTO.CustoUnitario*(1+$AH36),ORÇAMENTO.PrecoUnitarioLicitado),15-13*$AF$10),0) -> 127.85 | X36: =IF($C36="S",IF(Import.TipoArredondamento<>"TransfereGOV",VTOTAL1,SUM(OFFSET(CÁLCULO!$AA$15,ROW($X36)-ROW($X$15),1):OFFSET(CÁLCULO!$AL$15,ROW($X36)-ROW($X$15),-1))),IF($C36=0,0,ROUND(SomaAgrup,15-13*$AF$11))) -> 1445.98 | Y36: RA | Z36: RA | AA36: =IF($C36="S",IF($Z36="CP",$X36,IF($Z36="RA",(($X36)*QCI!$AA$3),0)),SomaAgrup) -> 387.9190856 | AB36: 0 | AC36: =IF($N36="","",IF(ORÇAMENTO.Descricao="","DESCRIÇÃO",IF(AND($C36="S",ORÇAMENTO.Unidade=""),"UNIDADE",IF($X36<0,"VALOR NEGATIVO",IF(OR(AND(TIPOORCAMENTO="Proposto",$AG36<>"",$AG36>0,ORÇAMENTO.CustoUnitario>$AG36),AND(TIPOORCAMENTO="LICITADO",ORÇAMENTO.PrecoUnitarioLicitado>$AN36)),"ACIMA REF.",""))))) ->  | AD36: =IF(C36<=CRONO.NivelExibicao,MAX($AD$15:OFFSET(AD36,-1,0))+IF($C36<>1,1,MAX(1,COUNTIF(QCI!$A$13:$A$24,OFFSET($E36,-1,0)))),"") ->  | AE36: =IF(AND($C36="S",ORÇAMENTO.CodBarra<>""),IF(ORÇAMENTO.Fonte="",ORÇAMENTO.CodBarra,CONCATENATE(ORÇAMENTO.Fonte," ",ORÇAMENTO.CodBarra))) -> SINAPI 96520 | AF36: =IF(ISERROR(INDIRECT(ORÇAMENTO.BancoRef)),"(abra o arquivo 'Referência "&Excel_BuiltIn_Database&".xlsm)",IF(OR($C36<>"S",ORÇAMENTO.CodBarra=""),"(Sem Código)",IF(ISERROR(MATCH($AE36,INDIRECT(ORÇAMENTO.BancoRef),0)),"(Código não identificado nas referências)",MATCH($AE36,INDIRECT(ORÇAMENTO.BancoRef),0)))) -> 5719 | AG36: =ROUND(IF(DESONERACAO="sim",REFERENCIA.Desonerado,REFERENCIA.NaoDesonerado),2) -> 105.82 | AH36: 0.2082 | AJ36: 11.31 | AM36: 1445.98 | AN36: 127.85
A37: S | B37: 2 | C37: S | D37: 0 | E37: =IF($C37=1,OFFSET(E37,-1,0)+MAX(1,COUNTIF(QCI!$A$13:$A$24,OFFSET(ORÇAMENTO!E37,-1,0))),OFFSET(E37,-1,0)) -> 1 | F37: 2 | G37: 0 | H37: 0 | I37: 2 | J37: 0 | K37: =IF(OR($C37="S",$C37=0),0,MATCH(OFFSET($D37,0,$C37)+IF($C37<>1,1,COUNTIF(QCI!$A$13:$A$24,ORÇAMENTO!E37)),OFFSET($D37,1,$C37,ROW($C$404)-ROW($C37)),0)) -> 0 | L37: F | M37: Serviço | N37: Serviço | O37: 1.2.0.0.2. | P37: SINAPI | Q37: 96525 | R37: =IF($C37="S",REFERENCIA.Descricao,"(digite a descrição aqui)") -> ESCAVAÇÃO MECANIZADA PARA VIGA BALDRAME OU SAPATA CORRIDA COM MINI-ESCAVADEIRA (INCLUINDO ESCAVAÇÃO PARA COLOCAÇÃO DE FÔRMAS). AF_01/2024 | S37: =REFERENCIA.Unidade -> M3 | T37: =OFFSET(CÁLCULO!H$15,ROW($T37)-ROW(T$15),0) -> 4.55 | U37: 55.6 | V37: BDI 1 | W37: =IF($C37="S",ROUND(IF(TIPOORCAMENTO="Proposto",ORÇAMENTO.CustoUnitario*(1+$AH37),ORÇAMENTO.PrecoUnitarioLicitado),15-13*$AF$10),0) -> 67.18 | X37: =IF($C37="S",IF(Import.TipoArredondamento<>"TransfereGOV",VTOTAL1,SUM(OFFSET(CÁLCULO!$AA$15,ROW($X37)-ROW($X$15),1):OFFSET(CÁLCULO!$AL$15,ROW($X37)-ROW($X$15),-1))),IF($C37=0,0,ROUND(SomaAgrup,15-13*$AF$11))) -> 305.67 | Y37: RA | Z37: RA | AA37: =IF($C37="S",IF($Z37="CP",$X37,IF($Z37="RA",(($X37)*QCI!$AA$3),0)),SomaAgrup) -> 82.00336581 | AB37: 0 | AC37: =IF($N37="","",IF(ORÇAMENTO.Descricao="","DESCRIÇÃO",IF(AND($C37="S",ORÇAMENTO.Unidade=""),"UNIDADE",IF($X37<0,"VALOR NEGATIVO",IF(OR(AND(TIPOORCAMENTO="Proposto",$AG37<>"",$AG37>0,ORÇAMENTO.CustoUnitario>$AG37),AND(TIPOORCAMENTO="LICITADO",ORÇAMENTO.PrecoUnitarioLicitado>$AN37)),"ACIMA REF.",""))))) ->  | AD37: =IF(C37<=CRONO.NivelExibicao,MAX($AD$15:OFFSET(AD37,-1,0))+IF($C37<>1,1,MAX(1,COUNTIF(QCI!$A$13:$A$24,OFFSET($E37,-1,0)))),"") ->  | AE37: =IF(AND($C37="S",ORÇAMENTO.CodBarra<>""),IF(ORÇAMENTO.Fonte="",ORÇAMENTO.CodBarra,CONCATENATE(ORÇAMENTO.Fonte," ",ORÇAMENTO.CodBarra))) -> SINAPI 96525 | AF37: =IF(ISERROR(INDIRECT(ORÇAMENTO.BancoRef)),"(abra o arquivo 'Referência "&Excel_BuiltIn_Database&".xlsm)",IF(OR($C37<>"S",ORÇAMENTO.CodBarra=""),"(Sem Código)",IF(ISERROR(MATCH($AE37,INDIRECT(ORÇAMENTO.BancoRef),0)),"(Código não identificado nas referências)",MATCH($AE37,INDIRECT(ORÇAMENTO.BancoRef),0)))) -> 5724 | AG37: =ROUND(IF(DESONERACAO="sim",REFERENCIA.Desonerado,REFERENCIA.NaoDesonerado),2) -> 55.6 | AH37: 0.2082 | AJ37: 4.55 | AM37: 305.67 | AN37: 67.18
A38: S | B38: 2 | C38: S | D38: 0 | E38: =IF($C38=1,OFFSET(E38,-1,0)+MAX(1,COUNTIF(QCI!$A$13:$A$24,OFFSET(ORÇAMENTO!E38,-1,0))),OFFSET(E38,-1,0)) -> 1 | F38: 2 | G38: 0 | H38: 0 | I38: 3 | J38: 0 | K38: =IF(OR($C38="S",$C38=0),0,MATCH(OFFSET($D38,0,$C38)+IF($C38<>1,1,COUNTIF(QCI!$A$13:$A$24,ORÇAMENTO!E38)),OFFSET($D38,1,$C38,ROW($C$404)-ROW($C38)),0)) -> 0 | L38: F | M38: Serviço | N38: Serviço | O38: 1.2.0.0.3. | P38: SINAPI | Q38: 104737 | R38: =IF($C38="S",REFERENCIA.Descricao,"(digite a descrição aqui)") -> REATERRO MANUAL DE VALAS, COM PLACA VIBRATÓRIA. AF_08/2023 | S38: =REFERENCIA.Unidade -> M3 | T38: =OFFSET(CÁLCULO!H$15,ROW($T38)-ROW(T$15),0) -> 13.6 | U38: 26.37 | V38: BDI 1 | W38: =IF($C38="S",ROUND(IF(TIPOORCAMENTO="Proposto",ORÇAMENTO.CustoUnitario*(1+$AH38),ORÇAMENTO.PrecoUnitarioLicitado),15-13*$AF$10),0) -> 31.86 | X38: =IF($C38="S",IF(Import.TipoArredondamento<>"TransfereGOV",VTOTAL1,SUM(OFFSET(CÁLCULO!$AA$15,ROW($X38)-ROW($X$15),1):OFFSET(CÁLCULO!$AL$15,ROW($X38)-ROW($X$15),-1))),IF($C38=0,0,ROUND(SomaAgrup,15-13*$AF$11))) -> 433.3 | Y38: RA | Z38: RA | AA38: =IF($C38="S",IF($Z38="CP",$X38,IF($Z38="RA",(($X38)*QCI!$AA$3),0)),SomaAgrup) -> 116.2431982 | AB38: 0 | AC38: =IF($N38="","",IF(ORÇAMENTO.Descricao="","DESCRIÇÃO",IF(AND($C38="S",ORÇAMENTO.Unidade=""),"UNIDADE",IF($X38<0,"VALOR NEGATIVO",IF(OR(AND(TIPOORCAMENTO="Proposto",$AG38<>"",$AG38>0,ORÇAMENTO.CustoUnitario>$AG38),AND(TIPOORCAMENTO="LICITADO",ORÇAMENTO.PrecoUnitarioLicitado>$AN38)),"ACIMA REF.",""))))) ->  | AD38: =IF(C38<=CRONO.NivelExibicao,MAX($AD$15:OFFSET(AD38,-1,0))+IF($C38<>1,1,MAX(1,COUNTIF(QCI!$A$13:$A$24,OFFSET($E38,-1,0)))),"") ->  | AE38: =IF(AND($C38="S",ORÇAMENTO.CodBarra<>""),IF(ORÇAMENTO.Fonte="",ORÇAMENTO.CodBarra,CONCATENATE(ORÇAMENTO.Fonte," ",ORÇAMENTO.CodBarra))) -> SINAPI 104737 | AF38: =IF(ISERROR(INDIRECT(ORÇAMENTO.BancoRef)),"(abra o arquivo 'Referência "&Excel_BuiltIn_Database&".xlsm)",IF(OR($C38<>"S",ORÇAMENTO.CodBarra=""),"(Sem Código)",IF(ISERROR(MATCH($AE38,INDIRECT(ORÇAMENTO.BancoRef),0)),"(Código não identificado nas referências)",MATCH($AE38,INDIRECT(ORÇAMENTO.BancoRef),0)))) -> 5950 | AG38: =ROUND(IF(DESONERACAO="sim",REFERENCIA.Desonerado,REFERENCIA.NaoDesonerado),2) -> 26.37 | AH38: 0.2082 | AJ38: 13.6 | AM38: 433.3 | AN38: 31.86
A39: 2 | B39: 2 | C39: 2 | D39: 27 | E39: =IF($C39=1,OFFSET(E39,-1,0)+MAX(1,COUNTIF(QCI!$A$13:$A$24,OFFSET(ORÇAMENTO!E39,-1,0))),OFFSET(E39,-1,0)) -> 1 | F39: 3 | G39: 0 | H39: 0 | I39: 0 | J39: 208 | K39: =IF(OR($C39="S",$C39=0),0,MATCH(OFFSET($D39,0,$C39)+IF($C39<>1,1,COUNTIF(QCI!$A$13:$A$24,ORÇAMENTO!E39)),OFFSET($D39,1,$C39,ROW($C$404)-ROW($C39)),0)) -> 27 | L39: F | M39: Nível 2 | N39: Nível 2 | O39: 1.3. | P39: SINAPI | R39: ESTRUTURAS | S39: =REFERENCIA.Unidade -> - | T39: =OFFSET(CÁLCULO!H$15,ROW($T39)-ROW(T$15),0) -> 0 | U39: 0 | V39: BDI 1 | W39: =IF($C39="S",ROUND(IF(TIPOORCAMENTO="Proposto",ORÇAMENTO.CustoUnitario*(1+$AH39),ORÇAMENTO.PrecoUnitarioLicitado),15-13*$AF$10),0) -> 0 | X39: =IF($C39="S",IF(Import.TipoArredondamento<>"TransfereGOV",VTOTAL1,SUM(OFFSET(CÁLCULO!$AA$15,ROW($X39)-ROW($X$15),1):OFFSET(CÁLCULO!$AL$15,ROW($X39)-ROW($X$15),-1))),IF($C39=0,0,ROUND(SomaAgrup,15-13*$AF$11))) -> 111267.59 | Y39: RA | AA39: =IF($C39="S",IF($Z39="CP",$X39,IF($Z39="RA",(($X39)*QCI!$AA$3),0)),SomaAgrup) -> 29850.22045 | AB39: 0 | AC39: =IF($N39="","",IF(ORÇAMENTO.Descricao="","DESCRIÇÃO",IF(AND($C39="S",ORÇAMENTO.Unidade=""),"UNIDADE",IF($X39<0,"VALOR NEGATIVO",IF(OR(AND(TIPOORCAMENTO="Proposto",$AG39<>"",$AG39>0,ORÇAMENTO.CustoUnitario>$AG39),AND(TIPOORCAMENTO="LICITADO",ORÇAMENTO.PrecoUnitarioLicitado>$AN39)),"ACIMA REF.",""))))) ->  | AD39: =IF(C39<=CRONO.NivelExibicao,MAX($AD$15:OFFSET(AD39,-1,0))+IF($C39<>1,1,MAX(1,COUNTIF(QCI!$A$13:$A$24,OFFSET($E39,-1,0)))),"") -> 4 | AE39: =IF(AND($C39="S",ORÇAMENTO.CodBarra<>""),IF(ORÇAMENTO.Fonte="",ORÇAMENTO.CodBarra,CONCATENATE(ORÇAMENTO.Fonte," ",ORÇAMENTO.CodBarra))) -> FALSE | AF39: =IF(ISERROR(INDIRECT(ORÇAMENTO.BancoRef)),"(abra o arquivo 'Referência "&Excel_BuiltIn_Database&".xlsm)",IF(OR($C39<>"S",ORÇAMENTO.CodBarra=""),"(Sem Código)",IF(ISERROR(MATCH($AE39,INDIRECT(ORÇAMENTO.BancoRef),0)),"(Código não identificado nas referências)",MATCH($AE39,INDIRECT(ORÇAMENTO.BancoRef),0)))) -> (Sem Código) | AG39: =ROUND(IF(DESONERACAO="sim",REFERENCIA.Desonerado,REFERENCIA.NaoDesonerado),2) -> 0 | AH39: 0.2082 | AM39: 111267.59 | AN39: 0
A40: 3 | B40: 3 | C40: 3 | D40: 4 | E40: =IF($C40=1,OFFSET(E40,-1,0)+MAX(1,COUNTIF(QCI!$A$13:$A$24,OFFSET(ORÇAMENTO!E40,-1,0))),OFFSET(E40,-1,0)) -> 1 | F40: 3 | G40: 1 | H40: 0 | I40: 0 | J40: 26 | K40: =IF(OR($C40="S",$C40=0),0,MATCH(OFFSET($D40,0,$C40)+IF($C40<>1,1,COUNTIF(QCI!$A$13:$A$24,ORÇAMENTO!E40)),OFFSET($D40,1,$C40,ROW($C$404)-ROW($C40)),0)) -> 4 | L40: F | M40: Nível 3 | N40: Nível 3 | O40: 1.3.1. | P40: SINAPI | R40: SAPATAS | S40: =REFERENCIA.Unidade -> - | T40: =OFFSET(CÁLCULO!H$15,ROW($T40)-ROW(T$15),0) -> 0 | U40: 0 | V40: BDI 1 | W40: =IF($C40="S",ROUND(IF(TIPOORCAMENTO="Proposto",ORÇAMENTO.CustoUnitario*(1+$AH40),ORÇAMENTO.PrecoUnitarioLicitado),15-13*$AF$10),0) -> 0 | X40: =IF($C40="S",IF(Import.TipoArredondamento<>"TransfereGOV",VTOTAL1,SUM(OFFSET(CÁLCULO!$AA$15,ROW($X40)-ROW($X$15),1):OFFSET(CÁLCULO!$AL$15,ROW($X40)-ROW($X$15),-1))),IF($C40=0,0,ROUND(SomaAgrup,15-13*$AF$11))) -> 15138.9 | Y40: RA | AA40: =IF($C40="S",IF($Z40="CP",$X40,IF($Z40="RA",(($X40)*QCI!$AA$3),0)),SomaAgrup) -> 4061.375845 | AB40: 0 | AC40: =IF($N40="","",IF(ORÇAMENTO.Descricao="","DESCRIÇÃO",IF(AND($C40="S",ORÇAMENTO.Unidade=""),"UNIDADE",IF($X40<0,"VALOR NEGATIVO",IF(OR(AND(TIPOORCAMENTO="Proposto",$AG40<>"",$AG40>0,ORÇAMENTO.CustoUnitario>$AG40),AND(TIPOORCAMENTO="LICITADO",ORÇAMENTO.PrecoUnitarioLicitado>$AN40)),"ACIMA REF.",""))))) ->  | AD40: =IF(C40<=CRONO.NivelExibicao,MAX($AD$15:OFFSET(AD40,-1,0))+IF($C40<>1,1,MAX(1,COUNTIF(QCI!$A$13:$A$24,OFFSET($E40,-1,0)))),"") ->  | AE40: =IF(AND($C40="S",ORÇAMENTO.CodBarra<>""),IF(ORÇAMENTO.Fonte="",ORÇAMENTO.CodBarra,CONCATENATE(ORÇAMENTO.Fonte," ",ORÇAMENTO.CodBarra))) -> FALSE | AF40: =IF(ISERROR(INDIRECT(ORÇAMENTO.BancoRef)),"(abra o arquivo 'Referência "&Excel_BuiltIn_Database&".xlsm)",IF(OR($C40<>"S",ORÇAMENTO.CodBarra=""),"(Sem Código)",IF(ISERROR(MATCH($AE40,INDIRECT(ORÇAMENTO.BancoRef),0)),"(Código não identificado nas referências)",MATCH($AE40,INDIRECT(ORÇAMENTO.BancoRef),0)))) -> (Sem Código) | AG40: =ROUND(IF(DESONERACAO="sim",REFERENCIA.Desonerado,REFERENCIA.NaoDesonerado),2) -> 0 | AH40: 0.2082 | AM40: 15138.9 | AN40: 0
A41: S | B41: 3 | C41: S | D41: 0 | E41: =IF($C41=1,OFFSET(E41,-1,0)+MAX(1,COUNTIF(QCI!$A$13:$A$24,OFFSET(ORÇAMENTO!E41,-1,0))),OFFSET(E41,-1,0)) -> 1 | F41: 3 | G41: 1 | H41: 0 | I41: 1 | J41: 0 | K41: =IF(OR($C41="S",$C41=0),0,MATCH(OFFSET($D41,0,$C41)+IF($C41<>1,1,COUNTIF(QCI!$A$13:$A$24,ORÇAMENTO!E41)),OFFSET($D41,1,$C41,ROW($C$404)-ROW($C41)),0)) -> 0 | L41: F | M41: Serviço | N41: Serviço | O41: 1.3.1.0.1. | P41: SINAPI | Q41: 96545 | R41: =IF($C41="S",REFERENCIA.Descricao,"(digite a descrição aqui)") -> ARMAÇÃO DE BLOCO UTILIZANDO AÇO CA-50 DE 8 MM - MONTAGEM. AF_01/2024 | S41: =REFERENCIA.Unidade -> KG | T41: =OFFSET(CÁLCULO!H$15,ROW($T41)-ROW(T$15),0) -> 258.18 | U41: 16.98 | V41: BDI 1 | W41: =IF($C41="S",ROUND(IF(TIPOORCAMENTO="Proposto",ORÇAMENTO.CustoUnitario*(1+$AH41),ORÇAMENTO.PrecoUnitarioLicitado),15-13*$AF$10),0) -> 20.52 | X41: =IF($C41="S",IF(Import.TipoArredondamento<>"TransfereGOV",VTOTAL1,SUM(OFFSET(CÁLCULO!$AA$15,ROW($X41)-ROW($X$15),1):OFFSET(CÁLCULO!$AL$15,ROW($X41)-ROW($X$15),-1))),IF($C41=0,0,ROUND(SomaAgrup,15-13*$AF$11))) -> 5297.85 | Y41: RA | Z41: RA | AA41: =IF($C41="S",IF($Z41="CP",$X41,IF($Z41="RA",(($X41)*QCI!$AA$3),0)),SomaAgrup) -> 1421.276316 | AB41: 0 | AC41: =IF($N41="","",IF(ORÇAMENTO.Descricao="","DESCRIÇÃO",IF(AND($C41="S",ORÇAMENTO.Unidade=""),"UNIDADE",IF($X41<0,"VALOR NEGATIVO",IF(OR(AND(TIPOORCAMENTO="Proposto",$AG41<>"",$AG41>0,ORÇAMENTO.CustoUnitario>$AG41),AND(TIPOORCAMENTO="LICITADO",ORÇAMENTO.PrecoUnitarioLicitado>$AN41)),"ACIMA REF.",""))))) ->  | AD41: =IF(C41<=CRONO.NivelExibicao,MAX($AD$15:OFFSET(AD41,-1,0))+IF($C41<>1,1,MAX(1,COUNTIF(QCI!$A$13:$A$24,OFFSET($E41,-1,0)))),"") ->  | AE41: =IF(AND($C41="S",ORÇAMENTO.CodBarra<>""),IF(ORÇAMENTO.Fonte="",ORÇAMENTO.CodBarra,CONCATENATE(ORÇAMENTO.Fonte," ",ORÇAMENTO.CodBarra))) -> SINAPI 96545 | AF41: =IF(ISERROR(INDIRECT(ORÇAMENTO.BancoRef)),"(abra o arquivo 'Referência "&Excel_BuiltIn_Database&".xlsm)",IF(OR($C41<>"S",ORÇAMENTO.CodBarra=""),"(Sem Código)",IF(ISERROR(MATCH($AE41,INDIRECT(ORÇAMENTO.BancoRef),0)),"(Código não identificado nas referências)",MATCH($AE41,INDIRECT(ORÇAMENTO.BancoRef),0)))) -> 2696 | AG41: =ROUND(IF(DESONERACAO="sim",REFERENCIA.Desonerado,REFERENCIA.NaoDesonerado),2) -> 16.98 | AH41: 0.2082 | AJ41: 258.18 | AM41: 5297.85 | AN41: 20.52
A42: S | B42: 3 | C42: S | D42: 0 | E42: =IF($C42=1,OFFSET(E42,-1,0)+MAX(1,COUNTIF(QCI!$A$13:$A$24,OFFSET(ORÇAMENTO!E42,-1,0))),OFFSET(E42,-1,0)) -> 1 | F42: 3 | G42: 1 | H42: 0 | I42: 2 | J42: 0 | K42: =IF(OR($C42="S",$C42=0),0,MATCH(OFFSET($D42,0,$C42)+IF($C42<>1,1,COUNTIF(QCI!$A$13:$A$24,ORÇAMENTO!E42)),OFFSET($D42,1,$C42,ROW($C$404)-ROW($C42)),0)) -> 0 | L42: F | M42: Serviço | N42: Serviço | O42: 1.3.1.0.2. | P42: SINAPI | Q42: 96619 | R42: =IF($C42="S",REFERENCIA.Descricao,"(digite a descrição aqui)") -> LASTRO DE CONCRETO MAGRO, APLICADO EM BLOCOS DE COROAMENTO OU SAPATAS, ESPESSURA DE 5 CM. AF_01/2024 | S42: =REFERENCIA.Unidade -> M2 | T42: =OFFSET(CÁLCULO!H$15,ROW($T42)-ROW(T$15),0) -> 15.32 | U42: 41.32 | V42: BDI 1 | W42: =IF($C42="S",ROUND(IF(TIPOORCAMENTO="Proposto",ORÇAMENTO.CustoUnitario*(1+$AH42),ORÇAMENTO.PrecoUnitarioLicitado),15-13*$AF$10),0) -> 49.92 | X42: =IF($C42="S",IF(Import.TipoArredondamento<>"TransfereGOV",VTOTAL1,SUM(OFFSET(CÁLCULO!$AA$15,ROW($X42)-ROW($X$15),1):OFFSET(CÁLCULO!$AL$15,ROW($X42)-ROW($X$15),-1))),IF($C42=0,0,ROUND(SomaAgrup,15-13*$AF$11))) -> 764.77 | Y42: RA | Z42: RA | AA42: =IF($C42="S",IF($Z42="CP",$X42,IF($Z42="RA",(($X42)*QCI!$AA$3),0)),SomaAgrup) -> 205.1680377 | AB42: 0 | AC42: =IF($N42="","",IF(ORÇAMENTO.Descricao="","DESCRIÇÃO",IF(AND($C42="S",ORÇAMENTO.Unidade=""),"UNIDADE",IF($X42<0,"VALOR NEGATIVO",IF(OR(AND(TIPOORCAMENTO="Proposto",$AG42<>"",$AG42>0,ORÇAMENTO.CustoUnitario>$AG42),AND(TIPOORCAMENTO="LICITADO",ORÇAMENTO.PrecoUnitarioLicitado>$AN42)),"ACIMA REF.",""))))) ->  | AD42: =IF(C42<=CRONO.NivelExibicao,MAX($AD$15:OFFSET(AD42,-1,0))+IF($C42<>1,1,MAX(1,COUNTIF(QCI!$A$13:$A$24,OFFSET($E42,-1,0)))),"") ->  | AE42: =IF(AND($C42="S",ORÇAMENTO.CodBarra<>""),IF(ORÇAMENTO.Fonte="",ORÇAMENTO.CodBarra,CONCATENATE(ORÇAMENTO.Fonte," ",ORÇAMENTO.CodBarra))) -> SINAPI 96619 | AF42: =IF(ISERROR(INDIRECT(ORÇAMENTO.BancoRef)),"(abra o arquivo 'Referência "&Excel_BuiltIn_Database&".xlsm)",IF(OR($C42<>"S",ORÇAMENTO.CodBarra=""),"(Sem Código)",IF(ISERROR(MATCH($AE42,INDIRECT(ORÇAMENTO.BancoRef),0)),"(Código não identificado nas referências)",MATCH($AE42,INDIRECT(ORÇAMENTO.BancoRef),0)))) -> 2367 | AG42: =ROUND(IF(DESONERACAO="sim",REFERENCIA.Desonerado,REFERENCIA.NaoDesonerado),2) -> 41.32 | AH42: 0.2082 | AJ42: 15.32 | AM42: 764.77 | AN42: 49.92
A43: S | B43: 3 | C43: S | D43: 0 | E43: =IF($C43=1,OFFSET(E43,-1,0)+MAX(1,COUNTIF(QCI!$A$13:$A$24,OFFSET(ORÇAMENTO!E43,-1,0))),OFFSET(E43,-1,0)) -> 1 | F43: 3 | G43: 1 | H43: 0 | I43: 3 | J43: 0 | K43: =IF(OR($C43="S",$C43=0),0,MATCH(OFFSET($D43,0,$C43)+IF($C43<>1,1,COUNTIF(QCI!$A$13:$A$24,ORÇAMENTO!E43)),OFFSET($D43,1,$C43,ROW($C$404)-ROW($C43)),0)) -> 0 | L43: F | M43: Serviço | N43: Serviço | O43: 1.3.1.0.3. | P43: SINAPI | Q43: 96558 | R43: =IF($C43="S",REFERENCIA.Descricao,"(digite a descrição aqui)") -> CONCRETAGEM DE SAPATA, FCK 30 MPA, COM USO DE BOMBA - LANÇAMENTO, ADENSAMENTO E ACABAMENTO. AF_01/2024 | S43: =REFERENCIA.Unidade -> M3 | T43: =OFFSET(CÁLCULO!H$15,ROW($T43)-ROW(T$15),0) -> 11.31 | U43: 664.21 | V43: BDI 1 | W43: =IF($C43="S",ROUND(IF(TIPOORCAMENTO="Proposto",ORÇAMENTO.CustoUnitario*(1+$AH43),ORÇAMENTO.PrecoUnitarioLicitado),15-13*$AF$10),0) -> 802.5 | X43: =IF($C43="S",IF(Import.TipoArredondamento<>"TransfereGOV",VTOTAL1,SUM(OFFSET(CÁLCULO!$AA$15,ROW($X43)-ROW($X$15),1):OFFSET(CÁLCULO!$AL$15,ROW($X43)-ROW($X$15),-1))),IF($C43=0,0,ROUND(SomaAgrup,15-13*$AF$11))) -> 9076.28 | Y43: RA | Z43: RA | AA43: =IF($C43="S",IF($Z43="CP",$X43,IF($Z43="RA",(($X43)*QCI!$AA$3),0)),SomaAgrup) -> 2434.931492 | AB43: 0 | AC43: =IF($N43="","",IF(ORÇAMENTO.Descricao="","DESCRIÇÃO",IF(AND($C43="S",ORÇAMENTO.Unidade=""),"UNIDADE",IF($X43<0,"VALOR NEGATIVO",IF(OR(AND(TIPOORCAMENTO="Proposto",$AG43<>"",$AG43>0,ORÇAMENTO.CustoUnitario>$AG43),AND(TIPOORCAMENTO="LICITADO",ORÇAMENTO.PrecoUnitarioLicitado>$AN43)),"ACIMA REF.",""))))) ->  | AD43: =IF(C43<=CRONO.NivelExibicao,MAX($AD$15:OFFSET(AD43,-1,0))+IF($C43<>1,1,MAX(1,COUNTIF(QCI!$A$13:$A$24,OFFSET($E43,-1,0)))),"") ->  | AE43: =IF(AND($C43="S",ORÇAMENTO.CodBarra<>""),IF(ORÇAMENTO.Fonte="",ORÇAMENTO.CodBarra,CONCATENATE(ORÇAMENTO.Fonte," ",ORÇAMENTO.CodBarra))) -> SINAPI 96558 | AF43: =IF(ISERROR(INDIRECT(ORÇAMENTO.BancoRef)),"(abra o arquivo 'Referência "&Excel_BuiltIn_Database&".xlsm)",IF(OR($C43<>"S",ORÇAMENTO.CodBarra=""),"(Sem Código)",IF(ISERROR(MATCH($AE43,INDIRECT(ORÇAMENTO.BancoRef),0)),"(Código não identificado nas referências)",MATCH($AE43,INDIRECT(ORÇAMENTO.BancoRef),0)))) -> 2750 | AG43: =ROUND(IF(DESONERACAO="sim",REFERENCIA.Desonerado,REFERENCIA.NaoDesonerado),2) -> 664.21 | AH43: 0.2082 | AJ43: 11.31 | AM43: 9076.28 | AN43: 802.5
A44: 3 | B44: 3 | C44: 3 | D44: 6 | E44: =IF($C44=1,OFFSET(E44,-1,0)+MAX(1,COUNTIF(QCI!$A$13:$A$24,OFFSET(ORÇAMENTO!E44,-1,0))),OFFSET(E44,-1,0)) -> 1 | F44: 3 | G44: 2 | H44: 0 | I44: 0 | J44: 22 | K44: =IF(OR($C44="S",$C44=0),0,MATCH(OFFSET($D44,0,$C44)+IF($C44<>1,1,COUNTIF(QCI!$A$13:$A$24,ORÇAMENTO!E44)),OFFSET($D44,1,$C44,ROW($C$404)-ROW($C44)),0)) -> 6 | L44: F | M44: Nível 3 | N44: Nível 3 | O44: 1.3.2. | P44: SINAPI | R44: BALDRAMES | S44: =REFERENCIA.Unidade -> - | T44: =OFFSET(CÁLCULO!H$15,ROW($T44)-ROW(T$15),0) -> 0 | U44: 0 | V44: BDI 1 | W44: =IF($C44="S",ROUND(IF(TIPOORCAMENTO="Proposto",ORÇAMENTO.CustoUnitario*(1+$AH44),ORÇAMENTO.PrecoUnitarioLicitado),15-13*$AF$10),0) -> 0 | X44: =IF($C44="S",IF(Import.TipoArredondamento<>"TransfereGOV",VTOTAL1,SUM(OFFSET(CÁLCULO!$AA$15,ROW($X44)-ROW($X$15),1):OFFSET(CÁLCULO!$AL$15,ROW($X44)-ROW($X$15),-1))),IF($C44=0,0,ROUND(SomaAgrup,15-13*$AF$11))) -> 14028.8 | Y44: RA | AA44: =IF($C44="S",IF($Z44="CP",$X44,IF($Z44="RA",(($X44)*QCI!$AA$3),0)),SomaAgrup) -> 3763.564688 | AB44: 0 | AC44: =IF($N44="","",IF(ORÇAMENTO.Descricao="","DESCRIÇÃO",IF(AND($C44="S",ORÇAMENTO.Unidade=""),"UNIDADE",IF($X44<0,"VALOR NEGATIVO",IF(OR(AND(TIPOORCAMENTO="Proposto",$AG44<>"",$AG44>0,ORÇAMENTO.CustoUnitario>$AG44),AND(TIPOORCAMENTO="LICITADO",ORÇAMENTO.PrecoUnitarioLicitado>$AN44)),"ACIMA REF.",""))))) ->  | AD44: =IF(C44<=CRONO.NivelExibicao,MAX($AD$15:OFFSET(AD44,-1,0))+IF($C44<>1,1,MAX(1,COUNTIF(QCI!$A$13:$A$24,OFFSET($E44,-1,0)))),"") ->  | AE44: =IF(AND($C44="S",ORÇAMENTO.CodBarra<>""),IF(ORÇAMENTO.Fonte="",ORÇAMENTO.CodBarra,CONCATENATE(ORÇAMENTO.Fonte," ",ORÇAMENTO.CodBarra))) -> FALSE | AF44: =IF(ISERROR(INDIRECT(ORÇAMENTO.BancoRef)),"(abra o arquivo 'Referência "&Excel_BuiltIn_Database&".xlsm)",IF(OR($C44<>"S",ORÇAMENTO.CodBarra=""),"(Sem Código)",IF(ISERROR(MATCH($AE44,INDIRECT(ORÇAMENTO.BancoRef),0)),"(Código não identificado nas referências)",MATCH($AE44,INDIRECT(ORÇAMENTO.BancoRef),0)))) -> (Sem Código) | AG44: =ROUND(IF(DESONERACAO="sim",REFERENCIA.Desonerado,REFERENCIA.NaoDesonerado),2) -> 0 | AH44: 0.2082 | AM44: 14028.8 | AN44: 0
A45: S | B45: 3 | C45: S | D45: 0 | E45: =IF($C45=1,OFFSET(E45,-1,0)+MAX(1,COUNTIF(QCI!$A$13:$A$24,OFFSET(ORÇAMENTO!E45,-1,0))),OFFSET(E45,-1,0)) -> 1 | F45: 3 | G45: 2 | H45: 0 | I45: 1 | J45: 0 | K45: =IF(OR($C45="S",$C45=0),0,MATCH(OFFSET($D45,0,$C45)+IF($C45<>1,1,COUNTIF(QCI!$A$13:$A$24,ORÇAMENTO!E45)),OFFSET($D45,1,$C45,ROW($C$404)-ROW($C45)),0)) -> 0 | L45: F | M45: Serviço | N45: Serviço | O45: 1.3.2.0.1. | P45: SINAPI | Q45: 96536 | R45: =IF($C45="S",REFERENCIA.Descricao,"(digite a descrição aqui)") -> FABRICAÇÃO, MONTAGEM E DESMONTAGEM DE FÔRMA PARA VIGA BALDRAME, EM MADEIRA SERRADA, E=25 MM, 4 UTILIZAÇÕES. AF_01/2024 | S45: =REFERENCIA.Unidade -> M2 | T45: =OFFSET(CÁLCULO!H$15,ROW($T45)-ROW(T$15),0) -> 39.43 | U45: 73.48 | V45: BDI 1 | W45: =IF($C45="S",ROUND(IF(TIPOORCAMENTO="Proposto",ORÇAMENTO.CustoUnitario*(1+$AH45),ORÇAMENTO.PrecoUnitarioLicitado),15-13*$AF$10),0) -> 88.78 | X45: =IF($C45="S",IF(Import.TipoArredondamento<>"TransfereGOV",VTOTAL1,SUM(OFFSET(CÁLCULO!$AA$15,ROW($X45)-ROW($X$15),1):OFFSET(CÁLCULO!$AL$15,ROW($X45)-ROW($X$15),-1))),IF($C45=0,0,ROUND(SomaAgrup,15-13*$AF$11))) -> 3500.6 | Y45: RA | Z45: RA | AA45: =IF($C45="S",IF($Z45="CP",$X45,IF($Z45="RA",(($X45)*QCI!$AA$3),0)),SomaAgrup) -> 939.1205626 | AB45: 0 | AC45: =IF($N45="","",IF(ORÇAMENTO.Descricao="","DESCRIÇÃO",IF(AND($C45="S",ORÇAMENTO.Unidade=""),"UNIDADE",IF($X45<0,"VALOR NEGATIVO",IF(OR(AND(TIPOORCAMENTO="Proposto",$AG45<>"",$AG45>0,ORÇAMENTO.CustoUnitario>$AG45),AND(TIPOORCAMENTO="LICITADO",ORÇAMENTO.PrecoUnitarioLicitado>$AN45)),"ACIMA REF.",""))))) ->  | AD45: =IF(C45<=CRONO.NivelExibicao,MAX($AD$15:OFFSET(AD45,-1,0))+IF($C45<>1,1,MAX(1,COUNTIF(QCI!$A$13:$A$24,OFFSET($E45,-1,0)))),"") ->  | AE45: =IF(AND($C45="S",ORÇAMENTO.CodBarra<>""),IF(ORÇAMENTO.Fonte="",ORÇAMENTO.CodBarra,CONCATENATE(ORÇAMENTO.Fonte," ",ORÇAMENTO.CodBarra))) -> SINAPI 96536 | AF45: =IF(ISERROR(INDIRECT(ORÇAMENTO.BancoRef)),"(abra o arquivo 'Referência "&Excel_BuiltIn_Database&".xlsm)",IF(OR($C45<>"S",ORÇAMENTO.CodBarra=""),"(Sem Código)",IF(ISERROR(MATCH($AE45,INDIRECT(ORÇAMENTO.BancoRef),0)),"(Código não identificado nas referências)",MATCH($AE45,INDIRECT(ORÇAMENTO.BancoRef),0)))) -> 2504 | AG45: =ROUND(IF(DESONERACAO="sim",REFERENCIA.Desonerado,REFERENCIA.NaoDesonerado),2) -> 73.48 | AH45: 0.2082 | AJ45: 39.43 | AM45: 3500.6 | AN45: 88.78
A46: S | B46: 3 | C46: S | D46: 0 | E46: =IF($C46=1,OFFSET(E46,-1,0)+MAX(1,COUNTIF(QCI!$A$13:$A$24,OFFSET(ORÇAMENTO!E46,-1,0))),OFFSET(E46,-1,0)) -> 1 | F46: 3 | G46: 2 | H46: 0 | I46: 2 | J46: 0 | K46: =IF(OR($C46="S",$C46=0),0,MATCH(OFFSET($D46,0,$C46)+IF($C46<>1,1,COUNTIF(QCI!$A$13:$A$24,ORÇAMENTO!E46)),OFFSET($D46,1,$C46,ROW($C$404)-ROW($C46)),0)) -> 0 | L46: F | M46: Serviço | N46: Serviço | O46: 1.3.2.0.2. | P46: SINAPI | Q46: 96546 | R46: =IF($C46="S",REFERENCIA.Descricao,"(digite a descrição aqui)") -> ARMAÇÃO DE BLOCO UTILIZANDO AÇO CA-50 DE 10 MM - MONTAGEM. AF_01/2024 | S46: =REFERENCIA.Unidade -> KG | T46: =OFFSET(CÁLCULO!H$15,ROW($T46)-ROW(T$15),0) -> 301.45 | U46: 14.61 | V46: BDI 1 | W46: =IF($C46="S",ROUND(IF(TIPOORCAMENTO="Proposto",ORÇAMENTO.CustoUnitario*(1+$AH46),ORÇAMENTO.PrecoUnitarioLicitado),15-13*$AF$10),0) -> 17.65 | X46: =IF($C46="S",IF(Import.TipoArredondamento<>"TransfereGOV",VTOTAL1,SUM(OFFSET(CÁLCULO!$AA$15,ROW($X46)-ROW($X$15),1):OFFSET(CÁLCULO!$AL$15,ROW($X46)-ROW($X$15),-1))),IF($C46=0,0,ROUND(SomaAgrup,15-13*$AF$11))) -> 5320.59 | Y46: RA | Z46: RA | AA46: =IF($C46="S",IF($Z46="CP",$X46,IF($Z46="RA",(($X46)*QCI!$AA$3),0)),SomaAgrup) -> 1427.376871 | AB46: 0 | AC46: =IF($N46="","",IF(ORÇAMENTO.Descricao="","DESCRIÇÃO",IF(AND($C46="S",ORÇAMENTO.Unidade=""),"UNIDADE",IF($X46<0,"VALOR NEGATIVO",IF(OR(AND(TIPOORCAMENTO="Proposto",$AG46<>"",$AG46>0,ORÇAMENTO.CustoUnitario>$AG46),AND(TIPOORCAMENTO="LICITADO",ORÇAMENTO.PrecoUnitarioLicitado>$AN46)),"ACIMA REF.",""))))) ->  | AD46: =IF(C46<=CRONO.NivelExibicao,MAX($AD$15:OFFSET(AD46,-1,0))+IF($C46<>1,1,MAX(1,COUNTIF(QCI!$A$13:$A$24,OFFSET($E46,-1,0)))),"") ->  | AE46: =IF(AND($C46="S",ORÇAMENTO.CodBarra<>""),IF(ORÇAMENTO.Fonte="",ORÇAMENTO.CodBarra,CONCATENATE(ORÇAMENTO.Fonte," ",ORÇAMENTO.CodBarra))) -> SINAPI 96546 | AF46: =IF(ISERROR(INDIRECT(ORÇAMENTO.BancoRef)),"(abra o arquivo 'Referência "&Excel_BuiltIn_Database&".xlsm)",IF(OR($C46<>"S",ORÇAMENTO.CodBarra=""),"(Sem Código)",IF(ISERROR(MATCH($AE46,INDIRECT(ORÇAMENTO.BancoRef),0)),"(Código não identificado nas referências)",MATCH($AE46,INDIRECT(ORÇAMENTO.BancoRef),0)))) -> 2697 | AG46: =ROUND(IF(DESONERACAO="sim",REFERENCIA.Desonerado,REFERENCIA.NaoDesonerado),2) -> 14.61 | AH46: 0.2082 | AJ46: 301.45 | AM46: 5320.59 | AN46: 17.65
A47: S | B47: 3 | C47: S | D47: 0 | E47: =IF($C47=1,OFFSET(E47,-1,0)+MAX(1,COUNTIF(QCI!$A$13:$A$24,OFFSET(ORÇAMENTO!E47,-1,0))),OFFSET(E47,-1,0)) -> 1 | F47: 3 | G47: 2 | H47: 0 | I47: 3 | J47: 0 | K47: =IF(OR($C47="S",$C47=0),0,MATCH(OFFSET($D47,0,$C47)+IF($C47<>1,1,COUNTIF(QCI!$A$13:$A$24,ORÇAMENTO!E47)),OFFSET($D47,1,$C47,ROW($C$404)-ROW($C47)),0)) -> 0 | L47: F | M47: Serviço | N47: Serviço | O47: 1.3.2.0.3. | P47: SINAPI | Q47: 96543 | R47: =IF($C47="S",REFERENCIA.Descricao,"(digite a descrição aqui)") -> ARMAÇÃO DE BLOCO UTILIZANDO AÇO CA-60 DE 5 MM - MONTAGEM. AF_01/2024 | S47: =REFERENCIA.Unidade -> KG | T47: =OFFSET(CÁLCULO!H$15,ROW($T47)-ROW(T$15),0) -> 79.24 | U47: 22.16 | V47: BDI 1 | W47: =IF($C47="S",ROUND(IF(TIPOORCAMENTO="Proposto",ORÇAMENTO.CustoUnitario*(1+$AH47),ORÇAMENTO.PrecoUnitarioLicitado),15-13*$AF$10),0) -> 26.77 | X47: =IF($C47="S",IF(Import.TipoArredondamento<>"TransfereGOV",VTOTAL1,SUM(OFFSET(CÁLCULO!$AA$15,ROW($X47)-ROW($X$15),1):OFFSET(CÁLCULO!$AL$15,ROW($X47)-ROW($X$15),-1))),IF($C47=0,0,ROUND(SomaAgrup,15-13*$AF$11))) -> 2121.25 | Y47: RA | Z47: RA | AA47: =IF($C47="S",IF($Z47="CP",$X47,IF($Z47="RA",(($X47)*QCI!$AA$3),0)),SomaAgrup) -> 569.076585 | AB47: 0 | AC47: =IF($N47="","",IF(ORÇAMENTO.Descricao="","DESCRIÇÃO",IF(AND($C47="S",ORÇAMENTO.Unidade=""),"UNIDADE",IF($X47<0,"VALOR NEGATIVO",IF(OR(AND(TIPOORCAMENTO="Proposto",$AG47<>"",$AG47>0,ORÇAMENTO.CustoUnitario>$AG47),AND(TIPOORCAMENTO="LICITADO",ORÇAMENTO.PrecoUnitarioLicitado>$AN47)),"ACIMA REF.",""))))) ->  | AD47: =IF(C47<=CRONO.NivelExibicao,MAX($AD$15:OFFSET(AD47,-1,0))+IF($C47<>1,1,MAX(1,COUNTIF(QCI!$A$13:$A$24,OFFSET($E47,-1,0)))),"") ->  | AE47: =IF(AND($C47="S",ORÇAMENTO.CodBarra<>""),IF(ORÇAMENTO.Fonte="",ORÇAMENTO.CodBarra,CONCATENATE(ORÇAMENTO.Fonte," ",ORÇAMENTO.CodBarra))) -> SINAPI 96543 | AF47: =IF(ISERROR(INDIRECT(ORÇAMENTO.BancoRef)),"(abra o arquivo 'Referência "&Excel_BuiltIn_Database&".xlsm)",IF(OR($C47<>"S",ORÇAMENTO.CodBarra=""),"(Sem Código)",IF(ISERROR(MATCH($AE47,INDIRECT(ORÇAMENTO.BancoRef),0)),"(Código não identificado nas referências)",MATCH($AE47,INDIRECT(ORÇAMENTO.BancoRef),0)))) -> 2511 | AG47: =ROUND(IF(DESONERACAO="sim",REFERENCIA.Desonerado,REFERENCIA.NaoDesonerado),2) -> 22.16 | AH47: 0.2082 | AJ47: 79.24 | AM47: 2121.25 | AN47: 26.77
A48: S | B48: 3 | C48: S | D48: 0 | E48: =IF($C48=1,OFFSET(E48,-1,0)+MAX(1,COUNTIF(QCI!$A$13:$A$24,OFFSET(ORÇAMENTO!E48,-1,0))),OFFSET(E48,-1,0)) -> 1 | F48: 3 | G48: 2 | H48: 0 | I48: 4 | J48: 0 | K48: =IF(OR($C48="S",$C48=0),0,MATCH(OFFSET($D48,0,$C48)+IF($C48<>1,1,COUNTIF(QCI!$A$13:$A$24,ORÇAMENTO!E48)),OFFSET($D48,1,$C48,ROW($C$404)-ROW($C48)),0)) -> 0 | L48: F | M48: Serviço | N48: Serviço | O48: 1.3.2.0.4. | P48: DER-PR | Q48: 743900 | R48: =IF($C48="S",REFERENCIA.Descricao,"(digite a descrição aqui)") -> LASTRO DE BRITA | S48: =REFERENCIA.Unidade -> M3 | T48: =OFFSET(CÁLCULO!H$15,ROW($T48)-ROW(T$15),0) -> 0.5 | U48: 116.89 | V48: BDI 1 | W48: =IF($C48="S",ROUND(IF(TIPOORCAMENTO="Proposto",ORÇAMENTO.CustoUnitario*(1+$AH48),ORÇAMENTO.PrecoUnitarioLicitado),15-13*$AF$10),0) -> 141.23 | X48: =IF($C48="S",IF(Import.TipoArredondamento<>"TransfereGOV",VTOTAL1,SUM(OFFSET(CÁLCULO!$AA$15,ROW($X48)-ROW($X$15),1):OFFSET(CÁLCULO!$AL$15,ROW($X48)-ROW($X$15),-1))),IF($C48=0,0,ROUND(SomaAgrup,15-13*$AF$11))) -> 70.62 | Y48: RA | Z48: RA | AA48: =IF($C48="S",IF($Z48="CP",$X48,IF($Z48="RA",(($X48)*QCI!$AA$3),0)),SomaAgrup) -> 18.94552195 | AB48: 0 | AC48: =IF($N48="","",IF(ORÇAMENTO.Descricao="","DESCRIÇÃO",IF(AND($C48="S",ORÇAMENTO.Unidade=""),"UNIDADE",IF($X48<0,"VALOR NEGATIVO",IF(OR(AND(TIPOORCAMENTO="Proposto",$AG48<>"",$AG48>0,ORÇAMENTO.CustoUnitario>$AG48),AND(TIPOORCAMENTO="LICITADO",ORÇAMENTO.PrecoUnitarioLicitado>$AN48)),"ACIMA REF.",""))))) ->  | AD48: =IF(C48<=CRONO.NivelExibicao,MAX($AD$15:OFFSET(AD48,-1,0))+IF($C48<>1,1,MAX(1,COUNTIF(QCI!$A$13:$A$24,OFFSET($E48,-1,0)))),"") ->  | AE48: =IF(AND($C48="S",ORÇAMENTO.CodBarra<>""),IF(ORÇAMENTO.Fonte="",ORÇAMENTO.CodBarra,CONCATENATE(ORÇAMENTO.Fonte," ",ORÇAMENTO.CodBarra))) -> DER-PR 743900 | AF48: =IF(ISERROR(INDIRECT(ORÇAMENTO.BancoRef)),"(abra o arquivo 'Referência "&Excel_BuiltIn_Database&".xlsm)",IF(OR($C48<>"S",ORÇAMENTO.CodBarra=""),"(Sem Código)",IF(ISERROR(MATCH($AE48,INDIRECT(ORÇAMENTO.BancoRef),0)),"(Código não identificado nas referências)",MATCH($AE48,INDIRECT(ORÇAMENTO.BancoRef),0)))) -> 13003 | AG48: =ROUND(IF(DESONERACAO="sim",REFERENCIA.Desonerado,REFERENCIA.NaoDesonerado),2) -> 116.89 | AH48: 0.2082 | AJ48: 0.5 | AM48: 70.62 | AN48: 141.23
A49: S | B49: 3 | C49: S | D49: 0 | E49: =IF($C49=1,OFFSET(E49,-1,0)+MAX(1,COUNTIF(QCI!$A$13:$A$24,OFFSET(ORÇAMENTO!E49,-1,0))),OFFSET(E49,-1,0)) -> 1 | F49: 3 | G49: 2 | H49: 0 | I49: 5 | J49: 0 | K49: =IF(OR($C49="S",$C49=0),0,MATCH(OFFSET($D49,0,$C49)+IF($C49<>1,1,COUNTIF(QCI!$A$13:$A$24,ORÇAMENTO!E49)),OFFSET($D49,1,$C49,ROW($C$404)-ROW($C49)),0)) -> 0 | L49: F | M49: Serviço | N49: Serviço | O49: 1.3.2.0.5. | P49: SINAPI | Q49: 96557 | R49: =IF($C49="S",REFERENCIA.Descricao,"(digite a descrição aqui)") -> CONCRETAGEM DE BLOCO DE COROAMENTO OU VIGA BALDRAME, FCK 30 MPA, COM USO DE BOMBA - LANÇAMENTO, ADENSAMENTO E ACABAMENTO. AF_01/2024 | S49: =REFERENCIA.Unidade -> M3 | T49: =OFFSET(CÁLCULO!H$15,ROW($T49)-ROW(T$15),0) -> 3.96 | U49: 630.32 | V49: BDI 1 | W49: =IF($C49="S",ROUND(IF(TIPOORCAMENTO="Proposto",ORÇAMENTO.CustoUnitario*(1+$AH49),ORÇAMENTO.PrecoUnitarioLicitado),15-13*$AF$10),0) -> 761.55 | X49: =IF($C49="S",IF(Import.TipoArredondamento<>"TransfereGOV",VTOTAL1,SUM(OFFSET(CÁLCULO!$AA$15,ROW($X49)-ROW($X$15),1):OFFSET(CÁLCULO!$AL$15,ROW($X49)-ROW($X$15),-1))),IF($C49=0,0,ROUND(SomaAgrup,15-13*$AF$11))) -> 3015.74 | Y49: RA | Z49: RA | AA49: =IF($C49="S",IF($Z49="CP",$X49,IF($Z49="RA",(($X49)*QCI!$AA$3),0)),SomaAgrup) -> 809.0451481 | AB49: 0 | AC49: =IF($N49="","",IF(ORÇAMENTO.Descricao="","DESCRIÇÃO",IF(AND($C49="S",ORÇAMENTO.Unidade=""),"UNIDADE",IF($X49<0,"VALOR NEGATIVO",IF(OR(AND(TIPOORCAMENTO="Proposto",$AG49<>"",$AG49>0,ORÇAMENTO.CustoUnitario>$AG49),AND(TIPOORCAMENTO="LICITADO",ORÇAMENTO.PrecoUnitarioLicitado>$AN49)),"ACIMA REF.",""))))) ->  | AD49: =IF(C49<=CRONO.NivelExibicao,MAX($AD$15:OFFSET(AD49,-1,0))+IF($C49<>1,1,MAX(1,COUNTIF(QCI!$A$13:$A$24,OFFSET($E49,-1,0)))),"") ->  | AE49: =IF(AND($C49="S",ORÇAMENTO.CodBarra<>""),IF(ORÇAMENTO.Fonte="",ORÇAMENTO.CodBarra,CONCATENATE(ORÇAMENTO.Fonte," ",ORÇAMENTO.CodBarra))) -> SINAPI 96557 | AF49: =IF(ISERROR(INDIRECT(ORÇAMENTO.BancoRef)),"(abra o arquivo 'Referência "&Excel_BuiltIn_Database&".xlsm)",IF(OR($C49<>"S",ORÇAMENTO.CodBarra=""),"(Sem Código)",IF(ISERROR(MATCH($AE49,INDIRECT(ORÇAMENTO.BancoRef),0)),"(Código não identificado nas referências)",MATCH($AE49,INDIRECT(ORÇAMENTO.BancoRef),0)))) -> 2749 | AG49: =ROUND(IF(DESONERACAO="sim",REFERENCIA.Desonerado,REFERENCIA.NaoDesonerado),2) -> 630.32 | AH49: 0.2082 | AJ49: 3.96 | AM49: 3015.74 | AN49: 761.55
A50: 3 | B50: 3 | C50: 3 | D50: 4 | E50: =IF($C50=1,OFFSET(E50,-1,0)+MAX(1,COUNTIF(QCI!$A$13:$A$24,OFFSET(ORÇAMENTO!E50,-1,0))),OFFSET(E50,-1,0)) -> 1 | F50: 3 | G50: 3 | H50: 0 | I50: 0 | J50: 16 | K50: =IF(OR($C50="S",$C50=0),0,MATCH(OFFSET($D50,0,$C50)+IF($C50<>1,1,COUNTIF(QCI!$A$13:$A$24,ORÇAMENTO!E50)),OFFSET($D50,1,$C50,ROW($C$404)-ROW($C50)),0)) -> 4 | L50: F | M50: Nível 3 | N50: Nível 3 | O50: 1.3.3. | P50: SINAPI | R50: PISO | S50: =REFERENCIA.Unidade -> - | T50: =OFFSET(CÁLCULO!H$15,ROW($T50)-ROW(T$15),0) -> 0 | U50: 0 | V50: BDI 1 | W50: =IF($C50="S",ROUND(IF(TIPOORCAMENTO="Proposto",ORÇAMENTO.CustoUnitario*(1+$AH50),ORÇAMENTO.PrecoUnitarioLicitado),15-13*$AF$10),0) -> 0 | X50: =IF($C50="S",IF(Import.TipoArredondamento<>"TransfereGOV",VTOTAL1,SUM(OFFSET(CÁLCULO!$AA$15,ROW($X50)-ROW($X$15),1):OFFSET(CÁLCULO!$AL$15,ROW($X50)-ROW($X$15),-1))),IF($C50=0,0,ROUND(SomaAgrup,15-13*$AF$11))) -> 9729.49 | Y50: RA | AA50: =IF($C50="S",IF($Z50="CP",$X50,IF($Z50="RA",(($X50)*QCI!$AA$3),0)),SomaAgrup) -> 2610.170863 | AB50: 0 | AC50: =IF($N50="","",IF(ORÇAMENTO.Descricao="","DESCRIÇÃO",IF(AND($C50="S",ORÇAMENTO.Unidade=""),"UNIDADE",IF($X50<0,"VALOR NEGATIVO",IF(OR(AND(TIPOORCAMENTO="Proposto",$AG50<>"",$AG50>0,ORÇAMENTO.CustoUnitario>$AG50),AND(TIPOORCAMENTO="LICITADO",ORÇAMENTO.PrecoUnitarioLicitado>$AN50)),"ACIMA REF.",""))))) ->  | AD50: =IF(C50<=CRONO.NivelExibicao,MAX($AD$15:OFFSET(AD50,-1,0))+IF($C50<>1,1,MAX(1,COUNTIF(QCI!$A$13:$A$24,OFFSET($E50,-1,0)))),"") ->  | AE50: =IF(AND($C50="S",ORÇAMENTO.CodBarra<>""),IF(ORÇAMENTO.Fonte="",ORÇAMENTO.CodBarra,CONCATENATE(ORÇAMENTO.Fonte," ",ORÇAMENTO.CodBarra))) -> FALSE | AF50: =IF(ISERROR(INDIRECT(ORÇAMENTO.BancoRef)),"(abra o arquivo 'Referência "&Excel_BuiltIn_Database&".xlsm)",IF(OR($C50<>"S",ORÇAMENTO.CodBarra=""),"(Sem Código)",IF(ISERROR(MATCH($AE50,INDIRECT(ORÇAMENTO.BancoRef),0)),"(Código não identificado nas referências)",MATCH($AE50,INDIRECT(ORÇAMENTO.BancoRef),0)))) -> (Sem Código) | AG50: =ROUND(IF(DESONERACAO="sim",REFERENCIA.Desonerado,REFERENCIA.NaoDesonerado),2) -> 0 | AH50: 0.2082 | AM50: 9729.49 | AN50: 0
A51: S | B51: 3 | C51: S | D51: 0 | E51: =IF($C51=1,OFFSET(E51,-1,0)+MAX(1,COUNTIF(QCI!$A$13:$A$24,OFFSET(ORÇAMENTO!E51,-1,0))),OFFSET(E51,-1,0)) -> 1 | F51: 3 | G51: 3 | H51: 0 | I51: 1 | J51: 0 | K51: =IF(OR($C51="S",$C51=0),0,MATCH(OFFSET($D51,0,$C51)+IF($C51<>1,1,COUNTIF(QCI!$A$13:$A$24,ORÇAMENTO!E51)),OFFSET($D51,1,$C51,ROW($C$404)-ROW($C51)),0)) -> 0 | L51: F | M51: Serviço | N51: Serviço | O51: 1.3.3.0.1. | P51: SINAPI | Q51: 96622 | R51: =IF($C51="S",REFERENCIA.Descricao,"(digite a descrição aqui)") -> LASTRO COM MATERIAL GRANULAR, APLICADO EM PISOS OU LAJES SOBRE SOLO, ESPESSURA DE *5 CM*. AF_01/2024 | S51: =REFERENCIA.Unidade -> M3 | T51: =OFFSET(CÁLCULO!H$15,ROW($T51)-ROW(T$15),0) -> 6.48 | U51: 179.43 | V51: BDI 1 | W51: =IF($C51="S",ROUND(IF(TIPOORCAMENTO="Proposto",ORÇAMENTO.CustoUnitario*(1+$AH51),ORÇAMENTO.PrecoUnitarioLicitado),15-13*$AF$10),0) -> 216.79 | X51: =IF($C51="S",IF(Import.TipoArredondamento<>"TransfereGOV",VTOTAL1,SUM(OFFSET(CÁLCULO!$AA$15,ROW($X51)-ROW($X$15),1):OFFSET(CÁLCULO!$AL$15,ROW($X51)-ROW($X$15),-1))),IF($C51=0,0,ROUND(SomaAgrup,15-13*$AF$11))) -> 1404.8 | Y51: RA | Z51: RA | AA51: =IF($C51="S",IF($Z51="CP",$X51,IF($Z51="RA",(($X51)*QCI!$AA$3),0)),SomaAgrup) -> 376.8715552 | AB51: 0 | AC51: =IF($N51="","",IF(ORÇAMENTO.Descricao="","DESCRIÇÃO",IF(AND($C51="S",ORÇAMENTO.Unidade=""),"UNIDADE",IF($X51<0,"VALOR NEGATIVO",IF(OR(AND(TIPOORCAMENTO="Proposto",$AG51<>"",$AG51>0,ORÇAMENTO.CustoUnitario>$AG51),AND(TIPOORCAMENTO="LICITADO",ORÇAMENTO.PrecoUnitarioLicitado>$AN51)),"ACIMA REF.",""))))) ->  | AD51: =IF(C51<=CRONO.NivelExibicao,MAX($AD$15:OFFSET(AD51,-1,0))+IF($C51<>1,1,MAX(1,COUNTIF(QCI!$A$13:$A$24,OFFSET($E51,-1,0)))),"") ->  | AE51: =IF(AND($C51="S",ORÇAMENTO.CodBarra<>""),IF(ORÇAMENTO.Fonte="",ORÇAMENTO.CodBarra,CONCATENATE(ORÇAMENTO.Fonte," ",ORÇAMENTO.CodBarra))) -> SINAPI 96622 | AF51: =IF(ISERROR(INDIRECT(ORÇAMENTO.BancoRef)),"(abra o arquivo 'Referência "&Excel_BuiltIn_Database&".xlsm)",IF(OR($C51<>"S",ORÇAMENTO.CodBarra=""),"(Sem Código)",IF(ISERROR(MATCH($AE51,INDIRECT(ORÇAMENTO.BancoRef),0)),"(Código não identificado nas referências)",MATCH($AE51,INDIRECT(ORÇAMENTO.BancoRef),0)))) -> 2370 | AG51: =ROUND(IF(DESONERACAO="sim",REFERENCIA.Desonerado,REFERENCIA.NaoDesonerado),2) -> 179.43 | AH51: 0.2082 | AJ51: 6.48 | AM51: 1404.8 | AN51: 216.79
A52: S | B52: 3 | C52: S | D52: 0 | E52: =IF($C52=1,OFFSET(E52,-1,0)+MAX(1,COUNTIF(QCI!$A$13:$A$24,OFFSET(ORÇAMENTO!E52,-1,0))),OFFSET(E52,-1,0)) -> 1 | F52: 3 | G52: 3 | H52: 0 | I52: 2 | J52: 0 | K52: =IF(OR($C52="S",$C52=0),0,MATCH(OFFSET($D52,0,$C52)+IF($C52<>1,1,COUNTIF(QCI!$A$13:$A$24,ORÇAMENTO!E52)),OFFSET($D52,1,$C52,ROW($C$404)-ROW($C52)),0)) -> 0 | L52: F | M52: Serviço | N52: Serviço | O52: 1.3.3.0.2. | P52: SINAPI-I | Q52: 39507 | R52: =IF($C52="S",REFERENCIA.Descricao,"(digite a descrição aqui)") -> TELA DE ACO SOLDADA NERVURADA, CA-60, Q-113, (1,8 KG/M2), DIAMETRO DO FIO = 3,8 MM, LARGURA = 2,45 M, ESPACAMENTO DA MALHA = 10 X 10 CM | S52: =REFERENCIA.Unidade -> M2 | T52: =OFFSET(CÁLCULO!H$15,ROW($T52)-ROW(T$15),0) -> 233.3 | U52: 14.34 | V52: BDI 1 | W52: =IF($C52="S",ROUND(IF(TIPOORCAMENTO="Proposto",ORÇAMENTO.CustoUnitario*(1+$AH52),ORÇAMENTO.PrecoUnitarioLicitado),15-13*$AF$10),0) -> 17.33 | X52: =IF($C52="S",IF(Import.TipoArredondamento<>"TransfereGOV",VTOTAL1,SUM(OFFSET(CÁLCULO!$AA$15,ROW($X52)-ROW($X$15),1):OFFSET(CÁLCULO!$AL$15,ROW($X52)-ROW($X$15),-1))),IF($C52=0,0,ROUND(SomaAgrup,15-13*$AF$11))) -> 4043.09 | Y52: RA | Z52: RA | AA52: =IF($C52="S",IF($Z52="CP",$X52,IF($Z52="RA",(($X52)*QCI!$AA$3),0)),SomaAgrup) -> 1084.656618 | AB52: 0 | AC52: =IF($N52="","",IF(ORÇAMENTO.Descricao="","DESCRIÇÃO",IF(AND($C52="S",ORÇAMENTO.Unidade=""),"UNIDADE",IF($X52<0,"VALOR NEGATIVO",IF(OR(AND(TIPOORCAMENTO="Proposto",$AG52<>"",$AG52>0,ORÇAMENTO.CustoUnitario>$AG52),AND(TIPOORCAMENTO="LICITADO",ORÇAMENTO.PrecoUnitarioLicitado>$AN52)),"ACIMA REF.",""))))) ->  | AD52: =IF(C52<=CRONO.NivelExibicao,MAX($AD$15:OFFSET(AD52,-1,0))+IF($C52<>1,1,MAX(1,COUNTIF(QCI!$A$13:$A$24,OFFSET($E52,-1,0)))),"") ->  | AE52: =IF(AND($C52="S",ORÇAMENTO.CodBarra<>""),IF(ORÇAMENTO.Fonte="",ORÇAMENTO.CodBarra,CONCATENATE(ORÇAMENTO.Fonte," ",ORÇAMENTO.CodBarra))) -> SINAPI-I 39507 | AF52: =IF(ISERROR(INDIRECT(ORÇAMENTO.BancoRef)),"(abra o arquivo 'Referência "&Excel_BuiltIn_Database&".xlsm)",IF(OR($C52<>"S",ORÇAMENTO.CodBarra=""),"(Sem Código)",IF(ISERROR(MATCH($AE52,INDIRECT(ORÇAMENTO.BancoRef),0)),"(Código não identificado nas referências)",MATCH($AE52,INDIRECT(ORÇAMENTO.BancoRef),0)))) -> 11808 | AG52: =ROUND(IF(DESONERACAO="sim",REFERENCIA.Desonerado,REFERENCIA.NaoDesonerado),2) -> 14.34 | AH52: 0.2082 | AJ52: 233.3 | AM52: 4043.09 | AN52: 17.33
A53: S | B53: 3 | C53: S | D53: 0 | E53: =IF($C53=1,OFFSET(E53,-1,0)+MAX(1,COUNTIF(QCI!$A$13:$A$24,OFFSET(ORÇAMENTO!E53,-1,0))),OFFSET(E53,-1,0)) -> 1 | F53: 3 | G53: 3 | H53: 0 | I53: 3 | J53: 0 | K53: =IF(OR($C53="S",$C53=0),0,MATCH(OFFSET($D53,0,$C53)+IF($C53<>1,1,COUNTIF(QCI!$A$13:$A$24,ORÇAMENTO!E53)),OFFSET($D53,1,$C53,ROW($C$404)-ROW($C53)),0)) -> 0 | L53: F | M53: Serviço | N53: Serviço | O53: 1.3.3.0.3. | P53: SINAPI | Q53: 97096 | R53: =IF($C53="S",REFERENCIA.Descricao,"(digite a descrição aqui)") -> CONCRETAGEM DE RADIER, PISO DE CONCRETO OU LAJE SOBRE SOLO, FCK 30 MPA - LANÇAMENTO, ADENSAMENTO E ACABAMENTO. AF_09/2021 | S53: =REFERENCIA.Unidade -> M3 | T53: =OFFSET(CÁLCULO!H$15,ROW($T53)-ROW(T$15),0) -> 6.48 | U53: 546.88 | V53: BDI 1 | W53: =IF($C53="S",ROUND(IF(TIPOORCAMENTO="Proposto",ORÇAMENTO.CustoUnitario*(1+$AH53),ORÇAMENTO.PrecoUnitarioLicitado),15-13*$AF$10),0) -> 660.74 | X53: =IF($C53="S",IF(Import.TipoArredondamento<>"TransfereGOV",VTOTAL1,SUM(OFFSET(CÁLCULO!$AA$15,ROW($X53)-ROW($X$15),1):OFFSET(CÁLCULO!$AL$15,ROW($X53)-ROW($X$15),-1))),IF($C53=0,0,ROUND(SomaAgrup,15-13*$AF$11))) -> 4281.6 | Y53: RA | Z53: RA | AA53: =IF($C53="S",IF($Z53="CP",$X53,IF($Z53="RA",(($X53)*QCI!$AA$3),0)),SomaAgrup) -> 1148.64269 | AB53: 0 | AC53: =IF($N53="","",IF(ORÇAMENTO.Descricao="","DESCRIÇÃO",IF(AND($C53="S",ORÇAMENTO.Unidade=""),"UNIDADE",IF($X53<0,"VALOR NEGATIVO",IF(OR(AND(TIPOORCAMENTO="Proposto",$AG53<>"",$AG53>0,ORÇAMENTO.CustoUnitario>$AG53),AND(TIPOORCAMENTO="LICITADO",ORÇAMENTO.PrecoUnitarioLicitado>$AN53)),"ACIMA REF.",""))))) ->  | AD53: =IF(C53<=CRONO.NivelExibicao,MAX($AD$15:OFFSET(AD53,-1,0))+IF($C53<>1,1,MAX(1,COUNTIF(QCI!$A$13:$A$24,OFFSET($E53,-1,0)))),"") ->  | AE53: =IF(AND($C53="S",ORÇAMENTO.CodBarra<>""),IF(ORÇAMENTO.Fonte="",ORÇAMENTO.CodBarra,CONCATENATE(ORÇAMENTO.Fonte," ",ORÇAMENTO.CodBarra))) -> SINAPI 97096 | AF53: =IF(ISERROR(INDIRECT(ORÇAMENTO.BancoRef)),"(abra o arquivo 'Referência "&Excel_BuiltIn_Database&".xlsm)",IF(OR($C53<>"S",ORÇAMENTO.CodBarra=""),"(Sem Código)",IF(ISERROR(MATCH($AE53,INDIRECT(ORÇAMENTO.BancoRef),0)),"(Código não identificado nas referências)",MATCH($AE53,INDIRECT(ORÇAMENTO.BancoRef),0)))) -> 2384 | AG53: =ROUND(IF(DESONERACAO="sim",REFERENCIA.Desonerado,REFERENCIA.NaoDesonerado),2) -> 546.88 | AH53: 0.2082 | AJ53: 6.48 | AM53: 4281.6 | AN53: 660.74
A54: 3 | B54: 3 | C54: 3 | D54: 5 | E54: =IF($C54=1,OFFSET(E54,-1,0)+MAX(1,COUNTIF(QCI!$A$13:$A$24,OFFSET(ORÇAMENTO!E54,-1,0))),OFFSET(E54,-1,0)) -> 1 | F54: 3 | G54: 4 | H54: 0 | I54: 0 | J54: 12 | K54: =IF(OR($C54="S",$C54=0),0,MATCH(OFFSET($D54,0,$C54)+IF($C54<>1,1,COUNTIF(QCI!$A$13:$A$24,ORÇAMENTO!E54)),OFFSET($D54,1,$C54,ROW($C$404)-ROW($C54)),0)) -> 5 | L54: F | M54: Nível 3 | N54: Nível 3 | O54: 1.3.4. | P54: SINAPI | R54: PILARES | S54: =REFERENCIA.Unidade -> - | T54: =OFFSET(CÁLCULO!H$15,ROW($T54)-ROW(T$15),0) -> 0 | U54: 0 | V54: BDI 1 | W54: =IF($C54="S",ROUND(IF(TIPOORCAMENTO="Proposto",ORÇAMENTO.CustoUnitario*(1+$AH54),ORÇAMENTO.PrecoUnitarioLicitado),15-13*$AF$10),0) -> 0 | X54: =IF($C54="S",IF(Import.TipoArredondamento<>"TransfereGOV",VTOTAL1,SUM(OFFSET(CÁLCULO!$AA$15,ROW($X54)-ROW($X$15),1):OFFSET(CÁLCULO!$AL$15,ROW($X54)-ROW($X$15),-1))),IF($C54=0,0,ROUND(SomaAgrup,15-13*$AF$11))) -> 19215.44 | Y54: RA | AA54: =IF($C54="S",IF($Z54="CP",$X54,IF($Z54="RA",(($X54)*QCI!$AA$3),0)),SomaAgrup) -> 5155.006234 | AB54: 0 | AC54: =IF($N54="","",IF(ORÇAMENTO.Descricao="","DESCRIÇÃO",IF(AND($C54="S",ORÇAMENTO.Unidade=""),"UNIDADE",IF($X54<0,"VALOR NEGATIVO",IF(OR(AND(TIPOORCAMENTO="Proposto",$AG54<>"",$AG54>0,ORÇAMENTO.CustoUnitario>$AG54),AND(TIPOORCAMENTO="LICITADO",ORÇAMENTO.PrecoUnitarioLicitado>$AN54)),"ACIMA REF.",""))))) ->  | AD54: =IF(C54<=CRONO.NivelExibicao,MAX($AD$15:OFFSET(AD54,-1,0))+IF($C54<>1,1,MAX(1,COUNTIF(QCI!$A$13:$A$24,OFFSET($E54,-1,0)))),"") ->  | AE54: =IF(AND($C54="S",ORÇAMENTO.CodBarra<>""),IF(ORÇAMENTO.Fonte="",ORÇAMENTO.CodBarra,CONCATENATE(ORÇAMENTO.Fonte," ",ORÇAMENTO.CodBarra))) -> FALSE | AF54: =IF(ISERROR(INDIRECT(ORÇAMENTO.BancoRef)),"(abra o arquivo 'Referência "&Excel_BuiltIn_Database&".xlsm)",IF(OR($C54<>"S",ORÇAMENTO.CodBarra=""),"(Sem Código)",IF(ISERROR(MATCH($AE54,INDIRECT(ORÇAMENTO.BancoRef),0)),"(Código não identificado nas referências)",MATCH($AE54,INDIRECT(ORÇAMENTO.BancoRef),0)))) -> (Sem Código) | AG54: =ROUND(IF(DESONERACAO="sim",REFERENCIA.Desonerado,REFERENCIA.NaoDesonerado),2) -> 0 | AH54: 0.2082 | AM54: 19215.44 | AN54: 0
A55: S | B55: 3 | C55: S | D55: 0 | E55: =IF($C55=1,OFFSET(E55,-1,0)+MAX(1,COUNTIF(QCI!$A$13:$A$24,OFFSET(ORÇAMENTO!E55,-1,0))),OFFSET(E55,-1,0)) -> 1 | F55: 3 | G55: 4 | H55: 0 | I55: 1 | J55: 0 | K55: =IF(OR($C55="S",$C55=0),0,MATCH(OFFSET($D55,0,$C55)+IF($C55<>1,1,COUNTIF(QCI!$A$13:$A$24,ORÇAMENTO!E55)),OFFSET($D55,1,$C55,ROW($C$404)-ROW($C55)),0)) -> 0 | L55: F | M55: Serviço | N55: Serviço | O55: 1.3.4.0.1. | P55: SINAPI | Q55: 92413 | R55: =IF($C55="S",REFERENCIA.Descricao,"(digite a descrição aqui)") -> MONTAGEM E DESMONTAGEM DE FÔRMA DE PILARES RETANGULARES E ESTRUTURAS SIMILARES, PÉ-DIREITO SIMPLES, EM MADEIRA SERRADA, 4 UTILIZAÇÕES. AF_09/2020 | S55: =REFERENCIA.Unidade -> M2 | T55: =OFFSET(CÁLCULO!H$15,ROW($T55)-ROW(T$15),0) -> 73.98 | U55: 115.11 | V55: BDI 1 | W55: =IF($C55="S",ROUND(IF(TIPOORCAMENTO="Proposto",ORÇAMENTO.CustoUnitario*(1+$AH55),ORÇAMENTO.PrecoUnitarioLicitado),15-13*$AF$10),0) -> 139.08 | X55: =IF($C55="S",IF(Import.TipoArredondamento<>"TransfereGOV",VTOTAL1,SUM(OFFSET(CÁLCULO!$AA$15,ROW($X55)-ROW($X$15),1):OFFSET(CÁLCULO!$AL$15,ROW($X55)-ROW($X$15),-1))),IF($C55=0,0,ROUND(SomaAgrup,15-13*$AF$11))) -> 10289.14 | Y55: RA | Z55: RA | AA55: =IF($C55="S",IF($Z55="CP",$X55,IF($Z55="RA",(($X55)*QCI!$AA$3),0)),SomaAgrup) -> 2760.310503 | AB55: 0 | AC55: =IF($N55="","",IF(ORÇAMENTO.Descricao="","DESCRIÇÃO",IF(AND($C55="S",ORÇAMENTO.Unidade=""),"UNIDADE",IF($X55<0,"VALOR NEGATIVO",IF(OR(AND(TIPOORCAMENTO="Proposto",$AG55<>"",$AG55>0,ORÇAMENTO.CustoUnitario>$AG55),AND(TIPOORCAMENTO="LICITADO",ORÇAMENTO.PrecoUnitarioLicitado>$AN55)),"ACIMA REF.",""))))) ->  | AD55: =IF(C55<=CRONO.NivelExibicao,MAX($AD$15:OFFSET(AD55,-1,0))+IF($C55<>1,1,MAX(1,COUNTIF(QCI!$A$13:$A$24,OFFSET($E55,-1,0)))),"") ->  | AE55: =IF(AND($C55="S",ORÇAMENTO.CodBarra<>""),IF(ORÇAMENTO.Fonte="",ORÇAMENTO.CodBarra,CONCATENATE(ORÇAMENTO.Fonte," ",ORÇAMENTO.CodBarra))) -> SINAPI 92413 | AF55: =IF(ISERROR(INDIRECT(ORÇAMENTO.BancoRef)),"(abra o arquivo 'Referência "&Excel_BuiltIn_Database&".xlsm)",IF(OR($C55<>"S",ORÇAMENTO.CodBarra=""),"(Sem Código)",IF(ISERROR(MATCH($AE55,INDIRECT(ORÇAMENTO.BancoRef),0)),"(Código não identificado nas referências)",MATCH($AE55,INDIRECT(ORÇAMENTO.BancoRef),0)))) -> 2414 | AG55: =ROUND(IF(DESONERACAO="sim",REFERENCIA.Desonerado,REFERENCIA.NaoDesonerado),2) -> 115.11 | AH55: 0.2082 | AJ55: 73.98 | AM55: 10289.14 | AN55: 139.08
A56: S | B56: 3 | C56: S | D56: 0 | E56: =IF($C56=1,OFFSET(E56,-1,0)+MAX(1,COUNTIF(QCI!$A$13:$A$24,OFFSET(ORÇAMENTO!E56,-1,0))),OFFSET(E56,-1,0)) -> 1 | F56: 3 | G56: 4 | H56: 0 | I56: 2 | J56: 0 | K56: =IF(OR($C56="S",$C56=0),0,MATCH(OFFSET($D56,0,$C56)+IF($C56<>1,1,COUNTIF(QCI!$A$13:$A$24,ORÇAMENTO!E56)),OFFSET($D56,1,$C56,ROW($C$404)-ROW($C56)),0)) -> 0 | L56: F | M56: Serviço | N56: Serviço | O56: 1.3.4.0.2. | P56: SINAPI | Q56: 92762 | R56: =IF($C56="S",REFERENCIA.Descricao,"(digite a descrição aqui)") -> ARMAÇÃO DE PILAR OU VIGA DE ESTRUTURA CONVENCIONAL DE CONCRETO ARMADO UTILIZANDO AÇO CA-50 DE 10,0 MM - MONTAGEM. AF_06/2022 | S56: =REFERENCIA.Unidade -> KG | T56: =OFFSET(CÁLCULO!H$15,ROW($T56)-ROW(T$15),0) -> 324.91 | U56: 10.92 | V56: BDI 1 | W56: =IF($C56="S",ROUND(IF(TIPOORCAMENTO="Proposto",ORÇAMENTO.CustoUnitario*(1+$AH56),ORÇAMENTO.PrecoUnitarioLicitado),15-13*$AF$10),0) -> 13.19 | X56: =IF($C56="S",IF(Import.TipoArredondamento<>"TransfereGOV",VTOTAL1,SUM(OFFSET(CÁLCULO!$AA$15,ROW($X56)-ROW($X$15),1):OFFSET(CÁLCULO!$AL$15,ROW($X56)-ROW($X$15),-1))),IF($C56=0,0,ROUND(SomaAgrup,15-13*$AF$11))) -> 4285.56 | Y56: RA | Z56: RA | AA56: =IF($C56="S",IF($Z56="CP",$X56,IF($Z56="RA",(($X56)*QCI!$AA$3),0)),SomaAgrup) -> 1149.705056 | AB56: 0 | AC56: =IF($N56="","",IF(ORÇAMENTO.Descricao="","DESCRIÇÃO",IF(AND($C56="S",ORÇAMENTO.Unidade=""),"UNIDADE",IF($X56<0,"VALOR NEGATIVO",IF(OR(AND(TIPOORCAMENTO="Proposto",$AG56<>"",$AG56>0,ORÇAMENTO.CustoUnitario>$AG56),AND(TIPOORCAMENTO="LICITADO",ORÇAMENTO.PrecoUnitarioLicitado>$AN56)),"ACIMA REF.",""))))) ->  | AD56: =IF(C56<=CRONO.NivelExibicao,MAX($AD$15:OFFSET(AD56,-1,0))+IF($C56<>1,1,MAX(1,COUNTIF(QCI!$A$13:$A$24,OFFSET($E56,-1,0)))),"") ->  | AE56: =IF(AND($C56="S",ORÇAMENTO.CodBarra<>""),IF(ORÇAMENTO.Fonte="",ORÇAMENTO.CodBarra,CONCATENATE(ORÇAMENTO.Fonte," ",ORÇAMENTO.CodBarra))) -> SINAPI 92762 | AF56: =IF(ISERROR(INDIRECT(ORÇAMENTO.BancoRef)),"(abra o arquivo 'Referência "&Excel_BuiltIn_Database&".xlsm)",IF(OR($C56<>"S",ORÇAMENTO.CodBarra=""),"(Sem Código)",IF(ISERROR(MATCH($AE56,INDIRECT(ORÇAMENTO.BancoRef),0)),"(Código não identificado nas referências)",MATCH($AE56,INDIRECT(ORÇAMENTO.BancoRef),0)))) -> 2633 | AG56: =ROUND(IF(DESONERACAO="sim",REFERENCIA.Desonerado,REFERENCIA.NaoDesonerado),2) -> 10.92 | AH56: 0.2082 | AJ56: 324.91 | AM56: 4285.56 | AN56: 13.19
A57: S | B57: 3 | C57: S | D57: 0 | E57: =IF($C57=1,OFFSET(E57,-1,0)+MAX(1,COUNTIF(QCI!$A$13:$A$24,OFFSET(ORÇAMENTO!E57,-1,0))),OFFSET(E57,-1,0)) -> 1 | F57: 3 | G57: 4 | H57: 0 | I57: 3 | J57: 0 | K57: =IF(OR($C57="S",$C57=0),0,MATCH(OFFSET($D57,0,$C57)+IF($C57<>1,1,COUNTIF(QCI!$A$13:$A$24,ORÇAMENTO!E57)),OFFSET($D57,1,$C57,ROW($C$404)-ROW($C57)),0)) -> 0 | L57: F | M57: Serviço | N57: Serviço | O57: 1.3.4.0.3. | P57: SINAPI | Q57: 92759 | R57: =IF($C57="S",REFERENCIA.Descricao,"(digite a descrição aqui)") -> ARMAÇÃO DE PILAR OU VIGA DE ESTRUTURA CONVENCIONAL DE CONCRETO ARMADO UTILIZANDO AÇO CA-60 DE 5,0 MM - MONTAGEM. AF_06/2022 | S57: =REFERENCIA.Unidade -> KG | T57: =OFFSET(CÁLCULO!H$15,ROW($T57)-ROW(T$15),0) -> 87.38 | U57: 14.91 | V57: BDI 1 | W57: =IF($C57="S",ROUND(IF(TIPOORCAMENTO="Proposto",ORÇAMENTO.CustoUnitario*(1+$AH57),ORÇAMENTO.PrecoUnitarioLicitado),15-13*$AF$10),0) -> 18.01 | X57: =IF($C57="S",IF(Import.TipoArredondamento<>"TransfereGOV",VTOTAL1,SUM(OFFSET(CÁLCULO!$AA$15,ROW($X57)-ROW($X$15),1):OFFSET(CÁLCULO!$AL$15,ROW($X57)-ROW($X$15),-1))),IF($C57=0,0,ROUND(SomaAgrup,15-13*$AF$11))) -> 1573.71 | Y57: RA | Z57: RA | AA57: =IF($C57="S",IF($Z57="CP",$X57,IF($Z57="RA",(($X57)*QCI!$AA$3),0)),SomaAgrup) -> 422.1857454 | AB57: 0 | AC57: =IF($N57="","",IF(ORÇAMENTO.Descricao="","DESCRIÇÃO",IF(AND($C57="S",ORÇAMENTO.Unidade=""),"UNIDADE",IF($X57<0,"VALOR NEGATIVO",IF(OR(AND(TIPOORCAMENTO="Proposto",$AG57<>"",$AG57>0,ORÇAMENTO.CustoUnitario>$AG57),AND(TIPOORCAMENTO="LICITADO",ORÇAMENTO.PrecoUnitarioLicitado>$AN57)),"ACIMA REF.",""))))) ->  | AD57: =IF(C57<=CRONO.NivelExibicao,MAX($AD$15:OFFSET(AD57,-1,0))+IF($C57<>1,1,MAX(1,COUNTIF(QCI!$A$13:$A$24,OFFSET($E57,-1,0)))),"") ->  | AE57: =IF(AND($C57="S",ORÇAMENTO.CodBarra<>""),IF(ORÇAMENTO.Fonte="",ORÇAMENTO.CodBarra,CONCATENATE(ORÇAMENTO.Fonte," ",ORÇAMENTO.CodBarra))) -> SINAPI 92759 | AF57: =IF(ISERROR(INDIRECT(ORÇAMENTO.BancoRef)),"(abra o arquivo 'Referência "&Excel_BuiltIn_Database&".xlsm)",IF(OR($C57<>"S",ORÇAMENTO.CodBarra=""),"(Sem Código)",IF(ISERROR(MATCH($AE57,INDIRECT(ORÇAMENTO.BancoRef),0)),"(Código não identificado nas referências)",MATCH($AE57,INDIRECT(ORÇAMENTO.BancoRef),0)))) -> 2630 | AG57: =ROUND(IF(DESONERACAO="sim",REFERENCIA.Desonerado,REFERENCIA.NaoDesonerado),2) -> 14.91 | AH57: 0.2082 | AJ57: 87.3774 | AM57: 1573.71 | AN57: 18.01
A58: S | B58: 3 | C58: S | D58: 0 | E58: =IF($C58=1,OFFSET(E58,-1,0)+MAX(1,COUNTIF(QCI!$A$13:$A$24,OFFSET(ORÇAMENTO!E58,-1,0))),OFFSET(E58,-1,0)) -> 1 | F58: 3 | G58: 4 | H58: 0 | I58: 4 | J58: 0 | K58: =IF(OR($C58="S",$C58=0),0,MATCH(OFFSET($D58,0,$C58)+IF($C58<>1,1,COUNTIF(QCI!$A$13:$A$24,ORÇAMENTO!E58)),OFFSET($D58,1,$C58,ROW($C$404)-ROW($C58)),0)) -> 0 | L58: F | M58: Serviço | N58: Serviço | O58: 1.3.4.0.4. | P58: SINAPI | Q58: 103672 | R58: =IF($C58="S",REFERENCIA.Descricao,"(digite a descrição aqui)") -> CONCRETAGEM DE PILARES, FCK = 25 MPA, COM USO DE BOMBA - LANÇAMENTO, ADENSAMENTO E ACABAMENTO. AF_02/2022_PS | S58: =REFERENCIA.Unidade -> M3 | T58: =OFFSET(CÁLCULO!H$15,ROW($T58)-ROW(T$15),0) -> 4.39 | U58: 578.25 | V58: BDI 1 | W58: =IF($C58="S",ROUND(IF(TIPOORCAMENTO="Proposto",ORÇAMENTO.CustoUnitario*(1+$AH58),ORÇAMENTO.PrecoUnitarioLicitado),15-13*$AF$10),0) -> 698.64 | X58: =IF($C58="S",IF(Import.TipoArredondamento<>"TransfereGOV",VTOTAL1,SUM(OFFSET(CÁLCULO!$AA$15,ROW($X58)-ROW($X$15),1):OFFSET(CÁLCULO!$AL$15,ROW($X58)-ROW($X$15),-1))),IF($C58=0,0,ROUND(SomaAgrup,15-13*$AF$11))) -> 3067.03 | Y58: RA | Z58: RA | AA58: =IF($C58="S",IF($Z58="CP",$X58,IF($Z58="RA",(($X58)*QCI!$AA$3),0)),SomaAgrup) -> 822.8049303 | AB58: 0 | AC58: =IF($N58="","",IF(ORÇAMENTO.Descricao="","DESCRIÇÃO",IF(AND($C58="S",ORÇAMENTO.Unidade=""),"UNIDADE",IF($X58<0,"VALOR NEGATIVO",IF(OR(AND(TIPOORCAMENTO="Proposto",$AG58<>"",$AG58>0,ORÇAMENTO.CustoUnitario>$AG58),AND(TIPOORCAMENTO="LICITADO",ORÇAMENTO.PrecoUnitarioLicitado>$AN58)),"ACIMA REF.",""))))) ->  | AD58: =IF(C58<=CRONO.NivelExibicao,MAX($AD$15:OFFSET(AD58,-1,0))+IF($C58<>1,1,MAX(1,COUNTIF(QCI!$A$13:$A$24,OFFSET($E58,-1,0)))),"") ->  | AE58: =IF(AND($C58="S",ORÇAMENTO.CodBarra<>""),IF(ORÇAMENTO.Fonte="",ORÇAMENTO.CodBarra,CONCATENATE(ORÇAMENTO.Fonte," ",ORÇAMENTO.CodBarra))) -> SINAPI 103672 | AF58: =IF(ISERROR(INDIRECT(ORÇAMENTO.BancoRef)),"(abra o arquivo 'Referência "&Excel_BuiltIn_Database&".xlsm)",IF(OR($C58<>"S",ORÇAMENTO.CodBarra=""),"(Sem Código)",IF(ISERROR(MATCH($AE58,INDIRECT(ORÇAMENTO.BancoRef),0)),"(Código não identificado nas referências)",MATCH($AE58,INDIRECT(ORÇAMENTO.BancoRef),0)))) -> 2781 | AG58: =ROUND(IF(DESONERACAO="sim",REFERENCIA.Desonerado,REFERENCIA.NaoDesonerado),2) -> 578.25 | AH58: 0.2082 | AJ58: 4.39 | AM58: 3067.03 | AN58: 698.64
A59: 3 | B59: 3 | C59: 3 | D59: 5 | E59: =IF($C59=1,OFFSET(E59,-1,0)+MAX(1,COUNTIF(QCI!$A$13:$A$24,OFFSET(ORÇAMENTO!E59,-1,0))),OFFSET(E59,-1,0)) -> 1 | F59: 3 | G59: 5 | H59: 0 | I59: 0 | J59: 7 | K59: =IF(OR($C59="S",$C59=0),0,MATCH(OFFSET($D59,0,$C59)+IF($C59<>1,1,COUNTIF(QCI!$A$13:$A$24,ORÇAMENTO!E59)),OFFSET($D59,1,$C59,ROW($C$404)-ROW($C59)),0)) -> 5 | L59: F | M59: Nível 3 | N59: Nível 3 | O59: 1.3.5. | P59: SINAPI | R59: VIGAS DE FECHAMENTO | S59: =REFERENCIA.Unidade -> - | T59: =OFFSET(CÁLCULO!H$15,ROW($T59)-ROW(T$15),0) -> 0 | U59: 0 | V59: BDI 1 | W59: =IF($C59="S",ROUND(IF(TIPOORCAMENTO="Proposto",ORÇAMENTO.CustoUnitario*(1+$AH59),ORÇAMENTO.PrecoUnitarioLicitado),15-13*$AF$10),0) -> 0 | X59: =IF($C59="S",IF(Import.TipoArredondamento<>"TransfereGOV",VTOTAL1,SUM(OFFSET(CÁLCULO!$AA$15,ROW($X59)-ROW($X$15),1):OFFSET(CÁLCULO!$AL$15,ROW($X59)-ROW($X$15),-1))),IF($C59=0,0,ROUND(SomaAgrup,15-13*$AF$11))) -> 26054.81 | Y59: RA | AA59: =IF($C59="S",IF($Z59="CP",$X59,IF($Z59="RA",(($X59)*QCI!$AA$3),0)),SomaAgrup) -> 6989.83255 | AB59: 0 | AC59: =IF($N59="","",IF(ORÇAMENTO.Descricao="","DESCRIÇÃO",IF(AND($C59="S",ORÇAMENTO.Unidade=""),"UNIDADE",IF($X59<0,"VALOR NEGATIVO",IF(OR(AND(TIPOORCAMENTO="Proposto",$AG59<>"",$AG59>0,ORÇAMENTO.CustoUnitario>$AG59),AND(TIPOORCAMENTO="LICITADO",ORÇAMENTO.PrecoUnitarioLicitado>$AN59)),"ACIMA REF.",""))))) ->  | AD59: =IF(C59<=CRONO.NivelExibicao,MAX($AD$15:OFFSET(AD59,-1,0))+IF($C59<>1,1,MAX(1,COUNTIF(QCI!$A$13:$A$24,OFFSET($E59,-1,0)))),"") ->  | AE59: =IF(AND($C59="S",ORÇAMENTO.CodBarra<>""),IF(ORÇAMENTO.Fonte="",ORÇAMENTO.CodBarra,CONCATENATE(ORÇAMENTO.Fonte," ",ORÇAMENTO.CodBarra))) -> FALSE | AF59: =IF(ISERROR(INDIRECT(ORÇAMENTO.BancoRef)),"(abra o arquivo 'Referência "&Excel_BuiltIn_Database&".xlsm)",IF(OR($C59<>"S",ORÇAMENTO.CodBarra=""),"(Sem Código)",IF(ISERROR(MATCH($AE59,INDIRECT(ORÇAMENTO.BancoRef),0)),"(Código não identificado nas referências)",MATCH($AE59,INDIRECT(ORÇAMENTO.BancoRef),0)))) -> (Sem Código) | AG59: =ROUND(IF(DESONERACAO="sim",REFERENCIA.Desonerado,REFERENCIA.NaoDesonerado),2) -> 0 | AH59: 0.2082 | AM59: 26054.81 | AN59: 0
A60: S | B60: 3 | C60: S | D60: 0 | E60: =IF($C60=1,OFFSET(E60,-1,0)+MAX(1,COUNTIF(QCI!$A$13:$A$24,OFFSET(ORÇAMENTO!E60,-1,0))),OFFSET(E60,-1,0)) -> 1 | F60: 3 | G60: 5 | H60: 0 | I60: 1 | J60: 0 | K60: =IF(OR($C60="S",$C60=0),0,MATCH(OFFSET($D60,0,$C60)+IF($C60<>1,1,COUNTIF(QCI!$A$13:$A$24,ORÇAMENTO!E60)),OFFSET($D60,1,$C60,ROW($C$404)-ROW($C60)),0)) -> 0 | L60: F | M60: Serviço | N60: Serviço | O60: 1.3.5.0.1. | P60: SINAPI | Q60: 92448 | R60: =IF($C60="S",REFERENCIA.Descricao,"(digite a descrição aqui)") -> MONTAGEM E DESMONTAGEM DE FÔRMA DE VIGA, ESCORAMENTO COM PONTALETE DE MADEIRA, PÉ-DIREITO SIMPLES, EM MADEIRA SERRADA, 4 UTILIZAÇÕES. AF_09/2020 | S60: =REFERENCIA.Unidade -> M2 | T60: =OFFSET(CÁLCULO!H$15,ROW($T60)-ROW(T$15),0) -> 47.65 | U60: 179.07 | V60: BDI 1 | W60: =IF($C60="S",ROUND(IF(TIPOORCAMENTO="Proposto",ORÇAMENTO.CustoUnitario*(1+$AH60),ORÇAMENTO.PrecoUnitarioLicitado),15-13*$AF$10),0) -> 216.35 | X60: =IF($C60="S",IF(Import.TipoArredondamento<>"TransfereGOV",VTOTAL1,SUM(OFFSET(CÁLCULO!$AA$15,ROW($X60)-ROW($X$15),1):OFFSET(CÁLCULO!$AL$15,ROW($X60)-ROW($X$15),-1))),IF($C60=0,0,ROUND(SomaAgrup,15-13*$AF$11))) -> 10309.08 | Y60: RA | Z60: RA | AA60: =IF($C60="S",IF($Z60="CP",$X60,IF($Z60="RA",(($X60)*QCI!$AA$3),0)),SomaAgrup) -> 2765.659889 | AB60: 0 | AC60: =IF($N60="","",IF(ORÇAMENTO.Descricao="","DESCRIÇÃO",IF(AND($C60="S",ORÇAMENTO.Unidade=""),"UNIDADE",IF($X60<0,"VALOR NEGATIVO",IF(OR(AND(TIPOORCAMENTO="Proposto",$AG60<>"",$AG60>0,ORÇAMENTO.CustoUnitario>$AG60),AND(TIPOORCAMENTO="LICITADO",ORÇAMENTO.PrecoUnitarioLicitado>$AN60)),"ACIMA REF.",""))))) ->  | AD60: =IF(C60<=CRONO.NivelExibicao,MAX($AD$15:OFFSET(AD60,-1,0))+IF($C60<>1,1,MAX(1,COUNTIF(QCI!$A$13:$A$24,OFFSET($E60,-1,0)))),"") ->  | AE60: =IF(AND($C60="S",ORÇAMENTO.CodBarra<>""),IF(ORÇAMENTO.Fonte="",ORÇAMENTO.CodBarra,CONCATENATE(ORÇAMENTO.Fonte," ",ORÇAMENTO.CodBarra))) -> SINAPI 92448 | AF60: =IF(ISERROR(INDIRECT(ORÇAMENTO.BancoRef)),"(abra o arquivo 'Referência "&Excel_BuiltIn_Database&".xlsm)",IF(OR($C60<>"S",ORÇAMENTO.CodBarra=""),"(Sem Código)",IF(ISERROR(MATCH($AE60,INDIRECT(ORÇAMENTO.BancoRef),0)),"(Código não identificado nas referências)",MATCH($AE60,INDIRECT(ORÇAMENTO.BancoRef),0)))) -> 2433 | AG60: =ROUND(IF(DESONERACAO="sim",REFERENCIA.Desonerado,REFERENCIA.NaoDesonerado),2) -> 179.07 | AH60: 0.2082 | AJ60: 47.65 | AM60: 10309.08 | AN60: 216.35
A61: S | B61: 3 | C61: S | D61: 0 | E61: =IF($C61=1,OFFSET(E61,-1,0)+MAX(1,COUNTIF(QCI!$A$13:$A$24,OFFSET(ORÇAMENTO!E61,-1,0))),OFFSET(E61,-1,0)) -> 1 | F61: 3 | G61: 5 | H61: 0 | I61: 2 | J61: 0 | K61: =IF(OR($C61="S",$C61=0),0,MATCH(OFFSET($D61,0,$C61)+IF($C61<>1,1,COUNTIF(QCI!$A$13:$A$24,ORÇAMENTO!E61)),OFFSET($D61,1,$C61,ROW($C$404)-ROW($C61)),0)) -> 0 | L61: F | M61: Serviço | N61: Serviço | O61: 1.3.5.0.2. | P61: SINAPI | Q61: 92762 | R61: =IF($C61="S",REFERENCIA.Descricao,"(digite a descrição aqui)") -> ARMAÇÃO DE PILAR OU VIGA DE ESTRUTURA CONVENCIONAL DE CONCRETO ARMADO UTILIZANDO AÇO CA-50 DE 10,0 MM - MONTAGEM. AF_06/2022 | S61: =REFERENCIA.Unidade -> KG | T61: =OFFSET(CÁLCULO!H$15,ROW($T61)-ROW(T$15),0) -> 543.8 | U61: 10.92 | V61: BDI 1 | W61: =IF($C61="S",ROUND(IF(TIPOORCAMENTO="Proposto",ORÇAMENTO.CustoUnitario*(1+$AH61),ORÇAMENTO.PrecoUnitarioLicitado),15-13*$AF$10),0) -> 13.19 | X61: =IF($C61="S",IF(Import.TipoArredondamento<>"TransfereGOV",VTOTAL1,SUM(OFFSET(CÁLCULO!$AA$15,ROW($X61)-ROW($X$15),1):OFFSET(CÁLCULO!$AL$15,ROW($X61)-ROW($X$15),-1))),IF($C61=0,0,ROUND(SomaAgrup,15-13*$AF$11))) -> 7172.72 | Y61: RA | Z61: RA | AA61: =IF($C61="S",IF($Z61="CP",$X61,IF($Z61="RA",(($X61)*QCI!$AA$3),0)),SomaAgrup) -> 1924.255511 | AB61: 0 | AC61: =IF($N61="","",IF(ORÇAMENTO.Descricao="","DESCRIÇÃO",IF(AND($C61="S",ORÇAMENTO.Unidade=""),"UNIDADE",IF($X61<0,"VALOR NEGATIVO",IF(OR(AND(TIPOORCAMENTO="Proposto",$AG61<>"",$AG61>0,ORÇAMENTO.CustoUnitario>$AG61),AND(TIPOORCAMENTO="LICITADO",ORÇAMENTO.PrecoUnitarioLicitado>$AN61)),"ACIMA REF.",""))))) ->  | AD61: =IF(C61<=CRONO.NivelExibicao,MAX($AD$15:OFFSET(AD61,-1,0))+IF($C61<>1,1,MAX(1,COUNTIF(QCI!$A$13:$A$24,OFFSET($E61,-1,0)))),"") ->  | AE61: =IF(AND($C61="S",ORÇAMENTO.CodBarra<>""),IF(ORÇAMENTO.Fonte="",ORÇAMENTO.CodBarra,CONCATENATE(ORÇAMENTO.Fonte," ",ORÇAMENTO.CodBarra))) -> SINAPI 92762 | AF61: =IF(ISERROR(INDIRECT(ORÇAMENTO.BancoRef)),"(abra o arquivo 'Referência "&Excel_BuiltIn_Database&".xlsm)",IF(OR($C61<>"S",ORÇAMENTO.CodBarra=""),"(Sem Código)",IF(ISERROR(MATCH($AE61,INDIRECT(ORÇAMENTO.BancoRef),0)),"(Código não identificado nas referências)",MATCH($AE61,INDIRECT(ORÇAMENTO.BancoRef),0)))) -> 2633 | AG61: =ROUND(IF(DESONERACAO="sim",REFERENCIA.Desonerado,REFERENCIA.NaoDesonerado),2) -> 10.92 | AH61: 0.2082 | AJ61: 543.8 | AM61: 7172.72 | AN61: 13.19
A62: S | B62: 3 | C62: S | D62: 0 | E62: =IF($C62=1,OFFSET(E62,-1,0)+MAX(1,COUNTIF(QCI!$A$13:$A$24,OFFSET(ORÇAMENTO!E62,-1,0))),OFFSET(E62,-1,0)) -> 1 | F62: 3 | G62: 5 | H62: 0 | I62: 3 | J62: 0 | K62: =IF(OR($C62="S",$C62=0),0,MATCH(OFFSET($D62,0,$C62)+IF($C62<>1,1,COUNTIF(QCI!$A$13:$A$24,ORÇAMENTO!E62)),OFFSET($D62,1,$C62,ROW($C$404)-ROW($C62)),0)) -> 0 | L62: F | M62: Serviço | N62: Serviço | O62: 1.3.5.0.3. | P62: SINAPI | Q62: 92759 | R62: =IF($C62="S",REFERENCIA.Descricao,"(digite a descrição aqui)") -> ARMAÇÃO DE PILAR OU VIGA DE ESTRUTURA CONVENCIONAL DE CONCRETO ARMADO UTILIZANDO AÇO CA-60 DE 5,0 MM - MONTAGEM. AF_06/2022 | S62: =REFERENCIA.Unidade -> KG | T62: =OFFSET(CÁLCULO!H$15,ROW($T62)-ROW(T$15),0) -> 151.01 | U62: 14.91 | V62: BDI 1 | W62: =IF($C62="S",ROUND(IF(TIPOORCAMENTO="Proposto",ORÇAMENTO.CustoUnitario*(1+$AH62),ORÇAMENTO.PrecoUnitarioLicitado),15-13*$AF$10),0) -> 18.01 | X62: =IF($C62="S",IF(Import.TipoArredondamento<>"TransfereGOV",VTOTAL1,SUM(OFFSET(CÁLCULO!$AA$15,ROW($X62)-ROW($X$15),1):OFFSET(CÁLCULO!$AL$15,ROW($X62)-ROW($X$15),-1))),IF($C62=0,0,ROUND(SomaAgrup,15-13*$AF$11))) -> 2719.69 | Y62: RA | Z62: RA | AA62: =IF($C62="S",IF($Z62="CP",$X62,IF($Z62="RA",(($X62)*QCI!$AA$3),0)),SomaAgrup) -> 729.6225798 | AB62: 0 | AC62: =IF($N62="","",IF(ORÇAMENTO.Descricao="","DESCRIÇÃO",IF(AND($C62="S",ORÇAMENTO.Unidade=""),"UNIDADE",IF($X62<0,"VALOR NEGATIVO",IF(OR(AND(TIPOORCAMENTO="Proposto",$AG62<>"",$AG62>0,ORÇAMENTO.CustoUnitario>$AG62),AND(TIPOORCAMENTO="LICITADO",ORÇAMENTO.PrecoUnitarioLicitado>$AN62)),"ACIMA REF.",""))))) ->  | AD62: =IF(C62<=CRONO.NivelExibicao,MAX($AD$15:OFFSET(AD62,-1,0))+IF($C62<>1,1,MAX(1,COUNTIF(QCI!$A$13:$A$24,OFFSET($E62,-1,0)))),"") ->  | AE62: =IF(AND($C62="S",ORÇAMENTO.CodBarra<>""),IF(ORÇAMENTO.Fonte="",ORÇAMENTO.CodBarra,CONCATENATE(ORÇAMENTO.Fonte," ",ORÇAMENTO.CodBarra))) -> SINAPI 92759 | AF62: =IF(ISERROR(INDIRECT(ORÇAMENTO.BancoRef)),"(abra o arquivo 'Referência "&Excel_BuiltIn_Database&".xlsm)",IF(OR($C62<>"S",ORÇAMENTO.CodBarra=""),"(Sem Código)",IF(ISERROR(MATCH($AE62,INDIRECT(ORÇAMENTO.BancoRef),0)),"(Código não identificado nas referências)",MATCH($AE62,INDIRECT(ORÇAMENTO.BancoRef),0)))) -> 2630 | AG62: =ROUND(IF(DESONERACAO="sim",REFERENCIA.Desonerado,REFERENCIA.NaoDesonerado),2) -> 14.91 | AH62: 0.2082 | AJ62: 151.01 | AM62: 2719.69 | AN62: 18.01
A63: S | B63: 3 | C63: S | D63: 0 | E63: =IF($C63=1,OFFSET(E63,-1,0)+MAX(1,COUNTIF(QCI!$A$13:$A$24,OFFSET(ORÇAMENTO!E63,-1,0))),OFFSET(E63,-1,0)) -> 1 | F63: 3 | G63: 5 | H63: 0 | I63: 4 | J63: 0 | K63: =IF(OR($C63="S",$C63=0),0,MATCH(OFFSET($D63,0,$C63)+IF($C63<>1,1,COUNTIF(QCI!$A$13:$A$24,ORÇAMENTO!E63)),OFFSET($D63,1,$C63,ROW($C$404)-ROW($C63)),0)) -> 0 | L63: F | M63: Serviço | N63: Serviço | O63: 1.3.5.0.4. | P63: SINAPI | Q63: 103674 | R63: =IF($C63="S",REFERENCIA.Descricao,"(digite a descrição aqui)") -> CONCRETAGEM DE VIGAS E LAJES, FCK=25 MPA, PARA LAJES PREMOLDADAS COM USO DE BOMBA - LANÇAMENTO, ADENSAMENTO E ACABAMENTO. AF_02/2022_PS | S63: =REFERENCIA.Unidade -> M3 | T63: =OFFSET(CÁLCULO!H$15,ROW($T63)-ROW(T$15),0) -> 8.02 | U63: 604.07 | V63: BDI 1 | W63: =IF($C63="S",ROUND(IF(TIPOORCAMENTO="Proposto",ORÇAMENTO.CustoUnitario*(1+$AH63),ORÇAMENTO.PrecoUnitarioLicitado),15-13*$AF$10),0) -> 729.84 | X63: =IF($C63="S",IF(Import.TipoArredondamento<>"TransfereGOV",VTOTAL1,SUM(OFFSET(CÁLCULO!$AA$15,ROW($X63)-ROW($X$15),1):OFFSET(CÁLCULO!$AL$15,ROW($X63)-ROW($X$15),-1))),IF($C63=0,0,ROUND(SomaAgrup,15-13*$AF$11))) -> 5853.32 | Y63: RA | Z63: RA | AA63: =IF($C63="S",IF($Z63="CP",$X63,IF($Z63="RA",(($X63)*QCI!$AA$3),0)),SomaAgrup) -> 1570.29457 | AB63: 0 | AC63: =IF($N63="","",IF(ORÇAMENTO.Descricao="","DESCRIÇÃO",IF(AND($C63="S",ORÇAMENTO.Unidade=""),"UNIDADE",IF($X63<0,"VALOR NEGATIVO",IF(OR(AND(TIPOORCAMENTO="Proposto",$AG63<>"",$AG63>0,ORÇAMENTO.CustoUnitario>$AG63),AND(TIPOORCAMENTO="LICITADO",ORÇAMENTO.PrecoUnitarioLicitado>$AN63)),"ACIMA REF.",""))))) ->  | AD63: =IF(C63<=CRONO.NivelExibicao,MAX($AD$15:OFFSET(AD63,-1,0))+IF($C63<>1,1,MAX(1,COUNTIF(QCI!$A$13:$A$24,OFFSET($E63,-1,0)))),"") ->  | AE63: =IF(AND($C63="S",ORÇAMENTO.CodBarra<>""),IF(ORÇAMENTO.Fonte="",ORÇAMENTO.CodBarra,CONCATENATE(ORÇAMENTO.Fonte," ",ORÇAMENTO.CodBarra))) -> SINAPI 103674 | AF63: =IF(ISERROR(INDIRECT(ORÇAMENTO.BancoRef)),"(abra o arquivo 'Referência "&Excel_BuiltIn_Database&".xlsm)",IF(OR($C63<>"S",ORÇAMENTO.CodBarra=""),"(Sem Código)",IF(ISERROR(MATCH($AE63,INDIRECT(ORÇAMENTO.BancoRef),0)),"(Código não identificado nas referências)",MATCH($AE63,INDIRECT(ORÇAMENTO.BancoRef),0)))) -> 2783 | AG63: =ROUND(IF(DESONERACAO="sim",REFERENCIA.Desonerado,REFERENCIA.NaoDesonerado),2) -> 604.07 | AH63: 0.2082 | AJ63: 8.02 | AM63: 5853.32 | AN63: 729.84
A64: 3 | B64: 3 | C64: 3 | D64: 2 | E64: =IF($C64=1,OFFSET(E64,-1,0)+MAX(1,COUNTIF(QCI!$A$13:$A$24,OFFSET(ORÇAMENTO!E64,-1,0))),OFFSET(E64,-1,0)) -> 1 | F64: 3 | G64: 6 | H64: 0 | I64: 0 | J64: 2 | K64: =IF(OR($C64="S",$C64=0),0,MATCH(OFFSET($D64,0,$C64)+IF($C64<>1,1,COUNTIF(QCI!$A$13:$A$24,ORÇAMENTO!E64)),OFFSET($D64,1,$C64,ROW($C$404)-ROW($C64)),0)) -> 220 | L64: F | M64: Nível 3 | N64: Nível 3 | O64: 1.3.6. | P64: SINAPI | R64: LAJE | S64: =REFERENCIA.Unidade -> - | T64: =OFFSET(CÁLCULO!H$15,ROW($T64)-ROW(T$15),0) -> 0 | U64: 0 | V64: BDI 1 | W64: =IF($C64="S",ROUND(IF(TIPOORCAMENTO="Proposto",ORÇAMENTO.CustoUnitario*(1+$AH64),ORÇAMENTO.PrecoUnitarioLicitado),15-13*$AF$10),0) -> 0 | X64: =IF($C64="S",IF(Import.TipoArredondamento<>"TransfereGOV",VTOTAL1,SUM(OFFSET(CÁLCULO!$AA$15,ROW($X64)-ROW($X$15),1):OFFSET(CÁLCULO!$AL$15,ROW($X64)-ROW($X$15),-1))),IF($C64=0,0,ROUND(SomaAgrup,15-13*$AF$11))) -> 27100.15 | Y64: RA | AA64: =IF($C64="S",IF($Z64="CP",$X64,IF($Z64="RA",(($X64)*QCI!$AA$3),0)),SomaAgrup) -> 7270.270272 | AB64: 0 | AC64: =IF($N64="","",IF(ORÇAMENTO.Descricao="","DESCRIÇÃO",IF(AND($C64="S",ORÇAMENTO.Unidade=""),"UNIDADE",IF($X64<0,"VALOR NEGATIVO",IF(OR(AND(TIPOORCAMENTO="Proposto",$AG64<>"",$AG64>0,ORÇAMENTO.CustoUnitario>$AG64),AND(TIPOORCAMENTO="LICITADO",ORÇAMENTO.PrecoUnitarioLicitado>$AN64)),"ACIMA REF.",""))))) ->  | AD64: =IF(C64<=CRONO.NivelExibicao,MAX($AD$15:OFFSET(AD64,-1,0))+IF($C64<>1,1,MAX(1,COUNTIF(QCI!$A$13:$A$24,OFFSET($E64,-1,0)))),"") ->  | AE64: =IF(AND($C64="S",ORÇAMENTO.CodBarra<>""),IF(ORÇAMENTO.Fonte="",ORÇAMENTO.CodBarra,CONCATENATE(ORÇAMENTO.Fonte," ",ORÇAMENTO.CodBarra))) -> FALSE | AF64: =IF(ISERROR(INDIRECT(ORÇAMENTO.BancoRef)),"(abra o arquivo 'Referência "&Excel_BuiltIn_Database&".xlsm)",IF(OR($C64<>"S",ORÇAMENTO.CodBarra=""),"(Sem Código)",IF(ISERROR(MATCH($AE64,INDIRECT(ORÇAMENTO.BancoRef),0)),"(Código não identificado nas referências)",MATCH($AE64,INDIRECT(ORÇAMENTO.BancoRef),0)))) -> (Sem Código) | AG64: =ROUND(IF(DESONERACAO="sim",REFERENCIA.Desonerado,REFERENCIA.NaoDesonerado),2) -> 0 | AH64: 0.2082 | AM64: 27100.15 | AN64: 0
A65: S | B65: 3 | C65: S | D65: 0 | E65: =IF($C65=1,OFFSET(E65,-1,0)+MAX(1,COUNTIF(QCI!$A$13:$A$24,OFFSET(ORÇAMENTO!E65,-1,0))),OFFSET(E65,-1,0)) -> 1 | F65: 3 | G65: 6 | H65: 0 | I65: 1 | J65: 0 | K65: =IF(OR($C65="S",$C65=0),0,MATCH(OFFSET($D65,0,$C65)+IF($C65<>1,1,COUNTIF(QCI!$A$13:$A$24,ORÇAMENTO!E65)),OFFSET($D65,1,$C65,ROW($C$404)-ROW($C65)),0)) -> 0 | L65: F | M65: Serviço | N65: Serviço | O65: 1.3.6.0.1. | P65: SINAPI | Q65: 101964 | R65: =IF($C65="S",REFERENCIA.Descricao,"(digite a descrição aqui)") -> LAJE PRÉ-MOLDADA UNIDIRECIONAL, BIAPOIADA, PARA FORRO, ENCHIMENTO EM CERÂMICA, VIGOTA CONVENCIONAL, ALTURA TOTAL DA LAJE (ENCHIMENTO+CAPA) = (8+3). AF_11/2020_PA | S65: =REFERENCIA.Unidade -> M2 | T65: =OFFSET(CÁLCULO!H$15,ROW($T65)-ROW(T$15),0) -> 129.61 | U65: 173.06 | V65: BDI 1 | W65: =IF($C65="S",ROUND(IF(TIPOORCAMENTO="Proposto",ORÇAMENTO.CustoUnitario*(1+$AH65),ORÇAMENTO.PrecoUnitarioLicitado),15-13*$AF$10),0) -> 209.09 | X65: =IF($C65="S",IF(Import.TipoArredondamento<>"TransfereGOV",VTOTAL1,SUM(OFFSET(CÁLCULO!$AA$15,ROW($X65)-ROW($X$15),1):OFFSET(CÁLCULO!$AL$15,ROW($X65)-ROW($X$15),-1))),IF($C65=0,0,ROUND(SomaAgrup,15-13*$AF$11))) -> 27100.15 | Y65: RA | Z65: RA | AA65: =IF($C65="S",IF($Z65="CP",$X65,IF($Z65="RA",(($X65)*QCI!$AA$3),0)),SomaAgrup) -> 7270.270272 | AB65: 0 | AC65: =IF($N65="","",IF(ORÇAMENTO.Descricao="","DESCRIÇÃO",IF(AND($C65="S",ORÇAMENTO.Unidade=""),"UNIDADE",IF($X65<0,"VALOR NEGATIVO",IF(OR(AND(TIPOORCAMENTO="Proposto",$AG65<>"",$AG65>0,ORÇAMENTO.CustoUnitario>$AG65),AND(TIPOORCAMENTO="LICITADO",ORÇAMENTO.PrecoUnitarioLicitado>$AN65)),"ACIMA REF.",""))))) ->  | AD65: =IF(C65<=CRONO.NivelExibicao,MAX($AD$15:OFFSET(AD65,-1,0))+IF($C65<>1,1,MAX(1,COUNTIF(QCI!$A$13:$A$24,OFFSET($E65,-1,0)))),"") ->  | AE65: =IF(AND($C65="S",ORÇAMENTO.CodBarra<>""),IF(ORÇAMENTO.Fonte="",ORÇAMENTO.CodBarra,CONCATENATE(ORÇAMENTO.Fonte," ",ORÇAMENTO.CodBarra))) -> SINAPI 101964 | AF65: =IF(ISERROR(INDIRECT(ORÇAMENTO.BancoRef)),"(abra o arquivo 'Referência "&Excel_BuiltIn_Database&".xlsm)",IF(OR($C65<>"S",ORÇAMENTO.CodBarra=""),"(Sem Código)",IF(ISERROR(MATCH($AE65,INDIRECT(ORÇAMENTO.BancoRef),0)),"(Código não identificado nas referências)",MATCH($AE65,INDIRECT(ORÇAMENTO.BancoRef),0)))) -> 2802 | AG65: =ROUND(IF(DESONERACAO="sim",REFERENCIA.Desonerado,REFERENCIA.NaoDesonerado),2) -> 173.06 | AH65: 0.2082 | AJ65: 129.61 | AM65: 27100.15 | AN65: 209.09
A66: 2 | B66: 2 | C66: 2 | D66: 7 | E66: =IF($C66=1,OFFSET(E66,-1,0)+MAX(1,COUNTIF(QCI!$A$13:$A$24,OFFSET(ORÇAMENTO!E66,-1,0))),OFFSET(E66,-1,0)) -> 1 | F66: 4 | G66: 0 | H66: 0 | I66: 0 | J66: 181 | K66: =IF(OR($C66="S",$C66=0),0,MATCH(OFFSET($D66,0,$C66)+IF($C66<>1,1,COUNTIF(QCI!$A$13:$A$24,ORÇAMENTO!E66)),OFFSET($D66,1,$C66,ROW($C$404)-ROW($C66)),0)) -> 7 | L66: F | M66: Nível 2 | N66: Nível 2 | O66: 1.4. | P66: SINAPI | R66: ALVENARIA | S66: =REFERENCIA.Unidade -> - | T66: =OFFSET(CÁLCULO!H$15,ROW($T66)-ROW(T$15),0) -> 0 | U66: 0 | V66: BDI 1 | W66: =IF($C66="S",ROUND(IF(TIPOORCAMENTO="Proposto",ORÇAMENTO.CustoUnitario*(1+$AH66),ORÇAMENTO.PrecoUnitarioLicitado),15-13*$AF$10),0) -> 0 | X66: =IF($C66="S",IF(Import.TipoArredondamento<>"TransfereGOV",VTOTAL1,SUM(OFFSET(CÁLCULO!$AA$15,ROW($X66)-ROW($X$15),1):OFFSET(CÁLCULO!$AL$15,ROW($X66)-ROW($X$15),-1))),IF($C66=0,0,ROUND(SomaAgrup,15-13*$AF$11))) -> 42485.53 | Y66: RA | AA66: =IF($C66="S",IF($Z66="CP",$X66,IF($Z66="RA",(($X66)*QCI!$AA$3),0)),SomaAgrup) -> 11397.77033 | AB66: 0 | AC66: =IF($N66="","",IF(ORÇAMENTO.Descricao="","DESCRIÇÃO",IF(AND($C66="S",ORÇAMENTO.Unidade=""),"UNIDADE",IF($X66<0,"VALOR NEGATIVO",IF(OR(AND(TIPOORCAMENTO="Proposto",$AG66<>"",$AG66>0,ORÇAMENTO.CustoUnitario>$AG66),AND(TIPOORCAMENTO="LICITADO",ORÇAMENTO.PrecoUnitarioLicitado>$AN66)),"ACIMA REF.",""))))) ->  | AD66: =IF(C66<=CRONO.NivelExibicao,MAX($AD$15:OFFSET(AD66,-1,0))+IF($C66<>1,1,MAX(1,COUNTIF(QCI!$A$13:$A$24,OFFSET($E66,-1,0)))),"") -> 5 | AE66: =IF(AND($C66="S",ORÇAMENTO.CodBarra<>""),IF(ORÇAMENTO.Fonte="",ORÇAMENTO.CodBarra,CONCATENATE(ORÇAMENTO.Fonte," ",ORÇAMENTO.CodBarra))) -> FALSE | AF66: =IF(ISERROR(INDIRECT(ORÇAMENTO.BancoRef)),"(abra o arquivo 'Referência "&Excel_BuiltIn_Database&".xlsm)",IF(OR($C66<>"S",ORÇAMENTO.CodBarra=""),"(Sem Código)",IF(ISERROR(MATCH($AE66,INDIRECT(ORÇAMENTO.BancoRef),0)),"(Código não identificado nas referências)",MATCH($AE66,INDIRECT(ORÇAMENTO.BancoRef),0)))) -> (Sem Código) | AG66: =ROUND(IF(DESONERACAO="sim",REFERENCIA.Desonerado,REFERENCIA.NaoDesonerado),2) -> 0 | AH66: 0.2082 | AM66: 42485.53 | AN66: 0
A67: S | B67: 2 | C67: S | D67: 0 | E67: =IF($C67=1,OFFSET(E67,-1,0)+MAX(1,COUNTIF(QCI!$A$13:$A$24,OFFSET(ORÇAMENTO!E67,-1,0))),OFFSET(E67,-1,0)) -> 1 | F67: 4 | G67: 0 | H67: 0 | I67: 1 | J67: 0 | K67: =IF(OR($C67="S",$C67=0),0,MATCH(OFFSET($D67,0,$C67)+IF($C67<>1,1,COUNTIF(QCI!$A$13:$A$24,ORÇAMENTO!E67)),OFFSET($D67,1,$C67,ROW($C$404)-ROW($C67)),0)) -> 0 | L67: F | M67: Serviço | N67: Serviço | O67: 1.4.0.0.1. | P67: SINAPI | Q67: 103331 | R67: =IF($C67="S",REFERENCIA.Descricao,"(digite a descrição aqui)") -> ALVENARIA DE VEDAÇÃO DE BLOCOS CERÂMICOS FURADOS NA HORIZONTAL DE 11,5X19X19 CM (ESPESSURA 11,5 CM) E ARGAMASSA DE ASSENTAMENTO COM PREPARO MANUAL. AF_12/2021 | S67: =REFERENCIA.Unidade -> M2 | T67: =OFFSET(CÁLCULO!H$15,ROW($T67)-ROW(T$15),0) -> 230.12 | U67: 96.71 | V67: BDI 1 | W67: =IF($C67="S",ROUND(IF(TIPOORCAMENTO="Proposto",ORÇAMENTO.CustoUnitario*(1+$AH67),ORÇAMENTO.PrecoUnitarioLicitado),15-13*$AF$10),0) -> 116.85 | X67: =IF($C67="S",IF(Import.TipoArredondamento<>"TransfereGOV",VTOTAL1,SUM(OFFSET(CÁLCULO!$AA$15,ROW($X67)-ROW($X$15),1):OFFSET(CÁLCULO!$AL$15,ROW($X67)-ROW($X$15),-1))),IF($C67=0,0,ROUND(SomaAgrup,15-13*$AF$11))) -> 26889.52 | Y67: RA | Z67: RA | AA67: =IF($C67="S",IF($Z67="CP",$X67,IF($Z67="RA",(($X67)*QCI!$AA$3),0)),SomaAgrup) -> 7213.763683 | AB67: 0 | AC67: =IF($N67="","",IF(ORÇAMENTO.Descricao="","DESCRIÇÃO",IF(AND($C67="S",ORÇAMENTO.Unidade=""),"UNIDADE",IF($X67<0,"VALOR NEGATIVO",IF(OR(AND(TIPOORCAMENTO="Proposto",$AG67<>"",$AG67>0,ORÇAMENTO.CustoUnitario>$AG67),AND(TIPOORCAMENTO="LICITADO",ORÇAMENTO.PrecoUnitarioLicitado>$AN67)),"ACIMA REF.",""))))) ->  | AD67: =IF(C67<=CRONO.NivelExibicao,MAX($AD$15:OFFSET(AD67,-1,0))+IF($C67<>1,1,MAX(1,COUNTIF(QCI!$A$13:$A$24,OFFSET($E67,-1,0)))),"") ->  | AE67: =IF(AND($C67="S",ORÇAMENTO.CodBarra<>""),IF(ORÇAMENTO.Fonte="",ORÇAMENTO.CodBarra,CONCATENATE(ORÇAMENTO.Fonte," ",ORÇAMENTO.CodBarra))) -> SINAPI 103331 | AF67: =IF(ISERROR(INDIRECT(ORÇAMENTO.BancoRef)),"(abra o arquivo 'Referência "&Excel_BuiltIn_Database&".xlsm)",IF(OR($C67<>"S",ORÇAMENTO.CodBarra=""),"(Sem Código)",IF(ISERROR(MATCH($AE67,INDIRECT(ORÇAMENTO.BancoRef),0)),"(Código não identificado nas referências)",MATCH($AE67,INDIRECT(ORÇAMENTO.BancoRef),0)))) -> 5980 | AG67: =ROUND(IF(DESONERACAO="sim",REFERENCIA.Desonerado,REFERENCIA.NaoDesonerado),2) -> 96.71 | AH67: 0.2082 | AJ67: 230.12 | AM67: 26889.52 | AN67: 116.85
A68: S | B68: 2 | C68: S | D68: 0 | E68: =IF($C68=1,OFFSET(E68,-1,0)+MAX(1,COUNTIF(QCI!$A$13:$A$24,OFFSET(ORÇAMENTO!E68,-1,0))),OFFSET(E68,-1,0)) -> 1 | F68: 4 | G68: 0 | H68: 0 | I68: 2 | J68: 0 | K68: =IF(OR($C68="S",$C68=0),0,MATCH(OFFSET($D68,0,$C68)+IF($C68<>1,1,COUNTIF(QCI!$A$13:$A$24,ORÇAMENTO!E68)),OFFSET($D68,1,$C68,ROW($C$404)-ROW($C68)),0)) -> 0 | L68: F | M68: Serviço | N68: Serviço | O68: 1.4.0.0.2. | P68: SINAPI | Q68: 93184 | R68: =IF($C68="S",REFERENCIA.Descricao,"(digite a descrição aqui)") -> VERGA PRÉ-MOLDADA COM ATÉ 1,5 M DE VÃO, ESPESSURA DE *20* CM. AF_03/2024 | S68: =REFERENCIA.Unidade -> M | T68: =OFFSET(CÁLCULO!H$15,ROW($T68)-ROW(T$15),0) -> 23.8 | U68: 28.83 | V68: BDI 1 | W68: =IF($C68="S",ROUND(IF(TIPOORCAMENTO="Proposto",ORÇAMENTO.CustoUnitario*(1+$AH68),ORÇAMENTO.PrecoUnitarioLicitado),15-13*$AF$10),0) -> 34.83 | X68: =IF($C68="S",IF(Import.TipoArredondamento<>"TransfereGOV",VTOTAL1,SUM(OFFSET(CÁLCULO!$AA$15,ROW($X68)-ROW($X$15),1):OFFSET(CÁLCULO!$AL$15,ROW($X68)-ROW($X$15),-1))),IF($C68=0,0,ROUND(SomaAgrup,15-13*$AF$11))) -> 828.95 | Y68: RA | Z68: RA | AA68: =IF($C68="S",IF($Z68="CP",$X68,IF($Z68="RA",(($X68)*QCI!$AA$3),0)),SomaAgrup) -> 222.3858739 | AB68: 0 | AC68: =IF($N68="","",IF(ORÇAMENTO.Descricao="","DESCRIÇÃO",IF(AND($C68="S",ORÇAMENTO.Unidade=""),"UNIDADE",IF($X68<0,"VALOR NEGATIVO",IF(OR(AND(TIPOORCAMENTO="Proposto",$AG68<>"",$AG68>0,ORÇAMENTO.CustoUnitario>$AG68),AND(TIPOORCAMENTO="LICITADO",ORÇAMENTO.PrecoUnitarioLicitado>$AN68)),"ACIMA REF.",""))))) ->  | AD68: =IF(C68<=CRONO.NivelExibicao,MAX($AD$15:OFFSET(AD68,-1,0))+IF($C68<>1,1,MAX(1,COUNTIF(QCI!$A$13:$A$24,OFFSET($E68,-1,0)))),"") ->  | AE68: =IF(AND($C68="S",ORÇAMENTO.CodBarra<>""),IF(ORÇAMENTO.Fonte="",ORÇAMENTO.CodBarra,CONCATENATE(ORÇAMENTO.Fonte," ",ORÇAMENTO.CodBarra))) -> SINAPI 93184 | AF68: =IF(ISERROR(INDIRECT(ORÇAMENTO.BancoRef)),"(abra o arquivo 'Referência "&Excel_BuiltIn_Database&".xlsm)",IF(OR($C68<>"S",ORÇAMENTO.CodBarra=""),"(Sem Código)",IF(ISERROR(MATCH($AE68,INDIRECT(ORÇAMENTO.BancoRef),0)),"(Código não identificado nas referências)",MATCH($AE68,INDIRECT(ORÇAMENTO.BancoRef),0)))) -> 2808 | AG68: =ROUND(IF(DESONERACAO="sim",REFERENCIA.Desonerado,REFERENCIA.NaoDesonerado),2) -> 28.83 | AH68: 0.2082 | AJ68: =7+16.8 -> 23.8 | AM68: 828.95 | AN68: 34.83
A69: S | B69: 2 | C69: S | D69: 0 | E69: =IF($C69=1,OFFSET(E69,-1,0)+MAX(1,COUNTIF(QCI!$A$13:$A$24,OFFSET(ORÇAMENTO!E69,-1,0))),OFFSET(E69,-1,0)) -> 1 | F69: 4 | G69: 0 | H69: 0 | I69: 3 | J69: 0 | K69: =IF(OR($C69="S",$C69=0),0,MATCH(OFFSET($D69,0,$C69)+IF($C69<>1,1,COUNTIF(QCI!$A$13:$A$24,ORÇAMENTO!E69)),OFFSET($D69,1,$C69,ROW($C$404)-ROW($C69)),0)) -> 0 | L69: F | M69: Serviço | N69: Serviço | O69: 1.4.0.0.3. | P69: SINAPI | Q69: 93187 | R69: =IF($C69="S",REFERENCIA.Descricao,"(digite a descrição aqui)") -> VERGA MOLDADA IN LOCO EM CONCRETO, ESPESSURA DE *20* CM. AF_03/2024 | S69: =REFERENCIA.Unidade -> M | T69: =OFFSET(CÁLCULO!H$15,ROW($T69)-ROW(T$15),0) -> 24 | U69: 80.55 | V69: BDI 1 | W69: =IF($C69="S",ROUND(IF(TIPOORCAMENTO="Proposto",ORÇAMENTO.CustoUnitario*(1+$AH69),ORÇAMENTO.PrecoUnitarioLicitado),15-13*$AF$10),0) -> 97.32 | X69: =IF($C69="S",IF(Import.TipoArredondamento<>"TransfereGOV",VTOTAL1,SUM(OFFSET(CÁLCULO!$AA$15,ROW($X69)-ROW($X$15),1):OFFSET(CÁLCULO!$AL$15,ROW($X69)-ROW($X$15),-1))),IF($C69=0,0,ROUND(SomaAgrup,15-13*$AF$11))) -> 2335.68 | Y69: RA | Z69: RA | AA69: =IF($C69="S",IF($Z69="CP",$X69,IF($Z69="RA",(($X69)*QCI!$AA$3),0)),SomaAgrup) -> 626.6026154 | AB69: 0 | AC69: =IF($N69="","",IF(ORÇAMENTO.Descricao="","DESCRIÇÃO",IF(AND($C69="S",ORÇAMENTO.Unidade=""),"UNIDADE",IF($X69<0,"VALOR NEGATIVO",IF(OR(AND(TIPOORCAMENTO="Proposto",$AG69<>"",$AG69>0,ORÇAMENTO.CustoUnitario>$AG69),AND(TIPOORCAMENTO="LICITADO",ORÇAMENTO.PrecoUnitarioLicitado>$AN69)),"ACIMA REF.",""))))) ->  | AD69: =IF(C69<=CRONO.NivelExibicao,MAX($AD$15:OFFSET(AD69,-1,0))+IF($C69<>1,1,MAX(1,COUNTIF(QCI!$A$13:$A$24,OFFSET($E69,-1,0)))),"") ->  | AE69: =IF(AND($C69="S",ORÇAMENTO.CodBarra<>""),IF(ORÇAMENTO.Fonte="",ORÇAMENTO.CodBarra,CONCATENATE(ORÇAMENTO.Fonte," ",ORÇAMENTO.CodBarra))) -> SINAPI 93187 | AF69: =IF(ISERROR(INDIRECT(ORÇAMENTO.BancoRef)),"(abra o arquivo 'Referência "&Excel_BuiltIn_Database&".xlsm)",IF(OR($C69<>"S",ORÇAMENTO.CodBarra=""),"(Sem Código)",IF(ISERROR(MATCH($AE69,INDIRECT(ORÇAMENTO.BancoRef),0)),"(Código não identificado nas referências)",MATCH($AE69,INDIRECT(ORÇAMENTO.BancoRef),0)))) -> 2809 | AG69: =ROUND(IF(DESONERACAO="sim",REFERENCIA.Desonerado,REFERENCIA.NaoDesonerado),2) -> 80.55 | AH69: 0.2082 | AJ69: 24 | AM69: 2335.68 | AN69: 97.32
A70: S | B70: 2 | C70: S | D70: 0 | E70: =IF($C70=1,OFFSET(E70,-1,0)+MAX(1,COUNTIF(QCI!$A$13:$A$24,OFFSET(ORÇAMENTO!E70,-1,0))),OFFSET(E70,-1,0)) -> 1 | F70: 4 | G70: 0 | H70: 0 | I70: 4 | J70: 0 | K70: =IF(OR($C70="S",$C70=0),0,MATCH(OFFSET($D70,0,$C70)+IF($C70<>1,1,COUNTIF(QCI!$A$13:$A$24,ORÇAMENTO!E70)),OFFSET($D70,1,$C70,ROW($C$404)-ROW($C70)),0)) -> 0 | L70: F | M70: Serviço | N70: Serviço | O70: 1.4.0.0.4. | P70: SINAPI | Q70: 93197 | R70: =IF($C70="S",REFERENCIA.Descricao,"(digite a descrição aqui)") -> CONTRAVERGA MOLDADA IN LOCO EM CONCRETO, ESPESSURA DE *20* CM. AF_03/2024 | S70: =REFERENCIA.Unidade -> M | T70: =OFFSET(CÁLCULO!H$15,ROW($T70)-ROW(T$15),0) -> 24 | U70: 58.81 | V70: BDI 1 | W70: =IF($C70="S",ROUND(IF(TIPOORCAMENTO="Proposto",ORÇAMENTO.CustoUnitario*(1+$AH70),ORÇAMENTO.PrecoUnitarioLicitado),15-13*$AF$10),0) -> 71.05 | X70: =IF($C70="S",IF(Import.TipoArredondamento<>"TransfereGOV",VTOTAL1,SUM(OFFSET(CÁLCULO!$AA$15,ROW($X70)-ROW($X$15),1):OFFSET(CÁLCULO!$AL$15,ROW($X70)-ROW($X$15),-1))),IF($C70=0,0,ROUND(SomaAgrup,15-13*$AF$11))) -> 1705.2 | Y70: RA | Z70: RA | AA70: =IF($C70="S",IF($Z70="CP",$X70,IF($Z70="RA",(($X70)*QCI!$AA$3),0)),SomaAgrup) -> 457.4611162 | AB70: 0 | AC70: =IF($N70="","",IF(ORÇAMENTO.Descricao="","DESCRIÇÃO",IF(AND($C70="S",ORÇAMENTO.Unidade=""),"UNIDADE",IF($X70<0,"VALOR NEGATIVO",IF(OR(AND(TIPOORCAMENTO="Proposto",$AG70<>"",$AG70>0,ORÇAMENTO.CustoUnitario>$AG70),AND(TIPOORCAMENTO="LICITADO",ORÇAMENTO.PrecoUnitarioLicitado>$AN70)),"ACIMA REF.",""))))) ->  | AD70: =IF(C70<=CRONO.NivelExibicao,MAX($AD$15:OFFSET(AD70,-1,0))+IF($C70<>1,1,MAX(1,COUNTIF(QCI!$A$13:$A$24,OFFSET($E70,-1,0)))),"") ->  | AE70: =IF(AND($C70="S",ORÇAMENTO.CodBarra<>""),IF(ORÇAMENTO.Fonte="",ORÇAMENTO.CodBarra,CONCATENATE(ORÇAMENTO.Fonte," ",ORÇAMENTO.CodBarra))) -> SINAPI 93197 | AF70: =IF(ISERROR(INDIRECT(ORÇAMENTO.BancoRef)),"(abra o arquivo 'Referência "&Excel_BuiltIn_Database&".xlsm)",IF(OR($C70<>"S",ORÇAMENTO.CodBarra=""),"(Sem Código)",IF(ISERROR(MATCH($AE70,INDIRECT(ORÇAMENTO.BancoRef),0)),"(Código não identificado nas referências)",MATCH($AE70,INDIRECT(ORÇAMENTO.BancoRef),0)))) -> 2812 | AG70: =ROUND(IF(DESONERACAO="sim",REFERENCIA.Desonerado,REFERENCIA.NaoDesonerado),2) -> 58.81 | AH70: 0.2082 | AJ70: 24 | AM70: 1705.2 | AN70: 71.05
A71: S | B71: 2 | C71: S | D71: 0 | E71: =IF($C71=1,OFFSET(E71,-1,0)+MAX(1,COUNTIF(QCI!$A$13:$A$24,OFFSET(ORÇAMENTO!E71,-1,0))),OFFSET(E71,-1,0)) -> 1 | F71: 4 | G71: 0 | H71: 0 | I71: 5 | J71: 0 | K71: =IF(OR($C71="S",$C71=0),0,MATCH(OFFSET($D71,0,$C71)+IF($C71<>1,1,COUNTIF(QCI!$A$13:$A$24,ORÇAMENTO!E71)),OFFSET($D71,1,$C71,ROW($C$404)-ROW($C71)),0)) -> 0 | L71: F | M71: Serviço | N71: Serviço | O71: 1.4.0.0.5. | P71: SINAPI | Q71: 93197 | R71: =IF($C71="S",REFERENCIA.Descricao,"(digite a descrição aqui)") -> CONTRAVERGA MOLDADA IN LOCO EM CONCRETO, ESPESSURA DE *20* CM. AF_03/2024 | S71: =REFERENCIA.Unidade -> M | T71: =OFFSET(CÁLCULO!H$15,ROW($T71)-ROW(T$15),0) -> 23.8 | U71: 58.81 | V71: BDI 1 | W71: =IF($C71="S",ROUND(IF(TIPOORCAMENTO="Proposto",ORÇAMENTO.CustoUnitario*(1+$AH71),ORÇAMENTO.PrecoUnitarioLicitado),15-13*$AF$10),0) -> 71.05 | X71: =IF($C71="S",IF(Import.TipoArredondamento<>"TransfereGOV",VTOTAL1,SUM(OFFSET(CÁLCULO!$AA$15,ROW($X71)-ROW($X$15),1):OFFSET(CÁLCULO!$AL$15,ROW($X71)-ROW($X$15),-1))),IF($C71=0,0,ROUND(SomaAgrup,15-13*$AF$11))) -> 1690.99 | Y71: RA | Z71: RA | AA71: =IF($C71="S",IF($Z71="CP",$X71,IF($Z71="RA",(($X71)*QCI!$AA$3),0)),SomaAgrup) -> 453.6489402 | AB71: 0 | AC71: =IF($N71="","",IF(ORÇAMENTO.Descricao="","DESCRIÇÃO",IF(AND($C71="S",ORÇAMENTO.Unidade=""),"UNIDADE",IF($X71<0,"VALOR NEGATIVO",IF(OR(AND(TIPOORCAMENTO="Proposto",$AG71<>"",$AG71>0,ORÇAMENTO.CustoUnitario>$AG71),AND(TIPOORCAMENTO="LICITADO",ORÇAMENTO.PrecoUnitarioLicitado>$AN71)),"ACIMA REF.",""))))) ->  | AD71: =IF(C71<=CRONO.NivelExibicao,MAX($AD$15:OFFSET(AD71,-1,0))+IF($C71<>1,1,MAX(1,COUNTIF(QCI!$A$13:$A$24,OFFSET($E71,-1,0)))),"") ->  | AE71: =IF(AND($C71="S",ORÇAMENTO.CodBarra<>""),IF(ORÇAMENTO.Fonte="",ORÇAMENTO.CodBarra,CONCATENATE(ORÇAMENTO.Fonte," ",ORÇAMENTO.CodBarra))) -> SINAPI 93197 | AF71: =IF(ISERROR(INDIRECT(ORÇAMENTO.BancoRef)),"(abra o arquivo 'Referência "&Excel_BuiltIn_Database&".xlsm)",IF(OR($C71<>"S",ORÇAMENTO.CodBarra=""),"(Sem Código)",IF(ISERROR(MATCH($AE71,INDIRECT(ORÇAMENTO.BancoRef),0)),"(Código não identificado nas referências)",MATCH($AE71,INDIRECT(ORÇAMENTO.BancoRef),0)))) -> 2812 | AG71: =ROUND(IF(DESONERACAO="sim",REFERENCIA.Desonerado,REFERENCIA.NaoDesonerado),2) -> 58.81 | AH71: 0.2082 | AJ71: 23.8 | AM71: 1690.99 | AN71: 71.05
A72: S | B72: 2 | C72: S | D72: 0 | E72: =IF($C72=1,OFFSET(E72,-1,0)+MAX(1,COUNTIF(QCI!$A$13:$A$24,OFFSET(ORÇAMENTO!E72,-1,0))),OFFSET(E72,-1,0)) -> 1 | F72: 4 | G72: 0 | H72: 0 | I72: 6 | J72: 0 | K72: =IF(OR($C72="S",$C72=0),0,MATCH(OFFSET($D72,0,$C72)+IF($C72<>1,1,COUNTIF(QCI!$A$13:$A$24,ORÇAMENTO!E72)),OFFSET($D72,1,$C72,ROW($C$404)-ROW($C72)),0)) -> 0 | L72: F | M72: Serviço | N72: Serviço | O72: 1.4.0.0.6. | P72: SINAPI | Q72: 101161 | R72: =IF($C72="S",REFERENCIA.Descricao,"(digite a descrição aqui)") -> ALVENARIA DE VEDAÇÃO COM ELEMENTO VAZADO DE CONCRETO (COBOGÓ) DE 7X50X50CM E ARGAMASSA DE ASSENTAMENTO COM PREPARO EM BETONEIRA. AF_05/2020 | S72: =REFERENCIA.Unidade -> M2 | T72: =OFFSET(CÁLCULO!H$15,ROW($T72)-ROW(T$15),0) -> 34.37 | U72: 217.58 | V72: BDI 1 | W72: =IF($C72="S",ROUND(IF(TIPOORCAMENTO="Proposto",ORÇAMENTO.CustoUnitario*(1+$AH72),ORÇAMENTO.PrecoUnitarioLicitado),15-13*$AF$10),0) -> 262.88 | X72: =IF($C72="S",IF(Import.TipoArredondamento<>"TransfereGOV",VTOTAL1,SUM(OFFSET(CÁLCULO!$AA$15,ROW($X72)-ROW($X$15),1):OFFSET(CÁLCULO!$AL$15,ROW($X72)-ROW($X$15),-1))),IF($C72=0,0,ROUND(SomaAgrup,15-13*$AF$11))) -> 9035.19 | Y72: RA | Z72: RA | AA72: =IF($C72="S",IF($Z72="CP",$X72,IF($Z72="RA",(($X72)*QCI!$AA$3),0)),SomaAgrup) -> 2423.908106 | AB72: 0 | AC72: =IF($N72="","",IF(ORÇAMENTO.Descricao="","DESCRIÇÃO",IF(AND($C72="S",ORÇAMENTO.Unidade=""),"UNIDADE",IF($X72<0,"VALOR NEGATIVO",IF(OR(AND(TIPOORCAMENTO="Proposto",$AG72<>"",$AG72>0,ORÇAMENTO.CustoUnitario>$AG72),AND(TIPOORCAMENTO="LICITADO",ORÇAMENTO.PrecoUnitarioLicitado>$AN72)),"ACIMA REF.",""))))) ->  | AD72: =IF(C72<=CRONO.NivelExibicao,MAX($AD$15:OFFSET(AD72,-1,0))+IF($C72<>1,1,MAX(1,COUNTIF(QCI!$A$13:$A$24,OFFSET($E72,-1,0)))),"") ->  | AE72: =IF(AND($C72="S",ORÇAMENTO.CodBarra<>""),IF(ORÇAMENTO.Fonte="",ORÇAMENTO.CodBarra,CONCATENATE(ORÇAMENTO.Fonte," ",ORÇAMENTO.CodBarra))) -> SINAPI 101161 | AF72: =IF(ISERROR(INDIRECT(ORÇAMENTO.BancoRef)),"(abra o arquivo 'Referência "&Excel_BuiltIn_Database&".xlsm)",IF(OR($C72<>"S",ORÇAMENTO.CodBarra=""),"(Sem Código)",IF(ISERROR(MATCH($AE72,INDIRECT(ORÇAMENTO.BancoRef),0)),"(Código não identificado nas referências)",MATCH($AE72,INDIRECT(ORÇAMENTO.BancoRef),0)))) -> 6022 | AG72: =ROUND(IF(DESONERACAO="sim",REFERENCIA.Desonerado,REFERENCIA.NaoDesonerado),2) -> 217.58 | AH72: 0.2082 | AJ72: 34.37 | AM72: 9035.19 | AN72: 262.88
A73: 2 | B73: 2 | C73: 2 | D73: 8 | E73: =IF($C73=1,OFFSET(E73,-1,0)+MAX(1,COUNTIF(QCI!$A$13:$A$24,OFFSET(ORÇAMENTO!E73,-1,0))),OFFSET(E73,-1,0)) -> 1 | F73: 5 | G73: 0 | H73: 0 | I73: 0 | J73: 174 | K73: =IF(OR($C73="S",$C73=0),0,MATCH(OFFSET($D73,0,$C73)+IF($C73<>1,1,COUNTIF(QCI!$A$13:$A$24,ORÇAMENTO!E73)),OFFSET($D73,1,$C73,ROW($C$404)-ROW($C73)),0)) -> 8 | L73: F | M73: Nível 2 | N73: Nível 2 | O73: 1.5. | P73: SINAPI | R73: COBERTURA | S73: =REFERENCIA.Unidade -> - | T73: =OFFSET(CÁLCULO!H$15,ROW($T73)-ROW(T$15),0) -> 0 | U73: 0 | V73: BDI 1 | W73: =IF($C73="S",ROUND(IF(TIPOORCAMENTO="Proposto",ORÇAMENTO.CustoUnitario*(1+$AH73),ORÇAMENTO.PrecoUnitarioLicitado),15-13*$AF$10),0) -> 0 | X73: =IF($C73="S",IF(Import.TipoArredondamento<>"TransfereGOV",VTOTAL1,SUM(OFFSET(CÁLCULO!$AA$15,ROW($X73)-ROW($X$15),1):OFFSET(CÁLCULO!$AL$15,ROW($X73)-ROW($X$15),-1))),IF($C73=0,0,ROUND(SomaAgrup,15-13*$AF$11))) -> 87328.26 | Y73: RA | AA73: =IF($C73="S",IF($Z73="CP",$X73,IF($Z73="RA",(($X73)*QCI!$AA$3),0)),SomaAgrup) -> 23427.91655 | AB73: 0 | AC73: =IF($N73="","",IF(ORÇAMENTO.Descricao="","DESCRIÇÃO",IF(AND($C73="S",ORÇAMENTO.Unidade=""),"UNIDADE",IF($X73<0,"VALOR NEGATIVO",IF(OR(AND(TIPOORCAMENTO="Proposto",$AG73<>"",$AG73>0,ORÇAMENTO.CustoUnitario>$AG73),AND(TIPOORCAMENTO="LICITADO",ORÇAMENTO.PrecoUnitarioLicitado>$AN73)),"ACIMA REF.",""))))) ->  | AD73: =IF(C73<=CRONO.NivelExibicao,MAX($AD$15:OFFSET(AD73,-1,0))+IF($C73<>1,1,MAX(1,COUNTIF(QCI!$A$13:$A$24,OFFSET($E73,-1,0)))),"") -> 6 | AE73: =IF(AND($C73="S",ORÇAMENTO.CodBarra<>""),IF(ORÇAMENTO.Fonte="",ORÇAMENTO.CodBarra,CONCATENATE(ORÇAMENTO.Fonte," ",ORÇAMENTO.CodBarra))) -> FALSE | AF73: =IF(ISERROR(INDIRECT(ORÇAMENTO.BancoRef)),"(abra o arquivo 'Referência "&Excel_BuiltIn_Database&".xlsm)",IF(OR($C73<>"S",ORÇAMENTO.CodBarra=""),"(Sem Código)",IF(ISERROR(MATCH($AE73,INDIRECT(ORÇAMENTO.BancoRef),0)),"(Código não identificado nas referências)",MATCH($AE73,INDIRECT(ORÇAMENTO.BancoRef),0)))) -> (Sem Código) | AG73: =ROUND(IF(DESONERACAO="sim",REFERENCIA.Desonerado,REFERENCIA.NaoDesonerado),2) -> 0 | AH73: 0.2082 | AM73: 87328.26 | AN73: 0
A74: S | B74: 2 | C74: S | D74: 0 | E74: =IF($C74=1,OFFSET(E74,-1,0)+MAX(1,COUNTIF(QCI!$A$13:$A$24,OFFSET(ORÇAMENTO!E74,-1,0))),OFFSET(E74,-1,0)) -> 1 | F74: 5 | G74: 0 | H74: 0 | I74: 1 | J74: 0 | K74: =IF(OR($C74="S",$C74=0),0,MATCH(OFFSET($D74,0,$C74)+IF($C74<>1,1,COUNTIF(QCI!$A$13:$A$24,ORÇAMENTO!E74)),OFFSET($D74,1,$C74,ROW($C$404)-ROW($C74)),0)) -> 0 | L74: F | M74: Serviço | N74: Serviço | O74: 1.5.0.0.1. | P74: SINAPI | Q74: 92542 | R74: =IF($C74="S",REFERENCIA.Descricao,"(digite a descrição aqui)") -> TRAMA DE MADEIRA COMPOSTA POR RIPAS, CAIBROS E TERÇAS PARA TELHADOS DE MAIS QUE 2 ÁGUAS PARA TELHA CERÂMICA CAPA-CANAL, INCLUSO TRANSPORTE VERTICAL. AF_07/2019 | S74: =REFERENCIA.Unidade -> M2 | T74: =OFFSET(CÁLCULO!H$15,ROW($T74)-ROW(T$15),0) -> 286.02 | U74: 114.26 | V74: BDI 1 | W74: =IF($C74="S",ROUND(IF(TIPOORCAMENTO="Proposto",ORÇAMENTO.CustoUnitario*(1+$AH74),ORÇAMENTO.PrecoUnitarioLicitado),15-13*$AF$10),0) -> 138.05 | X74: =IF($C74="S",IF(Import.TipoArredondamento<>"TransfereGOV",VTOTAL1,SUM(OFFSET(CÁLCULO!$AA$15,ROW($X74)-ROW($X$15),1):OFFSET(CÁLCULO!$AL$15,ROW($X74)-ROW($X$15),-1))),IF($C74=0,0,ROUND(SomaAgrup,15-13*$AF$11))) -> 39485.06 | Y74: RA | Z74: RA | AA74: =IF($C74="S",IF($Z74="CP",$X74,IF($Z74="RA",(($X74)*QCI!$AA$3),0)),SomaAgrup) -> 10592.82173 | AB74: 0 | AC74: =IF($N74="","",IF(ORÇAMENTO.Descricao="","DESCRIÇÃO",IF(AND($C74="S",ORÇAMENTO.Unidade=""),"UNIDADE",IF($X74<0,"VALOR NEGATIVO",IF(OR(AND(TIPOORCAMENTO="Proposto",$AG74<>"",$AG74>0,ORÇAMENTO.CustoUnitario>$AG74),AND(TIPOORCAMENTO="LICITADO",ORÇAMENTO.PrecoUnitarioLicitado>$AN74)),"ACIMA REF.",""))))) ->  | AD74: =IF(C74<=CRONO.NivelExibicao,MAX($AD$15:OFFSET(AD74,-1,0))+IF($C74<>1,1,MAX(1,COUNTIF(QCI!$A$13:$A$24,OFFSET($E74,-1,0)))),"") ->  | AE74: =IF(AND($C74="S",ORÇAMENTO.CodBarra<>""),IF(ORÇAMENTO.Fonte="",ORÇAMENTO.CodBarra,CONCATENATE(ORÇAMENTO.Fonte," ",ORÇAMENTO.CodBarra))) -> SINAPI 92542 | AF74: =IF(ISERROR(INDIRECT(ORÇAMENTO.BancoRef)),"(abra o arquivo 'Referência "&Excel_BuiltIn_Database&".xlsm)",IF(OR($C74<>"S",ORÇAMENTO.CodBarra=""),"(Sem Código)",IF(ISERROR(MATCH($AE74,INDIRECT(ORÇAMENTO.BancoRef),0)),"(Código não identificado nas referências)",MATCH($AE74,INDIRECT(ORÇAMENTO.BancoRef),0)))) -> 1481 | AG74: =ROUND(IF(DESONERACAO="sim",REFERENCIA.Desonerado,REFERENCIA.NaoDesonerado),2) -> 114.26 | AH74: 0.2082 | AJ74: 286.02 | AM74: 39485.06 | AN74: 138.05
A75: S | B75: 2 | C75: S | D75: 0 | E75: =IF($C75=1,OFFSET(E75,-1,0)+MAX(1,COUNTIF(QCI!$A$13:$A$24,OFFSET(ORÇAMENTO!E75,-1,0))),OFFSET(E75,-1,0)) -> 1 | F75: 5 | G75: 0 | H75: 0 | I75: 2 | J75: 0 | K75: =IF(OR($C75="S",$C75=0),0,MATCH(OFFSET($D75,0,$C75)+IF($C75<>1,1,COUNTIF(QCI!$A$13:$A$24,ORÇAMENTO!E75)),OFFSET($D75,1,$C75,ROW($C$404)-ROW($C75)),0)) -> 0 | L75: F | M75: Serviço | N75: Serviço | O75: 1.5.0.0.2. | P75: SINAPI | Q75: 100380 | R75: =IF($C75="S",REFERENCIA.Descricao,"(digite a descrição aqui)") -> FABRICAÇÃO E INSTALAÇÃO DE PONTALETES DE MADEIRA NÃO APARELHADA PARA TELHADOS COM ATÉ 2 ÁGUAS E COM TELHA CERÂMICA OU DE CONCRETO EM EDIFÍCIO RESIDENCIAL DE MÚLTIPLOS PAVIMENTOS, INCLUSO TRANSPORTE VERTICAL. AF_07/2019 | S75: =REFERENCIA.Unidade -> M2 | T75: =OFFSET(CÁLCULO!H$15,ROW($T75)-ROW(T$15),0) -> 286.02 | U75: 57.78 | V75: BDI 1 | W75: =IF($C75="S",ROUND(IF(TIPOORCAMENTO="Proposto",ORÇAMENTO.CustoUnitario*(1+$AH75),ORÇAMENTO.PrecoUnitarioLicitado),15-13*$AF$10),0) -> 69.81 | X75: =IF($C75="S",IF(Import.TipoArredondamento<>"TransfereGOV",VTOTAL1,SUM(OFFSET(CÁLCULO!$AA$15,ROW($X75)-ROW($X$15),1):OFFSET(CÁLCULO!$AL$15,ROW($X75)-ROW($X$15),-1))),IF($C75=0,0,ROUND(SomaAgrup,15-13*$AF$11))) -> 19967.06 | Y75: RA | Z75: RA | AA75: =IF($C75="S",IF($Z75="CP",$X75,IF($Z75="RA",(($X75)*QCI!$AA$3),0)),SomaAgrup) -> 5356.646466 | AB75: 0 | AC75: =IF($N75="","",IF(ORÇAMENTO.Descricao="","DESCRIÇÃO",IF(AND($C75="S",ORÇAMENTO.Unidade=""),"UNIDADE",IF($X75<0,"VALOR NEGATIVO",IF(OR(AND(TIPOORCAMENTO="Proposto",$AG75<>"",$AG75>0,ORÇAMENTO.CustoUnitario>$AG75),AND(TIPOORCAMENTO="LICITADO",ORÇAMENTO.PrecoUnitarioLicitado>$AN75)),"ACIMA REF.",""))))) ->  | AD75: =IF(C75<=CRONO.NivelExibicao,MAX($AD$15:OFFSET(AD75,-1,0))+IF($C75<>1,1,MAX(1,COUNTIF(QCI!$A$13:$A$24,OFFSET($E75,-1,0)))),"") ->  | AE75: =IF(AND($C75="S",ORÇAMENTO.CodBarra<>""),IF(ORÇAMENTO.Fonte="",ORÇAMENTO.CodBarra,CONCATENATE(ORÇAMENTO.Fonte," ",ORÇAMENTO.CodBarra))) -> SINAPI 100380 | AF75: =IF(ISERROR(INDIRECT(ORÇAMENTO.BancoRef)),"(abra o arquivo 'Referência "&Excel_BuiltIn_Database&".xlsm)",IF(OR($C75<>"S",ORÇAMENTO.CodBarra=""),"(Sem Código)",IF(ISERROR(MATCH($AE75,INDIRECT(ORÇAMENTO.BancoRef),0)),"(Código não identificado nas referências)",MATCH($AE75,INDIRECT(ORÇAMENTO.BancoRef),0)))) -> 1505 | AG75: =ROUND(IF(DESONERACAO="sim",REFERENCIA.Desonerado,REFERENCIA.NaoDesonerado),2) -> 57.78 | AH75: 0.2082 | AJ75: 286.02 | AM75: 19967.06 | AN75: 69.81
A76: S | B76: 2 | C76: S | D76: 0 | E76: =IF($C76=1,OFFSET(E76,-1,0)+MAX(1,COUNTIF(QCI!$A$13:$A$24,OFFSET(ORÇAMENTO!E76,-1,0))),OFFSET(E76,-1,0)) -> 1 | F76: 5 | G76: 0 | H76: 0 | I76: 3 | J76: 0 | K76: =IF(OR($C76="S",$C76=0),0,MATCH(OFFSET($D76,0,$C76)+IF($C76<>1,1,COUNTIF(QCI!$A$13:$A$24,ORÇAMENTO!E76)),OFFSET($D76,1,$C76,ROW($C$404)-ROW($C76)),0)) -> 0 | L76: F | M76: Serviço | N76: Serviço | O76: 1.5.0.0.3. | P76: SINAPI | Q76: 94441 | R76: =IF($C76="S",REFERENCIA.Descricao,"(digite a descrição aqui)") -> TELHAMENTO COM TELHA CERÂMICA DE ENCAIXE, TIPO FRANCESA, COM MAIS DE 2 ÁGUAS, INCLUSO TRANSPORTE VERTICAL. AF_07/2019 | S76: =REFERENCIA.Unidade -> M2 | T76: =OFFSET(CÁLCULO!H$15,ROW($T76)-ROW(T$15),0) -> 286.02 | U76: 45.09 | V76: BDI 1 | W76: =IF($C76="S",ROUND(IF(TIPOORCAMENTO="Proposto",ORÇAMENTO.CustoUnitario*(1+$AH76),ORÇAMENTO.PrecoUnitarioLicitado),15-13*$AF$10),0) -> 54.48 | X76: =IF($C76="S",IF(Import.TipoArredondamento<>"TransfereGOV",VTOTAL1,SUM(OFFSET(CÁLCULO!$AA$15,ROW($X76)-ROW($X$15),1):OFFSET(CÁLCULO!$AL$15,ROW($X76)-ROW($X$15),-1))),IF($C76=0,0,ROUND(SomaAgrup,15-13*$AF$11))) -> 15582.37 | Y76: RA | Z76: RA | AA76: =IF($C76="S",IF($Z76="CP",$X76,IF($Z76="RA",(($X76)*QCI!$AA$3),0)),SomaAgrup) -> 4180.347392 | AB76: 0 | AC76: =IF($N76="","",IF(ORÇAMENTO.Descricao="","DESCRIÇÃO",IF(AND($C76="S",ORÇAMENTO.Unidade=""),"UNIDADE",IF($X76<0,"VALOR NEGATIVO",IF(OR(AND(TIPOORCAMENTO="Proposto",$AG76<>"",$AG76>0,ORÇAMENTO.CustoUnitario>$AG76),AND(TIPOORCAMENTO="LICITADO",ORÇAMENTO.PrecoUnitarioLicitado>$AN76)),"ACIMA REF.",""))))) ->  | AD76: =IF(C76<=CRONO.NivelExibicao,MAX($AD$15:OFFSET(AD76,-1,0))+IF($C76<>1,1,MAX(1,COUNTIF(QCI!$A$13:$A$24,OFFSET($E76,-1,0)))),"") ->  | AE76: =IF(AND($C76="S",ORÇAMENTO.CodBarra<>""),IF(ORÇAMENTO.Fonte="",ORÇAMENTO.CodBarra,CONCATENATE(ORÇAMENTO.Fonte," ",ORÇAMENTO.CodBarra))) -> SINAPI 94441 | AF76: =IF(ISERROR(INDIRECT(ORÇAMENTO.BancoRef)),"(abra o arquivo 'Referência "&Excel_BuiltIn_Database&".xlsm)",IF(OR($C76<>"S",ORÇAMENTO.CodBarra=""),"(Sem Código)",IF(ISERROR(MATCH($AE76,INDIRECT(ORÇAMENTO.BancoRef),0)),"(Código não identificado nas referências)",MATCH($AE76,INDIRECT(ORÇAMENTO.BancoRef),0)))) -> 1530 | AG76: =ROUND(IF(DESONERACAO="sim",REFERENCIA.Desonerado,REFERENCIA.NaoDesonerado),2) -> 45.09 | AH76: 0.2082 | AJ76: 286.02 | AM76: 15582.37 | AN76: 54.48
A77: S | B77: 2 | C77: S | D77: 0 | E77: =IF($C77=1,OFFSET(E77,-1,0)+MAX(1,COUNTIF(QCI!$A$13:$A$24,OFFSET(ORÇAMENTO!E77,-1,0))),OFFSET(E77,-1,0)) -> 1 | F77: 5 | G77: 0 | H77: 0 | I77: 4 | J77: 0 | K77: =IF(OR($C77="S",$C77=0),0,MATCH(OFFSET($D77,0,$C77)+IF($C77<>1,1,COUNTIF(QCI!$A$13:$A$24,ORÇAMENTO!E77)),OFFSET($D77,1,$C77,ROW($C$404)-ROW($C77)),0)) -> 0 | L77: F | M77: Serviço | N77: Serviço | O77: 1.5.0.0.4. | P77: SINAPI | Q77: 94219 | R77: =IF($C77="S",REFERENCIA.Descricao,"(digite a descrição aqui)") -> CUMEEIRA E ESPIGÃO PARA TELHA CERÂMICA EMBOÇADA COM ARGAMASSA TRAÇO 1:2:9 (CIMENTO, CAL E AREIA), PARA TELHADOS COM MAIS DE 2 ÁGUAS, INCLUSO TRANSPORTE VERTICAL. AF_07/2019 | S77: =REFERENCIA.Unidade -> M | T77: =OFFSET(CÁLCULO!H$15,ROW($T77)-ROW(T$15),0) -> 56.81 | U77: 37.94 | V77: BDI 1 | W77: =IF($C77="S",ROUND(IF(TIPOORCAMENTO="Proposto",ORÇAMENTO.CustoUnitario*(1+$AH77),ORÇAMENTO.PrecoUnitarioLicitado),15-13*$AF$10),0) -> 45.84 | X77: =IF($C77="S",IF(Import.TipoArredondamento<>"TransfereGOV",VTOTAL1,SUM(OFFSET(CÁLCULO!$AA$15,ROW($X77)-ROW($X$15),1):OFFSET(CÁLCULO!$AL$15,ROW($X77)-ROW($X$15),-1))),IF($C77=0,0,ROUND(SomaAgrup,15-13*$AF$11))) -> 2604.17 | Y77: RA | Z77: RA | AA77: =IF($C77="S",IF($Z77="CP",$X77,IF($Z77="RA",(($X77)*QCI!$AA$3),0)),SomaAgrup) -> 698.6315476 | AB77: 0 | AC77: =IF($N77="","",IF(ORÇAMENTO.Descricao="","DESCRIÇÃO",IF(AND($C77="S",ORÇAMENTO.Unidade=""),"UNIDADE",IF($X77<0,"VALOR NEGATIVO",IF(OR(AND(TIPOORCAMENTO="Proposto",$AG77<>"",$AG77>0,ORÇAMENTO.CustoUnitario>$AG77),AND(TIPOORCAMENTO="LICITADO",ORÇAMENTO.PrecoUnitarioLicitado>$AN77)),"ACIMA REF.",""))))) ->  | AD77: =IF(C77<=CRONO.NivelExibicao,MAX($AD$15:OFFSET(AD77,-1,0))+IF($C77<>1,1,MAX(1,COUNTIF(QCI!$A$13:$A$24,OFFSET($E77,-1,0)))),"") ->  | AE77: =IF(AND($C77="S",ORÇAMENTO.CodBarra<>""),IF(ORÇAMENTO.Fonte="",ORÇAMENTO.CodBarra,CONCATENATE(ORÇAMENTO.Fonte," ",ORÇAMENTO.CodBarra))) -> SINAPI 94219 | AF77: =IF(ISERROR(INDIRECT(ORÇAMENTO.BancoRef)),"(abra o arquivo 'Referência "&Excel_BuiltIn_Database&".xlsm)",IF(OR($C77<>"S",ORÇAMENTO.CodBarra=""),"(Sem Código)",IF(ISERROR(MATCH($AE77,INDIRECT(ORÇAMENTO.BancoRef),0)),"(Código não identificado nas referências)",MATCH($AE77,INDIRECT(ORÇAMENTO.BancoRef),0)))) -> 1542 | AG77: =ROUND(IF(DESONERACAO="sim",REFERENCIA.Desonerado,REFERENCIA.NaoDesonerado),2) -> 37.94 | AH77: 0.2082 | AJ77: 56.81 | AM77: =$X77 -> 2604.17 | AN77: 45.84
A78: S | B78: 2 | C78: S | D78: 0 | E78: =IF($C78=1,OFFSET(E78,-1,0)+MAX(1,COUNTIF(QCI!$A$13:$A$24,OFFSET(ORÇAMENTO!E78,-1,0))),OFFSET(E78,-1,0)) -> 1 | F78: 5 | G78: 0 | H78: 0 | I78: 5 | J78: 0 | K78: =IF(OR($C78="S",$C78=0),0,MATCH(OFFSET($D78,0,$C78)+IF($C78<>1,1,COUNTIF(QCI!$A$13:$A$24,ORÇAMENTO!E78)),OFFSET($D78,1,$C78,ROW($C$404)-ROW($C78)),0)) -> 0 | L78: F | M78: Serviço | N78: Serviço | O78: 1.5.0.0.5. | P78: SINAPI | Q78: 94227 | R78: =IF($C78="S",REFERENCIA.Descricao,"(digite a descrição aqui)") -> CALHA EM CHAPA DE AÇO GALVANIZADO NÚMERO 24, DESENVOLVIMENTO DE 33 CM, INCLUSO TRANSPORTE VERTICAL. AF_07/2019 | S78: =REFERENCIA.Unidade -> M | T78: =OFFSET(CÁLCULO!H$15,ROW($T78)-ROW(T$15),0) -> 61.43 | U78: 64.22 | V78: BDI 1 | W78: =IF($C78="S",ROUND(IF(TIPOORCAMENTO="Proposto",ORÇAMENTO.CustoUnitario*(1+$AH78),ORÇAMENTO.PrecoUnitarioLicitado),15-13*$AF$10),0) -> 77.59 | X78: =IF($C78="S",IF(Import.TipoArredondamento<>"TransfereGOV",VTOTAL1,SUM(OFFSET(CÁLCULO!$AA$15,ROW($X78)-ROW($X$15),1):OFFSET(CÁLCULO!$AL$15,ROW($X78)-ROW($X$15),-1))),IF($C78=0,0,ROUND(SomaAgrup,15-13*$AF$11))) -> 4766.35 | Y78: RA | Z78: RA | AA78: =IF($C78="S",IF($Z78="CP",$X78,IF($Z78="RA",(($X78)*QCI!$AA$3),0)),SomaAgrup) -> 1278.688594 | AB78: 0 | AC78: =IF($N78="","",IF(ORÇAMENTO.Descricao="","DESCRIÇÃO",IF(AND($C78="S",ORÇAMENTO.Unidade=""),"UNIDADE",IF($X78<0,"VALOR NEGATIVO",IF(OR(AND(TIPOORCAMENTO="Proposto",$AG78<>"",$AG78>0,ORÇAMENTO.CustoUnitario>$AG78),AND(TIPOORCAMENTO="LICITADO",ORÇAMENTO.PrecoUnitarioLicitado>$AN78)),"ACIMA REF.",""))))) ->  | AD78: =IF(C78<=CRONO.NivelExibicao,MAX($AD$15:OFFSET(AD78,-1,0))+IF($C78<>1,1,MAX(1,COUNTIF(QCI!$A$13:$A$24,OFFSET($E78,-1,0)))),"") ->  | AE78: =IF(AND($C78="S",ORÇAMENTO.CodBarra<>""),IF(ORÇAMENTO.Fonte="",ORÇAMENTO.CodBarra,CONCATENATE(ORÇAMENTO.Fonte," ",ORÇAMENTO.CodBarra))) -> SINAPI 94227 | AF78: =IF(ISERROR(INDIRECT(ORÇAMENTO.BancoRef)),"(abra o arquivo 'Referência "&Excel_BuiltIn_Database&".xlsm)",IF(OR($C78<>"S",ORÇAMENTO.CodBarra=""),"(Sem Código)",IF(ISERROR(MATCH($AE78,INDIRECT(ORÇAMENTO.BancoRef),0)),"(Código não identificado nas referências)",MATCH($AE78,INDIRECT(ORÇAMENTO.BancoRef),0)))) -> 1556 | AG78: =ROUND(IF(DESONERACAO="sim",REFERENCIA.Desonerado,REFERENCIA.NaoDesonerado),2) -> 64.22 | AH78: 0.2082 | AJ78: 61.43 | AM78: 4766.35 | AN78: 77.59
A79: =CHOOSE(1+LOG(1+2*(ORÇAMENTO.Nivel="Meta")+4*(ORÇAMENTO.Nivel="Nível 2")+8*(ORÇAMENTO.Nivel="Nível 3")+16*(ORÇAMENTO.Nivel="Nível 4")+32*(ORÇAMENTO.Nivel="Serviço"),2),0,1,2,3,4,"S") -> S | B79: =IF(OR(C79="s",C79=0),OFFSET(B79,-1,0),C79) -> 2 | C79: =IF(OFFSET(C79,-1,0)="L",1,IF(OFFSET(C79,-1,0)=1,2,IF(OR(A79="s",A79=0),"S",IF(AND(OFFSET(C79,-1,0)=2,A79=4),3,IF(AND(OR(OFFSET(C79,-1,0)="s",OFFSET(C79,-1,0)=0),A79<>"s",A79>OFFSET(B79,-1,0)),OFFSET(B79,-1,0),A79))))) -> S | D79: =IF(OR(C79="S",C79=0),0,IF(ISERROR(K79),J79,SMALL(J79:K79,1))) -> 0 | E79: =IF($C79=1,OFFSET(E79,-1,0)+MAX(1,COUNTIF(QCI!$A$13:$A$24,OFFSET(ORÇAMENTO!E79,-1,0))),OFFSET(E79,-1,0)) -> 1 | F79: =IF($C79=1,0,IF($C79=2,OFFSET(F79,-1,0)+1,OFFSET(F79,-1,0))) -> 5 | G79: =IF(AND($C79<=2,$C79<>0),0,IF($C79=3,OFFSET(G79,-1,0)+1,OFFSET(G79,-1,0))) -> 0 | H79: =IF(AND($C79<=3,$C79<>0),0,IF($C79=4,OFFSET(H79,-1,0)+1,OFFSET(H79,-1,0))) -> 0 | I79: =IF(AND($C79<=4,$C79<>0),0,IF(AND($C79="S",$X79>0),OFFSET(I79,-1,0)+1,OFFSET(I79,-1,0))) -> 6 | J79: 0 | K79: =IF(OR($C79="S",$C79=0),0,MATCH(OFFSET($D79,0,$C79)+IF($C79<>1,1,COUNTIF(QCI!$A$13:$A$24,ORÇAMENTO!E79)),OFFSET($D79,1,$C79,ROW($C$404)-ROW($C79)),0)) -> 0 | L79: =IF(OR($X79>0,$C79=1,$C79=2,$C79=3,$C79=4),"F","") -> F | M79: Serviço | N79: =CHOOSE(1+LOG(1+2*(C79=1)+4*(C79=2)+8*(C79=3)+16*(C79=4)+32*(C79="S"),2),"","Meta","Nível 2","Nível 3","Nível 4","Serviço") -> Serviço | O79: =IF(OR($C79=0,$L79=""),"-",CONCATENATE(E79&".",IF(AND($A$5>=2,$C79>=2),F79&".",""),IF(AND($A$5>=3,$C79>=3),G79&".",""),IF(AND($A$5>=4,$C79>=4),H79&".",""),IF($C79="S",I79&".",""))) -> 1.5.0.0.6. | P79: Composição | Q79: 014 | R79: =IF($C79="S",REFERENCIA.Descricao,"(digite a descrição aqui)") -> CALHA PARA AGUA FURTADA DE CHAPA DE ACO GALVANIZADA NUM 26, CORTE 50 CM - FORNECIMENTO E INSTALAÇÃO | S79: =REFERENCIA.Unidade -> M | T79: =OFFSET(CÁLCULO!H$15,ROW($T79)-ROW(T$15),0) -> 14.26 | U79: 38.84 | V79: BDI 1 | W79: =IF($C79="S",ROUND(IF(TIPOORCAMENTO="Proposto",ORÇAMENTO.CustoUnitario*(1+$AH79),ORÇAMENTO.PrecoUnitarioLicitado),15-13*$AF$10),0) -> 46.93 | X79: =IF($C79="S",IF(Import.TipoArredondamento<>"TransfereGOV",VTOTAL1,SUM(OFFSET(CÁLCULO!$AA$15,ROW($X79)-ROW($X$15),1):OFFSET(CÁLCULO!$AL$15,ROW($X79)-ROW($X$15),-1))),IF($C79=0,0,ROUND(SomaAgrup,15-13*$AF$11))) -> 669.22 | Y79: RA | Z79: =IF(AND($C79="S",$X79>0),IF(ISBLANK($Y79),"RA",LEFT($Y79,2)),"") -> RA | AA79: =IF($C79="S",IF($Z79="CP",$X79,IF($Z79="RA",(($X79)*QCI!$AA$3),0)),SomaAgrup) -> 179.5344406 | AB79: =IF($C79="S",IF($Z79="OU",ROUND($X79,2),0),SomaAgrup) -> 0 | AC79: =IF($N79="","",IF(ORÇAMENTO.Descricao="","DESCRIÇÃO",IF(AND($C79="S",ORÇAMENTO.Unidade=""),"UNIDADE",IF($X79<0,"VALOR NEGATIVO",IF(OR(AND(TIPOORCAMENTO="Proposto",$AG79<>"",$AG79>0,ORÇAMENTO.CustoUnitario>$AG79),AND(TIPOORCAMENTO="LICITADO",ORÇAMENTO.PrecoUnitarioLicitado>$AN79)),"ACIMA REF.",""))))) ->  | AD79: =IF(C79<=CRONO.NivelExibicao,MAX($AD$15:OFFSET(AD79,-1,0))+IF($C79<>1,1,MAX(1,COUNTIF(QCI!$A$13:$A$24,OFFSET($E79,-1,0)))),"") ->  | AE79: =IF(AND($C79="S",ORÇAMENTO.CodBarra<>""),IF(ORÇAMENTO.Fonte="",ORÇAMENTO.CodBarra,CONCATENATE(ORÇAMENTO.Fonte," ",ORÇAMENTO.CodBarra))) -> Composição 014 | AF79: =IF(ISERROR(INDIRECT(ORÇAMENTO.BancoRef)),"(abra o arquivo 'Referência "&Excel_BuiltIn_Database&".xlsm)",IF(OR($C79<>"S",ORÇAMENTO.CodBarra=""),"(Sem Código)",IF(ISERROR(MATCH($AE79,INDIRECT(ORÇAMENTO.BancoRef),0)),"(Código não identificado nas referências)",MATCH($AE79,INDIRECT(ORÇAMENTO.BancoRef),0)))) -> 16 | AG79: =ROUND(IF(DESONERACAO="sim",REFERENCIA.Desonerado,REFERENCIA.NaoDesonerado),2) -> 38.84 | AH79: =ROUND(IF(ISNUMBER(ORÇAMENTO.OpcaoBDI),ORÇAMENTO.OpcaoBDI,IF(LEFT(ORÇAMENTO.OpcaoBDI,3)="BDI",HLOOKUP(ORÇAMENTO.OpcaoBDI,$F$4:$H$5,2,FALSE),0)),15-11*$AF$9) -> 0.2082 | AJ79: 14.26 | AM79: =$X79 -> 669.22 | AN79: =ROUND(ORÇAMENTO.CustoUnitario*(1+$AH79),2) -> 46.93
A80: S | B80: 2 | C80: S | D80: 0 | E80: =IF($C80=1,OFFSET(E80,-1,0)+MAX(1,COUNTIF(QCI!$A$13:$A$24,OFFSET(ORÇAMENTO!E80,-1,0))),OFFSET(E80,-1,0)) -> 1 | F80: 5 | G80: 0 | H80: 0 | I80: 7 | J80: =IF(OR($C80="S",$C80=0),0,MATCH(0,OFFSET($D80,1,$C80,ROW($C$404)-ROW($C80)),0)) -> 0 | K80: =IF(OR($C80="S",$C80=0),0,MATCH(OFFSET($D80,0,$C80)+IF($C80<>1,1,COUNTIF(QCI!$A$13:$A$24,ORÇAMENTO!E80)),OFFSET($D80,1,$C80,ROW($C$404)-ROW($C80)),0)) -> 0 | L80: F | M80: Serviço | N80: Serviço | O80: 1.5.0.0.7. | P80: Composição | Q80: 013 | R80: =IF($C80="S",REFERENCIA.Descricao,"(digite a descrição aqui)") -> INSTALAÇÃO DE ESPELHO DE MADEIRA EM TELHADO COM MADEIRA TRATADA - 20CM - FORNECIMENTO E INSTALAÇÃO | S80: =REFERENCIA.Unidade -> M | T80: =OFFSET(CÁLCULO!H$15,ROW($T80)-ROW(T$15),0) -> 61.43 | U80: 57.32 | V80: BDI 1 | W80: =IF($C80="S",ROUND(IF(TIPOORCAMENTO="Proposto",ORÇAMENTO.CustoUnitario*(1+$AH80),ORÇAMENTO.PrecoUnitarioLicitado),15-13*$AF$10),0) -> 69.25 | X80: =IF($C80="S",IF(Import.TipoArredondamento<>"TransfereGOV",VTOTAL1,SUM(OFFSET(CÁLCULO!$AA$15,ROW($X80)-ROW($X$15),1):OFFSET(CÁLCULO!$AL$15,ROW($X80)-ROW($X$15),-1))),IF($C80=0,0,ROUND(SomaAgrup,15-13*$AF$11))) -> 4254.03 | Y80: RA | Z80: RA | AA80: =IF($C80="S",IF($Z80="CP",$X80,IF($Z80="RA",(($X80)*QCI!$AA$3),0)),SomaAgrup) -> 1141.246371 | AB80: 0 | AC80: =IF($N80="","",IF(ORÇAMENTO.Descricao="","DESCRIÇÃO",IF(AND($C80="S",ORÇAMENTO.Unidade=""),"UNIDADE",IF($X80<0,"VALOR NEGATIVO",IF(OR(AND(TIPOORCAMENTO="Proposto",$AG80<>"",$AG80>0,ORÇAMENTO.CustoUnitario>$AG80),AND(TIPOORCAMENTO="LICITADO",ORÇAMENTO.PrecoUnitarioLicitado>$AN80)),"ACIMA REF.",""))))) ->  | AD80: =IF(C80<=CRONO.NivelExibicao,MAX($AD$15:OFFSET(AD80,-1,0))+IF($C80<>1,1,MAX(1,COUNTIF(QCI!$A$13:$A$24,OFFSET($E80,-1,0)))),"") ->  | AE80: =IF(AND($C80="S",ORÇAMENTO.CodBarra<>""),IF(ORÇAMENTO.Fonte="",ORÇAMENTO.CodBarra,CONCATENATE(ORÇAMENTO.Fonte," ",ORÇAMENTO.CodBarra))) -> Composição 013 | AF80: =IF(ISERROR(INDIRECT(ORÇAMENTO.BancoRef)),"(abra o arquivo 'Referência "&Excel_BuiltIn_Database&".xlsm)",IF(OR($C80<>"S",ORÇAMENTO.CodBarra=""),"(Sem Código)",IF(ISERROR(MATCH($AE80,INDIRECT(ORÇAMENTO.BancoRef),0)),"(Código não identificado nas referências)",MATCH($AE80,INDIRECT(ORÇAMENTO.BancoRef),0)))) -> 15 | AG80: =ROUND(IF(DESONERACAO="sim",REFERENCIA.Desonerado,REFERENCIA.NaoDesonerado),2) -> 57.32 | AH80: 0.2082 | AJ80: 61.43 | AM80: 4254.03 | AN80: 69.25
A81: 2 | B81: 2 | C81: 2 | D81: 15 | E81: =IF($C81=1,OFFSET(E81,-1,0)+MAX(1,COUNTIF(QCI!$A$13:$A$24,OFFSET(ORÇAMENTO!E81,-1,0))),OFFSET(E81,-1,0)) -> 1 | F81: 6 | G81: 0 | H81: 0 | I81: 0 | J81: 166 | K81: =IF(OR($C81="S",$C81=0),0,MATCH(OFFSET($D81,0,$C81)+IF($C81<>1,1,COUNTIF(QCI!$A$13:$A$24,ORÇAMENTO!E81)),OFFSET($D81,1,$C81,ROW($C$404)-ROW($C81)),0)) -> 15 | L81: F | M81: Nível 2 | N81: Nível 2 | O81: 1.6. | P81: SINAPI | R81: REVESTIMENTOS | S81: =REFERENCIA.Unidade -> - | T81: =OFFSET(CÁLCULO!H$15,ROW($T81)-ROW(T$15),0) -> 0 | U81: 0 | V81: BDI 1 | W81: =IF($C81="S",ROUND(IF(TIPOORCAMENTO="Proposto",ORÇAMENTO.CustoUnitario*(1+$AH81),ORÇAMENTO.PrecoUnitarioLicitado),15-13*$AF$10),0) -> 0 | X81: =IF($C81="S",IF(Import.TipoArredondamento<>"TransfereGOV",VTOTAL1,SUM(OFFSET(CÁLCULO!$AA$15,ROW($X81)-ROW($X$15),1):OFFSET(CÁLCULO!$AL$15,ROW($X81)-ROW($X$15),-1))),IF($C81=0,0,ROUND(SomaAgrup,15-13*$AF$11))) -> 304389.36 | Y81: RA | AA81: =IF($C81="S",IF($Z81="CP",$X81,IF($Z81="RA",(($X81)*QCI!$AA$3),0)),SomaAgrup) -> 81659.80318 | AB81: 0 | AC81: =IF($N81="","",IF(ORÇAMENTO.Descricao="","DESCRIÇÃO",IF(AND($C81="S",ORÇAMENTO.Unidade=""),"UNIDADE",IF($X81<0,"VALOR NEGATIVO",IF(OR(AND(TIPOORCAMENTO="Proposto",$AG81<>"",$AG81>0,ORÇAMENTO.CustoUnitario>$AG81),AND(TIPOORCAMENTO="LICITADO",ORÇAMENTO.PrecoUnitarioLicitado>$AN81)),"ACIMA REF.",""))))) ->  | AD81: =IF(C81<=CRONO.NivelExibicao,MAX($AD$15:OFFSET(AD81,-1,0))+IF($C81<>1,1,MAX(1,COUNTIF(QCI!$A$13:$A$24,OFFSET($E81,-1,0)))),"") -> 7 | AE81: =IF(AND($C81="S",ORÇAMENTO.CodBarra<>""),IF(ORÇAMENTO.Fonte="",ORÇAMENTO.CodBarra,CONCATENATE(ORÇAMENTO.Fonte," ",ORÇAMENTO.CodBarra))) -> FALSE | AF81: =IF(ISERROR(INDIRECT(ORÇAMENTO.BancoRef)),"(abra o arquivo 'Referência "&Excel_BuiltIn_Database&".xlsm)",IF(OR($C81<>"S",ORÇAMENTO.CodBarra=""),"(Sem Código)",IF(ISERROR(MATCH($AE81,INDIRECT(ORÇAMENTO.BancoRef),0)),"(Código não identificado nas referências)",MATCH($AE81,INDIRECT(ORÇAMENTO.BancoRef),0)))) -> (Sem Código) | AG81: =ROUND(IF(DESONERACAO="sim",REFERENCIA.Desonerado,REFERENCIA.NaoDesonerado),2) -> 0 | AH81: 0.2082 | AM81: 304389.36 | AN81: 0
A82: 3 | B82: 3 | C82: 3 | D82: 3 | E82: =IF($C82=1,OFFSET(E82,-1,0)+MAX(1,COUNTIF(QCI!$A$13:$A$24,OFFSET(ORÇAMENTO!E82,-1,0))),OFFSET(E82,-1,0)) -> 1 | F82: 6 | G82: 1 | H82: 0 | I82: 0 | J82: 14 | K82: =IF(OR($C82="S",$C82=0),0,MATCH(OFFSET($D82,0,$C82)+IF($C82<>1,1,COUNTIF(QCI!$A$13:$A$24,ORÇAMENTO!E82)),OFFSET($D82,1,$C82,ROW($C$404)-ROW($C82)),0)) -> 3 | L82: F | M82: Nível 3 | N82: Nível 3 | O82: 1.6.1. | P82: SINAPI | R82: PISOS | S82: =REFERENCIA.Unidade -> - | T82: =OFFSET(CÁLCULO!H$15,ROW($T82)-ROW(T$15),0) -> 0 | U82: =AG82 -> 0 | V82: BDI 1 | W82: =IF($C82="S",ROUND(IF(TIPOORCAMENTO="Proposto",ORÇAMENTO.CustoUnitario*(1+$AH82),ORÇAMENTO.PrecoUnitarioLicitado),15-13*$AF$10),0) -> 0 | X82: =IF($C82="S",IF(Import.TipoArredondamento<>"TransfereGOV",VTOTAL1,SUM(OFFSET(CÁLCULO!$AA$15,ROW($X82)-ROW($X$15),1):OFFSET(CÁLCULO!$AL$15,ROW($X82)-ROW($X$15),-1))),IF($C82=0,0,ROUND(SomaAgrup,15-13*$AF$11))) -> 175771.51 | Y82: RA | AA82: =IF($C82="S",IF($Z82="CP",$X82,IF($Z82="RA",(($X82)*QCI!$AA$3),0)),SomaAgrup) -> 47154.95611 | AB82: 0 | AC82: =IF($N82="","",IF(ORÇAMENTO.Descricao="","DESCRIÇÃO",IF(AND($C82="S",ORÇAMENTO.Unidade=""),"UNIDADE",IF($X82<0,"VALOR NEGATIVO",IF(OR(AND(TIPOORCAMENTO="Proposto",$AG82<>"",$AG82>0,ORÇAMENTO.CustoUnitario>$AG82),AND(TIPOORCAMENTO="LICITADO",ORÇAMENTO.PrecoUnitarioLicitado>$AN82)),"ACIMA REF.",""))))) ->  | AD82: =IF(C82<=CRONO.NivelExibicao,MAX($AD$15:OFFSET(AD82,-1,0))+IF($C82<>1,1,MAX(1,COUNTIF(QCI!$A$13:$A$24,OFFSET($E82,-1,0)))),"") ->  | AE82: =IF(AND($C82="S",ORÇAMENTO.CodBarra<>""),IF(ORÇAMENTO.Fonte="",ORÇAMENTO.CodBarra,CONCATENATE(ORÇAMENTO.Fonte," ",ORÇAMENTO.CodBarra))) -> FALSE | AF82: =IF(ISERROR(INDIRECT(ORÇAMENTO.BancoRef)),"(abra o arquivo 'Referência "&Excel_BuiltIn_Database&".xlsm)",IF(OR($C82<>"S",ORÇAMENTO.CodBarra=""),"(Sem Código)",IF(ISERROR(MATCH($AE82,INDIRECT(ORÇAMENTO.BancoRef),0)),"(Código não identificado nas referências)",MATCH($AE82,INDIRECT(ORÇAMENTO.BancoRef),0)))) -> (Sem Código) | AG82: =ROUND(IF(DESONERACAO="sim",REFERENCIA.Desonerado,REFERENCIA.NaoDesonerado),2) -> 0 | AH82: 0.2082 | AM82: 175771.51 | AN82: 0
A83: S | B83: 3 | C83: S | D83: 0 | E83: =IF($C83=1,OFFSET(E83,-1,0)+MAX(1,COUNTIF(QCI!$A$13:$A$24,OFFSET(ORÇAMENTO!E83,-1,0))),OFFSET(E83,-1,0)) -> 1 | F83: 6 | G83: 1 | H83: 0 | I83: 1 | J83: 0 | K83: =IF(OR($C83="S",$C83=0),0,MATCH(OFFSET($D83,0,$C83)+IF($C83<>1,1,COUNTIF(QCI!$A$13:$A$24,ORÇAMENTO!E83)),OFFSET($D83,1,$C83,ROW($C$404)-ROW($C83)),0)) -> 0 | L83: F | M83: Serviço | N83: Serviço | O83: 1.6.1.0.1. | P83: SINAPI | Q83: 104162 | R83: =IF($C83="S",REFERENCIA.Descricao,"(digite a descrição aqui)") -> PISO EM GRANILITE, MARMORITE OU GRANITINA EM AMBIENTES INTERNOS, COM ESPESSURA DE 8 MM, INCLUSO MISTURA EM BETONEIRA, COLOCAÇÃO DAS JUNTAS, APLICAÇÃO DO PISO, 4 POLIMENTOS COM POLITRIZ, ESTUCAMENTO, SELADOR E CERA. AF_06/2022 | S83: =REFERENCIA.Unidade -> M2 | T83: =OFFSET(CÁLCULO!H$15,ROW($T83)-ROW(T$15),0) -> 1097.54 | U83: 105.68 | V83: BDI 1 | W83: =IF($C83="S",ROUND(IF(TIPOORCAMENTO="Proposto",ORÇAMENTO.CustoUnitario*(1+$AH83),ORÇAMENTO.PrecoUnitarioLicitado),15-13*$AF$10),0) -> 127.68 | X83: =IF($C83="S",IF(Import.TipoArredondamento<>"TransfereGOV",VTOTAL1,SUM(OFFSET(CÁLCULO!$AA$15,ROW($X83)-ROW($X$15),1):OFFSET(CÁLCULO!$AL$15,ROW($X83)-ROW($X$15),-1))),IF($C83=0,0,ROUND(SomaAgrup,15-13*$AF$11))) -> 140133.91 | Y83: RA | Z83: RA | AA83: =IF($C83="S",IF($Z83="CP",$X83,IF($Z83="RA",(($X83)*QCI!$AA$3),0)),SomaAgrup) -> 37594.30852 | AB83: 0 | AC83: =IF($N83="","",IF(ORÇAMENTO.Descricao="","DESCRIÇÃO",IF(AND($C83="S",ORÇAMENTO.Unidade=""),"UNIDADE",IF($X83<0,"VALOR NEGATIVO",IF(OR(AND(TIPOORCAMENTO="Proposto",$AG83<>"",$AG83>0,ORÇAMENTO.CustoUnitario>$AG83),AND(TIPOORCAMENTO="LICITADO",ORÇAMENTO.PrecoUnitarioLicitado>$AN83)),"ACIMA REF.",""))))) ->  | AD83: =IF(C83<=CRONO.NivelExibicao,MAX($AD$15:OFFSET(AD83,-1,0))+IF($C83<>1,1,MAX(1,COUNTIF(QCI!$A$13:$A$24,OFFSET($E83,-1,0)))),"") ->  | AE83: =IF(AND($C83="S",ORÇAMENTO.CodBarra<>""),IF(ORÇAMENTO.Fonte="",ORÇAMENTO.CodBarra,CONCATENATE(ORÇAMENTO.Fonte," ",ORÇAMENTO.CodBarra))) -> SINAPI 104162 | AF83: =IF(ISERROR(INDIRECT(ORÇAMENTO.BancoRef)),"(abra o arquivo 'Referência "&Excel_BuiltIn_Database&".xlsm)",IF(OR($C83<>"S",ORÇAMENTO.CodBarra=""),"(Sem Código)",IF(ISERROR(MATCH($AE83,INDIRECT(ORÇAMENTO.BancoRef),0)),"(Código não identificado nas referências)",MATCH($AE83,INDIRECT(ORÇAMENTO.BancoRef),0)))) -> 6402 | AG83: =ROUND(IF(DESONERACAO="sim",REFERENCIA.Desonerado,REFERENCIA.NaoDesonerado),2) -> 105.68 | AH83: 0.2082 | AJ83: 1097.54 | AM83: 140133.91 | AN83: 127.68
A84: =CHOOSE(1+LOG(1+2*(ORÇAMENTO.Nivel="Meta")+4*(ORÇAMENTO.Nivel="Nível 2")+8*(ORÇAMENTO.Nivel="Nível 3")+16*(ORÇAMENTO.Nivel="Nível 4")+32*(ORÇAMENTO.Nivel="Serviço"),2),0,1,2,3,4,"S") -> S | B84: =IF(OR(C84="s",C84=0),OFFSET(B84,-1,0),C84) -> 3 | C84: =IF(OFFSET(C84,-1,0)="L",1,IF(OFFSET(C84,-1,0)=1,2,IF(OR(A84="s",A84=0),"S",IF(AND(OFFSET(C84,-1,0)=2,A84=4),3,IF(AND(OR(OFFSET(C84,-1,0)="s",OFFSET(C84,-1,0)=0),A84<>"s",A84>OFFSET(B84,-1,0)),OFFSET(B84,-1,0),A84))))) -> S | D84: =IF(OR(C84="S",C84=0),0,IF(ISERROR(K84),J84,SMALL(J84:K84,1))) -> 0 | E84: =IF($C84=1,OFFSET(E84,-1,0)+MAX(1,COUNTIF(QCI!$A$13:$A$24,OFFSET(ORÇAMENTO!E84,-1,0))),OFFSET(E84,-1,0)) -> 1 | F84: =IF($C84=1,0,IF($C84=2,OFFSET(F84,-1,0)+1,OFFSET(F84,-1,0))) -> 6 | G84: =IF(AND($C84<=2,$C84<>0),0,IF($C84=3,OFFSET(G84,-1,0)+1,OFFSET(G84,-1,0))) -> 1 | H84: =IF(AND($C84<=3,$C84<>0),0,IF($C84=4,OFFSET(H84,-1,0)+1,OFFSET(H84,-1,0))) -> 0 | I84: =IF(AND($C84<=4,$C84<>0),0,IF(AND($C84="S",$X84>0),OFFSET(I84,-1,0)+1,OFFSET(I84,-1,0))) -> 2 | J84: 0 | K84: =IF(OR($C84="S",$C84=0),0,MATCH(OFFSET($D84,0,$C84)+IF($C84<>1,1,COUNTIF(QCI!$A$13:$A$24,ORÇAMENTO!E84)),OFFSET($D84,1,$C84,ROW($C$404)-ROW($C84)),0)) -> 0 | L84: =IF(OR($X84>0,$C84=1,$C84=2,$C84=3,$C84=4),"F","") -> F | M84: Serviço | N84: =CHOOSE(1+LOG(1+2*(C84=1)+4*(C84=2)+8*(C84=3)+16*(C84=4)+32*(C84="S"),2),"","Meta","Nível 2","Nível 3","Nível 4","Serviço") -> Serviço | O84: =IF(OR($C84=0,$L84=""),"-",CONCATENATE(E84&".",IF(AND($A$5>=2,$C84>=2),F84&".",""),IF(AND($A$5>=3,$C84>=3),G84&".",""),IF(AND($A$5>=4,$C84>=4),H84&".",""),IF($C84="S",I84&".",""))) -> 1.6.1.0.2. | P84: Composição | Q84: 011 | R84: =IF($C84="S",REFERENCIA.Descricao,"(digite a descrição aqui)") -> RODAPÉ EXECUTADO IN LOCO DE GRANILITE, MARMORITE OU GRANITINA L = 10CM - INCLUSO MATERIAL E MÃO DE OBRA | S84: =REFERENCIA.Unidade -> M | T84: =OFFSET(CÁLCULO!H$15,ROW($T84)-ROW(T$15),0) -> 660.2 | U84: 44.68 | V84: BDI 1 | W84: =IF($C84="S",ROUND(IF(TIPOORCAMENTO="Proposto",ORÇAMENTO.CustoUnitario*(1+$AH84),ORÇAMENTO.PrecoUnitarioLicitado),15-13*$AF$10),0) -> 53.98 | X84: =IF($C84="S",IF(Import.TipoArredondamento<>"TransfereGOV",VTOTAL1,SUM(OFFSET(CÁLCULO!$AA$15,ROW($X84)-ROW($X$15),1):OFFSET(CÁLCULO!$AL$15,ROW($X84)-ROW($X$15),-1))),IF($C84=0,0,ROUND(SomaAgrup,15-13*$AF$11))) -> 35637.6 | Y84: RA | Z84: =IF(AND($C84="S",$X84>0),IF(ISBLANK($Y84),"RA",LEFT($Y84,2)),"") -> RA | AA84: =IF($C84="S",IF($Z84="CP",$X84,IF($Z84="RA",(($X84)*QCI!$AA$3),0)),SomaAgrup) -> 9560.647592 | AB84: =IF($C84="S",IF($Z84="OU",ROUND($X84,2),0),SomaAgrup) -> 0 | AC84: =IF($N84="","",IF(ORÇAMENTO.Descricao="","DESCRIÇÃO",IF(AND($C84="S",ORÇAMENTO.Unidade=""),"UNIDADE",IF($X84<0,"VALOR NEGATIVO",IF(OR(AND(TIPOORCAMENTO="Proposto",$AG84<>"",$AG84>0,ORÇAMENTO.CustoUnitario>$AG84),AND(TIPOORCAMENTO="LICITADO",ORÇAMENTO.PrecoUnitarioLicitado>$AN84)),"ACIMA REF.",""))))) ->  | AD84: =IF(C84<=CRONO.NivelExibicao,MAX($AD$15:OFFSET(AD84,-1,0))+IF($C84<>1,1,MAX(1,COUNTIF(QCI!$A$13:$A$24,OFFSET($E84,-1,0)))),"") ->  | AE84: =IF(AND($C84="S",ORÇAMENTO.CodBarra<>""),IF(ORÇAMENTO.Fonte="",ORÇAMENTO.CodBarra,CONCATENATE(ORÇAMENTO.Fonte," ",ORÇAMENTO.CodBarra))) -> Composição 011 | AF84: =IF(ISERROR(INDIRECT(ORÇAMENTO.BancoRef)),"(abra o arquivo 'Referência "&Excel_BuiltIn_Database&".xlsm)",IF(OR($C84<>"S",ORÇAMENTO.CodBarra=""),"(Sem Código)",IF(ISERROR(MATCH($AE84,INDIRECT(ORÇAMENTO.BancoRef),0)),"(Código não identificado nas referências)",MATCH($AE84,INDIRECT(ORÇAMENTO.BancoRef),0)))) -> 13 | AG84: =ROUND(IF(DESONERACAO="sim",REFERENCIA.Desonerado,REFERENCIA.NaoDesonerado),2) -> 44.68 | AH84: =ROUND(IF(ISNUMBER(ORÇAMENTO.OpcaoBDI),ORÇAMENTO.OpcaoBDI,IF(LEFT(ORÇAMENTO.OpcaoBDI,3)="BDI",HLOOKUP(ORÇAMENTO.OpcaoBDI,$F$4:$H$5,2,FALSE),0)),15-11*$AF$9) -> 0.2082 | AJ84: 660.2 | AM84: 35637.6 | AN84: =ROUND(ORÇAMENTO.CustoUnitario*(1+$AH84),2) -> 53.98
A85: 3 | B85: 3 | C85: 3 | D85: 6 | E85: =IF($C85=1,OFFSET(E85,-1,0)+MAX(1,COUNTIF(QCI!$A$13:$A$24,OFFSET(ORÇAMENTO!E85,-1,0))),OFFSET(E85,-1,0)) -> 1 | F85: 6 | G85: 2 | H85: 0 | I85: 0 | J85: 11 | K85: =IF(OR($C85="S",$C85=0),0,MATCH(OFFSET($D85,0,$C85)+IF($C85<>1,1,COUNTIF(QCI!$A$13:$A$24,ORÇAMENTO!E85)),OFFSET($D85,1,$C85,ROW($C$404)-ROW($C85)),0)) -> 6 | L85: F | M85: Nível 3 | N85: Nível 3 | O85: 1.6.2. | P85: SINAPI | R85: PAREDES | S85: =REFERENCIA.Unidade -> - | T85: =OFFSET(CÁLCULO!H$15,ROW($T85)-ROW(T$15),0) -> 0 | U85: 0 | V85: BDI 1 | W85: =IF($C85="S",ROUND(IF(TIPOORCAMENTO="Proposto",ORÇAMENTO.CustoUnitario*(1+$AH85),ORÇAMENTO.PrecoUnitarioLicitado),15-13*$AF$10),0) -> 0 | X85: =IF($C85="S",IF(Import.TipoArredondamento<>"TransfereGOV",VTOTAL1,SUM(OFFSET(CÁLCULO!$AA$15,ROW($X85)-ROW($X$15),1):OFFSET(CÁLCULO!$AL$15,ROW($X85)-ROW($X$15),-1))),IF($C85=0,0,ROUND(SomaAgrup,15-13*$AF$11))) -> 118539.96 | Y85: RA | AA85: =IF($C85="S",IF($Z85="CP",$X85,IF($Z85="RA",(($X85)*QCI!$AA$3),0)),SomaAgrup) -> 31801.20948 | AB85: 0 | AC85: =IF($N85="","",IF(ORÇAMENTO.Descricao="","DESCRIÇÃO",IF(AND($C85="S",ORÇAMENTO.Unidade=""),"UNIDADE",IF($X85<0,"VALOR NEGATIVO",IF(OR(AND(TIPOORCAMENTO="Proposto",$AG85<>"",$AG85>0,ORÇAMENTO.CustoUnitario>$AG85),AND(TIPOORCAMENTO="LICITADO",ORÇAMENTO.PrecoUnitarioLicitado>$AN85)),"ACIMA REF.",""))))) ->  | AD85: =IF(C85<=CRONO.NivelExibicao,MAX($AD$15:OFFSET(AD85,-1,0))+IF($C85<>1,1,MAX(1,COUNTIF(QCI!$A$13:$A$24,OFFSET($E85,-1,0)))),"") ->  | AE85: =IF(AND($C85="S",ORÇAMENTO.CodBarra<>""),IF(ORÇAMENTO.Fonte="",ORÇAMENTO.CodBarra,CONCATENATE(ORÇAMENTO.Fonte," ",ORÇAMENTO.CodBarra))) -> FALSE | AF85: =IF(ISERROR(INDIRECT(ORÇAMENTO.BancoRef)),"(abra o arquivo 'Referência "&Excel_BuiltIn_Database&".xlsm)",IF(OR($C85<>"S",ORÇAMENTO.CodBarra=""),"(Sem Código)",IF(ISERROR(MATCH($AE85,INDIRECT(ORÇAMENTO.BancoRef),0)),"(Código não identificado nas referências)",MATCH($AE85,INDIRECT(ORÇAMENTO.BancoRef),0)))) -> (Sem Código) | AG85: =ROUND(IF(DESONERACAO="sim",REFERENCIA.Desonerado,REFERENCIA.NaoDesonerado),2) -> 0 | AH85: 0.2082 | AM85: 118539.96 | AN85: 0
A86: S | B86: 3 | C86: S | D86: 0 | E86: =IF($C86=1,OFFSET(E86,-1,0)+MAX(1,COUNTIF(QCI!$A$13:$A$24,OFFSET(ORÇAMENTO!E86,-1,0))),OFFSET(E86,-1,0)) -> 1 | F86: 6 | G86: 2 | H86: 0 | I86: 1 | J86: 0 | K86: =IF(OR($C86="S",$C86=0),0,MATCH(OFFSET($D86,0,$C86)+IF($C86<>1,1,COUNTIF(QCI!$A$13:$A$24,ORÇAMENTO!E86)),OFFSET($D86,1,$C86,ROW($C$404)-ROW($C86)),0)) -> 0 | L86: F | M86: Serviço | N86: Serviço | O86: 1.6.2.0.1. | P86: SINAPI | Q86: 87894 | R86: =IF($C86="S",REFERENCIA.Descricao,"(digite a descrição aqui)") -> CHAPISCO APLICADO EM ALVENARIA (SEM PRESENÇA DE VÃOS) E ESTRUTURAS DE CONCRETO DE FACHADA, COM COLHER DE PEDREIRO. ARGAMASSA TRAÇO 1:3 COM PREPARO EM BETONEIRA 400L. AF_10/2022 | S86: =REFERENCIA.Unidade -> M2 | T86: =OFFSET(CÁLCULO!H$15,ROW($T86)-ROW(T$15),0) -> 460.24 | U86: 8.06 | V86: BDI 1 | W86: =IF($C86="S",ROUND(IF(TIPOORCAMENTO="Proposto",ORÇAMENTO.CustoUnitario*(1+$AH86),ORÇAMENTO.PrecoUnitarioLicitado),15-13*$AF$10),0) -> 9.74 | X86: =IF($C86="S",IF(Import.TipoArredondamento<>"TransfereGOV",VTOTAL1,SUM(OFFSET(CÁLCULO!$AA$15,ROW($X86)-ROW($X$15),1):OFFSET(CÁLCULO!$AL$15,ROW($X86)-ROW($X$15),-1))),IF($C86=0,0,ROUND(SomaAgrup,15-13*$AF$11))) -> 4482.74 | Y86: RA | Z86: RA | AA86: =IF($C86="S",IF($Z86="CP",$X86,IF($Z86="RA",(($X86)*QCI!$AA$3),0)),SomaAgrup) -> 1202.603357 | AB86: 0 | AC86: =IF($N86="","",IF(ORÇAMENTO.Descricao="","DESCRIÇÃO",IF(AND($C86="S",ORÇAMENTO.Unidade=""),"UNIDADE",IF($X86<0,"VALOR NEGATIVO",IF(OR(AND(TIPOORCAMENTO="Proposto",$AG86<>"",$AG86>0,ORÇAMENTO.CustoUnitario>$AG86),AND(TIPOORCAMENTO="LICITADO",ORÇAMENTO.PrecoUnitarioLicitado>$AN86)),"ACIMA REF.",""))))) ->  | AD86: =IF(C86<=CRONO.NivelExibicao,MAX($AD$15:OFFSET(AD86,-1,0))+IF($C86<>1,1,MAX(1,COUNTIF(QCI!$A$13:$A$24,OFFSET($E86,-1,0)))),"") ->  | AE86: =IF(AND($C86="S",ORÇAMENTO.CodBarra<>""),IF(ORÇAMENTO.Fonte="",ORÇAMENTO.CodBarra,CONCATENATE(ORÇAMENTO.Fonte," ",ORÇAMENTO.CodBarra))) -> SINAPI 87894 | AF86: =IF(ISERROR(INDIRECT(ORÇAMENTO.BancoRef)),"(abra o arquivo 'Referência "&Excel_BuiltIn_Database&".xlsm)",IF(OR($C86<>"S",ORÇAMENTO.CodBarra=""),"(Sem Código)",IF(ISERROR(MATCH($AE86,INDIRECT(ORÇAMENTO.BancoRef),0)),"(Código não identificado nas referências)",MATCH($AE86,INDIRECT(ORÇAMENTO.BancoRef),0)))) -> 6497 | AG86: =ROUND(IF(DESONERACAO="sim",REFERENCIA.Desonerado,REFERENCIA.NaoDesonerado),2) -> 8.06 | AH86: 0.2082 | AJ86: 460.24 | AM86: 4482.74 | AN86: 9.74
A87: S | B87: 3 | C87: S | D87: 0 | E87: =IF($C87=1,OFFSET(E87,-1,0)+MAX(1,COUNTIF(QCI!$A$13:$A$24,OFFSET(ORÇAMENTO!E87,-1,0))),OFFSET(E87,-1,0)) -> 1 | F87: 6 | G87: 2 | H87: 0 | I87: 2 | J87: 0 | K87: =IF(OR($C87="S",$C87=0),0,MATCH(OFFSET($D87,0,$C87)+IF($C87<>1,1,COUNTIF(QCI!$A$13:$A$24,ORÇAMENTO!E87)),OFFSET($D87,1,$C87,ROW($C$404)-ROW($C87)),0)) -> 0 | L87: F | M87: Serviço | N87: Serviço | O87: 1.6.2.0.2. | P87: SINAPI | Q87: 87775 | R87: =IF($C87="S",REFERENCIA.Descricao,"(digite a descrição aqui)") -> EMBOÇO OU MASSA ÚNICA EM ARGAMASSA TRAÇO 1:2:8, PREPARO MECÂNICO COM BETONEIRA 400 L, APLICADA MANUALMENTE EM PANOS DE FACHADA COM PRESENÇA DE VÃOS, ESPESSURA DE 25 MM. AF_08/2022 | S87: =REFERENCIA.Unidade -> M2 | T87: =OFFSET(CÁLCULO!H$15,ROW($T87)-ROW(T$15),0) -> 460.24 | U87: 61.69 | V87: BDI 1 | W87: =IF($C87="S",ROUND(IF(TIPOORCAMENTO="Proposto",ORÇAMENTO.CustoUnitario*(1+$AH87),ORÇAMENTO.PrecoUnitarioLicitado),15-13*$AF$10),0) -> 74.53 | X87: =IF($C87="S",IF(Import.TipoArredondamento<>"TransfereGOV",VTOTAL1,SUM(OFFSET(CÁLCULO!$AA$15,ROW($X87)-ROW($X$15),1):OFFSET(CÁLCULO!$AL$15,ROW($X87)-ROW($X$15),-1))),IF($C87=0,0,ROUND(SomaAgrup,15-13*$AF$11))) -> 34301.69 | Y87: RA | Z87: RA | AA87: =IF($C87="S",IF($Z87="CP",$X87,IF($Z87="RA",(($X87)*QCI!$AA$3),0)),SomaAgrup) -> 9202.257444 | AB87: 0 | AC87: =IF($N87="","",IF(ORÇAMENTO.Descricao="","DESCRIÇÃO",IF(AND($C87="S",ORÇAMENTO.Unidade=""),"UNIDADE",IF($X87<0,"VALOR NEGATIVO",IF(OR(AND(TIPOORCAMENTO="Proposto",$AG87<>"",$AG87>0,ORÇAMENTO.CustoUnitario>$AG87),AND(TIPOORCAMENTO="LICITADO",ORÇAMENTO.PrecoUnitarioLicitado>$AN87)),"ACIMA REF.",""))))) ->  | AD87: =IF(C87<=CRONO.NivelExibicao,MAX($AD$15:OFFSET(AD87,-1,0))+IF($C87<>1,1,MAX(1,COUNTIF(QCI!$A$13:$A$24,OFFSET($E87,-1,0)))),"") ->  | AE87: =IF(AND($C87="S",ORÇAMENTO.CodBarra<>""),IF(ORÇAMENTO.Fonte="",ORÇAMENTO.CodBarra,CONCATENATE(ORÇAMENTO.Fonte," ",ORÇAMENTO.CodBarra))) -> SINAPI 87775 | AF87: =IF(ISERROR(INDIRECT(ORÇAMENTO.BancoRef)),"(abra o arquivo 'Referência "&Excel_BuiltIn_Database&".xlsm)",IF(OR($C87<>"S",ORÇAMENTO.CodBarra=""),"(Sem Código)",IF(ISERROR(MATCH($AE87,INDIRECT(ORÇAMENTO.BancoRef),0)),"(Código não identificado nas referências)",MATCH($AE87,INDIRECT(ORÇAMENTO.BancoRef),0)))) -> 6546 | AG87: =ROUND(IF(DESONERACAO="sim",REFERENCIA.Desonerado,REFERENCIA.NaoDesonerado),2) -> 61.69 | AH87: 0.2082 | AJ87: 460.24 | AM87: 34301.69 | AN87: 74.53
A88: S | B88: 3 | C88: S | D88: 0 | E88: =IF($C88=1,OFFSET(E88,-1,0)+MAX(1,COUNTIF(QCI!$A$13:$A$24,OFFSET(ORÇAMENTO!E88,-1,0))),OFFSET(E88,-1,0)) -> 1 | F88: 6 | G88: 2 | H88: 0 | I88: 3 | J88: 0 | K88: =IF(OR($C88="S",$C88=0),0,MATCH(OFFSET($D88,0,$C88)+IF($C88<>1,1,COUNTIF(QCI!$A$13:$A$24,ORÇAMENTO!E88)),OFFSET($D88,1,$C88,ROW($C$404)-ROW($C88)),0)) -> 0 | L88: F | M88: Serviço | N88: Serviço | O88: 1.6.2.0.3. | P88: SINAPI | Q88: 87273 | R88: =IF($C88="S",REFERENCIA.Descricao,"(digite a descrição aqui)") -> REVESTIMENTO CERÂMICO PARA PAREDES INTERNAS COM PLACAS TIPO ESMALTADA EXTRA DE DIMENSÕES 33X45 CM APLICADAS NA ALTURA INTEIRA DAS PAREDES. AF_02/2023_PE | S88: =REFERENCIA.Unidade -> M2 | T88: =OFFSET(CÁLCULO!H$15,ROW($T88)-ROW(T$15),0) -> 429.69 | U88: 89.98 | V88: BDI 1 | W88: =IF($C88="S",ROUND(IF(TIPOORCAMENTO="Proposto",ORÇAMENTO.CustoUnitario*(1+$AH88),ORÇAMENTO.PrecoUnitarioLicitado),15-13*$AF$10),0) -> 108.71 | X88: =IF($C88="S",IF(Import.TipoArredondamento<>"TransfereGOV",VTOTAL1,SUM(OFFSET(CÁLCULO!$AA$15,ROW($X88)-ROW($X$15),1):OFFSET(CÁLCULO!$AL$15,ROW($X88)-ROW($X$15),-1))),IF($C88=0,0,ROUND(SomaAgrup,15-13*$AF$11))) -> 46711.6 | Y88: RA | Z88: RA | AA88: =IF($C88="S",IF($Z88="CP",$X88,IF($Z88="RA",(($X88)*QCI!$AA$3),0)),SomaAgrup) -> 12531.51576 | AB88: 0 | AC88: =IF($N88="","",IF(ORÇAMENTO.Descricao="","DESCRIÇÃO",IF(AND($C88="S",ORÇAMENTO.Unidade=""),"UNIDADE",IF($X88<0,"VALOR NEGATIVO",IF(OR(AND(TIPOORCAMENTO="Proposto",$AG88<>"",$AG88>0,ORÇAMENTO.CustoUnitario>$AG88),AND(TIPOORCAMENTO="LICITADO",ORÇAMENTO.PrecoUnitarioLicitado>$AN88)),"ACIMA REF.",""))))) ->  | AD88: =IF(C88<=CRONO.NivelExibicao,MAX($AD$15:OFFSET(AD88,-1,0))+IF($C88<>1,1,MAX(1,COUNTIF(QCI!$A$13:$A$24,OFFSET($E88,-1,0)))),"") ->  | AE88: =IF(AND($C88="S",ORÇAMENTO.CodBarra<>""),IF(ORÇAMENTO.Fonte="",ORÇAMENTO.CodBarra,CONCATENATE(ORÇAMENTO.Fonte," ",ORÇAMENTO.CodBarra))) -> SINAPI 87273 | AF88: =IF(ISERROR(INDIRECT(ORÇAMENTO.BancoRef)),"(abra o arquivo 'Referência "&Excel_BuiltIn_Database&".xlsm)",IF(OR($C88<>"S",ORÇAMENTO.CodBarra=""),"(Sem Código)",IF(ISERROR(MATCH($AE88,INDIRECT(ORÇAMENTO.BancoRef),0)),"(Código não identificado nas referências)",MATCH($AE88,INDIRECT(ORÇAMENTO.BancoRef),0)))) -> 6707 | AG88: =ROUND(IF(DESONERACAO="sim",REFERENCIA.Desonerado,REFERENCIA.NaoDesonerado),2) -> 89.98 | AH88: 0.2082 | AJ88: 429.69 | AM88: 46711.6 | AN88: 108.71
A89: S | B89: 3 | C89: S | D89: 0 | E89: =IF($C89=1,OFFSET(E89,-1,0)+MAX(1,COUNTIF(QCI!$A$13:$A$24,OFFSET(ORÇAMENTO!E89,-1,0))),OFFSET(E89,-1,0)) -> 1 | F89: 6 | G89: 2 | H89: 0 | I89: 4 | J89: 0 | K89: =IF(OR($C89="S",$C89=0),0,MATCH(OFFSET($D89,0,$C89)+IF($C89<>1,1,COUNTIF(QCI!$A$13:$A$24,ORÇAMENTO!E89)),OFFSET($D89,1,$C89,ROW($C$404)-ROW($C89)),0)) -> 0 | L89: F | M89: Serviço | N89: Serviço | O89: 1.6.2.0.4. | P89: SINAPI | Q89: 87245 | R89: =IF($C89="S",REFERENCIA.Descricao,"(digite a descrição aqui)") -> REVESTIMENTO CERÂMICO PARA PAREDES EXTERNAS EM PASTILHAS DE PORCELANA 5 X 5 CM (PLACAS DE 30 X 30 CM), ALINHADAS A PRUMO, APLICADO EM SUPERFÍCIES INTERNAS DE SACADA. AF_02/2023 | S89: =REFERENCIA.Unidade -> M2 | T89: =OFFSET(CÁLCULO!H$15,ROW($T89)-ROW(T$15),0) -> 72.48 | U89: 327.73 | V89: BDI 1 | W89: =IF($C89="S",ROUND(IF(TIPOORCAMENTO="Proposto",ORÇAMENTO.CustoUnitario*(1+$AH89),ORÇAMENTO.PrecoUnitarioLicitado),15-13*$AF$10),0) -> 395.96 | X89: =IF($C89="S",IF(Import.TipoArredondamento<>"TransfereGOV",VTOTAL1,SUM(OFFSET(CÁLCULO!$AA$15,ROW($X89)-ROW($X$15),1):OFFSET(CÁLCULO!$AL$15,ROW($X89)-ROW($X$15),-1))),IF($C89=0,0,ROUND(SomaAgrup,15-13*$AF$11))) -> 28699.18 | Y89: RA | Z89: RA | AA89: =IF($C89="S",IF($Z89="CP",$X89,IF($Z89="RA",(($X89)*QCI!$AA$3),0)),SomaAgrup) -> 7699.248719 | AB89: 0 | AC89: =IF($N89="","",IF(ORÇAMENTO.Descricao="","DESCRIÇÃO",IF(AND($C89="S",ORÇAMENTO.Unidade=""),"UNIDADE",IF($X89<0,"VALOR NEGATIVO",IF(OR(AND(TIPOORCAMENTO="Proposto",$AG89<>"",$AG89>0,ORÇAMENTO.CustoUnitario>$AG89),AND(TIPOORCAMENTO="LICITADO",ORÇAMENTO.PrecoUnitarioLicitado>$AN89)),"ACIMA REF.",""))))) ->  | AD89: =IF(C89<=CRONO.NivelExibicao,MAX($AD$15:OFFSET(AD89,-1,0))+IF($C89<>1,1,MAX(1,COUNTIF(QCI!$A$13:$A$24,OFFSET($E89,-1,0)))),"") ->  | AE89: =IF(AND($C89="S",ORÇAMENTO.CodBarra<>""),IF(ORÇAMENTO.Fonte="",ORÇAMENTO.CodBarra,CONCATENATE(ORÇAMENTO.Fonte," ",ORÇAMENTO.CodBarra))) -> SINAPI 87245 | AF89: =IF(ISERROR(INDIRECT(ORÇAMENTO.BancoRef)),"(abra o arquivo 'Referência "&Excel_BuiltIn_Database&".xlsm)",IF(OR($C89<>"S",ORÇAMENTO.CodBarra=""),"(Sem Código)",IF(ISERROR(MATCH($AE89,INDIRECT(ORÇAMENTO.BancoRef),0)),"(Código não identificado nas referências)",MATCH($AE89,INDIRECT(ORÇAMENTO.BancoRef),0)))) -> 6702 | AG89: =ROUND(IF(DESONERACAO="sim",REFERENCIA.Desonerado,REFERENCIA.NaoDesonerado),2) -> 327.73 | AH89: 0.2082 | AJ89: 72.48 | AM89: 28699.18 | AN89: 395.96
A90: S | B90: 3 | C90: S | D90: 0 | E90: =IF($C90=1,OFFSET(E90,-1,0)+MAX(1,COUNTIF(QCI!$A$13:$A$24,OFFSET(ORÇAMENTO!E90,-1,0))),OFFSET(E90,-1,0)) -> 1 | F90: 6 | G90: 2 | H90: 0 | I90: 5 | J90: 0 | K90: =IF(OR($C90="S",$C90=0),0,MATCH(OFFSET($D90,0,$C90)+IF($C90<>1,1,COUNTIF(QCI!$A$13:$A$24,ORÇAMENTO!E90)),OFFSET($D90,1,$C90,ROW($C$404)-ROW($C90)),0)) -> 0 | L90: F | M90: Serviço | N90: Serviço | O90: 1.6.2.0.5. | P90: SINAPI | Q90: 101965 | R90: =IF($C90="S",REFERENCIA.Descricao,"(digite a descrição aqui)") -> PEITORIL LINEAR EM GRANITO OU MÁRMORE, L = 15CM, COMPRIMENTO DE ATÉ 2M, ASSENTADO COM ARGAMASSA 1:6 COM ADITIVO. AF_11/2020 | S90: =REFERENCIA.Unidade -> M | T90: =OFFSET(CÁLCULO!H$15,ROW($T90)-ROW(T$15),0) -> 25 | U90: 143.84 | V90: BDI 1 | W90: =IF($C90="S",ROUND(IF(TIPOORCAMENTO="Proposto",ORÇAMENTO.CustoUnitario*(1+$AH90),ORÇAMENTO.PrecoUnitarioLicitado),15-13*$AF$10),0) -> 173.79 | X90: =IF($C90="S",IF(Import.TipoArredondamento<>"TransfereGOV",VTOTAL1,SUM(OFFSET(CÁLCULO!$AA$15,ROW($X90)-ROW($X$15),1):OFFSET(CÁLCULO!$AL$15,ROW($X90)-ROW($X$15),-1))),IF($C90=0,0,ROUND(SomaAgrup,15-13*$AF$11))) -> 4344.75 | Y90: RA | Z90: RA | AA90: =IF($C90="S",IF($Z90="CP",$X90,IF($Z90="RA",(($X90)*QCI!$AA$3),0)),SomaAgrup) -> 1165.584204 | AB90: 0 | AC90: =IF($N90="","",IF(ORÇAMENTO.Descricao="","DESCRIÇÃO",IF(AND($C90="S",ORÇAMENTO.Unidade=""),"UNIDADE",IF($X90<0,"VALOR NEGATIVO",IF(OR(AND(TIPOORCAMENTO="Proposto",$AG90<>"",$AG90>0,ORÇAMENTO.CustoUnitario>$AG90),AND(TIPOORCAMENTO="LICITADO",ORÇAMENTO.PrecoUnitarioLicitado>$AN90)),"ACIMA REF.",""))))) ->  | AD90: =IF(C90<=CRONO.NivelExibicao,MAX($AD$15:OFFSET(AD90,-1,0))+IF($C90<>1,1,MAX(1,COUNTIF(QCI!$A$13:$A$24,OFFSET($E90,-1,0)))),"") ->  | AE90: =IF(AND($C90="S",ORÇAMENTO.CodBarra<>""),IF(ORÇAMENTO.Fonte="",ORÇAMENTO.CodBarra,CONCATENATE(ORÇAMENTO.Fonte," ",ORÇAMENTO.CodBarra))) -> SINAPI 101965 | AF90: =IF(ISERROR(INDIRECT(ORÇAMENTO.BancoRef)),"(abra o arquivo 'Referência "&Excel_BuiltIn_Database&".xlsm)",IF(OR($C90<>"S",ORÇAMENTO.CodBarra=""),"(Sem Código)",IF(ISERROR(MATCH($AE90,INDIRECT(ORÇAMENTO.BancoRef),0)),"(Código não identificado nas referências)",MATCH($AE90,INDIRECT(ORÇAMENTO.BancoRef),0)))) -> 6724 | AG90: =ROUND(IF(DESONERACAO="sim",REFERENCIA.Desonerado,REFERENCIA.NaoDesonerado),2) -> 143.84 | AH90: 0.2082 | AJ90: 25 | AM90: 4344.75 | AN90: 173.79
A91: 3 | B91: 3 | C91: 3 | D91: 3 | E91: =IF($C91=1,OFFSET(E91,-1,0)+MAX(1,COUNTIF(QCI!$A$13:$A$24,OFFSET(ORÇAMENTO!E91,-1,0))),OFFSET(E91,-1,0)) -> 1 | F91: 6 | G91: 3 | H91: 0 | I91: 0 | J91: 5 | K91: =IF(OR($C91="S",$C91=0),0,MATCH(OFFSET($D91,0,$C91)+IF($C91<>1,1,COUNTIF(QCI!$A$13:$A$24,ORÇAMENTO!E91)),OFFSET($D91,1,$C91,ROW($C$404)-ROW($C91)),0)) -> 3 | L91: F | M91: Nível 3 | N91: Nível 3 | O91: 1.6.3. | P91: SINAPI | R91: TETO | S91: =REFERENCIA.Unidade -> - | T91: =OFFSET(CÁLCULO!H$15,ROW($T91)-ROW(T$15),0) -> 0 | U91: 0 | V91: BDI 1 | W91: =IF($C91="S",ROUND(IF(TIPOORCAMENTO="Proposto",ORÇAMENTO.CustoUnitario*(1+$AH91),ORÇAMENTO.PrecoUnitarioLicitado),15-13*$AF$10),0) -> 0 | X91: =IF($C91="S",IF(Import.TipoArredondamento<>"TransfereGOV",VTOTAL1,SUM(OFFSET(CÁLCULO!$AA$15,ROW($X91)-ROW($X$15),1):OFFSET(CÁLCULO!$AL$15,ROW($X91)-ROW($X$15),-1))),IF($C91=0,0,ROUND(SomaAgrup,15-13*$AF$11))) -> 9133.61 | Y91: RA | AA91: =IF($C91="S",IF($Z91="CP",$X91,IF($Z91="RA",(($X91)*QCI!$AA$3),0)),SomaAgrup) -> 2450.31165 | AB91: 0 | AC91: =IF($N91="","",IF(ORÇAMENTO.Descricao="","DESCRIÇÃO",IF(AND($C91="S",ORÇAMENTO.Unidade=""),"UNIDADE",IF($X91<0,"VALOR NEGATIVO",IF(OR(AND(TIPOORCAMENTO="Proposto",$AG91<>"",$AG91>0,ORÇAMENTO.CustoUnitario>$AG91),AND(TIPOORCAMENTO="LICITADO",ORÇAMENTO.PrecoUnitarioLicitado>$AN91)),"ACIMA REF.",""))))) ->  | AD91: =IF(C91<=CRONO.NivelExibicao,MAX($AD$15:OFFSET(AD91,-1,0))+IF($C91<>1,1,MAX(1,COUNTIF(QCI!$A$13:$A$24,OFFSET($E91,-1,0)))),"") ->  | AE91: =IF(AND($C91="S",ORÇAMENTO.CodBarra<>""),IF(ORÇAMENTO.Fonte="",ORÇAMENTO.CodBarra,CONCATENATE(ORÇAMENTO.Fonte," ",ORÇAMENTO.CodBarra))) -> FALSE | AF91: =IF(ISERROR(INDIRECT(ORÇAMENTO.BancoRef)),"(abra o arquivo 'Referência "&Excel_BuiltIn_Database&".xlsm)",IF(OR($C91<>"S",ORÇAMENTO.CodBarra=""),"(Sem Código)",IF(ISERROR(MATCH($AE91,INDIRECT(ORÇAMENTO.BancoRef),0)),"(Código não identificado nas referências)",MATCH($AE91,INDIRECT(ORÇAMENTO.BancoRef),0)))) -> (Sem Código) | AG91: =ROUND(IF(DESONERACAO="sim",REFERENCIA.Desonerado,REFERENCIA.NaoDesonerado),2) -> 0 | AH91: 0.2082 | AM91: 9133.61 | AN91: 0
A92: S | B92: 3 | C92: S | D92: 0 | E92: =IF($C92=1,OFFSET(E92,-1,0)+MAX(1,COUNTIF(QCI!$A$13:$A$24,OFFSET(ORÇAMENTO!E92,-1,0))),OFFSET(E92,-1,0)) -> 1 | F92: 6 | G92: 3 | H92: 0 | I92: 1 | J92: 0 | K92: =IF(OR($C92="S",$C92=0),0,MATCH(OFFSET($D92,0,$C92)+IF($C92<>1,1,COUNTIF(QCI!$A$13:$A$24,ORÇAMENTO!E92)),OFFSET($D92,1,$C92,ROW($C$404)-ROW($C92)),0)) -> 0 | L92: F | M92: Serviço | N92: Serviço | O92: 1.6.3.0.1. | P92: SINAPI | Q92: 87884 | R92: =IF($C92="S",REFERENCIA.Descricao,"(digite a descrição aqui)") -> CHAPISCO APLICADO NO TETO OU EM ALVENARIA E ESTRUTURA, COM ROLO PARA TEXTURA ACRÍLICA. ARGAMASSA INDUSTRIALIZADA COM PREPARO MANUAL. AF_10/2022 | S92: =REFERENCIA.Unidade -> M2 | T92: =OFFSET(CÁLCULO!H$15,ROW($T92)-ROW(T$15),0) -> 129.61 | U92: 9.73 | V92: BDI 1 | W92: =IF($C92="S",ROUND(IF(TIPOORCAMENTO="Proposto",ORÇAMENTO.CustoUnitario*(1+$AH92),ORÇAMENTO.PrecoUnitarioLicitado),15-13*$AF$10),0) -> 11.76 | X92: =IF($C92="S",IF(Import.TipoArredondamento<>"TransfereGOV",VTOTAL1,SUM(OFFSET(CÁLCULO!$AA$15,ROW($X92)-ROW($X$15),1):OFFSET(CÁLCULO!$AL$15,ROW($X92)-ROW($X$15),-1))),IF($C92=0,0,ROUND(SomaAgrup,15-13*$AF$11))) -> 1524.21 | Y92: RA | Z92: RA | AA92: =IF($C92="S",IF($Z92="CP",$X92,IF($Z92="RA",(($X92)*QCI!$AA$3),0)),SomaAgrup) -> 408.906174 | AB92: 0 | AC92: =IF($N92="","",IF(ORÇAMENTO.Descricao="","DESCRIÇÃO",IF(AND($C92="S",ORÇAMENTO.Unidade=""),"UNIDADE",IF($X92<0,"VALOR NEGATIVO",IF(OR(AND(TIPOORCAMENTO="Proposto",$AG92<>"",$AG92>0,ORÇAMENTO.CustoUnitario>$AG92),AND(TIPOORCAMENTO="LICITADO",ORÇAMENTO.PrecoUnitarioLicitado>$AN92)),"ACIMA REF.",""))))) ->  | AD92: =IF(C92<=CRONO.NivelExibicao,MAX($AD$15:OFFSET(AD92,-1,0))+IF($C92<>1,1,MAX(1,COUNTIF(QCI!$A$13:$A$24,OFFSET($E92,-1,0)))),"") ->  | AE92: =IF(AND($C92="S",ORÇAMENTO.CodBarra<>""),IF(ORÇAMENTO.Fonte="",ORÇAMENTO.CodBarra,CONCATENATE(ORÇAMENTO.Fonte," ",ORÇAMENTO.CodBarra))) -> SINAPI 87884 | AF92: =IF(ISERROR(INDIRECT(ORÇAMENTO.BancoRef)),"(abra o arquivo 'Referência "&Excel_BuiltIn_Database&".xlsm)",IF(OR($C92<>"S",ORÇAMENTO.CodBarra=""),"(Sem Código)",IF(ISERROR(MATCH($AE92,INDIRECT(ORÇAMENTO.BancoRef),0)),"(Código não identificado nas referências)",MATCH($AE92,INDIRECT(ORÇAMENTO.BancoRef),0)))) -> 6488 | AG92: =ROUND(IF(DESONERACAO="sim",REFERENCIA.Desonerado,REFERENCIA.NaoDesonerado),2) -> 9.73 | AH92: 0.2082 | AJ92: 129.61 | AM92: 1524.21 | AN92: 11.76
A93: S | B93: 3 | C93: S | D93: 0 | E93: =IF($C93=1,OFFSET(E93,-1,0)+MAX(1,COUNTIF(QCI!$A$13:$A$24,OFFSET(ORÇAMENTO!E93,-1,0))),OFFSET(E93,-1,0)) -> 1 | F93: 6 | G93: 3 | H93: 0 | I93: 2 | J93: 0 | K93: =IF(OR($C93="S",$C93=0),0,MATCH(OFFSET($D93,0,$C93)+IF($C93<>1,1,COUNTIF(QCI!$A$13:$A$24,ORÇAMENTO!E93)),OFFSET($D93,1,$C93,ROW($C$404)-ROW($C93)),0)) -> 0 | L93: F | M93: Serviço | N93: Serviço | O93: 1.6.3.0.2. | P93: SINAPI | Q93: 87794 | R93: =IF($C93="S",REFERENCIA.Descricao,"(digite a descrição aqui)") -> EMBOÇO OU MASSA ÚNICA EM ARGAMASSA TRAÇO 1:2:8, PREPARO MANUAL, APLICADA MANUALMENTE EM PANOS CEGOS DE FACHADA (SEM PRESENÇA DE VÃOS), ESPESSURA DE 25 MM. AF_09/2022 | S93: =REFERENCIA.Unidade -> M2 | T93: =OFFSET(CÁLCULO!H$15,ROW($T93)-ROW(T$15),0) -> 129.61 | U93: 48.59 | V93: BDI 1 | W93: =IF($C93="S",ROUND(IF(TIPOORCAMENTO="Proposto",ORÇAMENTO.CustoUnitario*(1+$AH93),ORÇAMENTO.PrecoUnitarioLicitado),15-13*$AF$10),0) -> 58.71 | X93: =IF($C93="S",IF(Import.TipoArredondamento<>"TransfereGOV",VTOTAL1,SUM(OFFSET(CÁLCULO!$AA$15,ROW($X93)-ROW($X$15),1):OFFSET(CÁLCULO!$AL$15,ROW($X93)-ROW($X$15),-1))),IF($C93=0,0,ROUND(SomaAgrup,15-13*$AF$11))) -> 7609.4 | Y93: RA | Z93: RA | AA93: =IF($C93="S",IF($Z93="CP",$X93,IF($Z93="RA",(($X93)*QCI!$AA$3),0)),SomaAgrup) -> 2041.405476 | AB93: 0 | AC93: =IF($N93="","",IF(ORÇAMENTO.Descricao="","DESCRIÇÃO",IF(AND($C93="S",ORÇAMENTO.Unidade=""),"UNIDADE",IF($X93<0,"VALOR NEGATIVO",IF(OR(AND(TIPOORCAMENTO="Proposto",$AG93<>"",$AG93>0,ORÇAMENTO.CustoUnitario>$AG93),AND(TIPOORCAMENTO="LICITADO",ORÇAMENTO.PrecoUnitarioLicitado>$AN93)),"ACIMA REF.",""))))) ->  | AD93: =IF(C93<=CRONO.NivelExibicao,MAX($AD$15:OFFSET(AD93,-1,0))+IF($C93<>1,1,MAX(1,COUNTIF(QCI!$A$13:$A$24,OFFSET($E93,-1,0)))),"") ->  | AE93: =IF(AND($C93="S",ORÇAMENTO.CodBarra<>""),IF(ORÇAMENTO.Fonte="",ORÇAMENTO.CodBarra,CONCATENATE(ORÇAMENTO.Fonte," ",ORÇAMENTO.CodBarra))) -> SINAPI 87794 | AF93: =IF(ISERROR(INDIRECT(ORÇAMENTO.BancoRef)),"(abra o arquivo 'Referência "&Excel_BuiltIn_Database&".xlsm)",IF(OR($C93<>"S",ORÇAMENTO.CodBarra=""),"(Sem Código)",IF(ISERROR(MATCH($AE93,INDIRECT(ORÇAMENTO.BancoRef),0)),"(Código não identificado nas referências)",MATCH($AE93,INDIRECT(ORÇAMENTO.BancoRef),0)))) -> 6558 | AG93: =ROUND(IF(DESONERACAO="sim",REFERENCIA.Desonerado,REFERENCIA.NaoDesonerado),2) -> 48.59 | AH93: 0.2082 | AJ93: 129.61 | AM93: 7609.4 | AN93: 58.71
A94: 3 | B94: 3 | C94: 3 | D94: 2 | E94: =IF($C94=1,OFFSET(E94,-1,0)+MAX(1,COUNTIF(QCI!$A$13:$A$24,OFFSET(ORÇAMENTO!E94,-1,0))),OFFSET(E94,-1,0)) -> 1 | F94: 6 | G94: 4 | H94: 0 | I94: 0 | J94: 2 | K94: =IF(OR($C94="S",$C94=0),0,MATCH(OFFSET($D94,0,$C94)+IF($C94<>1,1,COUNTIF(QCI!$A$13:$A$24,ORÇAMENTO!E94)),OFFSET($D94,1,$C94,ROW($C$404)-ROW($C94)),0)) -> 180 | L94: F | M94: Nível 3 | N94: Nível 3 | O94: 1.6.4. | P94: SINAPI | R94: ÁREA EXTERNA | S94: =REFERENCIA.Unidade -> - | T94: =OFFSET(CÁLCULO!H$15,ROW($T94)-ROW(T$15),0) -> 0 | U94: 0 | V94: BDI 1 | W94: =IF($C94="S",ROUND(IF(TIPOORCAMENTO="Proposto",ORÇAMENTO.CustoUnitario*(1+$AH94),ORÇAMENTO.PrecoUnitarioLicitado),15-13*$AF$10),0) -> 0 | X94: =IF($C94="S",IF(Import.TipoArredondamento<>"TransfereGOV",VTOTAL1,SUM(OFFSET(CÁLCULO!$AA$15,ROW($X94)-ROW($X$15),1):OFFSET(CÁLCULO!$AL$15,ROW($X94)-ROW($X$15),-1))),IF($C94=0,0,ROUND(SomaAgrup,15-13*$AF$11))) -> 944.28 | Y94: RA | AA94: =IF($C94="S",IF($Z94="CP",$X94,IF($Z94="RA",(($X94)*QCI!$AA$3),0)),SomaAgrup) -> 253.3259341 | AB94: 0 | AC94: =IF($N94="","",IF(ORÇAMENTO.Descricao="","DESCRIÇÃO",IF(AND($C94="S",ORÇAMENTO.Unidade=""),"UNIDADE",IF($X94<0,"VALOR NEGATIVO",IF(OR(AND(TIPOORCAMENTO="Proposto",$AG94<>"",$AG94>0,ORÇAMENTO.CustoUnitario>$AG94),AND(TIPOORCAMENTO="LICITADO",ORÇAMENTO.PrecoUnitarioLicitado>$AN94)),"ACIMA REF.",""))))) ->  | AD94: =IF(C94<=CRONO.NivelExibicao,MAX($AD$15:OFFSET(AD94,-1,0))+IF($C94<>1,1,MAX(1,COUNTIF(QCI!$A$13:$A$24,OFFSET($E94,-1,0)))),"") ->  | AE94: =IF(AND($C94="S",ORÇAMENTO.CodBarra<>""),IF(ORÇAMENTO.Fonte="",ORÇAMENTO.CodBarra,CONCATENATE(ORÇAMENTO.Fonte," ",ORÇAMENTO.CodBarra))) -> FALSE | AF94: =IF(ISERROR(INDIRECT(ORÇAMENTO.BancoRef)),"(abra o arquivo 'Referência "&Excel_BuiltIn_Database&".xlsm)",IF(OR($C94<>"S",ORÇAMENTO.CodBarra=""),"(Sem Código)",IF(ISERROR(MATCH($AE94,INDIRECT(ORÇAMENTO.BancoRef),0)),"(Código não identificado nas referências)",MATCH($AE94,INDIRECT(ORÇAMENTO.BancoRef),0)))) -> (Sem Código) | AG94: =ROUND(IF(DESONERACAO="sim",REFERENCIA.Desonerado,REFERENCIA.NaoDesonerado),2) -> 0 | AH94: 0.2082 | AM94: 944.28 | AN94: 0
A95: S | B95: 3 | C95: S | D95: 0 | E95: =IF($C95=1,OFFSET(E95,-1,0)+MAX(1,COUNTIF(QCI!$A$13:$A$24,OFFSET(ORÇAMENTO!E95,-1,0))),OFFSET(E95,-1,0)) -> 1 | F95: 6 | G95: 4 | H95: 0 | I95: 1 | J95: 0 | K95: =IF(OR($C95="S",$C95=0),0,MATCH(OFFSET($D95,0,$C95)+IF($C95<>1,1,COUNTIF(QCI!$A$13:$A$24,ORÇAMENTO!E95)),OFFSET($D95,1,$C95,ROW($C$404)-ROW($C95)),0)) -> 0 | L95: F | M95: Serviço | N95: Serviço | O95: 1.6.4.0.1. | P95: SINAPI | Q95: 101862 | R95: =IF($C95="S",REFERENCIA.Descricao,"(digite a descrição aqui)") -> REASSENTAMENTO DE BLOCOS RETANGULAR PARA PISO INTERTRAVADO, ESPESSURA DE 6 CM, EM CALÇADA, COM REAPROVEITAMENTO DOS BLOCOS RETANGULAR - INCLUSO RETIRADA E COLOCAÇÃO DO MATERIAL. AF_12/2020 | S95: =REFERENCIA.Unidade -> M2 | T95: =OFFSET(CÁLCULO!H$15,ROW($T95)-ROW(T$15),0) -> 18.1 | U95: 43.18 | V95: BDI 1 | W95: =IF($C95="S",ROUND(IF(TIPOORCAMENTO="Proposto",ORÇAMENTO.CustoUnitario*(1+$AH95),ORÇAMENTO.PrecoUnitarioLicitado),15-13*$AF$10),0) -> 52.17 | X95: =IF($C95="S",IF(Import.TipoArredondamento<>"TransfereGOV",VTOTAL1,SUM(OFFSET(CÁLCULO!$AA$15,ROW($X95)-ROW($X$15),1):OFFSET(CÁLCULO!$AL$15,ROW($X95)-ROW($X$15),-1))),IF($C95=0,0,ROUND(SomaAgrup,15-13*$AF$11))) -> 944.28 | Y95: RA | Z95: RA | AA95: =IF($C95="S",IF($Z95="CP",$X95,IF($Z95="RA",(($X95)*QCI!$AA$3),0)),SomaAgrup) -> 253.3259341 | AB95: 0 | AC95: =IF($N95="","",IF(ORÇAMENTO.Descricao="","DESCRIÇÃO",IF(AND($C95="S",ORÇAMENTO.Unidade=""),"UNIDADE",IF($X95<0,"VALOR NEGATIVO",IF(OR(AND(TIPOORCAMENTO="Proposto",$AG95<>"",$AG95>0,ORÇAMENTO.CustoUnitario>$AG95),AND(TIPOORCAMENTO="LICITADO",ORÇAMENTO.PrecoUnitarioLicitado>$AN95)),"ACIMA REF.",""))))) ->  | AD95: =IF(C95<=CRONO.NivelExibicao,MAX($AD$15:OFFSET(AD95,-1,0))+IF($C95<>1,1,MAX(1,COUNTIF(QCI!$A$13:$A$24,OFFSET($E95,-1,0)))),"") ->  | AE95: =IF(AND($C95="S",ORÇAMENTO.CodBarra<>""),IF(ORÇAMENTO.Fonte="",ORÇAMENTO.CodBarra,CONCATENATE(ORÇAMENTO.Fonte," ",ORÇAMENTO.CodBarra))) -> SINAPI 101862 | AF95: =IF(ISERROR(INDIRECT(ORÇAMENTO.BancoRef)),"(abra o arquivo 'Referência "&Excel_BuiltIn_Database&".xlsm)",IF(OR($C95<>"S",ORÇAMENTO.CodBarra=""),"(Sem Código)",IF(ISERROR(MATCH($AE95,INDIRECT(ORÇAMENTO.BancoRef),0)),"(Código não identificado nas referências)",MATCH($AE95,INDIRECT(ORÇAMENTO.BancoRef),0)))) -> 6101 | AG95: =ROUND(IF(DESONERACAO="sim",REFERENCIA.Desonerado,REFERENCIA.NaoDesonerado),2) -> 43.18 | AH95: 0.2082 | AJ95: 18.1 | AM95: 944.28 | AN95: 52.17
A96: 2 | B96: 2 | C96: 2 | D96: 24 | E96: =IF($C96=1,OFFSET(E96,-1,0)+MAX(1,COUNTIF(QCI!$A$13:$A$24,OFFSET(ORÇAMENTO!E96,-1,0))),OFFSET(E96,-1,0)) -> 1 | F96: 7 | G96: 0 | H96: 0 | I96: 0 | J96: 151 | K96: =IF(OR($C96="S",$C96=0),0,MATCH(OFFSET($D96,0,$C96)+IF($C96<>1,1,COUNTIF(QCI!$A$13:$A$24,ORÇAMENTO!E96)),OFFSET($D96,1,$C96,ROW($C$404)-ROW($C96)),0)) -> 24 | L96: F | M96: Nível 2 | N96: Nível 2 | O96: 1.7. | P96: SINAPI | R96: INSTALAÇÕES ELÉTRICAS | S96: =REFERENCIA.Unidade -> - | T96: =OFFSET(CÁLCULO!H$15,ROW($T96)-ROW(T$15),0) -> 0 | U96: 0 | V96: BDI 1 | W96: =IF($C96="S",ROUND(IF(TIPOORCAMENTO="Proposto",ORÇAMENTO.CustoUnitario*(1+$AH96),ORÇAMENTO.PrecoUnitarioLicitado),15-13*$AF$10),0) -> 0 | X96: =IF($C96="S",IF(Import.TipoArredondamento<>"TransfereGOV",VTOTAL1,SUM(OFFSET(CÁLCULO!$AA$15,ROW($X96)-ROW($X$15),1):OFFSET(CÁLCULO!$AL$15,ROW($X96)-ROW($X$15),-1))),IF($C96=0,0,ROUND(SomaAgrup,15-13*$AF$11))) -> 178971.15 | Y96: RA | AA96: =IF($C96="S",IF($Z96="CP",$X96,IF($Z96="RA",(($X96)*QCI!$AA$3),0)),SomaAgrup) -> 48013.33688 | AB96: 0 | AC96: =IF($N96="","",IF(ORÇAMENTO.Descricao="","DESCRIÇÃO",IF(AND($C96="S",ORÇAMENTO.Unidade=""),"UNIDADE",IF($X96<0,"VALOR NEGATIVO",IF(OR(AND(TIPOORCAMENTO="Proposto",$AG96<>"",$AG96>0,ORÇAMENTO.CustoUnitario>$AG96),AND(TIPOORCAMENTO="LICITADO",ORÇAMENTO.PrecoUnitarioLicitado>$AN96)),"ACIMA REF.",""))))) ->  | AD96: =IF(C96<=CRONO.NivelExibicao,MAX($AD$15:OFFSET(AD96,-1,0))+IF($C96<>1,1,MAX(1,COUNTIF(QCI!$A$13:$A$24,OFFSET($E96,-1,0)))),"") -> 8 | AE96: =IF(AND($C96="S",ORÇAMENTO.CodBarra<>""),IF(ORÇAMENTO.Fonte="",ORÇAMENTO.CodBarra,CONCATENATE(ORÇAMENTO.Fonte," ",ORÇAMENTO.CodBarra))) -> FALSE | AF96: =IF(ISERROR(INDIRECT(ORÇAMENTO.BancoRef)),"(abra o arquivo 'Referência "&Excel_BuiltIn_Database&".xlsm)",IF(OR($C96<>"S",ORÇAMENTO.CodBarra=""),"(Sem Código)",IF(ISERROR(MATCH($AE96,INDIRECT(ORÇAMENTO.BancoRef),0)),"(Código não identificado nas referências)",MATCH($AE96,INDIRECT(ORÇAMENTO.BancoRef),0)))) -> (Sem Código) | AG96: =ROUND(IF(DESONERACAO="sim",REFERENCIA.Desonerado,REFERENCIA.NaoDesonerado),2) -> 0 | AH96: 0.2082 | AM96: 178971.15 | AN96: 0
A97: S | B97: 2 | C97: S | D97: 0 | E97: =IF($C97=1,OFFSET(E97,-1,0)+MAX(1,COUNTIF(QCI!$A$13:$A$24,OFFSET(ORÇAMENTO!E97,-1,0))),OFFSET(E97,-1,0)) -> 1 | F97: 7 | G97: 0 | H97: 0 | I97: 1 | J97: 0 | K97: =IF(OR($C97="S",$C97=0),0,MATCH(OFFSET($D97,0,$C97)+IF($C97<>1,1,COUNTIF(QCI!$A$13:$A$24,ORÇAMENTO!E97)),OFFSET($D97,1,$C97,ROW($C$404)-ROW($C97)),0)) -> 0 | L97: F | M97: Serviço | N97: Serviço | O97: 1.7.0.0.1. | P97: SINAPI | Q97: 91940 | R97: =IF($C97="S",REFERENCIA.Descricao,"(digite a descrição aqui)") -> CAIXA RETANGULAR 4" X 2" MÉDIA (1,30 M DO PISO), PVC, INSTALADA EM PAREDE - FORNECIMENTO E INSTALAÇÃO. AF_03/2023 | S97: =REFERENCIA.Unidade -> UN | T97: =OFFSET(CÁLCULO!H$15,ROW($T97)-ROW(T$15),0) -> 33 | U97: 22.39 | V97: BDI 1 | W97: =IF($C97="S",ROUND(IF(TIPOORCAMENTO="Proposto",ORÇAMENTO.CustoUnitario*(1+$AH97),ORÇAMENTO.PrecoUnitarioLicitado),15-13*$AF$10),0) -> 27.05 | X97: =IF($C97="S",IF(Import.TipoArredondamento<>"TransfereGOV",VTOTAL1,SUM(OFFSET(CÁLCULO!$AA$15,ROW($X97)-ROW($X$15),1):OFFSET(CÁLCULO!$AL$15,ROW($X97)-ROW($X$15),-1))),IF($C97=0,0,ROUND(SomaAgrup,15-13*$AF$11))) -> 892.65 | Y97: RA | Z97: RA | AA97: =IF($C97="S",IF($Z97="CP",$X97,IF($Z97="RA",(($X97)*QCI!$AA$3),0)),SomaAgrup) -> 239.4749386 | AB97: 0 | AC97: =IF($N97="","",IF(ORÇAMENTO.Descricao="","DESCRIÇÃO",IF(AND($C97="S",ORÇAMENTO.Unidade=""),"UNIDADE",IF($X97<0,"VALOR NEGATIVO",IF(OR(AND(TIPOORCAMENTO="Proposto",$AG97<>"",$AG97>0,ORÇAMENTO.CustoUnitario>$AG97),AND(TIPOORCAMENTO="LICITADO",ORÇAMENTO.PrecoUnitarioLicitado>$AN97)),"ACIMA REF.",""))))) ->  | AD97: =IF(C97<=CRONO.NivelExibicao,MAX($AD$15:OFFSET(AD97,-1,0))+IF($C97<>1,1,MAX(1,COUNTIF(QCI!$A$13:$A$24,OFFSET($E97,-1,0)))),"") ->  | AE97: =IF(AND($C97="S",ORÇAMENTO.CodBarra<>""),IF(ORÇAMENTO.Fonte="",ORÇAMENTO.CodBarra,CONCATENATE(ORÇAMENTO.Fonte," ",ORÇAMENTO.CodBarra))) -> SINAPI 91940 | AF97: =IF(ISERROR(INDIRECT(ORÇAMENTO.BancoRef)),"(abra o arquivo 'Referência "&Excel_BuiltIn_Database&".xlsm)",IF(OR($C97<>"S",ORÇAMENTO.CodBarra=""),"(Sem Código)",IF(ISERROR(MATCH($AE97,INDIRECT(ORÇAMENTO.BancoRef),0)),"(Código não identificado nas referências)",MATCH($AE97,INDIRECT(ORÇAMENTO.BancoRef),0)))) -> 3088 | AG97: =ROUND(IF(DESONERACAO="sim",REFERENCIA.Desonerado,REFERENCIA.NaoDesonerado),2) -> 22.39 | AH97: 0.2082 | AJ97: 33 | AM97: 892.65 | AN97: 27.05
A98: S | B98: 2 | C98: S | D98: 0 | E98: =IF($C98=1,OFFSET(E98,-1,0)+MAX(1,COUNTIF(QCI!$A$13:$A$24,OFFSET(ORÇAMENTO!E98,-1,0))),OFFSET(E98,-1,0)) -> 1 | F98: 7 | G98: 0 | H98: 0 | I98: 2 | J98: 0 | K98: =IF(OR($C98="S",$C98=0),0,MATCH(OFFSET($D98,0,$C98)+IF($C98<>1,1,COUNTIF(QCI!$A$13:$A$24,ORÇAMENTO!E98)),OFFSET($D98,1,$C98,ROW($C$404)-ROW($C98)),0)) -> 0 | L98: F | M98: Serviço | N98: Serviço | O98: 1.7.0.0.2. | P98: SINAPI | Q98: 91939 | R98: =IF($C98="S",REFERENCIA.Descricao,"(digite a descrição aqui)") -> CAIXA RETANGULAR 4" X 2" ALTA (2,00 M DO PISO), PVC, INSTALADA EM PAREDE - FORNECIMENTO E INSTALAÇÃO. AF_03/2023 | S98: =REFERENCIA.Unidade -> UN | T98: =OFFSET(CÁLCULO!H$15,ROW($T98)-ROW(T$15),0) -> 7 | U98: 39.01 | V98: BDI 1 | W98: =IF($C98="S",ROUND(IF(TIPOORCAMENTO="Proposto",ORÇAMENTO.CustoUnitario*(1+$AH98),ORÇAMENTO.PrecoUnitarioLicitado),15-13*$AF$10),0) -> 47.13 | X98: =IF($C98="S",IF(Import.TipoArredondamento<>"TransfereGOV",VTOTAL1,SUM(OFFSET(CÁLCULO!$AA$15,ROW($X98)-ROW($X$15),1):OFFSET(CÁLCULO!$AL$15,ROW($X98)-ROW($X$15),-1))),IF($C98=0,0,ROUND(SomaAgrup,15-13*$AF$11))) -> 329.91 | Y98: RA | Z98: RA | AA98: =IF($C98="S",IF($Z98="CP",$X98,IF($Z98="RA",(($X98)*QCI!$AA$3),0)),SomaAgrup) -> 88.50633171 | AB98: 0 | AC98: =IF($N98="","",IF(ORÇAMENTO.Descricao="","DESCRIÇÃO",IF(AND($C98="S",ORÇAMENTO.Unidade=""),"UNIDADE",IF($X98<0,"VALOR NEGATIVO",IF(OR(AND(TIPOORCAMENTO="Proposto",$AG98<>"",$AG98>0,ORÇAMENTO.CustoUnitario>$AG98),AND(TIPOORCAMENTO="LICITADO",ORÇAMENTO.PrecoUnitarioLicitado>$AN98)),"ACIMA REF.",""))))) ->  | AD98: =IF(C98<=CRONO.NivelExibicao,MAX($AD$15:OFFSET(AD98,-1,0))+IF($C98<>1,1,MAX(1,COUNTIF(QCI!$A$13:$A$24,OFFSET($E98,-1,0)))),"") ->  | AE98: =IF(AND($C98="S",ORÇAMENTO.CodBarra<>""),IF(ORÇAMENTO.Fonte="",ORÇAMENTO.CodBarra,CONCATENATE(ORÇAMENTO.Fonte," ",ORÇAMENTO.CodBarra))) -> SINAPI 91939 | AF98: =IF(ISERROR(INDIRECT(ORÇAMENTO.BancoRef)),"(abra o arquivo 'Referência "&Excel_BuiltIn_Database&".xlsm)",IF(OR($C98<>"S",ORÇAMENTO.CodBarra=""),"(Sem Código)",IF(ISERROR(MATCH($AE98,INDIRECT(ORÇAMENTO.BancoRef),0)),"(Código não identificado nas referências)",MATCH($AE98,INDIRECT(ORÇAMENTO.BancoRef),0)))) -> 3087 | AG98: =ROUND(IF(DESONERACAO="sim",REFERENCIA.Desonerado,REFERENCIA.NaoDesonerado),2) -> 39.01 | AH98: 0.2082 | AJ98: 7 | AM98: 329.91 | AN98: 47.13
A99: =CHOOSE(1+LOG(1+2*(ORÇAMENTO.Nivel="Meta")+4*(ORÇAMENTO.Nivel="Nível 2")+8*(ORÇAMENTO.Nivel="Nível 3")+16*(ORÇAMENTO.Nivel="Nível 4")+32*(ORÇAMENTO.Nivel="Serviço"),2),0,1,2,3,4,"S") -> S | B99: =IF(OR(C99="s",C99=0),OFFSET(B99,-1,0),C99) -> 2 | C99: =IF(OFFSET(C99,-1,0)="L",1,IF(OFFSET(C99,-1,0)=1,2,IF(OR(A99="s",A99=0),"S",IF(AND(OFFSET(C99,-1,0)=2,A99=4),3,IF(AND(OR(OFFSET(C99,-1,0)="s",OFFSET(C99,-1,0)=0),A99<>"s",A99>OFFSET(B99,-1,0)),OFFSET(B99,-1,0),A99))))) -> S | D99: =IF(OR(C99="S",C99=0),0,IF(ISERROR(K99),J99,SMALL(J99:K99,1))) -> 0 | E99: =IF($C99=1,OFFSET(E99,-1,0)+MAX(1,COUNTIF(QCI!$A$13:$A$24,OFFSET(ORÇAMENTO!E99,-1,0))),OFFSET(E99,-1,0)) -> 1 | F99: =IF($C99=1,0,IF($C99=2,OFFSET(F99,-1,0)+1,OFFSET(F99,-1,0))) -> 7 | G99: =IF(AND($C99<=2,$C99<>0),0,IF($C99=3,OFFSET(G99,-1,0)+1,OFFSET(G99,-1,0))) -> 0 | H99: =IF(AND($C99<=3,$C99<>0),0,IF($C99=4,OFFSET(H99,-1,0)+1,OFFSET(H99,-1,0))) -> 0 | I99: =IF(AND($C99<=4,$C99<>0),0,IF(AND($C99="S",$X99>0),OFFSET(I99,-1,0)+1,OFFSET(I99,-1,0))) -> 3 | J99: 0 | K99: =IF(OR($C99="S",$C99=0),0,MATCH(OFFSET($D99,0,$C99)+IF($C99<>1,1,COUNTIF(QCI!$A$13:$A$24,ORÇAMENTO!E99)),OFFSET($D99,1,$C99,ROW($C$404)-ROW($C99)),0)) -> 0 | L99: =IF(OR($X99>0,$C99=1,$C99=2,$C99=3,$C99=4),"F","") -> F | M99: Serviço | N99: =CHOOSE(1+LOG(1+2*(C99=1)+4*(C99=2)+8*(C99=3)+16*(C99=4)+32*(C99="S"),2),"","Meta","Nível 2","Nível 3","Nível 4","Serviço") -> Serviço | O99: =IF(OR($C99=0,$L99=""),"-",CONCATENATE(E99&".",IF(AND($A$5>=2,$C99>=2),F99&".",""),IF(AND($A$5>=3,$C99>=3),G99&".",""),IF(AND($A$5>=4,$C99>=4),H99&".",""),IF($C99="S",I99&".",""))) -> 1.7.0.0.3. | P99: SINAPI | Q99: 91936 | R99: =IF($C99="S",REFERENCIA.Descricao,"(digite a descrição aqui)") -> CAIXA OCTOGONAL 4" X 4", PVC, INSTALADA EM LAJE - FORNECIMENTO E INSTALAÇÃO. AF_03/2023 | S99: =REFERENCIA.Unidade -> UN | T99: =OFFSET(CÁLCULO!H$15,ROW($T99)-ROW(T$15),0) -> 24 | U99: 22.34 | V99: BDI 1 | W99: =IF($C99="S",ROUND(IF(TIPOORCAMENTO="Proposto",ORÇAMENTO.CustoUnitario*(1+$AH99),ORÇAMENTO.PrecoUnitarioLicitado),15-13*$AF$10),0) -> 26.99 | X99: =IF($C99="S",IF(Import.TipoArredondamento<>"TransfereGOV",VTOTAL1,SUM(OFFSET(CÁLCULO!$AA$15,ROW($X99)-ROW($X$15),1):OFFSET(CÁLCULO!$AL$15,ROW($X99)-ROW($X$15),-1))),IF($C99=0,0,ROUND(SomaAgrup,15-13*$AF$11))) -> 647.76 | Y99: RA | Z99: =IF(AND($C99="S",$X99>0),IF(ISBLANK($Y99),"RA",LEFT($Y99,2)),"") -> RA | AA99: =IF($C99="S",IF($Z99="CP",$X99,IF($Z99="RA",(($X99)*QCI!$AA$3),0)),SomaAgrup) -> 173.7772769 | AB99: =IF($C99="S",IF($Z99="OU",ROUND($X99,2),0),SomaAgrup) -> 0 | AC99: =IF($N99="","",IF(ORÇAMENTO.Descricao="","DESCRIÇÃO",IF(AND($C99="S",ORÇAMENTO.Unidade=""),"UNIDADE",IF($X99<0,"VALOR NEGATIVO",IF(OR(AND(TIPOORCAMENTO="Proposto",$AG99<>"",$AG99>0,ORÇAMENTO.CustoUnitario>$AG99),AND(TIPOORCAMENTO="LICITADO",ORÇAMENTO.PrecoUnitarioLicitado>$AN99)),"ACIMA REF.",""))))) ->  | AD99: =IF(C99<=CRONO.NivelExibicao,MAX($AD$15:OFFSET(AD99,-1,0))+IF($C99<>1,1,MAX(1,COUNTIF(QCI!$A$13:$A$24,OFFSET($E99,-1,0)))),"") ->  | AE99: =IF(AND($C99="S",ORÇAMENTO.CodBarra<>""),IF(ORÇAMENTO.Fonte="",ORÇAMENTO.CodBarra,CONCATENATE(ORÇAMENTO.Fonte," ",ORÇAMENTO.CodBarra))) -> SINAPI 91936 | AF99: =IF(ISERROR(INDIRECT(ORÇAMENTO.BancoRef)),"(abra o arquivo 'Referência "&Excel_BuiltIn_Database&".xlsm)",IF(OR($C99<>"S",ORÇAMENTO.CodBarra=""),"(Sem Código)",IF(ISERROR(MATCH($AE99,INDIRECT(ORÇAMENTO.BancoRef),0)),"(Código não identificado nas referências)",MATCH($AE99,INDIRECT(ORÇAMENTO.BancoRef),0)))) -> 3085 | AG99: =ROUND(IF(DESONERACAO="sim",REFERENCIA.Desonerado,REFERENCIA.NaoDesonerado),2) -> 22.34 | AH99: =ROUND(IF(ISNUMBER(ORÇAMENTO.OpcaoBDI),ORÇAMENTO.OpcaoBDI,IF(LEFT(ORÇAMENTO.OpcaoBDI,3)="BDI",HLOOKUP(ORÇAMENTO.OpcaoBDI,$F$4:$H$5,2,FALSE),0)),15-11*$AF$9) -> 0.2082 | AJ99: 24 | AM99: 647.76 | AN99: =ROUND(ORÇAMENTO.CustoUnitario*(1+$AH99),2) -> 26.99
A100: =CHOOSE(1+LOG(1+2*(ORÇAMENTO.Nivel="Meta")+4*(ORÇAMENTO.Nivel="Nível 2")+8*(ORÇAMENTO.Nivel="Nível 3")+16*(ORÇAMENTO.Nivel="Nível 4")+32*(ORÇAMENTO.Nivel="Serviço"),2),0,1,2,3,4,"S") -> S | B100: =IF(OR(C100="s",C100=0),OFFSET(B100,-1,0),C100) -> 2 | C100: =IF(OFFSET(C100,-1,0)="L",1,IF(OFFSET(C100,-1,0)=1,2,IF(OR(A100="s",A100=0),"S",IF(AND(OFFSET(C100,-1,0)=2,A100=4),3,IF(AND(OR(OFFSET(C100,-1,0)="s",OFFSET(C100,-1,0)=0),A100<>"s",A100>OFFSET(B100,-1,0)),OFFSET(B100,-1,0),A100))))) -> S | D100: =IF(OR(C100="S",C100=0),0,IF(ISERROR(K100),J100,SMALL(J100:K100,1))) -> 0 | E100: =IF($C100=1,OFFSET(E100,-1,0)+MAX(1,COUNTIF(QCI!$A$13:$A$24,OFFSET(ORÇAMENTO!E100,-1,0))),OFFSET(E100,-1,0)) -> 1 | F100: =IF($C100=1,0,IF($C100=2,OFFSET(F100,-1,0)+1,OFFSET(F100,-1,0))) -> 7 | G100: =IF(AND($C100<=2,$C100<>0),0,IF($C100=3,OFFSET(G100,-1,0)+1,OFFSET(G100,-1,0))) -> 0 | H100: =IF(AND($C100<=3,$C100<>0),0,IF($C100=4,OFFSET(H100,-1,0)+1,OFFSET(H100,-1,0))) -> 0 | I100: =IF(AND($C100<=4,$C100<>0),0,IF(AND($C100="S",$X100>0),OFFSET(I100,-1,0)+1,OFFSET(I100,-1,0))) -> 4 | J100: 0 | K100: =IF(OR($C100="S",$C100=0),0,MATCH(OFFSET($D100,0,$C100)+IF($C100<>1,1,COUNTIF(QCI!$A$13:$A$24,ORÇAMENTO!E100)),OFFSET($D100,1,$C100,ROW($C$404)-ROW($C100)),0)) -> 0 | L100: =IF(OR($X100>0,$C100=1,$C100=2,$C100=3,$C100=4),"F","") -> F | M100: Serviço | N100: =CHOOSE(1+LOG(1+2*(C100=1)+4*(C100=2)+8*(C100=3)+16*(C100=4)+32*(C100="S"),2),"","Meta","Nível 2","Nível 3","Nível 4","Serviço") -> Serviço | O100: =IF(OR($C100=0,$L100=""),"-",CONCATENATE(E100&".",IF(AND($A$5>=2,$C100>=2),F100&".",""),IF(AND($A$5>=3,$C100>=3),G100&".",""),IF(AND($A$5>=4,$C100>=4),H100&".",""),IF($C100="S",I100&".",""))) -> 1.7.0.0.4. | P100: SINAPI | Q100: 90456 | R100: =IF($C100="S",REFERENCIA.Descricao,"(digite a descrição aqui)") -> QUEBRA EM ALVENARIA PARA INSTALAÇÃO DE CAIXA DE TOMADA (4X4 OU 4X2). AF_09/2023 | S100: =REFERENCIA.Unidade -> UN | T100: =OFFSET(CÁLCULO!H$15,ROW($T100)-ROW(T$15),0) -> 65 | U100: 6.73 | V100: BDI 1 | W100: =IF($C100="S",ROUND(IF(TIPOORCAMENTO="Proposto",ORÇAMENTO.CustoUnitario*(1+$AH100),ORÇAMENTO.PrecoUnitarioLicitado),15-13*$AF$10),0) -> 8.13 | X100: =IF($C100="S",IF(Import.TipoArredondamento<>"TransfereGOV",VTOTAL1,SUM(OFFSET(CÁLCULO!$AA$15,ROW($X100)-ROW($X$15),1):OFFSET(CÁLCULO!$AL$15,ROW($X100)-ROW($X$15),-1))),IF($C100=0,0,ROUND(SomaAgrup,15-13*$AF$11))) -> 528.45 | Y100: RA | Z100: =IF(AND($C100="S",$X100>0),IF(ISBLANK($Y100),"RA",LEFT($Y100,2)),"") -> RA | AA100: =IF($C100="S",IF($Z100="CP",$X100,IF($Z100="RA",(($X100)*QCI!$AA$3),0)),SomaAgrup) -> 141.7694856 | AB100: =IF($C100="S",IF($Z100="OU",ROUND($X100,2),0),SomaAgrup) -> 0 | AC100: =IF($N100="","",IF(ORÇAMENTO.Descricao="","DESCRIÇÃO",IF(AND($C100="S",ORÇAMENTO.Unidade=""),"UNIDADE",IF($X100<0,"VALOR NEGATIVO",IF(OR(AND(TIPOORCAMENTO="Proposto",$AG100<>"",$AG100>0,ORÇAMENTO.CustoUnitario>$AG100),AND(TIPOORCAMENTO="LICITADO",ORÇAMENTO.PrecoUnitarioLicitado>$AN100)),"ACIMA REF.",""))))) ->  | AD100: =IF(C100<=CRONO.NivelExibicao,MAX($AD$15:OFFSET(AD100,-1,0))+IF($C100<>1,1,MAX(1,COUNTIF(QCI!$A$13:$A$24,OFFSET($E100,-1,0)))),"") ->  | AE100: =IF(AND($C100="S",ORÇAMENTO.CodBarra<>""),IF(ORÇAMENTO.Fonte="",ORÇAMENTO.CodBarra,CONCATENATE(ORÇAMENTO.Fonte," ",ORÇAMENTO.CodBarra))) -> SINAPI 90456 | AF100: =IF(ISERROR(INDIRECT(ORÇAMENTO.BancoRef)),"(abra o arquivo 'Referência "&Excel_BuiltIn_Database&".xlsm)",IF(OR($C100<>"S",ORÇAMENTO.CodBarra=""),"(Sem Código)",IF(ISERROR(MATCH($AE100,INDIRECT(ORÇAMENTO.BancoRef),0)),"(Código não identificado nas referências)",MATCH($AE100,INDIRECT(ORÇAMENTO.BancoRef),0)))) -> 5597 | AG100: =ROUND(IF(DESONERACAO="sim",REFERENCIA.Desonerado,REFERENCIA.NaoDesonerado),2) -> 6.73 | AH100: =ROUND(IF(ISNUMBER(ORÇAMENTO.OpcaoBDI),ORÇAMENTO.OpcaoBDI,IF(LEFT(ORÇAMENTO.OpcaoBDI,3)="BDI",HLOOKUP(ORÇAMENTO.OpcaoBDI,$F$4:$H$5,2,FALSE),0)),15-11*$AF$9) -> 0.2082 | AJ100: 65 | AM100: 528.45 | AN100: =ROUND(ORÇAMENTO.CustoUnitario*(1+$AH100),2) -> 8.13
A101: S | B101: 2 | C101: S | D101: 0 | E101: =IF($C101=1,OFFSET(E101,-1,0)+MAX(1,COUNTIF(QCI!$A$13:$A$24,OFFSET(ORÇAMENTO!E101,-1,0))),OFFSET(E101,-1,0)) -> 1 | F101: 7 | G101: 0 | H101: 0 | I101: 5 | J101: 0 | K101: =IF(OR($C101="S",$C101=0),0,MATCH(OFFSET($D101,0,$C101)+IF($C101<>1,1,COUNTIF(QCI!$A$13:$A$24,ORÇAMENTO!E101)),OFFSET($D101,1,$C101,ROW($C$404)-ROW($C101)),0)) -> 0 | L101: F | M101: Serviço | N101: Serviço | O101: 1.7.0.0.5. | P101: SINAPI | Q101: 90447 | R101: =IF($C101="S",REFERENCIA.Descricao,"(digite a descrição aqui)") -> RASGO LINEAR MANUAL EM ALVENARIA, PARA ELETRODUTOS, DIÂMETROS MENORES OU IGUAIS A 40 MM. AF_09/2023 | S101: =REFERENCIA.Unidade -> M | T101: =OFFSET(CÁLCULO!H$15,ROW($T101)-ROW(T$15),0) -> 110 | U101: 10.16 | V101: BDI 1 | W101: =IF($C101="S",ROUND(IF(TIPOORCAMENTO="Proposto",ORÇAMENTO.CustoUnitario*(1+$AH101),ORÇAMENTO.PrecoUnitarioLicitado),15-13*$AF$10),0) -> 12.28 | X101: =IF($C101="S",IF(Import.TipoArredondamento<>"TransfereGOV",VTOTAL1,SUM(OFFSET(CÁLCULO!$AA$15,ROW($X101)-ROW($X$15),1):OFFSET(CÁLCULO!$AL$15,ROW($X101)-ROW($X$15),-1))),IF($C101=0,0,ROUND(SomaAgrup,15-13*$AF$11))) -> 1350.8 | Y101: RA | Z101: RA | AA101: =IF($C101="S",IF($Z101="CP",$X101,IF($Z101="RA",(($X101)*QCI!$AA$3),0)),SomaAgrup) -> 362.38475 | AB101: 0 | AC101: =IF($N101="","",IF(ORÇAMENTO.Descricao="","DESCRIÇÃO",IF(AND($C101="S",ORÇAMENTO.Unidade=""),"UNIDADE",IF($X101<0,"VALOR NEGATIVO",IF(OR(AND(TIPOORCAMENTO="Proposto",$AG101<>"",$AG101>0,ORÇAMENTO.CustoUnitario>$AG101),AND(TIPOORCAMENTO="LICITADO",ORÇAMENTO.PrecoUnitarioLicitado>$AN101)),"ACIMA REF.",""))))) ->  | AD101: =IF(C101<=CRONO.NivelExibicao,MAX($AD$15:OFFSET(AD101,-1,0))+IF($C101<>1,1,MAX(1,COUNTIF(QCI!$A$13:$A$24,OFFSET($E101,-1,0)))),"") ->  | AE101: =IF(AND($C101="S",ORÇAMENTO.CodBarra<>""),IF(ORÇAMENTO.Fonte="",ORÇAMENTO.CodBarra,CONCATENATE(ORÇAMENTO.Fonte," ",ORÇAMENTO.CodBarra))) -> SINAPI 90447 | AF101: =IF(ISERROR(INDIRECT(ORÇAMENTO.BancoRef)),"(abra o arquivo 'Referência "&Excel_BuiltIn_Database&".xlsm)",IF(OR($C101<>"S",ORÇAMENTO.CodBarra=""),"(Sem Código)",IF(ISERROR(MATCH($AE101,INDIRECT(ORÇAMENTO.BancoRef),0)),"(Código não identificado nas referências)",MATCH($AE101,INDIRECT(ORÇAMENTO.BancoRef),0)))) -> 5591 | AG101: =ROUND(IF(DESONERACAO="sim",REFERENCIA.Desonerado,REFERENCIA.NaoDesonerado),2) -> 10.16 | AH101: 0.2082 | AJ101: 110 | AM101: 1350.8 | AN101: 12.28
A102: S | B102: 2 | C102: S | D102: 0 | E102: =IF($C102=1,OFFSET(E102,-1,0)+MAX(1,COUNTIF(QCI!$A$13:$A$24,OFFSET(ORÇAMENTO!E102,-1,0))),OFFSET(E102,-1,0)) -> 1 | F102: 7 | G102: 0 | H102: 0 | I102: 6 | J102: 0 | K102: =IF(OR($C102="S",$C102=0),0,MATCH(OFFSET($D102,0,$C102)+IF($C102<>1,1,COUNTIF(QCI!$A$13:$A$24,ORÇAMENTO!E102)),OFFSET($D102,1,$C102,ROW($C$404)-ROW($C102)),0)) -> 0 | L102: F | M102: Serviço | N102: Serviço | O102: 1.7.0.0.6. | P102: SINAPI | Q102: 104766 | R102: =IF($C102="S",REFERENCIA.Descricao,"(digite a descrição aqui)") -> CHUMBAMENTO LINEAR EM ALVENARIA PARA ELETRODUTOS COM DIÂMETROS MENORES OU IGUAIS A 40 MM. AF_09/2023 | S102: =REFERENCIA.Unidade -> M | T102: =OFFSET(CÁLCULO!H$15,ROW($T102)-ROW(T$15),0) -> 110 | U102: 18.69 | V102: BDI 1 | W102: =IF($C102="S",ROUND(IF(TIPOORCAMENTO="Proposto",ORÇAMENTO.CustoUnitario*(1+$AH102),ORÇAMENTO.PrecoUnitarioLicitado),15-13*$AF$10),0) -> 22.58 | X102: =IF($C102="S",IF(Import.TipoArredondamento<>"TransfereGOV",VTOTAL1,SUM(OFFSET(CÁLCULO!$AA$15,ROW($X102)-ROW($X$15),1):OFFSET(CÁLCULO!$AL$15,ROW($X102)-ROW($X$15),-1))),IF($C102=0,0,ROUND(SomaAgrup,15-13*$AF$11))) -> 2483.8 | Y102: RA | Z102: RA | AA102: =IF($C102="S",IF($Z102="CP",$X102,IF($Z102="RA",(($X102)*QCI!$AA$3),0)),SomaAgrup) -> 666.3393856 | AB102: 0 | AC102: =IF($N102="","",IF(ORÇAMENTO.Descricao="","DESCRIÇÃO",IF(AND($C102="S",ORÇAMENTO.Unidade=""),"UNIDADE",IF($X102<0,"VALOR NEGATIVO",IF(OR(AND(TIPOORCAMENTO="Proposto",$AG102<>"",$AG102>0,ORÇAMENTO.CustoUnitario>$AG102),AND(TIPOORCAMENTO="LICITADO",ORÇAMENTO.PrecoUnitarioLicitado>$AN102)),"ACIMA REF.",""))))) ->  | AD102: =IF(C102<=CRONO.NivelExibicao,MAX($AD$15:OFFSET(AD102,-1,0))+IF($C102<>1,1,MAX(1,COUNTIF(QCI!$A$13:$A$24,OFFSET($E102,-1,0)))),"") ->  | AE102: =IF(AND($C102="S",ORÇAMENTO.CodBarra<>""),IF(ORÇAMENTO.Fonte="",ORÇAMENTO.CodBarra,CONCATENATE(ORÇAMENTO.Fonte," ",ORÇAMENTO.CodBarra))) -> SINAPI 104766 | AF102: =IF(ISERROR(INDIRECT(ORÇAMENTO.BancoRef)),"(abra o arquivo 'Referência "&Excel_BuiltIn_Database&".xlsm)",IF(OR($C102<>"S",ORÇAMENTO.CodBarra=""),"(Sem Código)",IF(ISERROR(MATCH($AE102,INDIRECT(ORÇAMENTO.BancoRef),0)),"(Código não identificado nas referências)",MATCH($AE102,INDIRECT(ORÇAMENTO.BancoRef),0)))) -> 3491 | AG102: =ROUND(IF(DESONERACAO="sim",REFERENCIA.Desonerado,REFERENCIA.NaoDesonerado),2) -> 18.69 | AH102: 0.2082 | AJ102: 110 | AM102: 2483.8 | AN102: 22.58
A103: S | B103: 2 | C103: S | D103: 0 | E103: =IF($C103=1,OFFSET(E103,-1,0)+MAX(1,COUNTIF(QCI!$A$13:$A$24,OFFSET(ORÇAMENTO!E103,-1,0))),OFFSET(E103,-1,0)) -> 1 | F103: 7 | G103: 0 | H103: 0 | I103: 7 | J103: 0 | K103: =IF(OR($C103="S",$C103=0),0,MATCH(OFFSET($D103,0,$C103)+IF($C103<>1,1,COUNTIF(QCI!$A$13:$A$24,ORÇAMENTO!E103)),OFFSET($D103,1,$C103,ROW($C$404)-ROW($C103)),0)) -> 0 | L103: F | M103: Serviço | N103: Serviço | O103: 1.7.0.0.7. | P103: SINAPI | Q103: 91856 | R103: =IF($C103="S",REFERENCIA.Descricao,"(digite a descrição aqui)") -> ELETRODUTO FLEXÍVEL CORRUGADO, PVC, DN 32 MM (1"), PARA CIRCUITOS TERMINAIS, INSTALADO EM PAREDE - FORNECIMENTO E INSTALAÇÃO. AF_03/2023 | S103: =REFERENCIA.Unidade -> M | T103: =OFFSET(CÁLCULO!H$15,ROW($T103)-ROW(T$15),0) -> 110 | U103: 15.12 | V103: BDI 1 | W103: =IF($C103="S",ROUND(IF(TIPOORCAMENTO="Proposto",ORÇAMENTO.CustoUnitario*(1+$AH103),ORÇAMENTO.PrecoUnitarioLicitado),15-13*$AF$10),0) -> 18.27 | X103: =IF($C103="S",IF(Import.TipoArredondamento<>"TransfereGOV",VTOTAL1,SUM(OFFSET(CÁLCULO!$AA$15,ROW($X103)-ROW($X$15),1):OFFSET(CÁLCULO!$AL$15,ROW($X103)-ROW($X$15),-1))),IF($C103=0,0,ROUND(SomaAgrup,15-13*$AF$11))) -> 2009.7 | Y103: RA | Z103: RA | AA103: =IF($C103="S",IF($Z103="CP",$X103,IF($Z103="RA",(($X103)*QCI!$AA$3),0)),SomaAgrup) -> 539.1506012 | AB103: 0 | AC103: =IF($N103="","",IF(ORÇAMENTO.Descricao="","DESCRIÇÃO",IF(AND($C103="S",ORÇAMENTO.Unidade=""),"UNIDADE",IF($X103<0,"VALOR NEGATIVO",IF(OR(AND(TIPOORCAMENTO="Proposto",$AG103<>"",$AG103>0,ORÇAMENTO.CustoUnitario>$AG103),AND(TIPOORCAMENTO="LICITADO",ORÇAMENTO.PrecoUnitarioLicitado>$AN103)),"ACIMA REF.",""))))) ->  | AD103: =IF(C103<=CRONO.NivelExibicao,MAX($AD$15:OFFSET(AD103,-1,0))+IF($C103<>1,1,MAX(1,COUNTIF(QCI!$A$13:$A$24,OFFSET($E103,-1,0)))),"") ->  | AE103: =IF(AND($C103="S",ORÇAMENTO.CodBarra<>""),IF(ORÇAMENTO.Fonte="",ORÇAMENTO.CodBarra,CONCATENATE(ORÇAMENTO.Fonte," ",ORÇAMENTO.CodBarra))) -> SINAPI 91856 | AF103: =IF(ISERROR(INDIRECT(ORÇAMENTO.BancoRef)),"(abra o arquivo 'Referência "&Excel_BuiltIn_Database&".xlsm)",IF(OR($C103<>"S",ORÇAMENTO.CodBarra=""),"(Sem Código)",IF(ISERROR(MATCH($AE103,INDIRECT(ORÇAMENTO.BancoRef),0)),"(Código não identificado nas referências)",MATCH($AE103,INDIRECT(ORÇAMENTO.BancoRef),0)))) -> 2974 | AG103: =ROUND(IF(DESONERACAO="sim",REFERENCIA.Desonerado,REFERENCIA.NaoDesonerado),2) -> 15.12 | AH103: 0.2082 | AJ103: 110 | AM103: 2009.7 | AN103: 18.27
A104: S | B104: 2 | C104: S | D104: 0 | E104: =IF($C104=1,OFFSET(E104,-1,0)+MAX(1,COUNTIF(QCI!$A$13:$A$24,OFFSET(ORÇAMENTO!E104,-1,0))),OFFSET(E104,-1,0)) -> 1 | F104: 7 | G104: 0 | H104: 0 | I104: 8 | J104: 0 | K104: =IF(OR($C104="S",$C104=0),0,MATCH(OFFSET($D104,0,$C104)+IF($C104<>1,1,COUNTIF(QCI!$A$13:$A$24,ORÇAMENTO!E104)),OFFSET($D104,1,$C104,ROW($C$404)-ROW($C104)),0)) -> 0 | L104: F | M104: Serviço | N104: Serviço | O104: 1.7.0.0.8. | P104: SINAPI | Q104: 91847 | R104: =IF($C104="S",REFERENCIA.Descricao,"(digite a descrição aqui)") -> ELETRODUTO FLEXÍVEL CORRUGADO REFORÇADO, PVC, DN 32 MM (1"), PARA CIRCUITOS TERMINAIS, INSTALADO EM LAJE - FORNECIMENTO E INSTALAÇÃO. AF_03/2023 | S104: =REFERENCIA.Unidade -> M | T104: =OFFSET(CÁLCULO!H$15,ROW($T104)-ROW(T$15),0) -> 250 | U104: 15.87 | V104: BDI 1 | W104: =IF($C104="S",ROUND(IF(TIPOORCAMENTO="Proposto",ORÇAMENTO.CustoUnitario*(1+$AH104),ORÇAMENTO.PrecoUnitarioLicitado),15-13*$AF$10),0) -> 19.17 | X104: =IF($C104="S",IF(Import.TipoArredondamento<>"TransfereGOV",VTOTAL1,SUM(OFFSET(CÁLCULO!$AA$15,ROW($X104)-ROW($X$15),1):OFFSET(CÁLCULO!$AL$15,ROW($X104)-ROW($X$15),-1))),IF($C104=0,0,ROUND(SomaAgrup,15-13*$AF$11))) -> 4792.5 | Y104: RA | Z104: RA | AA104: =IF($C104="S",IF($Z104="CP",$X104,IF($Z104="RA",(($X104)*QCI!$AA$3),0)),SomaAgrup) -> 1285.703964 | AB104: 0 | AC104: =IF($N104="","",IF(ORÇAMENTO.Descricao="","DESCRIÇÃO",IF(AND($C104="S",ORÇAMENTO.Unidade=""),"UNIDADE",IF($X104<0,"VALOR NEGATIVO",IF(OR(AND(TIPOORCAMENTO="Proposto",$AG104<>"",$AG104>0,ORÇAMENTO.CustoUnitario>$AG104),AND(TIPOORCAMENTO="LICITADO",ORÇAMENTO.PrecoUnitarioLicitado>$AN104)),"ACIMA REF.",""))))) ->  | AD104: =IF(C104<=CRONO.NivelExibicao,MAX($AD$15:OFFSET(AD104,-1,0))+IF($C104<>1,1,MAX(1,COUNTIF(QCI!$A$13:$A$24,OFFSET($E104,-1,0)))),"") ->  | AE104: =IF(AND($C104="S",ORÇAMENTO.CodBarra<>""),IF(ORÇAMENTO.Fonte="",ORÇAMENTO.CodBarra,CONCATENATE(ORÇAMENTO.Fonte," ",ORÇAMENTO.CodBarra))) -> SINAPI 91847 | AF104: =IF(ISERROR(INDIRECT(ORÇAMENTO.BancoRef)),"(abra o arquivo 'Referência "&Excel_BuiltIn_Database&".xlsm)",IF(OR($C104<>"S",ORÇAMENTO.CodBarra=""),"(Sem Código)",IF(ISERROR(MATCH($AE104,INDIRECT(ORÇAMENTO.BancoRef),0)),"(Código não identificado nas referências)",MATCH($AE104,INDIRECT(ORÇAMENTO.BancoRef),0)))) -> 2966 | AG104: =ROUND(IF(DESONERACAO="sim",REFERENCIA.Desonerado,REFERENCIA.NaoDesonerado),2) -> 15.87 | AH104: 0.2082 | AJ104: 250 | AM104: 4792.5 | AN104: 19.17
A105: S | B105: 2 | C105: S | D105: 0 | E105: =IF($C105=1,OFFSET(E105,-1,0)+MAX(1,COUNTIF(QCI!$A$13:$A$24,OFFSET(ORÇAMENTO!E105,-1,0))),OFFSET(E105,-1,0)) -> 1 | F105: 7 | G105: 0 | H105: 0 | I105: 9 | J105: 0 | K105: =IF(OR($C105="S",$C105=0),0,MATCH(OFFSET($D105,0,$C105)+IF($C105<>1,1,COUNTIF(QCI!$A$13:$A$24,ORÇAMENTO!E105)),OFFSET($D105,1,$C105,ROW($C$404)-ROW($C105)),0)) -> 0 | L105: F | M105: Serviço | N105: Serviço | O105: 1.7.0.0.9. | P105: SINAPI | Q105: 91926 | R105: =IF($C105="S",REFERENCIA.Descricao,"(digite a descrição aqui)") -> CABO DE COBRE FLEXÍVEL ISOLADO, 2,5 MM², ANTI-CHAMA 450/750 V, PARA CIRCUITOS TERMINAIS - FORNECIMENTO E INSTALAÇÃO. AF_03/2023 | S105: =REFERENCIA.Unidade -> M | T105: =OFFSET(CÁLCULO!H$15,ROW($T105)-ROW(T$15),0) -> 625.44 | U105: 4.61 | V105: BDI 1 | W105: =IF($C105="S",ROUND(IF(TIPOORCAMENTO="Proposto",ORÇAMENTO.CustoUnitario*(1+$AH105),ORÇAMENTO.PrecoUnitarioLicitado),15-13*$AF$10),0) -> 5.57 | X105: =IF($C105="S",IF(Import.TipoArredondamento<>"TransfereGOV",VTOTAL1,SUM(OFFSET(CÁLCULO!$AA$15,ROW($X105)-ROW($X$15),1):OFFSET(CÁLCULO!$AL$15,ROW($X105)-ROW($X$15),-1))),IF($C105=0,0,ROUND(SomaAgrup,15-13*$AF$11))) -> 3483.7 | Y105: RA | Z105: RA | AA105: =IF($C105="S",IF($Z105="CP",$X105,IF($Z105="RA",(($X105)*QCI!$AA$3),0)),SomaAgrup) -> 934.5867291 | AB105: 0 | AC105: =IF($N105="","",IF(ORÇAMENTO.Descricao="","DESCRIÇÃO",IF(AND($C105="S",ORÇAMENTO.Unidade=""),"UNIDADE",IF($X105<0,"VALOR NEGATIVO",IF(OR(AND(TIPOORCAMENTO="Proposto",$AG105<>"",$AG105>0,ORÇAMENTO.CustoUnitario>$AG105),AND(TIPOORCAMENTO="LICITADO",ORÇAMENTO.PrecoUnitarioLicitado>$AN105)),"ACIMA REF.",""))))) ->  | AD105: =IF(C105<=CRONO.NivelExibicao,MAX($AD$15:OFFSET(AD105,-1,0))+IF($C105<>1,1,MAX(1,COUNTIF(QCI!$A$13:$A$24,OFFSET($E105,-1,0)))),"") ->  | AE105: =IF(AND($C105="S",ORÇAMENTO.CodBarra<>""),IF(ORÇAMENTO.Fonte="",ORÇAMENTO.CodBarra,CONCATENATE(ORÇAMENTO.Fonte," ",ORÇAMENTO.CodBarra))) -> SINAPI 91926 | AF105: =IF(ISERROR(INDIRECT(ORÇAMENTO.BancoRef)),"(abra o arquivo 'Referência "&Excel_BuiltIn_Database&".xlsm)",IF(OR($C105<>"S",ORÇAMENTO.CodBarra=""),"(Sem Código)",IF(ISERROR(MATCH($AE105,INDIRECT(ORÇAMENTO.BancoRef),0)),"(Código não identificado nas referências)",MATCH($AE105,INDIRECT(ORÇAMENTO.BancoRef),0)))) -> 3055 | AG105: =ROUND(IF(DESONERACAO="sim",REFERENCIA.Desonerado,REFERENCIA.NaoDesonerado),2) -> 4.61 | AH105: 0.2082 | AJ105: 625.44 | AM105: 3483.7 | AN105: 5.57
A106: S | B106: 2 | C106: S | D106: 0 | E106: =IF($C106=1,OFFSET(E106,-1,0)+MAX(1,COUNTIF(QCI!$A$13:$A$24,OFFSET(ORÇAMENTO!E106,-1,0))),OFFSET(E106,-1,0)) -> 1 | F106: 7 | G106: 0 | H106: 0 | I106: 10 | J106: 0 | K106: =IF(OR($C106="S",$C106=0),0,MATCH(OFFSET($D106,0,$C106)+IF($C106<>1,1,COUNTIF(QCI!$A$13:$A$24,ORÇAMENTO!E106)),OFFSET($D106,1,$C106,ROW($C$404)-ROW($C106)),0)) -> 0 | L106: F | M106: Serviço | N106: Serviço | O106: 1.7.0.0.10. | P106: SINAPI | Q106: 91928 | R106: =IF($C106="S",REFERENCIA.Descricao,"(digite a descrição aqui)") -> CABO DE COBRE FLEXÍVEL ISOLADO, 4 MM², ANTI-CHAMA 450/750 V, PARA CIRCUITOS TERMINAIS - FORNECIMENTO E INSTALAÇÃO. AF_03/2023 | S106: =REFERENCIA.Unidade -> M | T106: =OFFSET(CÁLCULO!H$15,ROW($T106)-ROW(T$15),0) -> 702.03 | U106: 7.04 | V106: BDI 1 | W106: =IF($C106="S",ROUND(IF(TIPOORCAMENTO="Proposto",ORÇAMENTO.CustoUnitario*(1+$AH106),ORÇAMENTO.PrecoUnitarioLicitado),15-13*$AF$10),0) -> 8.51 | X106: =IF($C106="S",IF(Import.TipoArredondamento<>"TransfereGOV",VTOTAL1,SUM(OFFSET(CÁLCULO!$AA$15,ROW($X106)-ROW($X$15),1):OFFSET(CÁLCULO!$AL$15,ROW($X106)-ROW($X$15),-1))),IF($C106=0,0,ROUND(SomaAgrup,15-13*$AF$11))) -> 5974.28 | Y106: RA | Z106: RA | AA106: =IF($C106="S",IF($Z106="CP",$X106,IF($Z106="RA",(($X106)*QCI!$AA$3),0)),SomaAgrup) -> 1602.745014 | AB106: 0 | AC106: =IF($N106="","",IF(ORÇAMENTO.Descricao="","DESCRIÇÃO",IF(AND($C106="S",ORÇAMENTO.Unidade=""),"UNIDADE",IF($X106<0,"VALOR NEGATIVO",IF(OR(AND(TIPOORCAMENTO="Proposto",$AG106<>"",$AG106>0,ORÇAMENTO.CustoUnitario>$AG106),AND(TIPOORCAMENTO="LICITADO",ORÇAMENTO.PrecoUnitarioLicitado>$AN106)),"ACIMA REF.",""))))) ->  | AD106: =IF(C106<=CRONO.NivelExibicao,MAX($AD$15:OFFSET(AD106,-1,0))+IF($C106<>1,1,MAX(1,COUNTIF(QCI!$A$13:$A$24,OFFSET($E106,-1,0)))),"") ->  | AE106: =IF(AND($C106="S",ORÇAMENTO.CodBarra<>""),IF(ORÇAMENTO.Fonte="",ORÇAMENTO.CodBarra,CONCATENATE(ORÇAMENTO.Fonte," ",ORÇAMENTO.CodBarra))) -> SINAPI 91928 | AF106: =IF(ISERROR(INDIRECT(ORÇAMENTO.BancoRef)),"(abra o arquivo 'Referência "&Excel_BuiltIn_Database&".xlsm)",IF(OR($C106<>"S",ORÇAMENTO.CodBarra=""),"(Sem Código)",IF(ISERROR(MATCH($AE106,INDIRECT(ORÇAMENTO.BancoRef),0)),"(Código não identificado nas referências)",MATCH($AE106,INDIRECT(ORÇAMENTO.BancoRef),0)))) -> 3057 | AG106: =ROUND(IF(DESONERACAO="sim",REFERENCIA.Desonerado,REFERENCIA.NaoDesonerado),2) -> 7.04 | AH106: 0.2082 | AJ106: 702.03 | AM106: 5974.28 | AN106: 8.51
A107: S | B107: 2 | C107: S | D107: 0 | E107: =IF($C107=1,OFFSET(E107,-1,0)+MAX(1,COUNTIF(QCI!$A$13:$A$24,OFFSET(ORÇAMENTO!E107,-1,0))),OFFSET(E107,-1,0)) -> 1 | F107: 7 | G107: 0 | H107: 0 | I107: 11 | J107: 0 | K107: =IF(OR($C107="S",$C107=0),0,MATCH(OFFSET($D107,0,$C107)+IF($C107<>1,1,COUNTIF(QCI!$A$13:$A$24,ORÇAMENTO!E107)),OFFSET($D107,1,$C107,ROW($C$404)-ROW($C107)),0)) -> 0 | L107: F | M107: Serviço | N107: Serviço | O107: 1.7.0.0.11. | P107: SINAPI | Q107: 91930 | R107: =IF($C107="S",REFERENCIA.Descricao,"(digite a descrição aqui)") -> CABO DE COBRE FLEXÍVEL ISOLADO, 6 MM², ANTI-CHAMA 450/750 V, PARA CIRCUITOS TERMINAIS - FORNECIMENTO E INSTALAÇÃO. AF_03/2023 | S107: =REFERENCIA.Unidade -> M | T107: =OFFSET(CÁLCULO!H$15,ROW($T107)-ROW(T$15),0) -> 380.07 | U107: 9.79 | V107: BDI 1 | W107: =IF($C107="S",ROUND(IF(TIPOORCAMENTO="Proposto",ORÇAMENTO.CustoUnitario*(1+$AH107),ORÇAMENTO.PrecoUnitarioLicitado),15-13*$AF$10),0) -> 11.83 | X107: =IF($C107="S",IF(Import.TipoArredondamento<>"TransfereGOV",VTOTAL1,SUM(OFFSET(CÁLCULO!$AA$15,ROW($X107)-ROW($X$15),1):OFFSET(CÁLCULO!$AL$15,ROW($X107)-ROW($X$15),-1))),IF($C107=0,0,ROUND(SomaAgrup,15-13*$AF$11))) -> 4496.23 | Y107: RA | Z107: RA | AA107: =IF($C107="S",IF($Z107="CP",$X107,IF($Z107="RA",(($X107)*QCI!$AA$3),0)),SomaAgrup) -> 1206.222375 | AB107: 0 | AC107: =IF($N107="","",IF(ORÇAMENTO.Descricao="","DESCRIÇÃO",IF(AND($C107="S",ORÇAMENTO.Unidade=""),"UNIDADE",IF($X107<0,"VALOR NEGATIVO",IF(OR(AND(TIPOORCAMENTO="Proposto",$AG107<>"",$AG107>0,ORÇAMENTO.CustoUnitario>$AG107),AND(TIPOORCAMENTO="LICITADO",ORÇAMENTO.PrecoUnitarioLicitado>$AN107)),"ACIMA REF.",""))))) ->  | AD107: =IF(C107<=CRONO.NivelExibicao,MAX($AD$15:OFFSET(AD107,-1,0))+IF($C107<>1,1,MAX(1,COUNTIF(QCI!$A$13:$A$24,OFFSET($E107,-1,0)))),"") ->  | AE107: =IF(AND($C107="S",ORÇAMENTO.CodBarra<>""),IF(ORÇAMENTO.Fonte="",ORÇAMENTO.CodBarra,CONCATENATE(ORÇAMENTO.Fonte," ",ORÇAMENTO.CodBarra))) -> SINAPI 91930 | AF107: =IF(ISERROR(INDIRECT(ORÇAMENTO.BancoRef)),"(abra o arquivo 'Referência "&Excel_BuiltIn_Database&".xlsm)",IF(OR($C107<>"S",ORÇAMENTO.CodBarra=""),"(Sem Código)",IF(ISERROR(MATCH($AE107,INDIRECT(ORÇAMENTO.BancoRef),0)),"(Código não identificado nas referências)",MATCH($AE107,INDIRECT(ORÇAMENTO.BancoRef),0)))) -> 3059 | AG107: =ROUND(IF(DESONERACAO="sim",REFERENCIA.Desonerado,REFERENCIA.NaoDesonerado),2) -> 9.79 | AH107: 0.2082 | AJ107: 380.07 | AM107: 4496.23 | AN107: 11.83
A108: S | B108: 2 | C108: S | D108: 0 | E108: =IF($C108=1,OFFSET(E108,-1,0)+MAX(1,COUNTIF(QCI!$A$13:$A$24,OFFSET(ORÇAMENTO!E108,-1,0))),OFFSET(E108,-1,0)) -> 1 | F108: 7 | G108: 0 | H108: 0 | I108: 12 | J108: 0 | K108: =IF(OR($C108="S",$C108=0),0,MATCH(OFFSET($D108,0,$C108)+IF($C108<>1,1,COUNTIF(QCI!$A$13:$A$24,ORÇAMENTO!E108)),OFFSET($D108,1,$C108,ROW($C$404)-ROW($C108)),0)) -> 0 | L108: F | M108: Serviço | N108: Serviço | O108: 1.7.0.0.12. | P108: SINAPI | Q108: 91992 | R108: =IF($C108="S",REFERENCIA.Descricao,"(digite a descrição aqui)") -> TOMADA ALTA DE EMBUTIR (1 MÓDULO), 2P+T 10 A, INCLUINDO SUPORTE E PLACA - FORNECIMENTO E INSTALAÇÃO. AF_03/2023 | S108: =REFERENCIA.Unidade -> UN | T108: =OFFSET(CÁLCULO!H$15,ROW($T108)-ROW(T$15),0) -> 7 | U108: 53.76 | V108: BDI 1 | W108: =IF($C108="S",ROUND(IF(TIPOORCAMENTO="Proposto",ORÇAMENTO.CustoUnitario*(1+$AH108),ORÇAMENTO.PrecoUnitarioLicitado),15-13*$AF$10),0) -> 64.95 | X108: =IF($C108="S",IF(Import.TipoArredondamento<>"TransfereGOV",VTOTAL1,SUM(OFFSET(CÁLCULO!$AA$15,ROW($X108)-ROW($X$15),1):OFFSET(CÁLCULO!$AL$15,ROW($X108)-ROW($X$15),-1))),IF($C108=0,0,ROUND(SomaAgrup,15-13*$AF$11))) -> 454.65 | Y108: RA | Z108: RA | AA108: =IF($C108="S",IF($Z108="CP",$X108,IF($Z108="RA",(($X108)*QCI!$AA$3),0)),SomaAgrup) -> 121.9708518 | AB108: 0 | AC108: =IF($N108="","",IF(ORÇAMENTO.Descricao="","DESCRIÇÃO",IF(AND($C108="S",ORÇAMENTO.Unidade=""),"UNIDADE",IF($X108<0,"VALOR NEGATIVO",IF(OR(AND(TIPOORCAMENTO="Proposto",$AG108<>"",$AG108>0,ORÇAMENTO.CustoUnitario>$AG108),AND(TIPOORCAMENTO="LICITADO",ORÇAMENTO.PrecoUnitarioLicitado>$AN108)),"ACIMA REF.",""))))) ->  | AD108: =IF(C108<=CRONO.NivelExibicao,MAX($AD$15:OFFSET(AD108,-1,0))+IF($C108<>1,1,MAX(1,COUNTIF(QCI!$A$13:$A$24,OFFSET($E108,-1,0)))),"") ->  | AE108: =IF(AND($C108="S",ORÇAMENTO.CodBarra<>""),IF(ORÇAMENTO.Fonte="",ORÇAMENTO.CodBarra,CONCATENATE(ORÇAMENTO.Fonte," ",ORÇAMENTO.CodBarra))) -> SINAPI 91992 | AF108: =IF(ISERROR(INDIRECT(ORÇAMENTO.BancoRef)),"(abra o arquivo 'Referência "&Excel_BuiltIn_Database&".xlsm)",IF(OR($C108<>"S",ORÇAMENTO.CodBarra=""),"(Sem Código)",IF(ISERROR(MATCH($AE108,INDIRECT(ORÇAMENTO.BancoRef),0)),"(Código não identificado nas referências)",MATCH($AE108,INDIRECT(ORÇAMENTO.BancoRef),0)))) -> 3253 | AG108: =ROUND(IF(DESONERACAO="sim",REFERENCIA.Desonerado,REFERENCIA.NaoDesonerado),2) -> 53.76 | AH108: 0.2082 | AJ108: 7 | AM108: 454.65 | AN108: 64.95
A109: =CHOOSE(1+LOG(1+2*(ORÇAMENTO.Nivel="Meta")+4*(ORÇAMENTO.Nivel="Nível 2")+8*(ORÇAMENTO.Nivel="Nível 3")+16*(ORÇAMENTO.Nivel="Nível 4")+32*(ORÇAMENTO.Nivel="Serviço"),2),0,1,2,3,4,"S") -> S | B109: =IF(OR(C109="s",C109=0),OFFSET(B109,-1,0),C109) -> 2 | C109: =IF(OFFSET(C109,-1,0)="L",1,IF(OFFSET(C109,-1,0)=1,2,IF(OR(A109="s",A109=0),"S",IF(AND(OFFSET(C109,-1,0)=2,A109=4),3,IF(AND(OR(OFFSET(C109,-1,0)="s",OFFSET(C109,-1,0)=0),A109<>"s",A109>OFFSET(B109,-1,0)),OFFSET(B109,-1,0),A109))))) -> S | D109: =IF(OR(C109="S",C109=0),0,IF(ISERROR(K109),J109,SMALL(J109:K109,1))) -> 0 | E109: =IF($C109=1,OFFSET(E109,-1,0)+MAX(1,COUNTIF(QCI!$A$13:$A$24,OFFSET(ORÇAMENTO!E109,-1,0))),OFFSET(E109,-1,0)) -> 1 | F109: =IF($C109=1,0,IF($C109=2,OFFSET(F109,-1,0)+1,OFFSET(F109,-1,0))) -> 7 | G109: =IF(AND($C109<=2,$C109<>0),0,IF($C109=3,OFFSET(G109,-1,0)+1,OFFSET(G109,-1,0))) -> 0 | H109: =IF(AND($C109<=3,$C109<>0),0,IF($C109=4,OFFSET(H109,-1,0)+1,OFFSET(H109,-1,0))) -> 0 | I109: =IF(AND($C109<=4,$C109<>0),0,IF(AND($C109="S",$X109>0),OFFSET(I109,-1,0)+1,OFFSET(I109,-1,0))) -> 13 | J109: 0 | K109: =IF(OR($C109="S",$C109=0),0,MATCH(OFFSET($D109,0,$C109)+IF($C109<>1,1,COUNTIF(QCI!$A$13:$A$24,ORÇAMENTO!E109)),OFFSET($D109,1,$C109,ROW($C$404)-ROW($C109)),0)) -> 0 | L109: =IF(OR($X109>0,$C109=1,$C109=2,$C109=3,$C109=4),"F","") -> F | M109: Serviço | N109: =CHOOSE(1+LOG(1+2*(C109=1)+4*(C109=2)+8*(C109=3)+16*(C109=4)+32*(C109="S"),2),"","Meta","Nível 2","Nível 3","Nível 4","Serviço") -> Serviço | O109: =IF(OR($C109=0,$L109=""),"-",CONCATENATE(E109&".",IF(AND($A$5>=2,$C109>=2),F109&".",""),IF(AND($A$5>=3,$C109>=3),G109&".",""),IF(AND($A$5>=4,$C109>=4),H109&".",""),IF($C109="S",I109&".",""))) -> 1.7.0.0.13. | P109: SINAPI | Q109: 91996 | R109: =IF($C109="S",REFERENCIA.Descricao,"(digite a descrição aqui)") -> TOMADA MÉDIA DE EMBUTIR (1 MÓDULO), 2P+T 10 A, INCLUINDO SUPORTE E PLACA - FORNECIMENTO E INSTALAÇÃO. AF_03/2023 | S109: =REFERENCIA.Unidade -> UN | T109: =OFFSET(CÁLCULO!H$15,ROW($T109)-ROW(T$15),0) -> 24 | U109: 41.32 | V109: BDI 1 | W109: =IF($C109="S",ROUND(IF(TIPOORCAMENTO="Proposto",ORÇAMENTO.CustoUnitario*(1+$AH109),ORÇAMENTO.PrecoUnitarioLicitado),15-13*$AF$10),0) -> 49.92 | X109: =IF($C109="S",IF(Import.TipoArredondamento<>"TransfereGOV",VTOTAL1,SUM(OFFSET(CÁLCULO!$AA$15,ROW($X109)-ROW($X$15),1):OFFSET(CÁLCULO!$AL$15,ROW($X109)-ROW($X$15),-1))),IF($C109=0,0,ROUND(SomaAgrup,15-13*$AF$11))) -> 1198.08 | Y109: RA | Z109: =IF(AND($C109="S",$X109>0),IF(ISBLANK($Y109),"RA",LEFT($Y109,2)),"") -> RA | AA109: =IF($C109="S",IF($Z109="CP",$X109,IF($Z109="RA",(($X109)*QCI!$AA$3),0)),SomaAgrup) -> 321.4139186 | AB109: =IF($C109="S",IF($Z109="OU",ROUND($X109,2),0),SomaAgrup) -> 0 | AC109: =IF($N109="","",IF(ORÇAMENTO.Descricao="","DESCRIÇÃO",IF(AND($C109="S",ORÇAMENTO.Unidade=""),"UNIDADE",IF($X109<0,"VALOR NEGATIVO",IF(OR(AND(TIPOORCAMENTO="Proposto",$AG109<>"",$AG109>0,ORÇAMENTO.CustoUnitario>$AG109),AND(TIPOORCAMENTO="LICITADO",ORÇAMENTO.PrecoUnitarioLicitado>$AN109)),"ACIMA REF.",""))))) ->  | AD109: =IF(C109<=CRONO.NivelExibicao,MAX($AD$15:OFFSET(AD109,-1,0))+IF($C109<>1,1,MAX(1,COUNTIF(QCI!$A$13:$A$24,OFFSET($E109,-1,0)))),"") ->  | AE109: =IF(AND($C109="S",ORÇAMENTO.CodBarra<>""),IF(ORÇAMENTO.Fonte="",ORÇAMENTO.CodBarra,CONCATENATE(ORÇAMENTO.Fonte," ",ORÇAMENTO.CodBarra))) -> SINAPI 91996 | AF109: =IF(ISERROR(INDIRECT(ORÇAMENTO.BancoRef)),"(abra o arquivo 'Referência "&Excel_BuiltIn_Database&".xlsm)",IF(OR($C109<>"S",ORÇAMENTO.CodBarra=""),"(Sem Código)",IF(ISERROR(MATCH($AE109,INDIRECT(ORÇAMENTO.BancoRef),0)),"(Código não identificado nas referências)",MATCH($AE109,INDIRECT(ORÇAMENTO.BancoRef),0)))) -> 3257 | AG109: =ROUND(IF(DESONERACAO="sim",REFERENCIA.Desonerado,REFERENCIA.NaoDesonerado),2) -> 41.32 | AH109: =ROUND(IF(ISNUMBER(ORÇAMENTO.OpcaoBDI),ORÇAMENTO.OpcaoBDI,IF(LEFT(ORÇAMENTO.OpcaoBDI,3)="BDI",HLOOKUP(ORÇAMENTO.OpcaoBDI,$F$4:$H$5,2,FALSE),0)),15-11*$AF$9) -> 0.2082 | AJ109: 24 | AM109: 1198.08 | AN109: =ROUND(ORÇAMENTO.CustoUnitario*(1+$AH109),2) -> 49.92
A110: S | B110: 2 | C110: S | D110: 0 | E110: =IF($C110=1,OFFSET(E110,-1,0)+MAX(1,COUNTIF(QCI!$A$13:$A$24,OFFSET(ORÇAMENTO!E110,-1,0))),OFFSET(E110,-1,0)) -> 1 | F110: 7 | G110: 0 | H110: 0 | I110: 14 | J110: 0 | K110: =IF(OR($C110="S",$C110=0),0,MATCH(OFFSET($D110,0,$C110)+IF($C110<>1,1,COUNTIF(QCI!$A$13:$A$24,ORÇAMENTO!E110)),OFFSET($D110,1,$C110,ROW($C$404)-ROW($C110)),0)) -> 0 | L110: F | M110: Serviço | N110: Serviço | O110: 1.7.0.0.14. | P110: SINAPI | Q110: 92027 | R110: =IF($C110="S",REFERENCIA.Descricao,"(digite a descrição aqui)") -> INTERRUPTOR SIMPLES (2 MÓDULOS) COM 1 TOMADA DE EMBUTIR 2P+T 10 A, INCLUINDO SUPORTE E PLACA - FORNECIMENTO E INSTALAÇÃO. AF_03/2023 | S110: =REFERENCIA.Unidade -> UN | T110: =OFFSET(CÁLCULO!H$15,ROW($T110)-ROW(T$15),0) -> 2 | U110: 77.42 | V110: BDI 1 | W110: =IF($C110="S",ROUND(IF(TIPOORCAMENTO="Proposto",ORÇAMENTO.CustoUnitario*(1+$AH110),ORÇAMENTO.PrecoUnitarioLicitado),15-13*$AF$10),0) -> 93.54 | X110: =IF($C110="S",IF(Import.TipoArredondamento<>"TransfereGOV",VTOTAL1,SUM(OFFSET(CÁLCULO!$AA$15,ROW($X110)-ROW($X$15),1):OFFSET(CÁLCULO!$AL$15,ROW($X110)-ROW($X$15),-1))),IF($C110=0,0,ROUND(SomaAgrup,15-13*$AF$11))) -> 187.08 | Y110: RA | Z110: RA | AA110: =IF($C110="S",IF($Z110="CP",$X110,IF($Z110="RA",(($X110)*QCI!$AA$3),0)),SomaAgrup) -> 50.18873189 | AB110: 0 | AC110: =IF($N110="","",IF(ORÇAMENTO.Descricao="","DESCRIÇÃO",IF(AND($C110="S",ORÇAMENTO.Unidade=""),"UNIDADE",IF($X110<0,"VALOR NEGATIVO",IF(OR(AND(TIPOORCAMENTO="Proposto",$AG110<>"",$AG110>0,ORÇAMENTO.CustoUnitario>$AG110),AND(TIPOORCAMENTO="LICITADO",ORÇAMENTO.PrecoUnitarioLicitado>$AN110)),"ACIMA REF.",""))))) ->  | AD110: =IF(C110<=CRONO.NivelExibicao,MAX($AD$15:OFFSET(AD110,-1,0))+IF($C110<>1,1,MAX(1,COUNTIF(QCI!$A$13:$A$24,OFFSET($E110,-1,0)))),"") ->  | AE110: =IF(AND($C110="S",ORÇAMENTO.CodBarra<>""),IF(ORÇAMENTO.Fonte="",ORÇAMENTO.CodBarra,CONCATENATE(ORÇAMENTO.Fonte," ",ORÇAMENTO.CodBarra))) -> SINAPI 92027 | AF110: =IF(ISERROR(INDIRECT(ORÇAMENTO.BancoRef)),"(abra o arquivo 'Referência "&Excel_BuiltIn_Database&".xlsm)",IF(OR($C110<>"S",ORÇAMENTO.CodBarra=""),"(Sem Código)",IF(ISERROR(MATCH($AE110,INDIRECT(ORÇAMENTO.BancoRef),0)),"(Código não identificado nas referências)",MATCH($AE110,INDIRECT(ORÇAMENTO.BancoRef),0)))) -> 3288 | AG110: =ROUND(IF(DESONERACAO="sim",REFERENCIA.Desonerado,REFERENCIA.NaoDesonerado),2) -> 77.42 | AH110: 0.2082 | AJ110: 2 | AM110: 187.08 | AN110: 93.54
A111: S | B111: 2 | C111: S | D111: 0 | E111: =IF($C111=1,OFFSET(E111,-1,0)+MAX(1,COUNTIF(QCI!$A$13:$A$24,OFFSET(ORÇAMENTO!E111,-1,0))),OFFSET(E111,-1,0)) -> 1 | F111: 7 | G111: 0 | H111: 0 | I111: 15 | J111: 0 | K111: =IF(OR($C111="S",$C111=0),0,MATCH(OFFSET($D111,0,$C111)+IF($C111<>1,1,COUNTIF(QCI!$A$13:$A$24,ORÇAMENTO!E111)),OFFSET($D111,1,$C111,ROW($C$404)-ROW($C111)),0)) -> 0 | L111: F | M111: Serviço | N111: Serviço | O111: 1.7.0.0.15. | P111: SINAPI | Q111: 92023 | R111: =IF($C111="S",REFERENCIA.Descricao,"(digite a descrição aqui)") -> INTERRUPTOR SIMPLES (1 MÓDULO) COM 1 TOMADA DE EMBUTIR 2P+T 10 A, INCLUINDO SUPORTE E PLACA - FORNECIMENTO E INSTALAÇÃO. AF_03/2023 | S111: =REFERENCIA.Unidade -> UN | T111: =OFFSET(CÁLCULO!H$15,ROW($T111)-ROW(T$15),0) -> 5 | U111: 59.33 | V111: BDI 1 | W111: =IF($C111="S",ROUND(IF(TIPOORCAMENTO="Proposto",ORÇAMENTO.CustoUnitario*(1+$AH111),ORÇAMENTO.PrecoUnitarioLicitado),15-13*$AF$10),0) -> 71.68 | X111: =IF($C111="S",IF(Import.TipoArredondamento<>"TransfereGOV",VTOTAL1,SUM(OFFSET(CÁLCULO!$AA$15,ROW($X111)-ROW($X$15),1):OFFSET(CÁLCULO!$AL$15,ROW($X111)-ROW($X$15),-1))),IF($C111=0,0,ROUND(SomaAgrup,15-13*$AF$11))) -> 358.4 | Y111: RA | Z111: RA | AA111: =IF($C111="S",IF($Z111="CP",$X111,IF($Z111="RA",(($X111)*QCI!$AA$3),0)),SomaAgrup) -> 96.14946284 | AB111: 0 | AC111: =IF($N111="","",IF(ORÇAMENTO.Descricao="","DESCRIÇÃO",IF(AND($C111="S",ORÇAMENTO.Unidade=""),"UNIDADE",IF($X111<0,"VALOR NEGATIVO",IF(OR(AND(TIPOORCAMENTO="Proposto",$AG111<>"",$AG111>0,ORÇAMENTO.CustoUnitario>$AG111),AND(TIPOORCAMENTO="LICITADO",ORÇAMENTO.PrecoUnitarioLicitado>$AN111)),"ACIMA REF.",""))))) ->  | AD111: =IF(C111<=CRONO.NivelExibicao,MAX($AD$15:OFFSET(AD111,-1,0))+IF($C111<>1,1,MAX(1,COUNTIF(QCI!$A$13:$A$24,OFFSET($E111,-1,0)))),"") ->  | AE111: =IF(AND($C111="S",ORÇAMENTO.CodBarra<>""),IF(ORÇAMENTO.Fonte="",ORÇAMENTO.CodBarra,CONCATENATE(ORÇAMENTO.Fonte," ",ORÇAMENTO.CodBarra))) -> SINAPI 92023 | AF111: =IF(ISERROR(INDIRECT(ORÇAMENTO.BancoRef)),"(abra o arquivo 'Referência "&Excel_BuiltIn_Database&".xlsm)",IF(OR($C111<>"S",ORÇAMENTO.CodBarra=""),"(Sem Código)",IF(ISERROR(MATCH($AE111,INDIRECT(ORÇAMENTO.BancoRef),0)),"(Código não identificado nas referências)",MATCH($AE111,INDIRECT(ORÇAMENTO.BancoRef),0)))) -> 3284 | AG111: =ROUND(IF(DESONERACAO="sim",REFERENCIA.Desonerado,REFERENCIA.NaoDesonerado),2) -> 59.33 | AH111: 0.2082 | AJ111: 5 | AM111: 358.4 | AN111: 71.68
A112: S | B112: 2 | C112: S | D112: 0 | E112: =IF($C112=1,OFFSET(E112,-1,0)+MAX(1,COUNTIF(QCI!$A$13:$A$24,OFFSET(ORÇAMENTO!E112,-1,0))),OFFSET(E112,-1,0)) -> 1 | F112: 7 | G112: 0 | H112: 0 | I112: 16 | J112: 0 | K112: =IF(OR($C112="S",$C112=0),0,MATCH(OFFSET($D112,0,$C112)+IF($C112<>1,1,COUNTIF(QCI!$A$13:$A$24,ORÇAMENTO!E112)),OFFSET($D112,1,$C112,ROW($C$404)-ROW($C112)),0)) -> 0 | L112: F | M112: Serviço | N112: Serviço | O112: 1.7.0.0.16. | P112: SINAPI | Q112: 92029 | R112: =IF($C112="S",REFERENCIA.Descricao,"(digite a descrição aqui)") -> INTERRUPTOR PARALELO (1 MÓDULO) COM 1 TOMADA DE EMBUTIR 2P+T 10 A, INCLUINDO SUPORTE E PLACA - FORNECIMENTO E INSTALAÇÃO. AF_03/2023 | S112: =REFERENCIA.Unidade -> UN | T112: =OFFSET(CÁLCULO!H$15,ROW($T112)-ROW(T$15),0) -> 2 | U112: 67.03 | V112: BDI 1 | W112: =IF($C112="S",ROUND(IF(TIPOORCAMENTO="Proposto",ORÇAMENTO.CustoUnitario*(1+$AH112),ORÇAMENTO.PrecoUnitarioLicitado),15-13*$AF$10),0) -> 80.99 | X112: =IF($C112="S",IF(Import.TipoArredondamento<>"TransfereGOV",VTOTAL1,SUM(OFFSET(CÁLCULO!$AA$15,ROW($X112)-ROW($X$15),1):OFFSET(CÁLCULO!$AL$15,ROW($X112)-ROW($X$15),-1))),IF($C112=0,0,ROUND(SomaAgrup,15-13*$AF$11))) -> 161.98 | Y112: RA | Z112: RA | AA112: =IF($C112="S",IF($Z112="CP",$X112,IF($Z112="RA",(($X112)*QCI!$AA$3),0)),SomaAgrup) -> 43.4550502 | AB112: 0 | AC112: =IF($N112="","",IF(ORÇAMENTO.Descricao="","DESCRIÇÃO",IF(AND($C112="S",ORÇAMENTO.Unidade=""),"UNIDADE",IF($X112<0,"VALOR NEGATIVO",IF(OR(AND(TIPOORCAMENTO="Proposto",$AG112<>"",$AG112>0,ORÇAMENTO.CustoUnitario>$AG112),AND(TIPOORCAMENTO="LICITADO",ORÇAMENTO.PrecoUnitarioLicitado>$AN112)),"ACIMA REF.",""))))) ->  | AD112: =IF(C112<=CRONO.NivelExibicao,MAX($AD$15:OFFSET(AD112,-1,0))+IF($C112<>1,1,MAX(1,COUNTIF(QCI!$A$13:$A$24,OFFSET($E112,-1,0)))),"") ->  | AE112: =IF(AND($C112="S",ORÇAMENTO.CodBarra<>""),IF(ORÇAMENTO.Fonte="",ORÇAMENTO.CodBarra,CONCATENATE(ORÇAMENTO.Fonte," ",ORÇAMENTO.CodBarra))) -> SINAPI 92029 | AF112: =IF(ISERROR(INDIRECT(ORÇAMENTO.BancoRef)),"(abra o arquivo 'Referência "&Excel_BuiltIn_Database&".xlsm)",IF(OR($C112<>"S",ORÇAMENTO.CodBarra=""),"(Sem Código)",IF(ISERROR(MATCH($AE112,INDIRECT(ORÇAMENTO.BancoRef),0)),"(Código não identificado nas referências)",MATCH($AE112,INDIRECT(ORÇAMENTO.BancoRef),0)))) -> 3290 | AG112: =ROUND(IF(DESONERACAO="sim",REFERENCIA.Desonerado,REFERENCIA.NaoDesonerado),2) -> 67.03 | AH112: 0.2082 | AJ112: 2 | AM112: 161.98 | AN112: 80.99
A113: S | B113: 2 | C113: S | D113: 0 | E113: =IF($C113=1,OFFSET(E113,-1,0)+MAX(1,COUNTIF(QCI!$A$13:$A$24,OFFSET(ORÇAMENTO!E113,-1,0))),OFFSET(E113,-1,0)) -> 1 | F113: 7 | G113: 0 | H113: 0 | I113: 17 | J113: 0 | K113: =IF(OR($C113="S",$C113=0),0,MATCH(OFFSET($D113,0,$C113)+IF($C113<>1,1,COUNTIF(QCI!$A$13:$A$24,ORÇAMENTO!E113)),OFFSET($D113,1,$C113,ROW($C$404)-ROW($C113)),0)) -> 0 | L113: F | M113: Serviço | N113: Serviço | O113: 1.7.0.0.17. | P113: SINAPI | Q113: 101875 | R113: =IF($C113="S",REFERENCIA.Descricao,"(digite a descrição aqui)") -> QUADRO DE DISTRIBUIÇÃO DE ENERGIA EM CHAPA DE AÇO GALVANIZADO, DE EMBUTIR, COM BARRAMENTO TRIFÁSICO, PARA 12 DISJUNTORES DIN 100A - FORNECIMENTO E INSTALAÇÃO. AF_10/2020 | S113: =REFERENCIA.Unidade -> UN | T113: =OFFSET(CÁLCULO!H$15,ROW($T113)-ROW(T$15),0) -> 1 | U113: 372.39 | V113: BDI 1 | W113: =IF($C113="S",ROUND(IF(TIPOORCAMENTO="Proposto",ORÇAMENTO.CustoUnitario*(1+$AH113),ORÇAMENTO.PrecoUnitarioLicitado),15-13*$AF$10),0) -> 449.92 | X113: =IF($C113="S",IF(Import.TipoArredondamento<>"TransfereGOV",VTOTAL1,SUM(OFFSET(CÁLCULO!$AA$15,ROW($X113)-ROW($X$15),1):OFFSET(CÁLCULO!$AL$15,ROW($X113)-ROW($X$15),-1))),IF($C113=0,0,ROUND(SomaAgrup,15-13*$AF$11))) -> 449.92 | Y113: RA | Z113: RA | AA113: =IF($C113="S",IF($Z113="CP",$X113,IF($Z113="RA",(($X113)*QCI!$AA$3),0)),SomaAgrup) -> 120.701915 | AB113: 0 | AC113: =IF($N113="","",IF(ORÇAMENTO.Descricao="","DESCRIÇÃO",IF(AND($C113="S",ORÇAMENTO.Unidade=""),"UNIDADE",IF($X113<0,"VALOR NEGATIVO",IF(OR(AND(TIPOORCAMENTO="Proposto",$AG113<>"",$AG113>0,ORÇAMENTO.CustoUnitario>$AG113),AND(TIPOORCAMENTO="LICITADO",ORÇAMENTO.PrecoUnitarioLicitado>$AN113)),"ACIMA REF.",""))))) ->  | AD113: =IF(C113<=CRONO.NivelExibicao,MAX($AD$15:OFFSET(AD113,-1,0))+IF($C113<>1,1,MAX(1,COUNTIF(QCI!$A$13:$A$24,OFFSET($E113,-1,0)))),"") ->  | AE113: =IF(AND($C113="S",ORÇAMENTO.CodBarra<>""),IF(ORÇAMENTO.Fonte="",ORÇAMENTO.CodBarra,CONCATENATE(ORÇAMENTO.Fonte," ",ORÇAMENTO.CodBarra))) -> SINAPI 101875 | AF113: =IF(ISERROR(INDIRECT(ORÇAMENTO.BancoRef)),"(abra o arquivo 'Referência "&Excel_BuiltIn_Database&".xlsm)",IF(OR($C113<>"S",ORÇAMENTO.CodBarra=""),"(Sem Código)",IF(ISERROR(MATCH($AE113,INDIRECT(ORÇAMENTO.BancoRef),0)),"(Código não identificado nas referências)",MATCH($AE113,INDIRECT(ORÇAMENTO.BancoRef),0)))) -> 3181 | AG113: =ROUND(IF(DESONERACAO="sim",REFERENCIA.Desonerado,REFERENCIA.NaoDesonerado),2) -> 372.39 | AH113: 0.2082 | AJ113: 1 | AM113: 449.92 | AN113: 449.92
A114: S | B114: 2 | C114: S | D114: 0 | E114: =IF($C114=1,OFFSET(E114,-1,0)+MAX(1,COUNTIF(QCI!$A$13:$A$24,OFFSET(ORÇAMENTO!E114,-1,0))),OFFSET(E114,-1,0)) -> 1 | F114: 7 | G114: 0 | H114: 0 | I114: 18 | J114: 0 | K114: =IF(OR($C114="S",$C114=0),0,MATCH(OFFSET($D114,0,$C114)+IF($C114<>1,1,COUNTIF(QCI!$A$13:$A$24,ORÇAMENTO!E114)),OFFSET($D114,1,$C114,ROW($C$404)-ROW($C114)),0)) -> 0 | L114: F | M114: Serviço | N114: Serviço | O114: 1.7.0.0.18. | P114: SINAPI | Q114: 93661 | R114: =IF($C114="S",REFERENCIA.Descricao,"(digite a descrição aqui)") -> DISJUNTOR BIPOLAR TIPO DIN, CORRENTE NOMINAL DE 16A - FORNECIMENTO E INSTALAÇÃO. AF_10/2020 | S114: =REFERENCIA.Unidade -> UN | T114: =OFFSET(CÁLCULO!H$15,ROW($T114)-ROW(T$15),0) -> 6 | U114: 60.83 | V114: BDI 1 | W114: =IF($C114="S",ROUND(IF(TIPOORCAMENTO="Proposto",ORÇAMENTO.CustoUnitario*(1+$AH114),ORÇAMENTO.PrecoUnitarioLicitado),15-13*$AF$10),0) -> 73.49 | X114: =IF($C114="S",IF(Import.TipoArredondamento<>"TransfereGOV",VTOTAL1,SUM(OFFSET(CÁLCULO!$AA$15,ROW($X114)-ROW($X$15),1):OFFSET(CÁLCULO!$AL$15,ROW($X114)-ROW($X$15),-1))),IF($C114=0,0,ROUND(SomaAgrup,15-13*$AF$11))) -> 440.94 | Y114: RA | Z114: RA | AA114: =IF($C114="S",IF($Z114="CP",$X114,IF($Z114="RA",(($X114)*QCI!$AA$3),0)),SomaAgrup) -> 118.2928129 | AB114: 0 | AC114: =IF($N114="","",IF(ORÇAMENTO.Descricao="","DESCRIÇÃO",IF(AND($C114="S",ORÇAMENTO.Unidade=""),"UNIDADE",IF($X114<0,"VALOR NEGATIVO",IF(OR(AND(TIPOORCAMENTO="Proposto",$AG114<>"",$AG114>0,ORÇAMENTO.CustoUnitario>$AG114),AND(TIPOORCAMENTO="LICITADO",ORÇAMENTO.PrecoUnitarioLicitado>$AN114)),"ACIMA REF.",""))))) ->  | AD114: =IF(C114<=CRONO.NivelExibicao,MAX($AD$15:OFFSET(AD114,-1,0))+IF($C114<>1,1,MAX(1,COUNTIF(QCI!$A$13:$A$24,OFFSET($E114,-1,0)))),"") ->  | AE114: =IF(AND($C114="S",ORÇAMENTO.CodBarra<>""),IF(ORÇAMENTO.Fonte="",ORÇAMENTO.CodBarra,CONCATENATE(ORÇAMENTO.Fonte," ",ORÇAMENTO.CodBarra))) -> SINAPI 93661 | AF114: =IF(ISERROR(INDIRECT(ORÇAMENTO.BancoRef)),"(abra o arquivo 'Referência "&Excel_BuiltIn_Database&".xlsm)",IF(OR($C114<>"S",ORÇAMENTO.CodBarra=""),"(Sem Código)",IF(ISERROR(MATCH($AE114,INDIRECT(ORÇAMENTO.BancoRef),0)),"(Código não identificado nas referências)",MATCH($AE114,INDIRECT(ORÇAMENTO.BancoRef),0)))) -> 3164 | AG114: =ROUND(IF(DESONERACAO="sim",REFERENCIA.Desonerado,REFERENCIA.NaoDesonerado),2) -> 60.83 | AH114: 0.2082 | AJ114: 6 | AM114: 440.94 | AN114: 73.49
A115: S | B115: 2 | C115: S | D115: 0 | E115: =IF($C115=1,OFFSET(E115,-1,0)+MAX(1,COUNTIF(QCI!$A$13:$A$24,OFFSET(ORÇAMENTO!E115,-1,0))),OFFSET(E115,-1,0)) -> 1 | F115: 7 | G115: 0 | H115: 0 | I115: 19 | J115: 0 | K115: =IF(OR($C115="S",$C115=0),0,MATCH(OFFSET($D115,0,$C115)+IF($C115<>1,1,COUNTIF(QCI!$A$13:$A$24,ORÇAMENTO!E115)),OFFSET($D115,1,$C115,ROW($C$404)-ROW($C115)),0)) -> 0 | L115: F | M115: Serviço | N115: Serviço | O115: 1.7.0.0.19. | P115: SINAPI | Q115: 93660 | R115: =IF($C115="S",REFERENCIA.Descricao,"(digite a descrição aqui)") -> DISJUNTOR BIPOLAR TIPO DIN, CORRENTE NOMINAL DE 10A - FORNECIMENTO E INSTALAÇÃO. AF_10/2020 | S115: =REFERENCIA.Unidade -> UN | T115: =OFFSET(CÁLCULO!H$15,ROW($T115)-ROW(T$15),0) -> 4 | U115: 59.23 | V115: BDI 1 | W115: =IF($C115="S",ROUND(IF(TIPOORCAMENTO="Proposto",ORÇAMENTO.CustoUnitario*(1+$AH115),ORÇAMENTO.PrecoUnitarioLicitado),15-13*$AF$10),0) -> 71.56 | X115: =IF($C115="S",IF(Import.TipoArredondamento<>"TransfereGOV",VTOTAL1,SUM(OFFSET(CÁLCULO!$AA$15,ROW($X115)-ROW($X$15),1):OFFSET(CÁLCULO!$AL$15,ROW($X115)-ROW($X$15),-1))),IF($C115=0,0,ROUND(SomaAgrup,15-13*$AF$11))) -> 286.24 | Y115: RA | Z115: RA | AA115: =IF($C115="S",IF($Z115="CP",$X115,IF($Z115="RA",(($X115)*QCI!$AA$3),0)),SomaAgrup) -> 76.79079867 | AB115: 0 | AC115: =IF($N115="","",IF(ORÇAMENTO.Descricao="","DESCRIÇÃO",IF(AND($C115="S",ORÇAMENTO.Unidade=""),"UNIDADE",IF($X115<0,"VALOR NEGATIVO",IF(OR(AND(TIPOORCAMENTO="Proposto",$AG115<>"",$AG115>0,ORÇAMENTO.CustoUnitario>$AG115),AND(TIPOORCAMENTO="LICITADO",ORÇAMENTO.PrecoUnitarioLicitado>$AN115)),"ACIMA REF.",""))))) ->  | AD115: =IF(C115<=CRONO.NivelExibicao,MAX($AD$15:OFFSET(AD115,-1,0))+IF($C115<>1,1,MAX(1,COUNTIF(QCI!$A$13:$A$24,OFFSET($E115,-1,0)))),"") ->  | AE115: =IF(AND($C115="S",ORÇAMENTO.CodBarra<>""),IF(ORÇAMENTO.Fonte="",ORÇAMENTO.CodBarra,CONCATENATE(ORÇAMENTO.Fonte," ",ORÇAMENTO.CodBarra))) -> SINAPI 93660 | AF115: =IF(ISERROR(INDIRECT(ORÇAMENTO.BancoRef)),"(abra o arquivo 'Referência "&Excel_BuiltIn_Database&".xlsm)",IF(OR($C115<>"S",ORÇAMENTO.CodBarra=""),"(Sem Código)",IF(ISERROR(MATCH($AE115,INDIRECT(ORÇAMENTO.BancoRef),0)),"(Código não identificado nas referências)",MATCH($AE115,INDIRECT(ORÇAMENTO.BancoRef),0)))) -> 3163 | AG115: =ROUND(IF(DESONERACAO="sim",REFERENCIA.Desonerado,REFERENCIA.NaoDesonerado),2) -> 59.23 | AH115: 0.2082 | AJ115: 4 | AM115: 286.24 | AN115: 71.56
A116: S | B116: 2 | C116: S | D116: 0 | E116: =IF($C116=1,OFFSET(E116,-1,0)+MAX(1,COUNTIF(QCI!$A$13:$A$24,OFFSET(ORÇAMENTO!E116,-1,0))),OFFSET(E116,-1,0)) -> 1 | F116: 7 | G116: 0 | H116: 0 | I116: 20 | J116: 0 | K116: =IF(OR($C116="S",$C116=0),0,MATCH(OFFSET($D116,0,$C116)+IF($C116<>1,1,COUNTIF(QCI!$A$13:$A$24,ORÇAMENTO!E116)),OFFSET($D116,1,$C116,ROW($C$404)-ROW($C116)),0)) -> 0 | L116: F | M116: Serviço | N116: Serviço | O116: 1.7.0.0.20. | P116: SINAPI | Q116: 93663 | R116: =IF($C116="S",REFERENCIA.Descricao,"(digite a descrição aqui)") -> DISJUNTOR BIPOLAR TIPO DIN, CORRENTE NOMINAL DE 25A - FORNECIMENTO E INSTALAÇÃO. AF_10/2020 | S116: =REFERENCIA.Unidade -> UN | T116: =OFFSET(CÁLCULO!H$15,ROW($T116)-ROW(T$15),0) -> 3 | U116: 63.86 | V116: BDI 1 | W116: =IF($C116="S",ROUND(IF(TIPOORCAMENTO="Proposto",ORÇAMENTO.CustoUnitario*(1+$AH116),ORÇAMENTO.PrecoUnitarioLicitado),15-13*$AF$10),0) -> 77.16 | X116: =IF($C116="S",IF(Import.TipoArredondamento<>"TransfereGOV",VTOTAL1,SUM(OFFSET(CÁLCULO!$AA$15,ROW($X116)-ROW($X$15),1):OFFSET(CÁLCULO!$AL$15,ROW($X116)-ROW($X$15),-1))),IF($C116=0,0,ROUND(SomaAgrup,15-13*$AF$11))) -> 231.48 | Y116: RA | Z116: RA | AA116: =IF($C116="S",IF($Z116="CP",$X116,IF($Z116="RA",(($X116)*QCI!$AA$3),0)),SomaAgrup) -> 62.10010507 | AB116: 0 | AC116: =IF($N116="","",IF(ORÇAMENTO.Descricao="","DESCRIÇÃO",IF(AND($C116="S",ORÇAMENTO.Unidade=""),"UNIDADE",IF($X116<0,"VALOR NEGATIVO",IF(OR(AND(TIPOORCAMENTO="Proposto",$AG116<>"",$AG116>0,ORÇAMENTO.CustoUnitario>$AG116),AND(TIPOORCAMENTO="LICITADO",ORÇAMENTO.PrecoUnitarioLicitado>$AN116)),"ACIMA REF.",""))))) ->  | AD116: =IF(C116<=CRONO.NivelExibicao,MAX($AD$15:OFFSET(AD116,-1,0))+IF($C116<>1,1,MAX(1,COUNTIF(QCI!$A$13:$A$24,OFFSET($E116,-1,0)))),"") ->  | AE116: =IF(AND($C116="S",ORÇAMENTO.CodBarra<>""),IF(ORÇAMENTO.Fonte="",ORÇAMENTO.CodBarra,CONCATENATE(ORÇAMENTO.Fonte," ",ORÇAMENTO.CodBarra))) -> SINAPI 93663 | AF116: =IF(ISERROR(INDIRECT(ORÇAMENTO.BancoRef)),"(abra o arquivo 'Referência "&Excel_BuiltIn_Database&".xlsm)",IF(OR($C116<>"S",ORÇAMENTO.CodBarra=""),"(Sem Código)",IF(ISERROR(MATCH($AE116,INDIRECT(ORÇAMENTO.BancoRef),0)),"(Código não identificado nas referências)",MATCH($AE116,INDIRECT(ORÇAMENTO.BancoRef),0)))) -> 3166 | AG116: =ROUND(IF(DESONERACAO="sim",REFERENCIA.Desonerado,REFERENCIA.NaoDesonerado),2) -> 63.86 | AH116: 0.2082 | AJ116: 3 | AM116: 231.48 | AN116: 77.16
A117: S | B117: 2 | C117: S | D117: 0 | E117: =IF($C117=1,OFFSET(E117,-1,0)+MAX(1,COUNTIF(QCI!$A$13:$A$24,OFFSET(ORÇAMENTO!E117,-1,0))),OFFSET(E117,-1,0)) -> 1 | F117: 7 | G117: 0 | H117: 0 | I117: 21 | J117: 0 | K117: =IF(OR($C117="S",$C117=0),0,MATCH(OFFSET($D117,0,$C117)+IF($C117<>1,1,COUNTIF(QCI!$A$13:$A$24,ORÇAMENTO!E117)),OFFSET($D117,1,$C117,ROW($C$404)-ROW($C117)),0)) -> 0 | L117: F | M117: Serviço | N117: Serviço | O117: 1.7.0.0.21. | P117: SINAPI | Q117: 93662 | R117: =IF($C117="S",REFERENCIA.Descricao,"(digite a descrição aqui)") -> DISJUNTOR BIPOLAR TIPO DIN, CORRENTE NOMINAL DE 20A - FORNECIMENTO E INSTALAÇÃO. AF_10/2020 | S117: =REFERENCIA.Unidade -> UN | T117: =OFFSET(CÁLCULO!H$15,ROW($T117)-ROW(T$15),0) -> 1 | U117: 63.86 | V117: BDI 1 | W117: =IF($C117="S",ROUND(IF(TIPOORCAMENTO="Proposto",ORÇAMENTO.CustoUnitario*(1+$AH117),ORÇAMENTO.PrecoUnitarioLicitado),15-13*$AF$10),0) -> 77.16 | X117: =IF($C117="S",IF(Import.TipoArredondamento<>"TransfereGOV",VTOTAL1,SUM(OFFSET(CÁLCULO!$AA$15,ROW($X117)-ROW($X$15),1):OFFSET(CÁLCULO!$AL$15,ROW($X117)-ROW($X$15),-1))),IF($C117=0,0,ROUND(SomaAgrup,15-13*$AF$11))) -> 77.16 | Y117: RA | Z117: RA | AA117: =IF($C117="S",IF($Z117="CP",$X117,IF($Z117="RA",(($X117)*QCI!$AA$3),0)),SomaAgrup) -> 20.70003502 | AB117: 0 | AC117: =IF($N117="","",IF(ORÇAMENTO.Descricao="","DESCRIÇÃO",IF(AND($C117="S",ORÇAMENTO.Unidade=""),"UNIDADE",IF($X117<0,"VALOR NEGATIVO",IF(OR(AND(TIPOORCAMENTO="Proposto",$AG117<>"",$AG117>0,ORÇAMENTO.CustoUnitario>$AG117),AND(TIPOORCAMENTO="LICITADO",ORÇAMENTO.PrecoUnitarioLicitado>$AN117)),"ACIMA REF.",""))))) ->  | AD117: =IF(C117<=CRONO.NivelExibicao,MAX($AD$15:OFFSET(AD117,-1,0))+IF($C117<>1,1,MAX(1,COUNTIF(QCI!$A$13:$A$24,OFFSET($E117,-1,0)))),"") ->  | AE117: =IF(AND($C117="S",ORÇAMENTO.CodBarra<>""),IF(ORÇAMENTO.Fonte="",ORÇAMENTO.CodBarra,CONCATENATE(ORÇAMENTO.Fonte," ",ORÇAMENTO.CodBarra))) -> SINAPI 93662 | AF117: =IF(ISERROR(INDIRECT(ORÇAMENTO.BancoRef)),"(abra o arquivo 'Referência "&Excel_BuiltIn_Database&".xlsm)",IF(OR($C117<>"S",ORÇAMENTO.CodBarra=""),"(Sem Código)",IF(ISERROR(MATCH($AE117,INDIRECT(ORÇAMENTO.BancoRef),0)),"(Código não identificado nas referências)",MATCH($AE117,INDIRECT(ORÇAMENTO.BancoRef),0)))) -> 3165 | AG117: =ROUND(IF(DESONERACAO="sim",REFERENCIA.Desonerado,REFERENCIA.NaoDesonerado),2) -> 63.86 | AH117: 0.2082 | AJ117: 1 | AM117: 77.16 | AN117: 77.16
A118: S | B118: 2 | C118: S | D118: 0 | E118: =IF($C118=1,OFFSET(E118,-1,0)+MAX(1,COUNTIF(QCI!$A$13:$A$24,OFFSET(ORÇAMENTO!E118,-1,0))),OFFSET(E118,-1,0)) -> 1 | F118: 7 | G118: 0 | H118: 0 | I118: 22 | J118: 0 | K118: =IF(OR($C118="S",$C118=0),0,MATCH(OFFSET($D118,0,$C118)+IF($C118<>1,1,COUNTIF(QCI!$A$13:$A$24,ORÇAMENTO!E118)),OFFSET($D118,1,$C118,ROW($C$404)-ROW($C118)),0)) -> 0 | L118: F | M118: Serviço | N118: Serviço | O118: 1.7.0.0.22. | P118: Composição | Q118: 001 | R118: =IF($C118="S",REFERENCIA.Descricao,"(digite a descrição aqui)") -> LUMINÁRIA PLAFON BOCAL CONVENCIONAL, DE SOBREPOR, INCLUSO LAMPADA BULBO LED 30W 6500K - FORNECIMENTO E INSTALAÇÃO | S118: =REFERENCIA.Unidade -> UNIDADE | T118: =OFFSET(CÁLCULO!H$15,ROW($T118)-ROW(T$15),0) -> 24 | U118: 30.51 | V118: BDI 1 | W118: =IF($C118="S",ROUND(IF(TIPOORCAMENTO="Proposto",ORÇAMENTO.CustoUnitario*(1+$AH118),ORÇAMENTO.PrecoUnitarioLicitado),15-13*$AF$10),0) -> 36.86 | X118: =IF($C118="S",IF(Import.TipoArredondamento<>"TransfereGOV",VTOTAL1,SUM(OFFSET(CÁLCULO!$AA$15,ROW($X118)-ROW($X$15),1):OFFSET(CÁLCULO!$AL$15,ROW($X118)-ROW($X$15),-1))),IF($C118=0,0,ROUND(SomaAgrup,15-13*$AF$11))) -> 884.64 | Y118: RA | Z118: RA | AA118: =IF($C118="S",IF($Z118="CP",$X118,IF($Z118="RA",(($X118)*QCI!$AA$3),0)),SomaAgrup) -> 237.3260625 | AB118: 0 | AC118: =IF($N118="","",IF(ORÇAMENTO.Descricao="","DESCRIÇÃO",IF(AND($C118="S",ORÇAMENTO.Unidade=""),"UNIDADE",IF($X118<0,"VALOR NEGATIVO",IF(OR(AND(TIPOORCAMENTO="Proposto",$AG118<>"",$AG118>0,ORÇAMENTO.CustoUnitario>$AG118),AND(TIPOORCAMENTO="LICITADO",ORÇAMENTO.PrecoUnitarioLicitado>$AN118)),"ACIMA REF.",""))))) ->  | AD118: =IF(C118<=CRONO.NivelExibicao,MAX($AD$15:OFFSET(AD118,-1,0))+IF($C118<>1,1,MAX(1,COUNTIF(QCI!$A$13:$A$24,OFFSET($E118,-1,0)))),"") ->  | AE118: =IF(AND($C118="S",ORÇAMENTO.CodBarra<>""),IF(ORÇAMENTO.Fonte="",ORÇAMENTO.CodBarra,CONCATENATE(ORÇAMENTO.Fonte," ",ORÇAMENTO.CodBarra))) -> Composição 001 | AF118: =IF(ISERROR(INDIRECT(ORÇAMENTO.BancoRef)),"(abra o arquivo 'Referência "&Excel_BuiltIn_Database&".xlsm)",IF(OR($C118<>"S",ORÇAMENTO.CodBarra=""),"(Sem Código)",IF(ISERROR(MATCH($AE118,INDIRECT(ORÇAMENTO.BancoRef),0)),"(Código não identificado nas referências)",MATCH($AE118,INDIRECT(ORÇAMENTO.BancoRef),0)))) -> 3 | AG118: =ROUND(IF(DESONERACAO="sim",REFERENCIA.Desonerado,REFERENCIA.NaoDesonerado),2) -> 30.51 | AH118: 0.2082 | AJ118: 24 | AM118: 884.64 | AN118: 36.86
A119: =CHOOSE(1+LOG(1+2*(ORÇAMENTO.Nivel="Meta")+4*(ORÇAMENTO.Nivel="Nível 2")+8*(ORÇAMENTO.Nivel="Nível 3")+16*(ORÇAMENTO.Nivel="Nível 4")+32*(ORÇAMENTO.Nivel="Serviço"),2),0,1,2,3,4,"S") -> S | B119: =IF(OR(C119="s",C119=0),OFFSET(B119,-1,0),C119) -> 2 | C119: =IF(OFFSET(C119,-1,0)="L",1,IF(OFFSET(C119,-1,0)=1,2,IF(OR(A119="s",A119=0),"S",IF(AND(OFFSET(C119,-1,0)=2,A119=4),3,IF(AND(OR(OFFSET(C119,-1,0)="s",OFFSET(C119,-1,0)=0),A119<>"s",A119>OFFSET(B119,-1,0)),OFFSET(B119,-1,0),A119))))) -> S | D119: =IF(OR(C119="S",C119=0),0,IF(ISERROR(K119),J119,SMALL(J119:K119,1))) -> 0 | E119: =IF($C119=1,OFFSET(E119,-1,0)+MAX(1,COUNTIF(QCI!$A$13:$A$24,OFFSET(ORÇAMENTO!E119,-1,0))),OFFSET(E119,-1,0)) -> 1 | F119: =IF($C119=1,0,IF($C119=2,OFFSET(F119,-1,0)+1,OFFSET(F119,-1,0))) -> 7 | G119: =IF(AND($C119<=2,$C119<>0),0,IF($C119=3,OFFSET(G119,-1,0)+1,OFFSET(G119,-1,0))) -> 0 | H119: =IF(AND($C119<=3,$C119<>0),0,IF($C119=4,OFFSET(H119,-1,0)+1,OFFSET(H119,-1,0))) -> 0 | I119: =IF(AND($C119<=4,$C119<>0),0,IF(AND($C119="S",$X119>0),OFFSET(I119,-1,0)+1,OFFSET(I119,-1,0))) -> 23 | J119: 0 | K119: =IF(OR($C119="S",$C119=0),0,MATCH(OFFSET($D119,0,$C119)+IF($C119<>1,1,COUNTIF(QCI!$A$13:$A$24,ORÇAMENTO!E119)),OFFSET($D119,1,$C119,ROW($C$404)-ROW($C119)),0)) -> 0 | L119: =IF(OR($X119>0,$C119=1,$C119=2,$C119=3,$C119=4),"F","") -> F | M119: Serviço | N119: =CHOOSE(1+LOG(1+2*(C119=1)+4*(C119=2)+8*(C119=3)+16*(C119=4)+32*(C119="S"),2),"","Meta","Nível 2","Nível 3","Nível 4","Serviço") -> Serviço | O119: =IF(OR($C119=0,$L119=""),"-",CONCATENATE(E119&".",IF(AND($A$5>=2,$C119>=2),F119&".",""),IF(AND($A$5>=3,$C119>=3),G119&".",""),IF(AND($A$5>=4,$C119>=4),H119&".",""),IF($C119="S",I119&".",""))) -> 1.7.0.0.23. | P119: Cotação | Q119: 008 | R119: =IF($C119="S",REFERENCIA.Descricao,"(digite a descrição aqui)") -> FORNECIMENTO E INSTALAÇÃO DE SISTEMA DE GERAÇÃO DE ENERGIA ELÉTRICA SOLAR FOTOVOLTAICA, INCLUINDO PROJETO APROVADO NA COPEL, COM CONJUNTO DE PLACAS DIMENSIONADAS PELO EXECUTOR COM POTÊNCIA SOMADA DE NO MÍNIMO 49,95 kWp E POTÊNCIA MÍNIMA DO INVERSOR DE 40Kw, INCLUINDO FORNECIMENTO E EXECUÇÃO DE ESTRUTURA DE FIXAÇÃO NA COBERTURA PARA IMPLANTAÇÃO DAS PLACAS, CONFORME ESPECIFICAÇÕES | S119: =REFERENCIA.Unidade -> UNIDADE | T119: =OFFSET(CÁLCULO!H$15,ROW($T119)-ROW(T$15),0) -> 1 | U119: 147250.8 | V119: 0 | W119: =IF($C119="S",ROUND(IF(TIPOORCAMENTO="Proposto",ORÇAMENTO.CustoUnitario*(1+$AH119),ORÇAMENTO.PrecoUnitarioLicitado),15-13*$AF$10),0) -> 147250.8 | X119: =IF($C119="S",IF(Import.TipoArredondamento<>"TransfereGOV",VTOTAL1,SUM(OFFSET(CÁLCULO!$AA$15,ROW($X119)-ROW($X$15),1):OFFSET(CÁLCULO!$AL$15,ROW($X119)-ROW($X$15),-1))),IF($C119=0,0,ROUND(SomaAgrup,15-13*$AF$11))) -> 147250.8 | Y119: RA | Z119: =IF(AND($C119="S",$X119>0),IF(ISBLANK($Y119),"RA",LEFT($Y119,2)),"") -> RA | AA119: =IF($C119="S",IF($Z119="CP",$X119,IF($Z119="RA",(($X119)*QCI!$AA$3),0)),SomaAgrup) -> 39503.58628 | AB119: =IF($C119="S",IF($Z119="OU",ROUND($X119,2),0),SomaAgrup) -> 0 | AC119: =IF($N119="","",IF(ORÇAMENTO.Descricao="","DESCRIÇÃO",IF(AND($C119="S",ORÇAMENTO.Unidade=""),"UNIDADE",IF($X119<0,"VALOR NEGATIVO",IF(OR(AND(TIPOORCAMENTO="Proposto",$AG119<>"",$AG119>0,ORÇAMENTO.CustoUnitario>$AG119),AND(TIPOORCAMENTO="LICITADO",ORÇAMENTO.PrecoUnitarioLicitado>$AN119)),"ACIMA REF.",""))))) ->  | AD119: =IF(C119<=CRONO.NivelExibicao,MAX($AD$15:OFFSET(AD119,-1,0))+IF($C119<>1,1,MAX(1,COUNTIF(QCI!$A$13:$A$24,OFFSET($E119,-1,0)))),"") ->  | AE119: =IF(AND($C119="S",ORÇAMENTO.CodBarra<>""),IF(ORÇAMENTO.Fonte="",ORÇAMENTO.CodBarra,CONCATENATE(ORÇAMENTO.Fonte," ",ORÇAMENTO.CodBarra))) -> Cotação 008 | AF119: =IF(ISERROR(INDIRECT(ORÇAMENTO.BancoRef)),"(abra o arquivo 'Referência "&Excel_BuiltIn_Database&".xlsm)",IF(OR($C119<>"S",ORÇAMENTO.CodBarra=""),"(Sem Código)",IF(ISERROR(MATCH($AE119,INDIRECT(ORÇAMENTO.BancoRef),0)),"(Código não identificado nas referências)",MATCH($AE119,INDIRECT(ORÇAMENTO.BancoRef),0)))) -> 25 | AG119: =ROUND(IF(DESONERACAO="sim",REFERENCIA.Desonerado,REFERENCIA.NaoDesonerado),2) -> 147250.8 | AH119: =ROUND(IF(ISNUMBER(ORÇAMENTO.OpcaoBDI),ORÇAMENTO.OpcaoBDI,IF(LEFT(ORÇAMENTO.OpcaoBDI,3)="BDI",HLOOKUP(ORÇAMENTO.OpcaoBDI,$F$4:$H$5,2,FALSE),0)),15-11*$AF$9) -> 0 | AJ119: 1 | AM119: 147250.8 | AN119: =ROUND(ORÇAMENTO.CustoUnitario*(1+$AH119),2) -> 147250.8
